Workbook

Sheet Instructions
A1: XXX | B1: version 4.2 August 2016
A2: 1 | B2: Introduction
A3: 1.1 | B3: Purpose
B4: This spreadsheet generates a financial model based on a number of user inputs. The key outputs of the model are an income statement, a statement of cash flows, and a balance sheet, both monthly and annually.
A5: 1.2 | B5: Features
B6: This model can switch between annual reporting based on fiscal year or calendar year (which only differ if the starting month is other than January). Macros (described in detail below) are provided to facilitate certain data entry tasks. This spreadsheet makes heavy use of macros. The data currently contained in the spread are exemplary.
A7: 1.3 | B7: Disclaimer
B8: The author has made every effort to ensure that the model functions properly, however
B9: The author disclaims all responsibility for the output of this model.
A10: 1.4 | B10: Rights
B11: This spreadsheet may be freely copied so long as the following copyright notice, and all such similar notices in the macros, are retained:
B12: Copyright Gerald P. Roston, Pair of Docs Consulting, LLC, Saline, MI, March 2013, gerry@pairofdocs.net
A14: 2 | B14: Using the spreadsheet
B15: This section of the guide provides instructions for each sheet in the model. The use of the macros are described in the next section.
A16: 2.1 | B16: General instructions and recommendations
B17: All formulas in this spreadsheet round to the nearest dollar. It is highly recommended that the ROUND() function be used for any user-provided formulas.
B18: Unless specifically indicated, users should only enter data and/or formulas into cells for which the font is blue. Do not change the colors of the shaded cells, as certain ones are used as 'triggers' in the macros. Note that there are a few items (which facilitate processing) 'hidden' on the various sheets, so be careful to only delete stuff from the user input area.
B19: Dollar signs are used sparingly to prevent clutter. Most cells in this spreadsheet are dollars.
B20: Macros on the sheets 'Assets & Dep' and 'Cash Flow' run when changes are made to those sheets. It is possible to make changes to the model which do not triggers these macros to run, for example, changing a parameter on the 'Key Assumptions' sheet. To ensure that the model is correct, switch to the sheets 'Assets & Dep' and 'Cash Flow', place the mouse on any cell below the pink bar, and hit enter. That will force the macros to run.
A21: 2.2 | B21: Key Assumptions
B22: This sheet provides a convenient place to enter certain parameters that are used in the model. These parameters are grouped into four categories:
B23: Dates: This is where the starting date and duration of the model are entered. The model duration can be extended, but never shortened. Note there are hidden formulas in this section, so do not delete anything. If the starting month is other than January, you can select the annual report type - by calendar year or by fiscal year - by changing the value in cell F^. This value can be repeatedly changed.
B24: Existing financials: If your company has been in business prior to the creation of this model, you can extract values from your existing financials so that this model and the existing financials agree.
B25: Operational parameters: Example values for these parameters are provided. This model provides for two contributions to employee benefits - those which are proportionally related to the employee's wages (such as FICA, vacation, etc.) and those which are a fixed cost (such as medical insurance).
B26: Other parameters: Use this section to enter other parameters. Several examples are provided.
A27: 2.3 | B27: Fin Statements A
B28: This sheet is a model output. There are no data entry field on this sheet.
A29: 2.4 | B29: Fin Statements M
B30: This sheet is a model output. There are no data entry field on this sheet.
A31: 2.5 | B31: Revenue
B32: This sheet contains the revenue model. In some cases, it may be necessary to include additional sheet for calculating revenue. The sheet provided is an example - the user may change anything below Row 5, but Row 5 must contain the total monthly revenue. It is strongly suggested that the formulas used in Row 5 be nothing more than a summation of calculations performed below.
A33: 2.5 | B33: COGS
B34: This sheet contains the cost of goods sold model. In some cases, it may be necessary to include additional sheet for calculating COGS The sheet provided is an example - the user may change anything below Row 6 .Row 5 must contain the total monthly COGS. Use row 6 for those costs that are physical goods, i.e., for which inventory matters. It is strongly suggested that the formulas used in Row 5 be nothing more than a summation of calculations performed below.
A35: 2.6 | B35: Sales Costs, R&D Costs, G&A Costs
A36: 2.7 | B36: These sheets are all fundamentally the same, so they are described together. These sheets have three sections: summary (rows 1-5), which should not be changed; staffing costs (data entry should be performed with the macro, see below); and other costs. The other costs section should include any significant costs the business is expected to incur. Using formulas for this section can be helpful. As an example, the 'G&A Costs' sheet shows telecom costs as being a function of the number of employees.
A37: 2.8
A38: 2.9 | B38: Loans
B39: There are two sections to the Loans sheet. Rows 24-27 are for a revolving line of credit. The parameters to enter are: Min LOC (the minimum dollar value of accounts receivable before the LOC starts), Max LOC (the maximum amount of the LOC), the LOC interest rate, and Per of Recv (the amount of the LOC as a percentage of receivables).
B40: The remaining rows are for loans, see more below under Macros. Do not edit any of the macro-generated values by hand!
A41: 2.1 | B41: Assets and Dep
B42: Use this sheet to track the company's hard and soft assets, and their depreciation
B43: Enter goodwill in row 20. For most startups, this row will remain empty.
B44: Enter costs for patents, trademarks, copyrights, etc., in rows 23 and 24. Use row 23 for costs of acquiring new IP rights and row 24 for the cost of maintaining those IP rights.
B45: Use rows 29-31 to enter R&D equipment, production equipment, and other equipment respectively. You can use formulas for these cell. The example data shows $5000 of other assets being acquired for each new employee.
A46: 2.11 | B46: Cash Flow
B47: There is only one row for user entry, row 41, and it will rarely be used. This row is used to account for cash flow differences in those special cases when you know that a vendor will not be paid in the usual amount of time. For example, if your accounts payable is set for one month (a typical value), but an equipment vendor has told you that you can pay in three months, you would enter the amount owed to this vendor in the cells corresponding to the second and third months. This has the affect of shifting the cash flow while still showing the expense when it is obligated.
A48: 2.12 | B48: Stock
B49: Enter the value of stock sold during the month in row 17.
A50: 2.13 | B50: For Slides
B51: This is a slimmed down version of the Income Statement for use in a presentation and/or executive summary
A53: 3 | B53: Macros
B54: There are three user accessible macros in this spreadsheet. For users of Excel 2010, the icons for them will appear on the Add-In tab. For users of earlier versions of Excel, the macros should appear on the right hand side of the toolbars. These macros should work with Excel 2000 and later on a PC, but may not work on Macs.
B55: Salary Macro
B56: The salary macro only works on the Sales Cost, R&D Costs, and G&A Costs tabs. Furthermore, for the macro to execute, the active cell has to be to the right of the shaded bar which reads, "Use macro to add staff". The macro can be used to add, edit, or delete an person.
B57: The userform has the following fields. All need to be completed:
B58: * Name - enter a descriptor for the person. This can be a name, role, or whatever makes sense to you.
B59: * Start date - click the button to select the person's start date. The start date cannot be earlier than the first month of the model.
B60: * End date - click the button to select the person's end date. If a date is not selected, the value used will be the last day of the last month of the model.
B61: * Salary - enter the person's salary and indicate if the salary is on an annual or hourly basis.
B62: * Benefit - select the option which is most appropriate for the person. 'No Benefits' is for 1099 employees, i.e., those who pay their own taxes and insurance. 'Tax Benefits' are just those benefits required by law, i.e., FICA, FUTA, etc. This is useful for people who are covered under someone else's medical insurance policy. 'Full Benefits' is the entry that should be used for most people.
B63: Once all of the fields have been entered, click the 'Create Employee Entry' button. Note that this also updates the benefits costs, so this button should be clicked after any changes are made to any person.
B64: To delete an employee entry, click the big red 'X' button.
B65: Two hints/tricks:
B66: * If you decide to delay the hiring of a person, click on their name (or any other cell in that row) and then click launch the macro. Click the red X to delete the person's entry. Next, chose a new starting date, then click the create button.
B67: * If the plan calls for hiring a person who starts on a part-time basis then transitions to a full time basis, do the following. Input the data for the part-time employment and create the entry. Next, edit the entry, change the start date to the date at which the person becomes full time, change the salary, and create the entry. This same approach can also be used to give a raise.
B68: Loan macro
B69: This macro is used to create the myriad of number used by the various financial statements to deal with loans. This macro will only run when the active cell is in the first row of a loan entry block. The macro can be used to add, edit, or delete a loan.
B70: The userform has the following fields. All need to be completed:
B71: * Loan Description - enter a meaningful identifier for the loan
B72: * Loan type - Select one of the four loan types:
B73: - Regular - This is a traditional loan, one for which repayment starts the month following disbursement.
B74: -Int Only - For the first period of the loan, only interest payments are made. After this period, this loan is a regular loan.
B75: -Convertible - After a period of time, this loan and all accrued interest, converts into equity
B76: -Balloon - This loan, including all interest, is paid back in a lumped sum at the end of the loan period.
B77: * Amount - the loan principle.
B78: * Rate - the annual interest rate percent, i.e., 8 (not 0.08). This model assumes that interest accrues monthly.
B79: * Months - the loan duration. For Int Only loans, this is the length of time after the interest only portion, i.e., the total loan period if Int Only Months plus Months.
B80: * (For Int Only loans) Int Only months - the period of time for which only interest is paid.
B81: Once all of the fields have been entered, click the 'Create Loan Entry' button.
B82: To delete an employee entry, click the big red 'X' button. Note that this only removes the calculated entries and leaves the key data items untouched. This can be deleted from the spreadsheet as desired.
B83: Lock Macro
B84: This macro is used to prevent changes to the model which are in the past.
B85: Assume that your revenue model is based on units sold times a unit price. You create the model in January and start using it. Several months later, you find that the unit cost needs to be changed. If this change is made, however, the entire model (going back to January) would be updated and this is probably not correct. Instead, use this macro to lock historical data.
B86: The userform has the following field.
B87: * Date - select any date from the month to be locked.
B88: Once the data is selected, click the button. Note that data older than the last month locked cannot be locked. Therefor, start locking from the first month in the model through the month you want locked. What locking does is to replace any formulas with numbers. All cells between the pink shaded rows and in the selected column (month) are locked. Locking has no impact on the financial statements.
B89: Note that if you make a change to a person or loan which would impact locked data, you will be asked to confirm your action.
B90: Calculate Revenue
B91: This macro calculates the revenue based on the various parameters
B92: Must be on the Revenue tab for this macro to fire
B93: Calculate Support Costs
B94: This macro enters the costs for each of the support personnel
B95: Run this anytime any of the revenue or support cost parameters are changed
B97: done

Sheet Key Assumptions
A1: XXX
B2: Dats: Parameters for the time frame of the model
B4: Start year | C4: 2015 | E4: First Month | F4: =DATE(StartYear,StartMonth,1) -> 2015-01-01
B5: Start month (enter month number) | C5: 1 | E5: Last Month | F5: 2019-12-31
B6: Number of years for model | C6: 5 | E6: FY or CY | F6: CY
C7: =DATE(StartYear,StartMonth-1,1) -> 2014-12-01 | F7: =IF(CYFY="CY",StartMonth,1) -> 1
B8: Existing financials: Parameters should come from existing financials. For a company with no history, use zeroes.
B10: ="The following items should be from a Balance sheet dated " & TEXT(FirstMonth-1, "dd mmm yyyy") -> The following items should be from a Balance sheet dated 31 Dec 2014
B12: Cash on hand | C12: 0
B14: Accounts receivable | C14: 0
B15: Inventory | C15: 0
B16: Pre-paid expenses | C16: 500
B17: Accounts payable | C17: 0
B19: Intangible assets less accumulated depreciation | C19: 0 | G19: * note - these items are not further depreciated in the model
B20: Fixed assets - non-production - less accumulated depreciation | C20: 0
B21: Fixed assets - production - less accumulated depreciation | C21: 0 | G21: * note - these items are not further depreciated in the model
B23: Common stock | C23: 10000
B25: Operational parameters: The values shown below are general guidelines
B27: Annual interest rate earned on cash | C27: 0.005
B29: State business income tax rate | C29: 0.06
B31: Cost of living adjustment (COLA) | C31: 0.03
B32: Benefits as a percentage of salary (FICA, FUTA, WC) | C32: 0.08
B33: Other benefits (medical insurance, etc) per employee per month | C33: 500
B34: Other benefits annual escalator | C34: 0.03
B36: Months outstanding for receivables | C36: 1
B37: Inventory turns (months) | C37: 3
B38: Pre-paid expenses as months of operating expenses | C38: 1
B39: Months outstanding for payables | C39: 1
B41: Other parameters: Enter any other parameters here
B43: Sales commisison | C43: 0.1
B44: Monthly supplies allocation, including cell phones | C44: 1000
B46: New hire costs (computer, desk, s/w, phone, etc) | C46: 1200
B48: Sup: Number of customers for first hire | C48: 5
B49: Sup: Number of customers for each additional hire | C49: 25
B50: Sup: Annual salary for customer support personnel | C50: 60000

Sheet Fin Statements A
A1: XAX | B1: Pro forma Income Statement ($1000s)
B2: ="for the period FY" & StartYear & " through FY" & IF(StartMonth=1,StartYear+NumYears-StartMonth,StartYear+NumYears) -> for the period FY2015 through FY2019 | D2: =CYFY&TEXT(StartYear+COLUMN()-4,"0000") -> CY2015 | E2: =CYFY&TEXT(StartYear+COLUMN()-4,"0000") -> CY2016 | F2: =CYFY&TEXT(StartYear+COLUMN()-4,"0000") -> CY2017 | G2: =CYFY&TEXT(StartYear+COLUMN()-4,"0000") -> CY2018 | H2: =CYFY&TEXT(StartYear+COLUMN()-4,"0000") -> CY2019
B3: Gross Revenue | D3: =Revenues!D2 -> 144200 | E3: =Revenues!E2 -> 1417900 | F3: =Revenues!F2 -> 2958600 | G3: =Revenues!G2 -> 4380000 | H3: =Revenues!H2 -> 5820000
B4: Cost of Goods | D4: =COGS!D2 -> 95986 | E4: =COGS!E2 -> 643991 | F4: =COGS!F2 -> 853926 | G4: =COGS!G2 -> 927430 | H4: =COGS!H2 -> 1003324
B5: Gross Margin | D5: =D3-D4 -> 48214 | E5: 773909 | F5: 2104674 | G5: =G3-G4 -> 3452570 | H5: =H3-H4 -> 4816676
B6: Sales and Marketing | D6: ='Sales Costs'!D2 -> 142040 | E6: ='Sales Costs'!E2 -> 562580 | F6: ='Sales Costs'!F2 -> 820978 | G6: ='Sales Costs'!G2 -> 993039 | H6: ='Sales Costs'!H2 -> 1144829
B7: Research and Development | D7: ='R&D Costs'!D2 -> 181530 | E7: ='R&D Costs'!E2 -> 400335 | F7: ='R&D Costs'!F2 -> 412350 | G7: ='R&D Costs'!G2 -> 424716 | H7: ='R&D Costs'!H2 -> 437463
B8: General and Administrative | D8: ='G&A Costs'!D2 -> 100960 | E8: ='G&A Costs'!E2 -> 312551 | F8: ='G&A Costs'!F2 -> 433804 | G8: ='G&A Costs'!G2 -> 468948 | H8: ='G&A Costs'!H2 -> 484200
B9: Operating Expenses | D9: =SUM(D6:D8) -> 424530 | E9: 1275466 | F9: 1667132 | G9: =SUM(G6:G8) -> 1886703 | H9: =SUM(H6:H8) -> 2066492
B10: EBITDA | D10: =D5-D9 -> -376316 | E10: -501557 | F10: 437542 | G10: =G5-G9 -> 1565867 | H10: =H5-H9 -> 2750184
B11: Interest Income | D11: ='Cash Flow'!D7 -> 2325 | E11: ='Cash Flow'!E7 -> 2770 | F11: ='Cash Flow'!F7 -> 1310 | G11: ='Cash Flow'!G7 -> 5451 | H11: ='Cash Flow'!H7 -> 13667
B12: Interest Expenses | D12: =-Loans!D3 -> -13125 | E12: =-Loans!E3 -> -12061 | F12: =-Loans!F3 -> -11468 | G12: =-Loans!G3 -> -12776 | H12: =-Loans!H3 -> -22518
B13: Taxable income | D13: =D10+D11+D12 -> -387116 | E13: =E10+E11+E12 -> -510848 | F13: 427384 | G13: =G10+G11+G12 -> 1558542 | H13: =H10+H11+H12 -> 2741333
B14: Corporate income tax | D14: =-'Cash Flow'!D8 -> 0 | E14: =-'Cash Flow'!E8 -> 0 | F14: =-'Cash Flow'!F8 -> 0 | G14: =-'Cash Flow'!G8 -> -435780 | H14: =-'Cash Flow'!H8 -> -1097460
B15: Non-production depreciation | D15: =-'Assets & Dep'!D8 -> -230 | E15: =-'Assets & Dep'!E8 -> -276 | F15: =-'Assets & Dep'!F8 -> -276 | G15: =-'Assets & Dep'!G8 -> -276 | H15: =-'Assets & Dep'!H8 -> -276
B16: Amortization | D16: =-'Assets & Dep'!D4 -> -830 | E16: =-'Assets & Dep'!E4 -> -1185 | F16: =-'Assets & Dep'!F4 -> -1284 | G16: =-'Assets & Dep'!G4 -> -1324 | H16: =-'Assets & Dep'!H4 -> -1372
B17: Net income | D17: =D13+D14+D15+D16 -> -388176 | E17: =E13+E14+E15+E16 -> -512309 | F17: 425824 | G17: 1121162 | H17: 1642225
B20: Pro Forma Cash Flow Statement
B21: ="for the period FY" & StartYear & " through FY" & IF(StartMonth=1,StartYear+NumYears-StartMonth,StartYear+NumYears) -> for the period FY2015 through FY2019 | D21: =CYFY&TEXT(StartYear+COLUMN()-4,"0000") -> CY2015 | E21: =CYFY&TEXT(StartYear+COLUMN()-4,"0000") -> CY2016 | F21: =CYFY&TEXT(StartYear+COLUMN()-4,"0000") -> CY2017 | G21: =CYFY&TEXT(StartYear+COLUMN()-4,"0000") -> CY2018 | H21: =CYFY&TEXT(StartYear+COLUMN()-4,"0000") -> CY2019
B22: Net Income | D22: =D17 -> -388176 | E22: -512309 | F22: 425824 | G22: =G17 -> 1121162 | H22: =H17 -> 1642225
B23: Income taxes paid | D23: ='Cash Flow'!D8-'Cash Flow'!D9 -> 0 | E23: ='Cash Flow'!E8-'Cash Flow'!E9 -> 0 | F23: ='Cash Flow'!F8-'Cash Flow'!F9 -> 0 | G23: ='Cash Flow'!G8-'Cash Flow'!G9 -> 435780 | H23: ='Cash Flow'!H8-'Cash Flow'!H9 -> 225900
B24: Depreciation and amortization | D24: ='Assets & Dep'!D8+'Assets & Dep'!D12+'Assets & Dep'!D4 -> 3146 | E24: ='Assets & Dep'!E8+'Assets & Dep'!E12+'Assets & Dep'!E4 -> 5037 | F24: ='Assets & Dep'!F8+'Assets & Dep'!F12+'Assets & Dep'!F4 -> 6564 | G24: ='Assets & Dep'!G8+'Assets & Dep'!G12+'Assets & Dep'!G4 -> 6604 | H24: ='Assets & Dep'!H8+'Assets & Dep'!H12+'Assets & Dep'!H4 -> 6652
B25: Accrued Interest | D25: =Loans!D8 -> 0 | E25: =Loans!E8 -> 0 | F25: =Loans!F8 -> 0 | G25: =Loans!G8 -> 0 | H25: =Loans!H8 -> 0
B26: Change in WC, excluding cash | D26: =-'Cash Flow'!D6 -> -92675 | E26: =-'Cash Flow'!E6 -> -209625 | F26: =-'Cash Flow'!F6 -> -120000 | G26: =-'Cash Flow'!G6 -> -120000 | H26: =-'Cash Flow'!H6 -> -120000
B27: PP&E Purchase | D27: =-('Assets & Dep'!D6+'Assets & Dep'!D10) -> -26500 | E27: =-('Assets & Dep'!E6+'Assets & Dep'!E10) -> 0 | F27: =-('Assets & Dep'!F6+'Assets & Dep'!F10) -> -10000 | G27: =-('Assets & Dep'!G6+'Assets & Dep'!G10) -> 0 | H27: =-('Assets & Dep'!H6+'Assets & Dep'!H10) -> 0
B28: Increase in Intangible Assets | D28: ='Assets & Dep'!D2 -> 20000 | E28: ='Assets & Dep'!E2 -> 5000 | F28: ='Assets & Dep'!F2 -> 1000 | G28: ='Assets & Dep'!G2 -> 1000 | H28: ='Assets & Dep'!H2 -> 1000
B29: Bank loans and capital leases | D29: =Loans!D2 -> 273750 | E29: =Loans!E2 -> 66250 | F29: =Loans!F2 -> 60000 | G29: =Loans!G2 -> 60000 | H29: =Loans!H2 -> 290000
B30: Reduction in loans outstanding | D30: =-Loans!D4 -> -78398 | E30: =-Loans!E4 -> -83234 | F30: =-Loans!F4 -> -88368 | G30: =-Loans!G4 -> 0 | H30: =-Loans!H4 -> 0
B31: Capital Stock | D31: =Stock!D2 -> 1300000 | E31: =Stock!E2 -> 0 | F31: =Stock!F2 -> 0 | G31: =Stock!G2 -> 0 | H31: =Stock!H2 -> 0
B32: Change in Cash | D32: =SUM(D22:D31) -> 1011147 | E32: =SUM(E22:E31) -> -728881 | F32: 275020 | G32: =SUM(G22:G31) -> 1504546 | H32: =SUM(H22:H31) -> 2045777
B35: Pro Forma Balance Sheet
B36: as of the end of each fiscal year | D36: =CYFY&TEXT(StartYear+COLUMN()-4,"0000") -> CY2015 | E36: =CYFY&TEXT(StartYear+COLUMN()-4,"0000") -> CY2016 | F36: =CYFY&TEXT(StartYear+COLUMN()-4,"0000") -> CY2017 | G36: =CYFY&TEXT(StartYear+COLUMN()-4,"0000") -> CY2018 | H36: =CYFY&TEXT(StartYear+COLUMN()-4,"0000") -> CY2019
B37: Assets
B38: Cash | D38: =OFFSET('Fin Statements M'!$D41,0,12*(COLUMN()-3)-1,1,1) -> 972645 | E38: =OFFSET('Fin Statements M'!$D41,0,12*(COLUMN()-3)-1,1,1) -> 233764 | F38: =OFFSET('Fin Statements M'!$D41,0,12*(COLUMN()-3)-1,1,1) -> 506784 | G38: =OFFSET('Fin Statements M'!$D41,0,12*(COLUMN()-3)-1,1,1) -> 2009330 | H38: =OFFSET('Fin Statements M'!$D41,0,12*(COLUMN()-3)-1,1,1) -> 4053107
B39: Accounts Receivable | D39: =OFFSET('Fin Statements M'!$D42,0,12*(COLUMN()-3)-1,1,1) -> 47500 | E39: =OFFSET('Fin Statements M'!$D42,0,12*(COLUMN()-3)-1,1,1) -> 180000 | F39: =OFFSET('Fin Statements M'!$D42,0,12*(COLUMN()-3)-1,1,1) -> 300000 | G39: =OFFSET('Fin Statements M'!$D42,0,12*(COLUMN()-3)-1,1,1) -> 420000 | H39: =OFFSET('Fin Statements M'!$D42,0,12*(COLUMN()-3)-1,1,1) -> 540000
B40: Inventory | D40: =OFFSET('Fin Statements M'!$D43,0,12*(COLUMN()-3)-1,1,1) -> 75000 | E40: =OFFSET('Fin Statements M'!$D43,0,12*(COLUMN()-3)-1,1,1) -> 180000 | F40: =OFFSET('Fin Statements M'!$D43,0,12*(COLUMN()-3)-1,1,1) -> 180000 | G40: =OFFSET('Fin Statements M'!$D43,0,12*(COLUMN()-3)-1,1,1) -> 180000 | H40: =OFFSET('Fin Statements M'!$D43,0,12*(COLUMN()-3)-1,1,1) -> 180000
B41: Prepaid Expenses | D41: =OFFSET('Fin Statements M'!$D44,0,12*(COLUMN()-3)-1,1,1) -> 1875 | E41: =OFFSET('Fin Statements M'!$D44,0,12*(COLUMN()-3)-1,1,1) -> 4000 | F41: =OFFSET('Fin Statements M'!$D44,0,12*(COLUMN()-3)-1,1,1) -> 4000 | G41: =OFFSET('Fin Statements M'!$D44,0,12*(COLUMN()-3)-1,1,1) -> 4000 | H41: =OFFSET('Fin Statements M'!$D44,0,12*(COLUMN()-3)-1,1,1) -> 4000
B42: Current Assets | D42: =SUM(D38:D41) -> 1097020 | E42: 597764 | F42: 990784 | G42: =SUM(G38:G41) -> 2613330 | H42: =SUM(H38:H41) -> 4777107
B43: Fixed Assets at Cost | D43: ='Assets & Dep'!D7+'Assets & Dep'!D11 -> 26500 | E43: ='Assets & Dep'!E7+'Assets & Dep'!E11 -> 26500 | F43: ='Assets & Dep'!F7+'Assets & Dep'!F11 -> 36500 | G43: ='Assets & Dep'!G7+'Assets & Dep'!G11 -> 36500 | H43: ='Assets & Dep'!H7+'Assets & Dep'!H11 -> 36500
B44: Accumulated Depreciation | D44: ='Assets & Dep'!D9+'Assets & Dep'!D13 -> 2316 | E44: ='Assets & Dep'!E9+'Assets & Dep'!E13 -> 6168 | F44: ='Assets & Dep'!F9+'Assets & Dep'!F13 -> 11448 | G44: ='Assets & Dep'!G9+'Assets & Dep'!G13 -> 16728 | H44: ='Assets & Dep'!H9+'Assets & Dep'!H13 -> 22008
B45: Net Fixed Assets | D45: =D43-D44 -> 24184 | E45: 20332 | F45: 25052 | G45: =G43-G44 -> 19772 | H45: =H43-H44 -> 14492
B46: Intangible Assets | D46: ='Assets & Dep'!D3 -> 20000 | E46: ='Assets & Dep'!E3 -> 25000 | F46: ='Assets & Dep'!F3 -> 26000 | G46: ='Assets & Dep'!G3 -> 27000 | H46: ='Assets & Dep'!H3 -> 28000
B47: Accumulated Amortization | D47: ='Assets & Dep'!D5 -> 830 | E47: ='Assets & Dep'!E5 -> 2015 | F47: ='Assets & Dep'!F5 -> 3299 | G47: ='Assets & Dep'!G5 -> 4623 | H47: ='Assets & Dep'!H5 -> 5995
B48: Net Intangible Assets | D48: =D46-D47 -> 19170 | E48: 22985 | F48: 22701 | G48: 22377 | H48: 22005
B49: Total Assets | D49: =D42+D45+D48 -> 1140374 | E49: =E42+E45+E48 -> 641081 | F49: 1038537 | G49: 2655479 | H49: 4813604
B50: Liabilities
B51: Accounts Payable | D51: =OFFSET('Fin Statements M'!$D55,0,12*(COLUMN()-3)-1,1,1) -> 31200 | E51: =OFFSET('Fin Statements M'!$D55,0,12*(COLUMN()-3)-1,1,1) -> 61200 | F51: =OFFSET('Fin Statements M'!$D55,0,12*(COLUMN()-3)-1,1,1) -> 61200 | G51: =OFFSET('Fin Statements M'!$D55,0,12*(COLUMN()-3)-1,1,1) -> 61200 | H51: =OFFSET('Fin Statements M'!$D55,0,12*(COLUMN()-3)-1,1,1) -> 61200
B52: Current Portion of Debt | D52: =Loans!D5 -> 106982 | E52: =Loans!E5 -> 178368 | F52: =Loans!F5 -> 150000 | G52: =Loans!G5 -> 210000 | H52: =Loans!H5 -> 500000
B53: Income Taxes Payable | D53: =OFFSET('Fin Statements M'!$D57,0,12*(COLUMN()-3)-1,1,1) -> 0 | E53: =OFFSET('Fin Statements M'!$D57,0,12*(COLUMN()-3)-1,1,1) -> 0 | F53: =OFFSET('Fin Statements M'!$D57,0,12*(COLUMN()-3)-1,1,1) -> 0 | G53: =OFFSET('Fin Statements M'!$D57,0,12*(COLUMN()-3)-1,1,1) -> 435780 | H53: =OFFSET('Fin Statements M'!$D57,0,12*(COLUMN()-3)-1,1,1) -> 661680
B54: Current Liabilities | D54: =SUM(D51:D53) -> 138182 | E54: 239568 | F54: 211200 | G54: =SUM(G51:G53) -> 706980 | H54: =SUM(H51:H53) -> 1222880
B55: Long-Term Debt | D55: =Loans!D6 -> 88370 | E55: =Loans!E6 -> 0 | F55: =Loans!F6 -> 0 | G55: =Loans!G6 -> 0 | H55: =Loans!H6 -> 0
B56: Capital Stock | D56: =Stock!D3 -> 1310000 | E56: =Stock!E3 -> 1310000 | F56: =Stock!F3 -> 1310000 | G56: =Stock!G3 -> 1310000 | H56: =Stock!H3 -> 1310000
B57: Retained Earnings | D57: =Stock!D4 -> -396178 | E57: =Stock!E4 -> -908487 | F57: =Stock!F4 -> -482663 | G57: =Stock!G4 -> 638499 | H57: =Stock!H4 -> 2280724
B58: Shareholder's Equity | D58: =D56+D57 -> 913822 | E58: =E56+E57 -> 401513 | F58: 827337 | G58: 1948499 | H58: 3590724
B59: Total Liabilities and Equity | D59: =D54+D55+D58 -> 1140374 | E59: 641081 | F59: 1038537 | G59: =G54+G55+G58 -> 2655479 | H59: =H54+H55+H58 -> 4813604
B62: Employee count at end of year (other than COGS) | D62: =OFFSET('Fin Statements M'!$D67,0,12*(COLUMN()-3)-1,1,1) -> 7 | E62: =OFFSET('Fin Statements M'!$D67,0,12*(COLUMN()-3)-1,1,1) -> 11 | F62: =OFFSET('Fin Statements M'!$D67,0,12*(COLUMN()-3)-1,1,1) -> 13 | G62: =OFFSET('Fin Statements M'!$D67,0,12*(COLUMN()-3)-1,1,1) -> 14 | H62: =OFFSET('Fin Statements M'!$D67,0,12*(COLUMN()-3)-1,1,1) -> 15
B63: Gross revenue per employee (nearest 1000) | D63: =ROUND(D3/D62,-3) -> 21000 | E63: =ROUND(E3/E62,-3) -> 129000 | F63: 228000 | G63: 313000 | H63: 388000
B64: Gross margin percentage | D64: =(D3-D4)/D3 -> 0.3343550624 | E64: =(E3-E4)/E3 -> 0.545813527 | F64: 0.7113749747 | G64: =(G3-G4)/G3 -> 0.7882579909 | H64: 0.8276075601
B65: EBITDA percentage | D65: =IF(D10/D3>0,D10/D3,0) -> 0 | E65: =IF(E10/E3>0,E10/E3,0) -> 0 | F65: 0.1478881904 | G65: 0.3575038813 | H65: 0.4725402062
B66: Net margin percentage | D66: =IF(D17/D3>0,D17/D3,0) -> 0 | E66: =IF(E17/E3>0,E17/E3,0) -> 0 | F66: 0.1439275333 | G66: =IF(G17/G3>0,G17/G3,0) -> 0.2559730594 | H66: 0.282169244
B68: Do not remove this line

Sheet Fin Statements M
A1: XXM | B1: Pro Forma Income Statement
B2: ="for the period " & StartYear & " through " & IF(StartMonth=1,StartYear+NumYears-StartMonth,StartYear+NumYears) -> for the period 2015 through 2019
D3: =IF(B3="",FirstMonth,IF(B3=LastMonth,"",DATE(YEAR(B3),MONTH(B3)+1,DAY(B3)))) -> 2015-01-01 | E3: =IF(D3="",FirstMonth,IF(D3=LastMonth,"",DATE(YEAR(D3),MONTH(D3)+1,DAY(D3)))) -> 2015-02-01 | F3: =IF(E3="",FirstMonth,IF(E3=LastMonth,"",DATE(YEAR(E3),MONTH(E3)+1,DAY(E3)))) -> 2015-03-01 | G3: =IF(F3="",FirstMonth,IF(F3=LastMonth,"",DATE(YEAR(F3),MONTH(F3)+1,DAY(F3)))) -> 2015-04-01 | H3: =IF(G3="",FirstMonth,IF(G3=LastMonth,"",DATE(YEAR(G3),MONTH(G3)+1,DAY(G3)))) -> 2015-05-01 | I3: =IF(H3="",FirstMonth,IF(H3=LastMonth,"",DATE(YEAR(H3),MONTH(H3)+1,DAY(H3)))) -> 2015-06-01 | J3: =IF(I3="",FirstMonth,IF(I3=LastMonth,"",DATE(YEAR(I3),MONTH(I3)+1,DAY(I3)))) -> 2015-07-01 | K3: =IF(J3="",FirstMonth,IF(J3=LastMonth,"",DATE(YEAR(J3),MONTH(J3)+1,DAY(J3)))) -> 2015-08-01 | L3: =IF(K3="",FirstMonth,IF(K3=LastMonth,"",DATE(YEAR(K3),MONTH(K3)+1,DAY(K3)))) -> 2015-09-01 | M3: =IF(L3="",FirstMonth,IF(L3=LastMonth,"",DATE(YEAR(L3),MONTH(L3)+1,DAY(L3)))) -> 2015-10-01 | N3: =IF(M3="",FirstMonth,IF(M3=LastMonth,"",DATE(YEAR(M3),MONTH(M3)+1,DAY(M3)))) -> 2015-11-01 | O3: =IF(N3="",FirstMonth,IF(N3=LastMonth,"",DATE(YEAR(N3),MONTH(N3)+1,DAY(N3)))) -> 2015-12-01 | P3: 2016-01-01 | Q3: 2016-02-01 | R3: 2016-03-01 | S3: 2016-04-01 | T3: 2016-05-01 | U3: 2016-06-01 | V3: 2016-07-01 | W3: 2016-08-01 | X3: 2016-09-01 | Y3: 2016-10-01 | Z3: 2016-11-01 | AA3: 2016-12-01 | AB3: 2017-01-01 | AC3: 2017-02-01 | AD3: 2017-03-01 | AE3: 2017-04-01 | AF3: 2017-05-01 | AG3: 2017-06-01 | AH3: 2017-07-01 | AI3: 2017-08-01 | AJ3: 2017-09-01 | AK3: 2017-10-01 | AL3: 2017-11-01 | AM3: 2017-12-01 | AN3: =IF(AM3="",FirstMonth,IF(AM3=LastMonth,"",DATE(YEAR(AM3),MONTH(AM3)+1,DAY(AM3)))) -> 2018-01-01 | AO3: =IF(AN3="",FirstMonth,IF(AN3=LastMonth,"",DATE(YEAR(AN3),MONTH(AN3)+1,DAY(AN3)))) -> 2018-02-01 | AP3: =IF(AO3="",FirstMonth,IF(AO3=LastMonth,"",DATE(YEAR(AO3),MONTH(AO3)+1,DAY(AO3)))) -> 2018-03-01 | AQ3: =IF(AP3="",FirstMonth,IF(AP3=LastMonth,"",DATE(YEAR(AP3),MONTH(AP3)+1,DAY(AP3)))) -> 2018-04-01 | AR3: =IF(AQ3="",FirstMonth,IF(AQ3=LastMonth,"",DATE(YEAR(AQ3),MONTH(AQ3)+1,DAY(AQ3)))) -> 2018-05-01 | AS3: =IF(AR3="",FirstMonth,IF(AR3=LastMonth,"",DATE(YEAR(AR3),MONTH(AR3)+1,DAY(AR3)))) -> 2018-06-01 | AT3: =IF(AS3="",FirstMonth,IF(AS3=LastMonth,"",DATE(YEAR(AS3),MONTH(AS3)+1,DAY(AS3)))) -> 2018-07-01 | AU3: =IF(AT3="",FirstMonth,IF(AT3=LastMonth,"",DATE(YEAR(AT3),MONTH(AT3)+1,DAY(AT3)))) -> 2018-08-01 | AV3: =IF(AU3="",FirstMonth,IF(AU3=LastMonth,"",DATE(YEAR(AU3),MONTH(AU3)+1,DAY(AU3)))) -> 2018-09-01 | AW3: =IF(AV3="",FirstMonth,IF(AV3=LastMonth,"",DATE(YEAR(AV3),MONTH(AV3)+1,DAY(AV3)))) -> 2018-10-01 | AX3: =IF(AW3="",FirstMonth,IF(AW3=LastMonth,"",DATE(YEAR(AW3),MONTH(AW3)+1,DAY(AW3)))) -> 2018-11-01 | AY3: =IF(AX3="",FirstMonth,IF(AX3=LastMonth,"",DATE(YEAR(AX3),MONTH(AX3)+1,DAY(AX3)))) -> 2018-12-01 | AZ3: =IF(AY3="",FirstMonth,IF(AY3=LastMonth,"",DATE(YEAR(AY3),MONTH(AY3)+1,DAY(AY3)))) -> 2019-01-01 | BA3: =IF(AZ3="",FirstMonth,IF(AZ3=LastMonth,"",DATE(YEAR(AZ3),MONTH(AZ3)+1,DAY(AZ3)))) -> 2019-02-01 | BB3: =IF(BA3="",FirstMonth,IF(BA3=LastMonth,"",DATE(YEAR(BA3),MONTH(BA3)+1,DAY(BA3)))) -> 2019-03-01 | BC3: =IF(BB3="",FirstMonth,IF(BB3=LastMonth,"",DATE(YEAR(BB3),MONTH(BB3)+1,DAY(BB3)))) -> 2019-04-01 | BD3: =IF(BC3="",FirstMonth,IF(BC3=LastMonth,"",DATE(YEAR(BC3),MONTH(BC3)+1,DAY(BC3)))) -> 2019-05-01 | BE3: =IF(BD3="",FirstMonth,IF(BD3=LastMonth,"",DATE(YEAR(BD3),MONTH(BD3)+1,DAY(BD3)))) -> 2019-06-01 | BF3: =IF(BE3="",FirstMonth,IF(BE3=LastMonth,"",DATE(YEAR(BE3),MONTH(BE3)+1,DAY(BE3)))) -> 2019-07-01 | BG3: =IF(BF3="",FirstMonth,IF(BF3=LastMonth,"",DATE(YEAR(BF3),MONTH(BF3)+1,DAY(BF3)))) -> 2019-08-01 | BH3: =IF(BG3="",FirstMonth,IF(BG3=LastMonth,"",DATE(YEAR(BG3),MONTH(BG3)+1,DAY(BG3)))) -> 2019-09-01 | BI3: =IF(BH3="",FirstMonth,IF(BH3=LastMonth,"",DATE(YEAR(BH3),MONTH(BH3)+1,DAY(BH3)))) -> 2019-10-01 | BJ3: =IF(BI3="",FirstMonth,IF(BI3=LastMonth,"",DATE(YEAR(BI3),MONTH(BI3)+1,DAY(BI3)))) -> 2019-11-01 | BK3: =IF(BJ3="",FirstMonth,IF(BJ3=LastMonth,"",DATE(YEAR(BJ3),MONTH(BJ3)+1,DAY(BJ3)))) -> 2019-12-01
B4: Gross Revenue | D4: =Revenues!D5 -> 1200 | E4: =Revenues!E5 -> 1500 | F4: =Revenues!F5 -> 1800 | G4: =Revenues!G5 -> 2100 | H4: =Revenues!H5 -> 2400 | I4: =Revenues!I5 -> 2700 | J4: =Revenues!J5 -> 3000 | K4: =Revenues!K5 -> 3300 | L4: =Revenues!L5 -> 3600 | M4: =Revenues!M5 -> 23900 | N4: =Revenues!N5 -> 46700 | O4: =Revenues!O5 -> 52000 | P4: =Revenues!P5 -> 57300 | Q4: =Revenues!Q5 -> 62600 | R4: =Revenues!R5 -> 63700 | S4: =Revenues!S5 -> 69000 | T4: =Revenues!T5 -> 94300 | U4: =Revenues!U5 -> 122100 | V4: =Revenues!V5 -> 132400 | W4: =Revenues!W5 -> 142700 | X4: =Revenues!X5 -> 153000 | Y4: =Revenues!Y5 -> 163300 | Z4: =Revenues!Z5 -> 173600 | AA4: =Revenues!AA5 -> 183900 | AB4: =Revenues!AB5 -> 194200 | AC4: =Revenues!AC5 -> 204500 | AD4: =Revenues!AD5 -> 214800 | AE4: =Revenues!AE5 -> 225100 | AF4: =Revenues!AF5 -> 230000 | AG4: =Revenues!AG5 -> 240000 | AH4: =Revenues!AH5 -> 250000 | AI4: =Revenues!AI5 -> 260000 | AJ4: =Revenues!AJ5 -> 270000 | AK4: =Revenues!AK5 -> 280000 | AL4: =Revenues!AL5 -> 290000 | AM4: =Revenues!AM5 -> 300000 | AN4: =Revenues!AN5 -> 310000 | AO4: =Revenues!AO5 -> 320000 | AP4: =Revenues!AP5 -> 330000 | AQ4: =Revenues!AQ5 -> 340000 | AR4: =Revenues!AR5 -> 350000 | AS4: =Revenues!AS5 -> 360000 | AT4: =Revenues!AT5 -> 370000 | AU4: =Revenues!AU5 -> 380000 | AV4: =Revenues!AV5 -> 390000 | AW4: =Revenues!AW5 -> 400000 | AX4: =Revenues!AX5 -> 410000 | AY4: =Revenues!AY5 -> 420000 | AZ4: =Revenues!AZ5 -> 430000 | BA4: =Revenues!BA5 -> 440000 | BB4: =Revenues!BB5 -> 450000 | BC4: =Revenues!BC5 -> 460000 | BD4: =Revenues!BD5 -> 470000 | BE4: =Revenues!BE5 -> 480000 | BF4: =Revenues!BF5 -> 490000 | BG4: =Revenues!BG5 -> 500000 | BH4: =Revenues!BH5 -> 510000 | BI4: =Revenues!BI5 -> 520000 | BJ4: =Revenues!BJ5 -> 530000 | BK4: =Revenues!BK5 -> 540000
B5: Cost of Goods | D5: =COGS!D5 -> 1200 | E5: =COGS!E5 -> 1200 | F5: =COGS!F5 -> 1200 | G5: =COGS!G5 -> 1200 | H5: =COGS!H5 -> 1200 | I5: =COGS!I5 -> 1498 | J5: =COGS!J5 -> 1498 | K5: =COGS!K5 -> 1498 | L5: 0 | M5: =COGS!M5 -> 17398 | N5: =COGS!N5 -> 33298 | O5: =COGS!O5 -> 33298 | P5: =COGS!P5 -> 33298 | Q5: =COGS!Q5 -> 33298 | R5: =COGS!R5 -> 33298 | S5: =COGS!S5 -> 33298 | T5: =COGS!T5 -> 49198 | U5: =COGS!U5 -> 65098 | V5: =COGS!V5 -> 65098 | W5: =COGS!W5 -> 65098 | X5: =COGS!X5 -> 65098 | Y5: =COGS!Y5 -> 65098 | Z5: =COGS!Z5 -> 65098 | AA5: =COGS!AA5 -> 71013 | AB5: =COGS!AB5 -> 71147 | AC5: =COGS!AC5 -> 71147 | AD5: =COGS!AD5 -> 71147 | AE5: =COGS!AE5 -> 71147 | AF5: =COGS!AF5 -> 71147 | AG5: =COGS!AG5 -> 71147 | AH5: =COGS!AH5 -> 71147 | AI5: =COGS!AI5 -> 71147 | AJ5: =COGS!AJ5 -> 71147 | AK5: =COGS!AK5 -> 71147 | AL5: =COGS!AL5 -> 71147 | AM5: =COGS!AM5 -> 71309 | AN5: =COGS!AN5 -> 77272 | AO5: =COGS!AO5 -> 77272 | AP5: =COGS!AP5 -> 77272 | AQ5: =COGS!AQ5 -> 77272 | AR5: =COGS!AR5 -> 77272 | AS5: =COGS!AS5 -> 77272 | AT5: =COGS!AT5 -> 77272 | AU5: =COGS!AU5 -> 77272 | AV5: =COGS!AV5 -> 77272 | AW5: =COGS!AW5 -> 77272 | AX5: =COGS!AX5 -> 77272 | AY5: =COGS!AY5 -> 77438 | AZ5: =COGS!AZ5 -> 83596 | BA5: =COGS!BA5 -> 83596 | BB5: =COGS!BB5 -> 83596 | BC5: =COGS!BC5 -> 83596 | BD5: =COGS!BD5 -> 83596 | BE5: =COGS!BE5 -> 83596 | BF5: =COGS!BF5 -> 83596 | BG5: =COGS!BG5 -> 83596 | BH5: =COGS!BH5 -> 83596 | BI5: =COGS!BI5 -> 83596 | BJ5: =COGS!BJ5 -> 83596 | BK5: =COGS!BK5 -> 83768
B6: Gross Margin | D6: =D4-D5 -> 0 | E6: 300 | F6: 600 | G6: 900 | H6: 1200 | I6: 1202 | J6: 1502 | K6: 1802 | L6: 3600 | M6: 6502 | N6: 13402 | O6: 18702 | P6: 24002 | Q6: 29302 | R6: 30402 | S6: 35702 | T6: 45102 | U6: 57002 | V6: 67302 | W6: 77602 | X6: 87902 | Y6: 98202 | Z6: 108502 | AA6: 112887 | AB6: 123053 | AC6: 133353 | AD6: 143653 | AE6: 153953 | AF6: 158853 | AG6: 168853 | AH6: 178853 | AI6: 188853 | AJ6: 198853 | AK6: 208853 | AL6: 218853 | AM6: 228691 | AN6: =AN4-AN5 -> 232728 | AO6: 242728 | AP6: 252728 | AQ6: 262728 | AR6: 272728 | AS6: 282728 | AT6: 292728 | AU6: 302728 | AV6: 312728 | AW6: 322728 | AX6: 332728 | AY6: 342562 | AZ6: 346404 | BA6: 356404 | BB6: 366404 | BC6: 376404 | BD6: 386404 | BE6: 396404 | BF6: 406404 | BG6: 416404 | BH6: =BH4-BH5 -> 426404 | BI6: 436404 | BJ6: 446404 | BK6: 456232
B7: Sales and Marketing | D7: ='Sales Costs'!D5 -> 0 | E7: ='Sales Costs'!E5 -> 0 | F7: ='Sales Costs'!F5 -> 0 | G7: ='Sales Costs'!G5 -> 0 | H7: ='Sales Costs'!H5 -> 3740 | I7: ='Sales Costs'!I5 -> 14440 | J7: ='Sales Costs'!J5 -> 14940 | K7: ='Sales Costs'!K5 -> 15940 | L7: ='Sales Costs'!L5 -> 16440 | M7: ='Sales Costs'!M5 -> 23180 | N7: ='Sales Costs'!N5 -> 25180 | O7: ='Sales Costs'!O5 -> 28180 | P7: ='Sales Costs'!P5 -> 36941 | Q7: ='Sales Costs'!Q5 -> 38941 | R7: ='Sales Costs'!R5 -> 41441 | S7: ='Sales Costs'!S5 -> 42941 | T7: ='Sales Costs'!T5 -> 43538 | U7: ='Sales Costs'!U5 -> 47254 | V7: ='Sales Costs'!V5 -> 47754 | W7: ='Sales Costs'!W5 -> 50254 | X7: ='Sales Costs'!X5 -> 50754 | Y7: ='Sales Costs'!Y5 -> 52254 | Z7: ='Sales Costs'!Z5 -> 52754 | AA7: ='Sales Costs'!AA5 -> 57754 | AB7: ='Sales Costs'!AB5 -> 61290 | AC7: ='Sales Costs'!AC5 -> 62290 | AD7: ='Sales Costs'!AD5 -> 67290 | AE7: ='Sales Costs'!AE5 -> 67290 | AF7: ='Sales Costs'!AF5 -> 66391 | AG7: ='Sales Costs'!AG5 -> 66613 | AH7: ='Sales Costs'!AH5 -> 68613 | AI7: ='Sales Costs'!AI5 -> 69613 | AJ7: ='Sales Costs'!AJ5 -> 71613 | AK7: ='Sales Costs'!AK5 -> 71613 | AL7: ='Sales Costs'!AL5 -> 72613 | AM7: ='Sales Costs'!AM5 -> 75749 | AN7: ='Sales Costs'!AN5 -> 77051 | AO7: ='Sales Costs'!AO5 -> 78051 | AP7: ='Sales Costs'!AP5 -> 79051 | AQ7: ='Sales Costs'!AQ5 -> 80051 | AR7: ='Sales Costs'!AR5 -> 81154 | AS7: ='Sales Costs'!AS5 -> 82383 | AT7: ='Sales Costs'!AT5 -> 83383 | AU7: ='Sales Costs'!AU5 -> 84383 | AV7: ='Sales Costs'!AV5 -> 85383 | AW7: ='Sales Costs'!AW5 -> 86383 | AX7: ='Sales Costs'!AX5 -> 87383 | AY7: ='Sales Costs'!AY5 -> 88383 | AZ7: ='Sales Costs'!AZ5 -> 89694 | BA7: ='Sales Costs'!BA5 -> 90694 | BB7: ='Sales Costs'!BB5 -> 91694 | BC7: ='Sales Costs'!BC5 -> 92694 | BD7: ='Sales Costs'!BD5 -> 93801 | BE7: ='Sales Costs'!BE5 -> 95036 | BF7: ='Sales Costs'!BF5 -> 96036 | BG7: ='Sales Costs'!BG5 -> 97036 | BH7: ='Sales Costs'!BH5 -> 98036 | BI7: ='Sales Costs'!BI5 -> 99036 | BJ7: ='Sales Costs'!BJ5 -> 100036 | BK7: ='Sales Costs'!BK5 -> 101036
B8: Research and Development | D8: ='R&D Costs'!D5 -> 11300 | E8: ='R&D Costs'!E5 -> 11300 | F8: ='R&D Costs'!F5 -> 11300 | G8: ='R&D Costs'!G5 -> 11300 | H8: ='R&D Costs'!H5 -> 11300 | I8: ='R&D Costs'!I5 -> 11300 | J8: ='R&D Costs'!J5 -> 11300 | K8: ='R&D Costs'!K5 -> 11300 | L8: ='R&D Costs'!L5 -> 11300 | M8: ='R&D Costs'!M5 -> 26610 | N8: ='R&D Costs'!N5 -> 26610 | O8: ='R&D Costs'!O5 -> 26610 | P8: ='R&D Costs'!P5 -> 33254 | Q8: ='R&D Costs'!Q5 -> 33254 | R8: ='R&D Costs'!R5 -> 33254 | S8: ='R&D Costs'!S5 -> 33254 | T8: ='R&D Costs'!T5 -> 33254 | U8: ='R&D Costs'!U5 -> 33254 | V8: ='R&D Costs'!V5 -> 33254 | W8: ='R&D Costs'!W5 -> 33254 | X8: ='R&D Costs'!X5 -> 33254 | Y8: ='R&D Costs'!Y5 -> 33683 | Z8: ='R&D Costs'!Z5 -> 33683 | AA8: ='R&D Costs'!AA5 -> 33683 | AB8: ='R&D Costs'!AB5 -> 34252 | AC8: ='R&D Costs'!AC5 -> 34252 | AD8: ='R&D Costs'!AD5 -> 34252 | AE8: ='R&D Costs'!AE5 -> 34252 | AF8: ='R&D Costs'!AF5 -> 34252 | AG8: ='R&D Costs'!AG5 -> 34252 | AH8: ='R&D Costs'!AH5 -> 34252 | AI8: ='R&D Costs'!AI5 -> 34252 | AJ8: ='R&D Costs'!AJ5 -> 34252 | AK8: ='R&D Costs'!AK5 -> 34694 | AL8: ='R&D Costs'!AL5 -> 34694 | AM8: ='R&D Costs'!AM5 -> 34694 | AN8: ='R&D Costs'!AN5 -> 35279 | AO8: ='R&D Costs'!AO5 -> 35279 | AP8: ='R&D Costs'!AP5 -> 35279 | AQ8: ='R&D Costs'!AQ5 -> 35279 | AR8: ='R&D Costs'!AR5 -> 35279 | AS8: ='R&D Costs'!AS5 -> 35279 | AT8: ='R&D Costs'!AT5 -> 35279 | AU8: ='R&D Costs'!AU5 -> 35279 | AV8: ='R&D Costs'!AV5 -> 35279 | AW8: ='R&D Costs'!AW5 -> 35735 | AX8: ='R&D Costs'!AX5 -> 35735 | AY8: ='R&D Costs'!AY5 -> 35735 | AZ8: ='R&D Costs'!AZ5 -> 36338 | BA8: ='R&D Costs'!BA5 -> 36338 | BB8: ='R&D Costs'!BB5 -> 36338 | BC8: ='R&D Costs'!BC5 -> 36338 | BD8: ='R&D Costs'!BD5 -> 36338 | BE8: ='R&D Costs'!BE5 -> 36338 | BF8: ='R&D Costs'!BF5 -> 36338 | BG8: ='R&D Costs'!BG5 -> 36338 | BH8: ='R&D Costs'!BH5 -> 36338 | BI8: ='R&D Costs'!BI5 -> 36807 | BJ8: ='R&D Costs'!BJ5 -> 36807 | BK8: ='R&D Costs'!BK5 -> 36807
B9: General and Administrative | D9: ='G&A Costs'!D5 -> 5405 | E9: ='G&A Costs'!E5 -> 11630 | F9: ='G&A Costs'!F5 -> 6630 | G9: ='G&A Costs'!G5 -> 2630 | H9: ='G&A Costs'!H5 -> 3630 | I9: ='G&A Costs'!I5 -> 4630 | J9: ='G&A Costs'!J5 -> 4630 | K9: ='G&A Costs'!K5 -> 4630 | L9: ='G&A Costs'!L5 -> 5120 | M9: ='G&A Costs'!M5 -> 18775 | N9: ='G&A Costs'!N5 -> 16625 | O9: ='G&A Costs'!O5 -> 16625 | P9: ='G&A Costs'!P5 -> 23937 | Q9: ='G&A Costs'!Q5 -> 24064 | R9: ='G&A Costs'!R5 -> 24066 | S9: ='G&A Costs'!S5 -> 25118 | T9: ='G&A Costs'!T5 -> 24120 | U9: ='G&A Costs'!U5 -> 24122 | V9: ='G&A Costs'!V5 -> 25949 | W9: ='G&A Costs'!W5 -> 27431 | X9: ='G&A Costs'!X5 -> 27433 | Y9: ='G&A Costs'!Y5 -> 30435 | Z9: ='G&A Costs'!Z5 -> 27437 | AA9: ='G&A Costs'!AA5 -> 28439 | AB9: ='G&A Costs'!AB5 -> 34356 | AC9: ='G&A Costs'!AC5 -> 34358 | AD9: ='G&A Costs'!AD5 -> 34360 | AE9: ='G&A Costs'!AE5 -> 35362 | AF9: ='G&A Costs'!AF5 -> 34364 | AG9: ='G&A Costs'!AG5 -> 34366 | AH9: ='G&A Costs'!AH5 -> 34568 | AI9: ='G&A Costs'!AI5 -> 37810 | AJ9: ='G&A Costs'!AJ5 -> 37812 | AK9: ='G&A Costs'!AK5 -> 40814 | AL9: ='G&A Costs'!AL5 -> 37816 | AM9: ='G&A Costs'!AM5 -> 37818 | AN9: ='G&A Costs'!AN5 -> 39079 | AO9: ='G&A Costs'!AO5 -> 39079 | AP9: ='G&A Costs'!AP5 -> 39079 | AQ9: ='G&A Costs'!AQ5 -> 39079 | AR9: ='G&A Costs'!AR5 -> 39079 | AS9: ='G&A Costs'!AS5 -> 39079 | AT9: ='G&A Costs'!AT5 -> 39079 | AU9: ='G&A Costs'!AU5 -> 39079 | AV9: ='G&A Costs'!AV5 -> 39079 | AW9: ='G&A Costs'!AW5 -> 39079 | AX9: ='G&A Costs'!AX5 -> 39079 | AY9: ='G&A Costs'!AY5 -> 39079 | AZ9: ='G&A Costs'!AZ5 -> 40350 | BA9: ='G&A Costs'!BA5 -> 40350 | BB9: ='G&A Costs'!BB5 -> 40350 | BC9: ='G&A Costs'!BC5 -> 40350 | BD9: ='G&A Costs'!BD5 -> 40350 | BE9: ='G&A Costs'!BE5 -> 40350 | BF9: ='G&A Costs'!BF5 -> 40350 | BG9: ='G&A Costs'!BG5 -> 40350 | BH9: ='G&A Costs'!BH5 -> 40350 | BI9: ='G&A Costs'!BI5 -> 40350 | BJ9: ='G&A Costs'!BJ5 -> 40350 | BK9: ='G&A Costs'!BK5 -> 40350
B10: Operating Expenses | D10: =SUM(D7:D9) -> 16705 | E10: 22930 | F10: 17930 | G10: 13930 | H10: 18670 | I10: 30370 | J10: 30870 | K10: 31870 | L10: 32860 | M10: 68565 | N10: 68415 | O10: 71415 | P10: 94132 | Q10: 96259 | R10: 98761 | S10: 101313 | T10: 100912 | U10: 104630 | V10: 106957 | W10: 110939 | X10: 111441 | Y10: 116372 | Z10: 113874 | AA10: 119876 | AB10: 129898 | AC10: 130900 | AD10: 135902 | AE10: 136904 | AF10: 135007 | AG10: 135231 | AH10: 137433 | AI10: 141675 | AJ10: 143677 | AK10: 147121 | AL10: 145123 | AM10: 148261 | AN10: =SUM(AN7:AN9) -> 151409 | AO10: 152409 | AP10: 153409 | AQ10: 154409 | AR10: 155512 | AS10: 156741 | AT10: 157741 | AU10: 158741 | AV10: 159741 | AW10: 161197 | AX10: 162197 | AY10: 163197 | AZ10: 166382 | BA10: 167382 | BB10: 168382 | BC10: 169382 | BD10: 170489 | BE10: 171724 | BF10: 172724 | BG10: 173724 | BH10: =SUM(BH7:BH9) -> 174724 | BI10: 176193 | BJ10: 177193 | BK10: 178193
B11: EBITDA | D11: =D6-D10 -> -16705 | E11: =E6-E10 -> -22630 | F11: =F6-F10 -> -17330 | G11: -13030 | H11: -17470 | I11: =I6-I10 -> -29168 | J11: -29368 | K11: -30068 | L11: -29260 | M11: -62063 | N11: -55013 | O11: -52713 | P11: -70130 | Q11: -66957 | R11: -68359 | S11: -65611 | T11: -55810 | U11: -47628 | V11: -39655 | W11: -33337 | X11: -23539 | Y11: -18170 | Z11: -5372 | AA11: -6989 | AB11: -6845 | AC11: 2453 | AD11: 7751 | AE11: 17049 | AF11: 23846 | AG11: 33622 | AH11: 41420 | AI11: 47178 | AJ11: 55176 | AK11: 61732 | AL11: 73730 | AM11: 80430 | AN11: =AN6-AN10 -> 81319 | AO11: 90319 | AP11: 99319 | AQ11: 108319 | AR11: 117216 | AS11: 125987 | AT11: 134987 | AU11: 143987 | AV11: 152987 | AW11: 161531 | AX11: 170531 | AY11: 179365 | AZ11: 180022 | BA11: 189022 | BB11: 198022 | BC11: 207022 | BD11: 215915 | BE11: 224680 | BF11: 233680 | BG11: 242680 | BH11: =BH6-BH10 -> 251680 | BI11: 260211 | BJ11: 269211 | BK11: 278039
B12: Interest income | D12: ='Cash Flow'!D17 -> 0 | E12: ='Cash Flow'!E17 -> 95 | F12: ='Cash Flow'!F17 -> 82 | G12: ='Cash Flow'!G17 -> 63 | H12: ='Cash Flow'!H17 -> 55 | I12: ='Cash Flow'!I17 -> 44 | J12: ='Cash Flow'!J17 -> 19 | K12: ='Cash Flow'!K17 -> 3 | L12: ='Cash Flow'!L17 -> 529 | M12: ='Cash Flow'!M17 -> 514 | N12: ='Cash Flow'!N17 -> 477 | O12: ='Cash Flow'!O17 -> 444 | P12: ='Cash Flow'!P17 -> 406 | Q12: ='Cash Flow'!Q17 -> 366 | R12: ='Cash Flow'!R17 -> 334 | S12: ='Cash Flow'!S17 -> 302 | T12: ='Cash Flow'!T17 -> 268 | U12: ='Cash Flow'!U17 -> 237 | V12: ='Cash Flow'!V17 -> 202 | W12: ='Cash Flow'!W17 -> 167 | X12: ='Cash Flow'!X17 -> 142 | Y12: ='Cash Flow'!Y17 -> 126 | Z12: ='Cash Flow'!Z17 -> 114 | AA12: ='Cash Flow'!AA17 -> 106 | AB12: ='Cash Flow'!AB17 -> 98 | AC12: ='Cash Flow'!AC17 -> 86 | AD12: ='Cash Flow'!AD17 -> 81 | AE12: ='Cash Flow'!AE17 -> 79 | AF12: ='Cash Flow'!AF17 -> 81 | AG12: ='Cash Flow'!AG17 -> 85 | AH12: ='Cash Flow'!AH17 -> 94 | AI12: ='Cash Flow'!AI17 -> 106 | AJ12: ='Cash Flow'!AJ17 -> 120 | AK12: ='Cash Flow'!AK17 -> 138 | AL12: ='Cash Flow'!AL17 -> 158 | AM12: ='Cash Flow'!AM17 -> 184 | AN12: ='Cash Flow'!AN17 -> 212 | AO12: ='Cash Flow'!AO17 -> 243 | AP12: ='Cash Flow'!AP17 -> 279 | AQ12: ='Cash Flow'!AQ17 -> 318 | AR12: ='Cash Flow'!AR17 -> 361 | AS12: ='Cash Flow'!AS17 -> 408 | AT12: ='Cash Flow'!AT17 -> 457 | AU12: ='Cash Flow'!AU17 -> 512 | AV12: ='Cash Flow'!AV17 -> 569 | AW12: ='Cash Flow'!AW17 -> 631 | AX12: ='Cash Flow'!AX17 -> 696 | AY12: ='Cash Flow'!AY17 -> 765 | AZ12: ='Cash Flow'!AZ17 -> 838 | BA12: ='Cash Flow'!BA17 -> 911 | BB12: ='Cash Flow'!BB17 -> 987 | BC12: ='Cash Flow'!BC17 -> 886 | BD12: ='Cash Flow'!BD17 -> 925 | BE12: ='Cash Flow'!BE17 -> 1013 | BF12: ='Cash Flow'!BF17 -> 1104 | BG12: ='Cash Flow'!BG17 -> 1154 | BH12: ='Cash Flow'!BH17 -> 1253 | BI12: ='Cash Flow'!BI17 -> 1457 | BJ12: ='Cash Flow'!BJ17 -> 1516 | BK12: ='Cash Flow'!BK17 -> 1623
B13: Interest expenses | D13: =-Loans!D12 -> -1250 | E13: =-Loans!E12 -> -1218 | F13: =-Loans!F12 -> -1186 | G13: =-Loans!G12 -> -1154 | H13: =-Loans!H12 -> -1121 | I13: =-Loans!I12 -> -1089 | J13: =-Loans!J12 -> -1056 | K13: =-Loans!K12 -> -1024 | L13: =-Loans!L12 -> -991 | M13: =-Loans!M12 -> -958 | N13: =-Loans!N12 -> -1048 | O13: =-Loans!O12 -> -1030 | P13: =-Loans!P12 -> -1011 | Q13: =-Loans!Q12 -> -992 | R13: =-Loans!R12 -> -972 | S13: =-Loans!S12 -> -953 | T13: =-Loans!T12 -> -992 | U13: =-Loans!U12 -> -1037 | V13: =-Loans!V12 -> -1032 | W13: =-Loans!W12 -> -1026 | X13: =-Loans!X12 -> -1021 | Y13: =-Loans!Y12 -> -1015 | Z13: =-Loans!Z12 -> -1008 | AA13: =-Loans!AA12 -> -1002 | AB13: =-Loans!AB12 -> -995 | AC13: =-Loans!AC12 -> -989 | AD13: =-Loans!AD12 -> -983 | AE13: =-Loans!AE12 -> -975 | AF13: =-Loans!AF12 -> -968 | AG13: =-Loans!AG12 -> -960 | AH13: =-Loans!AH12 -> -953 | AI13: =-Loans!AI12 -> -945 | AJ13: =-Loans!AJ12 -> -938 | AK13: =-Loans!AK12 -> -929 | AL13: =-Loans!AL12 -> -921 | AM13: =-Loans!AM12 -> -912 | AN13: =-Loans!AN12 -> -904 | AO13: =-Loans!AO12 -> -933 | AP13: =-Loans!AP12 -> -963 | AQ13: =-Loans!AQ12 -> -992 | AR13: =-Loans!AR12 -> -1021 | AS13: =-Loans!AS12 -> -1050 | AT13: =-Loans!AT12 -> -1079 | AU13: =-Loans!AU12 -> -1108 | AV13: =-Loans!AV12 -> -1138 | AW13: =-Loans!AW12 -> -1167 | AX13: =-Loans!AX12 -> -1196 | AY13: =-Loans!AY12 -> -1225 | AZ13: =-Loans!AZ12 -> -1254 | BA13: =-Loans!BA12 -> -1283 | BB13: =-Loans!BB12 -> -1313 | BC13: =-Loans!BC12 -> -1342 | BD13: =-Loans!BD12 -> -1371 | BE13: =-Loans!BE12 -> -1400 | BF13: =-Loans!BF12 -> -1429 | BG13: =-Loans!BG12 -> -1458 | BH13: =-Loans!BH12 -> -2917 | BI13: =-Loans!BI12 -> -2917 | BJ13: =-Loans!BJ12 -> -2917 | BK13: =-Loans!BK12 -> -2917
B14: Taxable Income | D14: =D11+D12+D13 -> -17955 | E14: =E11+E12+E13 -> -23753 | F14: -18434 | G14: -14121 | H14: -18536 | I14: -30213 | J14: -30405 | K14: -31089 | L14: -29722 | M14: -62507 | N14: -55584 | O14: -53299 | P14: -70735 | Q14: -67583 | R14: -68997 | S14: -66262 | T14: -56534 | U14: -48428 | V14: -40485 | W14: -34196 | X14: -24418 | Y14: -19059 | Z14: -6266 | AA14: -7885 | AB14: -7742 | AC14: 1550 | AD14: 6849 | AE14: 16153 | AF14: 22959 | AG14: 32747 | AH14: 40561 | AI14: 46339 | AJ14: 54358 | AK14: 60941 | AL14: 72967 | AM14: 79702 | AN14: =AN11+AN12+AN13 -> 80627 | AO14: 89629 | AP14: 98635 | AQ14: 107645 | AR14: 116556 | AS14: 125345 | AT14: 134365 | AU14: 143391 | AV14: 152418 | AW14: 160995 | AX14: 170031 | AY14: 178905 | AZ14: 179606 | BA14: 188650 | BB14: 197696 | BC14: 206566 | BD14: 215469 | BE14: 224293 | BF14: 233355 | BG14: 242376 | BH14: =BH11+BH12+BH13 -> 250016 | BI14: 258751 | BJ14: 267810 | BK14: 276745
B15: Corporate Income Taxes | D15: =-'Cash Flow'!D19 -> 0 | E15: =-'Cash Flow'!E19 -> 0 | F15: =-'Cash Flow'!F19 -> 0 | G15: =-'Cash Flow'!G19 -> 0 | H15: =-'Cash Flow'!H19 -> 0 | I15: =-'Cash Flow'!I19 -> 0 | J15: =-'Cash Flow'!J19 -> 0 | K15: =-'Cash Flow'!K19 -> 0 | L15: =-'Cash Flow'!L19 -> 0 | M15: =-'Cash Flow'!M19 -> 0 | N15: =-'Cash Flow'!N19 -> 0 | O15: =-'Cash Flow'!O19 -> 0 | P15: =-'Cash Flow'!P19 -> 0 | Q15: =-'Cash Flow'!Q19 -> 0 | R15: =-'Cash Flow'!R19 -> 0 | S15: =-'Cash Flow'!S19 -> 0 | T15: =-'Cash Flow'!T19 -> 0 | U15: =-'Cash Flow'!U19 -> 0 | V15: =-'Cash Flow'!V19 -> 0 | W15: =-'Cash Flow'!W19 -> 0 | X15: =-'Cash Flow'!X19 -> 0 | Y15: =-'Cash Flow'!Y19 -> 0 | Z15: =-'Cash Flow'!Z19 -> 0 | AA15: =-'Cash Flow'!AA19 -> 0 | AB15: =-'Cash Flow'!AB19 -> 0 | AC15: =-'Cash Flow'!AC19 -> 0 | AD15: =-'Cash Flow'!AD19 -> 0 | AE15: =-'Cash Flow'!AE19 -> 0 | AF15: =-'Cash Flow'!AF19 -> 0 | AG15: =-'Cash Flow'!AG19 -> 0 | AH15: =-'Cash Flow'!AH19 -> 0 | AI15: =-'Cash Flow'!AI19 -> 0 | AJ15: =-'Cash Flow'!AJ19 -> 0 | AK15: =-'Cash Flow'!AK19 -> 0 | AL15: =-'Cash Flow'!AL19 -> 0 | AM15: =-'Cash Flow'!AM19 -> 0 | AN15: =-'Cash Flow'!AN19 -> -36315 | AO15: =-'Cash Flow'!AO19 -> -36315 | AP15: =-'Cash Flow'!AP19 -> -36315 | AQ15: =-'Cash Flow'!AQ19 -> -36315 | AR15: =-'Cash Flow'!AR19 -> -36315 | AS15: =-'Cash Flow'!AS19 -> -36315 | AT15: =-'Cash Flow'!AT19 -> -36315 | AU15: =-'Cash Flow'!AU19 -> -36315 | AV15: =-'Cash Flow'!AV19 -> -36315 | AW15: =-'Cash Flow'!AW19 -> -36315 | AX15: =-'Cash Flow'!AX19 -> -36315 | AY15: =-'Cash Flow'!AY19 -> -36315 | AZ15: =-'Cash Flow'!AZ19 -> -91455 | BA15: =-'Cash Flow'!BA19 -> -91455 | BB15: =-'Cash Flow'!BB19 -> -91455 | BC15: =-'Cash Flow'!BC19 -> -91455 | BD15: =-'Cash Flow'!BD19 -> -91455 | BE15: =-'Cash Flow'!BE19 -> -91455 | BF15: =-'Cash Flow'!BF19 -> -91455 | BG15: =-'Cash Flow'!BG19 -> -91455 | BH15: =-'Cash Flow'!BH19 -> -91455 | BI15: =-'Cash Flow'!BI19 -> -91455 | BJ15: =-'Cash Flow'!BJ19 -> -91455 | BK15: =-'Cash Flow'!BK19 -> -91455
B16: Non-production depreciation | D16: =-'Assets & Dep'!D22 -> 0 | E16: =-'Assets & Dep'!E22 -> 0 | F16: =-'Assets & Dep'!F22 -> -23 | G16: =-'Assets & Dep'!G22 -> -23 | H16: =-'Assets & Dep'!H22 -> -23 | I16: =-'Assets & Dep'!I22 -> -23 | J16: =-'Assets & Dep'!J22 -> -23 | K16: =-'Assets & Dep'!K22 -> -23 | L16: =-'Assets & Dep'!L22 -> -23 | M16: =-'Assets & Dep'!M22 -> -23 | N16: =-'Assets & Dep'!N22 -> -23 | O16: =-'Assets & Dep'!O22 -> -23 | P16: =-'Assets & Dep'!P22 -> -23 | Q16: =-'Assets & Dep'!Q22 -> -23 | R16: =-'Assets & Dep'!R22 -> -23 | S16: =-'Assets & Dep'!S22 -> -23 | T16: =-'Assets & Dep'!T22 -> -23 | U16: =-'Assets & Dep'!U22 -> -23 | V16: =-'Assets & Dep'!V22 -> -23 | W16: =-'Assets & Dep'!W22 -> -23 | X16: =-'Assets & Dep'!X22 -> -23 | Y16: =-'Assets & Dep'!Y22 -> -23 | Z16: =-'Assets & Dep'!Z22 -> -23 | AA16: =-'Assets & Dep'!AA22 -> -23 | AB16: =-'Assets & Dep'!AB22 -> -23 | AC16: =-'Assets & Dep'!AC22 -> -23 | AD16: =-'Assets & Dep'!AD22 -> -23 | AE16: =-'Assets & Dep'!AE22 -> -23 | AF16: =-'Assets & Dep'!AF22 -> -23 | AG16: =-'Assets & Dep'!AG22 -> -23 | AH16: =-'Assets & Dep'!AH22 -> -23 | AI16: =-'Assets & Dep'!AI22 -> -23 | AJ16: =-'Assets & Dep'!AJ22 -> -23 | AK16: =-'Assets & Dep'!AK22 -> -23 | AL16: =-'Assets & Dep'!AL22 -> -23 | AM16: =-'Assets & Dep'!AM22 -> -23 | AN16: =-'Assets & Dep'!AN22 -> -23 | AO16: =-'Assets & Dep'!AO22 -> -23 | AP16: =-'Assets & Dep'!AP22 -> -23 | AQ16: =-'Assets & Dep'!AQ22 -> -23 | AR16: =-'Assets & Dep'!AR22 -> -23 | AS16: =-'Assets & Dep'!AS22 -> -23 | AT16: =-'Assets & Dep'!AT22 -> -23 | AU16: =-'Assets & Dep'!AU22 -> -23 | AV16: =-'Assets & Dep'!AV22 -> -23 | AW16: =-'Assets & Dep'!AW22 -> -23 | AX16: =-'Assets & Dep'!AX22 -> -23 | AY16: =-'Assets & Dep'!AY22 -> -23 | AZ16: =-'Assets & Dep'!AZ22 -> -23 | BA16: =-'Assets & Dep'!BA22 -> -23 | BB16: =-'Assets & Dep'!BB22 -> -23 | BC16: =-'Assets & Dep'!BC22 -> -23 | BD16: =-'Assets & Dep'!BD22 -> -23 | BE16: =-'Assets & Dep'!BE22 -> -23 | BF16: =-'Assets & Dep'!BF22 -> -23 | BG16: =-'Assets & Dep'!BG22 -> -23 | BH16: =-'Assets & Dep'!BH22 -> -23 | BI16: =-'Assets & Dep'!BI22 -> -23 | BJ16: =-'Assets & Dep'!BJ22 -> -23 | BK16: =-'Assets & Dep'!BK22 -> -23
B17: Amortization | D17: =-'Assets & Dep'!D18 -> 0 | E17: =-'Assets & Dep'!E18 -> 0 | F17: =-'Assets & Dep'!F18 -> -83 | G17: =-'Assets & Dep'!G18 -> -83 | H17: =-'Assets & Dep'!H18 -> -83 | I17: =-'Assets & Dep'!I18 -> -83 | J17: =-'Assets & Dep'!J18 -> -83 | K17: =-'Assets & Dep'!K18 -> -83 | L17: =-'Assets & Dep'!L18 -> -83 | M17: =-'Assets & Dep'!M18 -> -83 | N17: =-'Assets & Dep'!N18 -> -83 | O17: =-'Assets & Dep'!O18 -> -83 | P17: =-'Assets & Dep'!P18 -> -83 | Q17: =-'Assets & Dep'!Q18 -> -83 | R17: =-'Assets & Dep'!R18 -> -83 | S17: =-'Assets & Dep'!S18 -> -104 | T17: =-'Assets & Dep'!T18 -> -104 | U17: =-'Assets & Dep'!U18 -> -104 | V17: =-'Assets & Dep'!V18 -> -104 | W17: =-'Assets & Dep'!W18 -> -104 | X17: =-'Assets & Dep'!X18 -> -104 | Y17: =-'Assets & Dep'!Y18 -> -104 | Z17: =-'Assets & Dep'!Z18 -> -104 | AA17: =-'Assets & Dep'!AA18 -> -104 | AB17: =-'Assets & Dep'!AB18 -> -104 | AC17: =-'Assets & Dep'!AC18 -> -104 | AD17: =-'Assets & Dep'!AD18 -> -104 | AE17: =-'Assets & Dep'!AE18 -> -108 | AF17: =-'Assets & Dep'!AF18 -> -108 | AG17: =-'Assets & Dep'!AG18 -> -108 | AH17: =-'Assets & Dep'!AH18 -> -108 | AI17: =-'Assets & Dep'!AI18 -> -108 | AJ17: =-'Assets & Dep'!AJ18 -> -108 | AK17: =-'Assets & Dep'!AK18 -> -108 | AL17: =-'Assets & Dep'!AL18 -> -108 | AM17: =-'Assets & Dep'!AM18 -> -108 | AN17: =-'Assets & Dep'!AN18 -> -108 | AO17: =-'Assets & Dep'!AO18 -> -108 | AP17: =-'Assets & Dep'!AP18 -> -108 | AQ17: =-'Assets & Dep'!AQ18 -> -108 | AR17: =-'Assets & Dep'!AR18 -> -108 | AS17: =-'Assets & Dep'!AS18 -> -112 | AT17: =-'Assets & Dep'!AT18 -> -112 | AU17: =-'Assets & Dep'!AU18 -> -112 | AV17: =-'Assets & Dep'!AV18 -> -112 | AW17: =-'Assets & Dep'!AW18 -> -112 | AX17: =-'Assets & Dep'!AX18 -> -112 | AY17: =-'Assets & Dep'!AY18 -> -112 | AZ17: =-'Assets & Dep'!AZ18 -> -112 | BA17: =-'Assets & Dep'!BA18 -> -112 | BB17: =-'Assets & Dep'!BB18 -> -112 | BC17: =-'Assets & Dep'!BC18 -> -112 | BD17: =-'Assets & Dep'!BD18 -> -112 | BE17: =-'Assets & Dep'!BE18 -> -116 | BF17: =-'Assets & Dep'!BF18 -> -116 | BG17: =-'Assets & Dep'!BG18 -> -116 | BH17: =-'Assets & Dep'!BH18 -> -116 | BI17: =-'Assets & Dep'!BI18 -> -116 | BJ17: =-'Assets & Dep'!BJ18 -> -116 | BK17: =-'Assets & Dep'!BK18 -> -116
B18: Net Income | D18: =D14+D15+D16+D17 -> -17955 | E18: =E14+E15+E16+E17 -> -23753 | F18: -18540 | G18: -14227 | H18: -18642 | I18: -30319 | J18: -30511 | K18: -31195 | L18: -29828 | M18: -62613 | N18: -55690 | O18: -53405 | P18: -70841 | Q18: -67689 | R18: -69103 | S18: -66389 | T18: -56661 | U18: -48555 | V18: -40612 | W18: -34323 | X18: -24545 | Y18: -19186 | Z18: -6393 | AA18: -8012 | AB18: -7869 | AC18: 1423 | AD18: 6722 | AE18: 16022 | AF18: 22828 | AG18: 32616 | AH18: 40430 | AI18: 46208 | AJ18: 54227 | AK18: 60810 | AL18: 72836 | AM18: 79571 | AN18: 44181 | AO18: 53183 | AP18: 62189 | AQ18: 71199 | AR18: 80110 | AS18: 88895 | AT18: 97915 | AU18: 106941 | AV18: 115968 | AW18: 124545 | AX18: 133581 | AY18: 142455 | AZ18: 88016 | BA18: 97060 | BB18: 106106 | BC18: 114976 | BD18: 123879 | BE18: 132699 | BF18: 141761 | BG18: 150782 | BH18: 158422 | BI18: 167157 | BJ18: 176216 | BK18: 185151
B21: Pro Forma Cash Flow
B22: ="for the period " & StartYear & " through " & IF(StartMonth=1,StartYear+NumYears-StartMonth,StartYear+NumYears) -> for the period 2015 through 2019
D23: =IF(B23="",FirstMonth,IF(B23=LastMonth,"",DATE(YEAR(B23),MONTH(B23)+1,DAY(B23)))) -> 2015-01-01 | E23: =IF(D23="",FirstMonth,IF(D23=LastMonth,"",DATE(YEAR(D23),MONTH(D23)+1,DAY(D23)))) -> 2015-02-01 | F23: =IF(E23="",FirstMonth,IF(E23=LastMonth,"",DATE(YEAR(E23),MONTH(E23)+1,DAY(E23)))) -> 2015-03-01 | G23: =IF(F23="",FirstMonth,IF(F23=LastMonth,"",DATE(YEAR(F23),MONTH(F23)+1,DAY(F23)))) -> 2015-04-01 | H23: =IF(G23="",FirstMonth,IF(G23=LastMonth,"",DATE(YEAR(G23),MONTH(G23)+1,DAY(G23)))) -> 2015-05-01 | I23: =IF(H23="",FirstMonth,IF(H23=LastMonth,"",DATE(YEAR(H23),MONTH(H23)+1,DAY(H23)))) -> 2015-06-01 | J23: =IF(I23="",FirstMonth,IF(I23=LastMonth,"",DATE(YEAR(I23),MONTH(I23)+1,DAY(I23)))) -> 2015-07-01 | K23: =IF(J23="",FirstMonth,IF(J23=LastMonth,"",DATE(YEAR(J23),MONTH(J23)+1,DAY(J23)))) -> 2015-08-01 | L23: =IF(K23="",FirstMonth,IF(K23=LastMonth,"",DATE(YEAR(K23),MONTH(K23)+1,DAY(K23)))) -> 2015-09-01 | M23: =IF(L23="",FirstMonth,IF(L23=LastMonth,"",DATE(YEAR(L23),MONTH(L23)+1,DAY(L23)))) -> 2015-10-01 | N23: =IF(M23="",FirstMonth,IF(M23=LastMonth,"",DATE(YEAR(M23),MONTH(M23)+1,DAY(M23)))) -> 2015-11-01 | O23: =IF(N23="",FirstMonth,IF(N23=LastMonth,"",DATE(YEAR(N23),MONTH(N23)+1,DAY(N23)))) -> 2015-12-01 | P23: =IF(O23="",FirstMonth,IF(O23=LastMonth,"",DATE(YEAR(O23),MONTH(O23)+1,DAY(O23)))) -> 2016-01-01 | Q23: =IF(P23="",FirstMonth,IF(P23=LastMonth,"",DATE(YEAR(P23),MONTH(P23)+1,DAY(P23)))) -> 2016-02-01 | R23: =IF(Q23="",FirstMonth,IF(Q23=LastMonth,"",DATE(YEAR(Q23),MONTH(Q23)+1,DAY(Q23)))) -> 2016-03-01 | S23: =IF(R23="",FirstMonth,IF(R23=LastMonth,"",DATE(YEAR(R23),MONTH(R23)+1,DAY(R23)))) -> 2016-04-01 | T23: =IF(S23="",FirstMonth,IF(S23=LastMonth,"",DATE(YEAR(S23),MONTH(S23)+1,DAY(S23)))) -> 2016-05-01 | U23: =IF(T23="",FirstMonth,IF(T23=LastMonth,"",DATE(YEAR(T23),MONTH(T23)+1,DAY(T23)))) -> 2016-06-01 | V23: =IF(U23="",FirstMonth,IF(U23=LastMonth,"",DATE(YEAR(U23),MONTH(U23)+1,DAY(U23)))) -> 2016-07-01 | W23: =IF(V23="",FirstMonth,IF(V23=LastMonth,"",DATE(YEAR(V23),MONTH(V23)+1,DAY(V23)))) -> 2016-08-01 | X23: =IF(W23="",FirstMonth,IF(W23=LastMonth,"",DATE(YEAR(W23),MONTH(W23)+1,DAY(W23)))) -> 2016-09-01 | Y23: =IF(X23="",FirstMonth,IF(X23=LastMonth,"",DATE(YEAR(X23),MONTH(X23)+1,DAY(X23)))) -> 2016-10-01 | Z23: =IF(Y23="",FirstMonth,IF(Y23=LastMonth,"",DATE(YEAR(Y23),MONTH(Y23)+1,DAY(Y23)))) -> 2016-11-01 | AA23: =IF(Z23="",FirstMonth,IF(Z23=LastMonth,"",DATE(YEAR(Z23),MONTH(Z23)+1,DAY(Z23)))) -> 2016-12-01 | AB23: =IF(AA23="",FirstMonth,IF(AA23=LastMonth,"",DATE(YEAR(AA23),MONTH(AA23)+1,DAY(AA23)))) -> 2017-01-01 | AC23: =IF(AB23="",FirstMonth,IF(AB23=LastMonth,"",DATE(YEAR(AB23),MONTH(AB23)+1,DAY(AB23)))) -> 2017-02-01 | AD23: =IF(AC23="",FirstMonth,IF(AC23=LastMonth,"",DATE(YEAR(AC23),MONTH(AC23)+1,DAY(AC23)))) -> 2017-03-01 | AE23: =IF(AD23="",FirstMonth,IF(AD23=LastMonth,"",DATE(YEAR(AD23),MONTH(AD23)+1,DAY(AD23)))) -> 2017-04-01 | AF23: =IF(AE23="",FirstMonth,IF(AE23=LastMonth,"",DATE(YEAR(AE23),MONTH(AE23)+1,DAY(AE23)))) -> 2017-05-01 | AG23: =IF(AF23="",FirstMonth,IF(AF23=LastMonth,"",DATE(YEAR(AF23),MONTH(AF23)+1,DAY(AF23)))) -> 2017-06-01 | AH23: =IF(AG23="",FirstMonth,IF(AG23=LastMonth,"",DATE(YEAR(AG23),MONTH(AG23)+1,DAY(AG23)))) -> 2017-07-01 | AI23: =IF(AH23="",FirstMonth,IF(AH23=LastMonth,"",DATE(YEAR(AH23),MONTH(AH23)+1,DAY(AH23)))) -> 2017-08-01 | AJ23: =IF(AI23="",FirstMonth,IF(AI23=LastMonth,"",DATE(YEAR(AI23),MONTH(AI23)+1,DAY(AI23)))) -> 2017-09-01 | AK23: =IF(AJ23="",FirstMonth,IF(AJ23=LastMonth,"",DATE(YEAR(AJ23),MONTH(AJ23)+1,DAY(AJ23)))) -> 2017-10-01 | AL23: =IF(AK23="",FirstMonth,IF(AK23=LastMonth,"",DATE(YEAR(AK23),MONTH(AK23)+1,DAY(AK23)))) -> 2017-11-01 | AM23: =IF(AL23="",FirstMonth,IF(AL23=LastMonth,"",DATE(YEAR(AL23),MONTH(AL23)+1,DAY(AL23)))) -> 2017-12-01 | AN23: =IF(AM23="",FirstMonth,IF(AM23=LastMonth,"",DATE(YEAR(AM23),MONTH(AM23)+1,DAY(AM23)))) -> 2018-01-01 | AO23: =IF(AN23="",FirstMonth,IF(AN23=LastMonth,"",DATE(YEAR(AN23),MONTH(AN23)+1,DAY(AN23)))) -> 2018-02-01 | AP23: =IF(AO23="",FirstMonth,IF(AO23=LastMonth,"",DATE(YEAR(AO23),MONTH(AO23)+1,DAY(AO23)))) -> 2018-03-01 | AQ23: =IF(AP23="",FirstMonth,IF(AP23=LastMonth,"",DATE(YEAR(AP23),MONTH(AP23)+1,DAY(AP23)))) -> 2018-04-01 | AR23: =IF(AQ23="",FirstMonth,IF(AQ23=LastMonth,"",DATE(YEAR(AQ23),MONTH(AQ23)+1,DAY(AQ23)))) -> 2018-05-01 | AS23: =IF(AR23="",FirstMonth,IF(AR23=LastMonth,"",DATE(YEAR(AR23),MONTH(AR23)+1,DAY(AR23)))) -> 2018-06-01 | AT23: =IF(AS23="",FirstMonth,IF(AS23=LastMonth,"",DATE(YEAR(AS23),MONTH(AS23)+1,DAY(AS23)))) -> 2018-07-01 | AU23: =IF(AT23="",FirstMonth,IF(AT23=LastMonth,"",DATE(YEAR(AT23),MONTH(AT23)+1,DAY(AT23)))) -> 2018-08-01 | AV23: =IF(AU23="",FirstMonth,IF(AU23=LastMonth,"",DATE(YEAR(AU23),MONTH(AU23)+1,DAY(AU23)))) -> 2018-09-01 | AW23: =IF(AV23="",FirstMonth,IF(AV23=LastMonth,"",DATE(YEAR(AV23),MONTH(AV23)+1,DAY(AV23)))) -> 2018-10-01 | AX23: =IF(AW23="",FirstMonth,IF(AW23=LastMonth,"",DATE(YEAR(AW23),MONTH(AW23)+1,DAY(AW23)))) -> 2018-11-01 | AY23: =IF(AX23="",FirstMonth,IF(AX23=LastMonth,"",DATE(YEAR(AX23),MONTH(AX23)+1,DAY(AX23)))) -> 2018-12-01 | AZ23: =IF(AY23="",FirstMonth,IF(AY23=LastMonth,"",DATE(YEAR(AY23),MONTH(AY23)+1,DAY(AY23)))) -> 2019-01-01 | BA23: =IF(AZ23="",FirstMonth,IF(AZ23=LastMonth,"",DATE(YEAR(AZ23),MONTH(AZ23)+1,DAY(AZ23)))) -> 2019-02-01 | BB23: =IF(BA23="",FirstMonth,IF(BA23=LastMonth,"",DATE(YEAR(BA23),MONTH(BA23)+1,DAY(BA23)))) -> 2019-03-01 | BC23: =IF(BB23="",FirstMonth,IF(BB23=LastMonth,"",DATE(YEAR(BB23),MONTH(BB23)+1,DAY(BB23)))) -> 2019-04-01 | BD23: =IF(BC23="",FirstMonth,IF(BC23=LastMonth,"",DATE(YEAR(BC23),MONTH(BC23)+1,DAY(BC23)))) -> 2019-05-01 | BE23: =IF(BD23="",FirstMonth,IF(BD23=LastMonth,"",DATE(YEAR(BD23),MONTH(BD23)+1,DAY(BD23)))) -> 2019-06-01 | BF23: =IF(BE23="",FirstMonth,IF(BE23=LastMonth,"",DATE(YEAR(BE23),MONTH(BE23)+1,DAY(BE23)))) -> 2019-07-01 | BG23: =IF(BF23="",FirstMonth,IF(BF23=LastMonth,"",DATE(YEAR(BF23),MONTH(BF23)+1,DAY(BF23)))) -> 2019-08-01 | BH23: =IF(BG23="",FirstMonth,IF(BG23=LastMonth,"",DATE(YEAR(BG23),MONTH(BG23)+1,DAY(BG23)))) -> 2019-09-01 | BI23: =IF(BH23="",FirstMonth,IF(BH23=LastMonth,"",DATE(YEAR(BH23),MONTH(BH23)+1,DAY(BH23)))) -> 2019-10-01 | BJ23: =IF(BI23="",FirstMonth,IF(BI23=LastMonth,"",DATE(YEAR(BI23),MONTH(BI23)+1,DAY(BI23)))) -> 2019-11-01 | BK23: =IF(BJ23="",FirstMonth,IF(BJ23=LastMonth,"",DATE(YEAR(BJ23),MONTH(BJ23)+1,DAY(BJ23)))) -> 2019-12-01
B24: Net Income | D24: =D18 -> -17955 | E24: =E18 -> -23753 | F24: -18540 | G24: -14227 | H24: -18642 | I24: -30319 | J24: -30511 | K24: -31195 | L24: -29828 | M24: -62613 | N24: -55690 | O24: -53405 | P24: -70841 | Q24: -67689 | R24: -69103 | S24: -66389 | T24: -56661 | U24: -48555 | V24: -40612 | W24: -34323 | X24: -24545 | Y24: -19186 | Z24: -6393 | AA24: -8012 | AB24: -7869 | AC24: 1423 | AD24: 6722 | AE24: 16022 | AF24: 22828 | AG24: 32616 | AH24: 40430 | AI24: 46208 | AJ24: 54227 | AK24: 60810 | AL24: 72836 | AM24: 79571 | AN24: =AN18 -> 44181 | AO24: 53183 | AP24: 62189 | AQ24: 71199 | AR24: 80110 | AS24: 88895 | AT24: 97915 | AU24: 106941 | AV24: 115968 | AW24: 124545 | AX24: 133581 | AY24: 142455 | AZ24: 88016 | BA24: 97060 | BB24: 106106 | BC24: 114976 | BD24: 123879 | BE24: 132699 | BF24: 141761 | BG24: 150782 | BH24: =BH18 -> 158422 | BI24: 167157 | BJ24: 176216 | BK24: 185151
B25: Income tax payments | D25: ='Cash Flow'!D19-'Cash Flow'!D20 -> 0 | E25: ='Cash Flow'!E19-'Cash Flow'!E20 -> 0 | F25: ='Cash Flow'!F19-'Cash Flow'!F20 -> 0 | G25: ='Cash Flow'!G19-'Cash Flow'!G20 -> 0 | H25: ='Cash Flow'!H19-'Cash Flow'!H20 -> 0 | I25: ='Cash Flow'!I19-'Cash Flow'!I20 -> 0 | J25: ='Cash Flow'!J19-'Cash Flow'!J20 -> 0 | K25: ='Cash Flow'!K19-'Cash Flow'!K20 -> 0 | L25: ='Cash Flow'!L19-'Cash Flow'!L20 -> 0 | M25: ='Cash Flow'!M19-'Cash Flow'!M20 -> 0 | N25: ='Cash Flow'!N19-'Cash Flow'!N20 -> 0 | O25: ='Cash Flow'!O19-'Cash Flow'!O20 -> 0 | P25: ='Cash Flow'!P19-'Cash Flow'!P20 -> 0 | Q25: ='Cash Flow'!Q19-'Cash Flow'!Q20 -> 0 | R25: ='Cash Flow'!R19-'Cash Flow'!R20 -> 0 | S25: ='Cash Flow'!S19-'Cash Flow'!S20 -> 0 | T25: ='Cash Flow'!T19-'Cash Flow'!T20 -> 0 | U25: ='Cash Flow'!U19-'Cash Flow'!U20 -> 0 | V25: ='Cash Flow'!V19-'Cash Flow'!V20 -> 0 | W25: ='Cash Flow'!W19-'Cash Flow'!W20 -> 0 | X25: ='Cash Flow'!X19-'Cash Flow'!X20 -> 0 | Y25: ='Cash Flow'!Y19-'Cash Flow'!Y20 -> 0 | Z25: ='Cash Flow'!Z19-'Cash Flow'!Z20 -> 0 | AA25: ='Cash Flow'!AA19-'Cash Flow'!AA20 -> 0 | AB25: ='Cash Flow'!AB19-'Cash Flow'!AB20 -> 0 | AC25: ='Cash Flow'!AC19-'Cash Flow'!AC20 -> 0 | AD25: ='Cash Flow'!AD19-'Cash Flow'!AD20 -> 0 | AE25: ='Cash Flow'!AE19-'Cash Flow'!AE20 -> 0 | AF25: ='Cash Flow'!AF19-'Cash Flow'!AF20 -> 0 | AG25: ='Cash Flow'!AG19-'Cash Flow'!AG20 -> 0 | AH25: ='Cash Flow'!AH19-'Cash Flow'!AH20 -> 0 | AI25: ='Cash Flow'!AI19-'Cash Flow'!AI20 -> 0 | AJ25: ='Cash Flow'!AJ19-'Cash Flow'!AJ20 -> 0 | AK25: ='Cash Flow'!AK19-'Cash Flow'!AK20 -> 0 | AL25: ='Cash Flow'!AL19-'Cash Flow'!AL20 -> 0 | AM25: ='Cash Flow'!AM19-'Cash Flow'!AM20 -> 0 | AN25: ='Cash Flow'!AN19-'Cash Flow'!AN20 -> 36315 | AO25: ='Cash Flow'!AO19-'Cash Flow'!AO20 -> 36315 | AP25: ='Cash Flow'!AP19-'Cash Flow'!AP20 -> 36315 | AQ25: ='Cash Flow'!AQ19-'Cash Flow'!AQ20 -> 36315 | AR25: ='Cash Flow'!AR19-'Cash Flow'!AR20 -> 36315 | AS25: ='Cash Flow'!AS19-'Cash Flow'!AS20 -> 36315 | AT25: ='Cash Flow'!AT19-'Cash Flow'!AT20 -> 36315 | AU25: ='Cash Flow'!AU19-'Cash Flow'!AU20 -> 36315 | AV25: ='Cash Flow'!AV19-'Cash Flow'!AV20 -> 36315 | AW25: ='Cash Flow'!AW19-'Cash Flow'!AW20 -> 36315 | AX25: ='Cash Flow'!AX19-'Cash Flow'!AX20 -> 36315 | AY25: ='Cash Flow'!AY19-'Cash Flow'!AY20 -> 36315 | AZ25: ='Cash Flow'!AZ19-'Cash Flow'!AZ20 -> 91455 | BA25: ='Cash Flow'!BA19-'Cash Flow'!BA20 -> 91455 | BB25: ='Cash Flow'!BB19-'Cash Flow'!BB20 -> -344325 | BC25: ='Cash Flow'!BC19-'Cash Flow'!BC20 -> -17490 | BD25: ='Cash Flow'!BD19-'Cash Flow'!BD20 -> 91455 | BE25: ='Cash Flow'!BE19-'Cash Flow'!BE20 -> 91455 | BF25: ='Cash Flow'!BF19-'Cash Flow'!BF20 -> -17490 | BG25: ='Cash Flow'!BG19-'Cash Flow'!BG20 -> 91455 | BH25: ='Cash Flow'!BH19-'Cash Flow'!BH20 -> 91455 | BI25: ='Cash Flow'!BI19-'Cash Flow'!BI20 -> -17490 | BJ25: ='Cash Flow'!BJ19-'Cash Flow'!BJ20 -> 91455 | BK25: ='Cash Flow'!BK19-'Cash Flow'!BK20 -> -17490
B26: Depreciation and amortization | D26: ='Assets & Dep'!D18+'Assets & Dep'!D22+'Assets & Dep'!D26 -> 0 | E26: ='Assets & Dep'!E18+'Assets & Dep'!E22+'Assets & Dep'!E26 -> 0 | F26: ='Assets & Dep'!F18+'Assets & Dep'!F22+'Assets & Dep'!F26 -> 106 | G26: ='Assets & Dep'!G18+'Assets & Dep'!G22+'Assets & Dep'!G26 -> 106 | H26: ='Assets & Dep'!H18+'Assets & Dep'!H22+'Assets & Dep'!H26 -> 106 | I26: ='Assets & Dep'!I18+'Assets & Dep'!I22+'Assets & Dep'!I26 -> 404 | J26: ='Assets & Dep'!J18+'Assets & Dep'!J22+'Assets & Dep'!J26 -> 404 | K26: ='Assets & Dep'!K18+'Assets & Dep'!K22+'Assets & Dep'!K26 -> 404 | L26: ='Assets & Dep'!L18+'Assets & Dep'!L22+'Assets & Dep'!L26 -> 404 | M26: ='Assets & Dep'!M18+'Assets & Dep'!M22+'Assets & Dep'!M26 -> 404 | N26: ='Assets & Dep'!N18+'Assets & Dep'!N22+'Assets & Dep'!N26 -> 404 | O26: ='Assets & Dep'!O18+'Assets & Dep'!O22+'Assets & Dep'!O26 -> 404 | P26: ='Assets & Dep'!P18+'Assets & Dep'!P22+'Assets & Dep'!P26 -> 404 | Q26: ='Assets & Dep'!Q18+'Assets & Dep'!Q22+'Assets & Dep'!Q26 -> 404 | R26: ='Assets & Dep'!R18+'Assets & Dep'!R22+'Assets & Dep'!R26 -> 404 | S26: ='Assets & Dep'!S18+'Assets & Dep'!S22+'Assets & Dep'!S26 -> 425 | T26: ='Assets & Dep'!T18+'Assets & Dep'!T22+'Assets & Dep'!T26 -> 425 | U26: ='Assets & Dep'!U18+'Assets & Dep'!U22+'Assets & Dep'!U26 -> 425 | V26: ='Assets & Dep'!V18+'Assets & Dep'!V22+'Assets & Dep'!V26 -> 425 | W26: ='Assets & Dep'!W18+'Assets & Dep'!W22+'Assets & Dep'!W26 -> 425 | X26: ='Assets & Dep'!X18+'Assets & Dep'!X22+'Assets & Dep'!X26 -> 425 | Y26: ='Assets & Dep'!Y18+'Assets & Dep'!Y22+'Assets & Dep'!Y26 -> 425 | Z26: ='Assets & Dep'!Z18+'Assets & Dep'!Z22+'Assets & Dep'!Z26 -> 425 | AA26: ='Assets & Dep'!AA18+'Assets & Dep'!AA22+'Assets & Dep'!AA26 -> 425 | AB26: ='Assets & Dep'!AB18+'Assets & Dep'!AB22+'Assets & Dep'!AB26 -> 544 | AC26: ='Assets & Dep'!AC18+'Assets & Dep'!AC22+'Assets & Dep'!AC26 -> 544 | AD26: ='Assets & Dep'!AD18+'Assets & Dep'!AD22+'Assets & Dep'!AD26 -> 544 | AE26: ='Assets & Dep'!AE18+'Assets & Dep'!AE22+'Assets & Dep'!AE26 -> 548 | AF26: ='Assets & Dep'!AF18+'Assets & Dep'!AF22+'Assets & Dep'!AF26 -> 548 | AG26: ='Assets & Dep'!AG18+'Assets & Dep'!AG22+'Assets & Dep'!AG26 -> 548 | AH26: ='Assets & Dep'!AH18+'Assets & Dep'!AH22+'Assets & Dep'!AH26 -> 548 | AI26: ='Assets & Dep'!AI18+'Assets & Dep'!AI22+'Assets & Dep'!AI26 -> 548 | AJ26: ='Assets & Dep'!AJ18+'Assets & Dep'!AJ22+'Assets & Dep'!AJ26 -> 548 | AK26: ='Assets & Dep'!AK18+'Assets & Dep'!AK22+'Assets & Dep'!AK26 -> 548 | AL26: ='Assets & Dep'!AL18+'Assets & Dep'!AL22+'Assets & Dep'!AL26 -> 548 | AM26: ='Assets & Dep'!AM18+'Assets & Dep'!AM22+'Assets & Dep'!AM26 -> 548 | AN26: ='Assets & Dep'!AN18+'Assets & Dep'!AN22+'Assets & Dep'!AN26 -> 548 | AO26: ='Assets & Dep'!AO18+'Assets & Dep'!AO22+'Assets & Dep'!AO26 -> 548 | AP26: ='Assets & Dep'!AP18+'Assets & Dep'!AP22+'Assets & Dep'!AP26 -> 548 | AQ26: ='Assets & Dep'!AQ18+'Assets & Dep'!AQ22+'Assets & Dep'!AQ26 -> 548 | AR26: ='Assets & Dep'!AR18+'Assets & Dep'!AR22+'Assets & Dep'!AR26 -> 548 | AS26: ='Assets & Dep'!AS18+'Assets & Dep'!AS22+'Assets & Dep'!AS26 -> 552 | AT26: ='Assets & Dep'!AT18+'Assets & Dep'!AT22+'Assets & Dep'!AT26 -> 552 | AU26: ='Assets & Dep'!AU18+'Assets & Dep'!AU22+'Assets & Dep'!AU26 -> 552 | AV26: ='Assets & Dep'!AV18+'Assets & Dep'!AV22+'Assets & Dep'!AV26 -> 552 | AW26: ='Assets & Dep'!AW18+'Assets & Dep'!AW22+'Assets & Dep'!AW26 -> 552 | AX26: ='Assets & Dep'!AX18+'Assets & Dep'!AX22+'Assets & Dep'!AX26 -> 552 | AY26: ='Assets & Dep'!AY18+'Assets & Dep'!AY22+'Assets & Dep'!AY26 -> 552 | AZ26: ='Assets & Dep'!AZ18+'Assets & Dep'!AZ22+'Assets & Dep'!AZ26 -> 552 | BA26: ='Assets & Dep'!BA18+'Assets & Dep'!BA22+'Assets & Dep'!BA26 -> 552 | BB26: ='Assets & Dep'!BB18+'Assets & Dep'!BB22+'Assets & Dep'!BB26 -> 552 | BC26: ='Assets & Dep'!BC18+'Assets & Dep'!BC22+'Assets & Dep'!BC26 -> 552 | BD26: ='Assets & Dep'!BD18+'Assets & Dep'!BD22+'Assets & Dep'!BD26 -> 552 | BE26: ='Assets & Dep'!BE18+'Assets & Dep'!BE22+'Assets & Dep'!BE26 -> 556 | BF26: ='Assets & Dep'!BF18+'Assets & Dep'!BF22+'Assets & Dep'!BF26 -> 556 | BG26: ='Assets & Dep'!BG18+'Assets & Dep'!BG22+'Assets & Dep'!BG26 -> 556 | BH26: ='Assets & Dep'!BH18+'Assets & Dep'!BH22+'Assets & Dep'!BH26 -> 556 | BI26: ='Assets & Dep'!BI18+'Assets & Dep'!BI22+'Assets & Dep'!BI26 -> 556 | BJ26: ='Assets & Dep'!BJ18+'Assets & Dep'!BJ22+'Assets & Dep'!BJ26 -> 556 | BK26: ='Assets & Dep'!BK18+'Assets & Dep'!BK22+'Assets & Dep'!BK26 -> 556
B27: Accrued Interest | D27: =Loans!D17 -> 0 | E27: =Loans!E17 -> 0 | F27: =Loans!F17 -> 0 | G27: =Loans!G17 -> 0 | H27: =Loans!H17 -> 0 | I27: =Loans!I17 -> 0 | J27: =Loans!J17 -> 0 | K27: =Loans!K17 -> 0 | L27: =Loans!L17 -> 0 | M27: =Loans!M17 -> 0 | N27: =Loans!N17 -> 0 | O27: =Loans!O17 -> 0 | P27: =Loans!P17 -> 0 | Q27: =Loans!Q17 -> 0 | R27: =Loans!R17 -> 0 | S27: =Loans!S17 -> 0 | T27: =Loans!T17 -> 0 | U27: =Loans!U17 -> 0 | V27: =Loans!V17 -> 0 | W27: =Loans!W17 -> 0 | X27: =Loans!X17 -> 0 | Y27: =Loans!Y17 -> 0 | Z27: =Loans!Z17 -> 0 | AA27: =Loans!AA17 -> 0 | AB27: =Loans!AB17 -> 0 | AC27: =Loans!AC17 -> 0 | AD27: =Loans!AD17 -> 0 | AE27: =Loans!AE17 -> 0 | AF27: =Loans!AF17 -> 0 | AG27: =Loans!AG17 -> 0 | AH27: =Loans!AH17 -> 0 | AI27: =Loans!AI17 -> 0 | AJ27: =Loans!AJ17 -> 0 | AK27: =Loans!AK17 -> 0 | AL27: =Loans!AL17 -> 0 | AM27: =Loans!AM17 -> 0 | AN27: =Loans!AN17 -> 0 | AO27: =Loans!AO17 -> 0 | AP27: =Loans!AP17 -> 0 | AQ27: =Loans!AQ17 -> 0 | AR27: =Loans!AR17 -> 0 | AS27: =Loans!AS17 -> 0 | AT27: =Loans!AT17 -> 0 | AU27: =Loans!AU17 -> 0 | AV27: =Loans!AV17 -> 0 | AW27: =Loans!AW17 -> 0 | AX27: =Loans!AX17 -> 0 | AY27: =Loans!AY17 -> 0 | AZ27: =Loans!AZ17 -> 0 | BA27: =Loans!BA17 -> 0 | BB27: =Loans!BB17 -> 0 | BC27: =Loans!BC17 -> 0 | BD27: =Loans!BD17 -> 0 | BE27: =Loans!BE17 -> 0 | BF27: =Loans!BF17 -> 0 | BG27: =Loans!BG17 -> 0 | BH27: =Loans!BH17 -> 0 | BI27: =Loans!BI17 -> 0 | BJ27: =Loans!BJ17 -> 0 | BK27: =Loans!BK17 -> 0
B28: Change in WC, excluding cash | D28: =-'Cash Flow'!D16 -> 1325 | E28: =-'Cash Flow'!E16 -> -225 | F28: =-'Cash Flow'!F16 -> 0 | G28: =-'Cash Flow'!G16 -> 0 | H28: =-'Cash Flow'!H16 -> 0 | I28: =-'Cash Flow'!I16 -> 0 | J28: =-'Cash Flow'!J16 -> 0 | K28: =-'Cash Flow'!K16 -> 0 | L28: =-'Cash Flow'!L16 -> 0 | M28: =-'Cash Flow'!M16 -> -20675 | N28: =-'Cash Flow'!N16 -> -38100 | O28: =-'Cash Flow'!O16 -> -35000 | P28: =-'Cash Flow'!P16 -> -20000 | Q28: =-'Cash Flow'!Q16 -> -5000 | R28: =-'Cash Flow'!R16 -> -5000 | S28: =-'Cash Flow'!S16 -> -5000 | T28: =-'Cash Flow'!T16 -> -25000 | U28: =-'Cash Flow'!U16 -> -42500 | V28: =-'Cash Flow'!V16 -> -41825 | W28: =-'Cash Flow'!W16 -> -25300 | X28: =-'Cash Flow'!X16 -> -10000 | Y28: =-'Cash Flow'!Y16 -> -10000 | Z28: =-'Cash Flow'!Z16 -> -10000 | AA28: =-'Cash Flow'!AA16 -> -10000 | AB28: =-'Cash Flow'!AB16 -> -10000 | AC28: =-'Cash Flow'!AC16 -> -10000 | AD28: =-'Cash Flow'!AD16 -> -10000 | AE28: =-'Cash Flow'!AE16 -> -10000 | AF28: =-'Cash Flow'!AF16 -> -10000 | AG28: =-'Cash Flow'!AG16 -> -10000 | AH28: =-'Cash Flow'!AH16 -> -10000 | AI28: =-'Cash Flow'!AI16 -> -10000 | AJ28: =-'Cash Flow'!AJ16 -> -10000 | AK28: =-'Cash Flow'!AK16 -> -10000 | AL28: =-'Cash Flow'!AL16 -> -10000 | AM28: =-'Cash Flow'!AM16 -> -10000 | AN28: =-'Cash Flow'!AN16 -> -10000 | AO28: =-'Cash Flow'!AO16 -> -10000 | AP28: =-'Cash Flow'!AP16 -> -10000 | AQ28: =-'Cash Flow'!AQ16 -> -10000 | AR28: =-'Cash Flow'!AR16 -> -10000 | AS28: =-'Cash Flow'!AS16 -> -10000 | AT28: =-'Cash Flow'!AT16 -> -10000 | AU28: =-'Cash Flow'!AU16 -> -10000 | AV28: =-'Cash Flow'!AV16 -> -10000 | AW28: =-'Cash Flow'!AW16 -> -10000 | AX28: =-'Cash Flow'!AX16 -> -10000 | AY28: =-'Cash Flow'!AY16 -> -10000 | AZ28: =-'Cash Flow'!AZ16 -> -10000 | BA28: =-'Cash Flow'!BA16 -> -10000 | BB28: =-'Cash Flow'!BB16 -> -10000 | BC28: =-'Cash Flow'!BC16 -> -10000 | BD28: =-'Cash Flow'!BD16 -> -10000 | BE28: =-'Cash Flow'!BE16 -> -10000 | BF28: =-'Cash Flow'!BF16 -> -10000 | BG28: =-'Cash Flow'!BG16 -> -10000 | BH28: =-'Cash Flow'!BH16 -> -10000 | BI28: =-'Cash Flow'!BI16 -> -10000 | BJ28: =-'Cash Flow'!BJ16 -> -10000 | BK28: =-'Cash Flow'!BK16 -> -10000
B29: PP&E Purchase | D29: =-('Assets & Dep'!D20+'Assets & Dep'!D24) -> 0 | E29: =-('Assets & Dep'!E20+'Assets & Dep'!E24) -> 0 | F29: =-('Assets & Dep'!F20+'Assets & Dep'!F24) -> -1500 | G29: =-('Assets & Dep'!G20+'Assets & Dep'!G24) -> 0 | H29: =-('Assets & Dep'!H20+'Assets & Dep'!H24) -> 0 | I29: =-('Assets & Dep'!I20+'Assets & Dep'!I24) -> -25000 | J29: =-('Assets & Dep'!J20+'Assets & Dep'!J24) -> 0 | K29: =-('Assets & Dep'!K20+'Assets & Dep'!K24) -> 0 | L29: =-('Assets & Dep'!L20+'Assets & Dep'!L24) -> 0 | M29: =-('Assets & Dep'!M20+'Assets & Dep'!M24) -> 0 | N29: =-('Assets & Dep'!N20+'Assets & Dep'!N24) -> 0 | O29: =-('Assets & Dep'!O20+'Assets & Dep'!O24) -> 0 | P29: =-('Assets & Dep'!P20+'Assets & Dep'!P24) -> 0 | Q29: =-('Assets & Dep'!Q20+'Assets & Dep'!Q24) -> 0 | R29: =-('Assets & Dep'!R20+'Assets & Dep'!R24) -> 0 | S29: =-('Assets & Dep'!S20+'Assets & Dep'!S24) -> 0 | T29: =-('Assets & Dep'!T20+'Assets & Dep'!T24) -> 0 | U29: =-('Assets & Dep'!U20+'Assets & Dep'!U24) -> 0 | V29: =-('Assets & Dep'!V20+'Assets & Dep'!V24) -> 0 | W29: =-('Assets & Dep'!W20+'Assets & Dep'!W24) -> 0 | X29: =-('Assets & Dep'!X20+'Assets & Dep'!X24) -> 0 | Y29: =-('Assets & Dep'!Y20+'Assets & Dep'!Y24) -> 0 | Z29: =-('Assets & Dep'!Z20+'Assets & Dep'!Z24) -> 0 | AA29: =-('Assets & Dep'!AA20+'Assets & Dep'!AA24) -> 0 | AB29: =-('Assets & Dep'!AB20+'Assets & Dep'!AB24) -> -10000 | AC29: =-('Assets & Dep'!AC20+'Assets & Dep'!AC24) -> 0 | AD29: =-('Assets & Dep'!AD20+'Assets & Dep'!AD24) -> 0 | AE29: =-('Assets & Dep'!AE20+'Assets & Dep'!AE24) -> 0 | AF29: =-('Assets & Dep'!AF20+'Assets & Dep'!AF24) -> 0 | AG29: =-('Assets & Dep'!AG20+'Assets & Dep'!AG24) -> 0 | AH29: =-('Assets & Dep'!AH20+'Assets & Dep'!AH24) -> 0 | AI29: =-('Assets & Dep'!AI20+'Assets & Dep'!AI24) -> 0 | AJ29: =-('Assets & Dep'!AJ20+'Assets & Dep'!AJ24) -> 0 | AK29: =-('Assets & Dep'!AK20+'Assets & Dep'!AK24) -> 0 | AL29: =-('Assets & Dep'!AL20+'Assets & Dep'!AL24) -> 0 | AM29: =-('Assets & Dep'!AM20+'Assets & Dep'!AM24) -> 0 | AN29: =-('Assets & Dep'!AN20+'Assets & Dep'!AN24) -> 0 | AO29: =-('Assets & Dep'!AO20+'Assets & Dep'!AO24) -> 0 | AP29: =-('Assets & Dep'!AP20+'Assets & Dep'!AP24) -> 0 | AQ29: =-('Assets & Dep'!AQ20+'Assets & Dep'!AQ24) -> 0 | AR29: =-('Assets & Dep'!AR20+'Assets & Dep'!AR24) -> 0 | AS29: =-('Assets & Dep'!AS20+'Assets & Dep'!AS24) -> 0 | AT29: =-('Assets & Dep'!AT20+'Assets & Dep'!AT24) -> 0 | AU29: =-('Assets & Dep'!AU20+'Assets & Dep'!AU24) -> 0 | AV29: =-('Assets & Dep'!AV20+'Assets & Dep'!AV24) -> 0 | AW29: =-('Assets & Dep'!AW20+'Assets & Dep'!AW24) -> 0 | AX29: =-('Assets & Dep'!AX20+'Assets & Dep'!AX24) -> 0 | AY29: =-('Assets & Dep'!AY20+'Assets & Dep'!AY24) -> 0 | AZ29: =-('Assets & Dep'!AZ20+'Assets & Dep'!AZ24) -> 0 | BA29: =-('Assets & Dep'!BA20+'Assets & Dep'!BA24) -> 0 | BB29: =-('Assets & Dep'!BB20+'Assets & Dep'!BB24) -> 0 | BC29: =-('Assets & Dep'!BC20+'Assets & Dep'!BC24) -> 0 | BD29: =-('Assets & Dep'!BD20+'Assets & Dep'!BD24) -> 0 | BE29: =-('Assets & Dep'!BE20+'Assets & Dep'!BE24) -> 0 | BF29: =-('Assets & Dep'!BF20+'Assets & Dep'!BF24) -> 0 | BG29: =-('Assets & Dep'!BG20+'Assets & Dep'!BG24) -> 0 | BH29: =-('Assets & Dep'!BH20+'Assets & Dep'!BH24) -> 0 | BI29: =-('Assets & Dep'!BI20+'Assets & Dep'!BI24) -> 0 | BJ29: =-('Assets & Dep'!BJ20+'Assets & Dep'!BJ24) -> 0 | BK29: =-('Assets & Dep'!BK20+'Assets & Dep'!BK24) -> 0
B30: Increase in Intangible Assets | D30: =-'Assets & Dep'!D16 -> 0 | E30: =-'Assets & Dep'!E16 -> 0 | F30: =-'Assets & Dep'!F16 -> -20000 | G30: =-'Assets & Dep'!G16 -> 0 | H30: =-'Assets & Dep'!H16 -> 0 | I30: =-'Assets & Dep'!I16 -> 0 | J30: =-'Assets & Dep'!J16 -> 0 | K30: =-'Assets & Dep'!K16 -> 0 | L30: =-'Assets & Dep'!L16 -> 0 | M30: =-'Assets & Dep'!M16 -> 0 | N30: =-'Assets & Dep'!N16 -> 0 | O30: =-'Assets & Dep'!O16 -> 0 | P30: =-'Assets & Dep'!P16 -> 0 | Q30: =-'Assets & Dep'!Q16 -> 0 | R30: =-'Assets & Dep'!R16 -> 0 | S30: =-'Assets & Dep'!S16 -> -5000 | T30: =-'Assets & Dep'!T16 -> 0 | U30: =-'Assets & Dep'!U16 -> 0 | V30: =-'Assets & Dep'!V16 -> 0 | W30: =-'Assets & Dep'!W16 -> 0 | X30: =-'Assets & Dep'!X16 -> 0 | Y30: =-'Assets & Dep'!Y16 -> 0 | Z30: =-'Assets & Dep'!Z16 -> 0 | AA30: =-'Assets & Dep'!AA16 -> 0 | AB30: =-'Assets & Dep'!AB16 -> 0 | AC30: =-'Assets & Dep'!AC16 -> 0 | AD30: =-'Assets & Dep'!AD16 -> 0 | AE30: =-'Assets & Dep'!AE16 -> -1000 | AF30: =-'Assets & Dep'!AF16 -> 0 | AG30: =-'Assets & Dep'!AG16 -> 0 | AH30: =-'Assets & Dep'!AH16 -> 0 | AI30: =-'Assets & Dep'!AI16 -> 0 | AJ30: =-'Assets & Dep'!AJ16 -> 0 | AK30: =-'Assets & Dep'!AK16 -> 0 | AL30: =-'Assets & Dep'!AL16 -> 0 | AM30: =-'Assets & Dep'!AM16 -> 0 | AN30: =-'Assets & Dep'!AN16 -> 0 | AO30: =-'Assets & Dep'!AO16 -> 0 | AP30: =-'Assets & Dep'!AP16 -> 0 | AQ30: =-'Assets & Dep'!AQ16 -> 0 | AR30: =-'Assets & Dep'!AR16 -> 0 | AS30: =-'Assets & Dep'!AS16 -> -1000 | AT30: =-'Assets & Dep'!AT16 -> 0 | AU30: =-'Assets & Dep'!AU16 -> 0 | AV30: =-'Assets & Dep'!AV16 -> 0 | AW30: =-'Assets & Dep'!AW16 -> 0 | AX30: =-'Assets & Dep'!AX16 -> 0 | AY30: =-'Assets & Dep'!AY16 -> 0 | AZ30: =-'Assets & Dep'!AZ16 -> 0 | BA30: =-'Assets & Dep'!BA16 -> 0 | BB30: =-'Assets & Dep'!BB16 -> 0 | BC30: =-'Assets & Dep'!BC16 -> 0 | BD30: =-'Assets & Dep'!BD16 -> 0 | BE30: =-'Assets & Dep'!BE16 -> -1000 | BF30: =-'Assets & Dep'!BF16 -> 0 | BG30: =-'Assets & Dep'!BG16 -> 0 | BH30: =-'Assets & Dep'!BH16 -> 0 | BI30: =-'Assets & Dep'!BI16 -> 0 | BJ30: =-'Assets & Dep'!BJ16 -> 0 | BK30: =-'Assets & Dep'!BK16 -> 0
B31: Bank loans and capital leases | D31: =Loans!D11 -> 250000 | E31: =Loans!E11 -> 0 | F31: =Loans!F11 -> 0 | G31: =Loans!G11 -> 0 | H31: =Loans!H11 -> 0 | I31: =Loans!I11 -> 0 | J31: =Loans!J11 -> 0 | K31: =Loans!K11 -> 0 | L31: =Loans!L11 -> 0 | M31: =Loans!M11 -> 0 | N31: =Loans!N11 -> 21250 | O31: =Loans!O11 -> 2500 | P31: =Loans!P11 -> 2500 | Q31: =Loans!Q11 -> 2500 | R31: =Loans!R11 -> 2500 | S31: =Loans!S11 -> 2500 | T31: =Loans!T11 -> 12500 | U31: =Loans!U11 -> 13750 | V31: =Loans!V11 -> 5000 | W31: =Loans!W11 -> 5000 | X31: =Loans!X11 -> 5000 | Y31: =Loans!Y11 -> 5000 | Z31: =Loans!Z11 -> 5000 | AA31: =Loans!AA11 -> 5000 | AB31: =Loans!AB11 -> 5000 | AC31: =Loans!AC11 -> 5000 | AD31: =Loans!AD11 -> 5000 | AE31: =Loans!AE11 -> 5000 | AF31: =Loans!AF11 -> 5000 | AG31: =Loans!AG11 -> 5000 | AH31: =Loans!AH11 -> 5000 | AI31: =Loans!AI11 -> 5000 | AJ31: =Loans!AJ11 -> 5000 | AK31: =Loans!AK11 -> 5000 | AL31: =Loans!AL11 -> 5000 | AM31: =Loans!AM11 -> 5000 | AN31: =Loans!AN11 -> 5000 | AO31: =Loans!AO11 -> 5000 | AP31: =Loans!AP11 -> 5000 | AQ31: =Loans!AQ11 -> 5000 | AR31: =Loans!AR11 -> 5000 | AS31: =Loans!AS11 -> 5000 | AT31: =Loans!AT11 -> 5000 | AU31: =Loans!AU11 -> 5000 | AV31: =Loans!AV11 -> 5000 | AW31: =Loans!AW11 -> 5000 | AX31: =Loans!AX11 -> 5000 | AY31: =Loans!AY11 -> 5000 | AZ31: =Loans!AZ11 -> 5000 | BA31: =Loans!BA11 -> 5000 | BB31: =Loans!BB11 -> 5000 | BC31: =Loans!BC11 -> 5000 | BD31: =Loans!BD11 -> 5000 | BE31: =Loans!BE11 -> 5000 | BF31: =Loans!BF11 -> 5000 | BG31: =Loans!BG11 -> 5000 | BH31: =Loans!BH11 -> 250000 | BI31: =Loans!BI11 -> 0 | BJ31: =Loans!BJ11 -> 0 | BK31: =Loans!BK11 -> 0
B32: Reduction in loans outstanding | D32: =-Loans!D13 -> -6355 | E32: =-Loans!E13 -> -6387 | F32: =-Loans!F13 -> -6419 | G32: =-Loans!G13 -> -6451 | H32: =-Loans!H13 -> -6484 | I32: =-Loans!I13 -> -6516 | J32: =-Loans!J13 -> -6549 | K32: =-Loans!K13 -> -6581 | L32: =-Loans!L13 -> -6614 | M32: =-Loans!M13 -> -6647 | N32: =-Loans!N13 -> -6681 | O32: =-Loans!O13 -> -6714 | P32: =-Loans!P13 -> -6747 | Q32: =-Loans!Q13 -> -6781 | R32: =-Loans!R13 -> -6815 | S32: =-Loans!S13 -> -6849 | T32: =-Loans!T13 -> -6883 | U32: =-Loans!U13 -> -6918 | V32: =-Loans!V13 -> -6952 | W32: =-Loans!W13 -> -6987 | X32: =-Loans!X13 -> -7022 | Y32: =-Loans!Y13 -> -7057 | Z32: =-Loans!Z13 -> -7093 | AA32: =-Loans!AA13 -> -7130 | AB32: =-Loans!AB13 -> -7164 | AC32: =-Loans!AC13 -> -7199 | AD32: =-Loans!AD13 -> -7235 | AE32: =-Loans!AE13 -> -7272 | AF32: =-Loans!AF13 -> -7308 | AG32: =-Loans!AG13 -> -7345 | AH32: =-Loans!AH13 -> -7381 | AI32: =-Loans!AI13 -> -7418 | AJ32: =-Loans!AJ13 -> -7455 | AK32: =-Loans!AK13 -> -7493 | AL32: =-Loans!AL13 -> -7530 | AM32: =-Loans!AM13 -> -7568 | AN32: =-Loans!AN13 -> 0 | AO32: =-Loans!AO13 -> 0 | AP32: =-Loans!AP13 -> 0 | AQ32: =-Loans!AQ13 -> 0 | AR32: =-Loans!AR13 -> 0 | AS32: =-Loans!AS13 -> 0 | AT32: =-Loans!AT13 -> 0 | AU32: =-Loans!AU13 -> 0 | AV32: =-Loans!AV13 -> 0 | AW32: =-Loans!AW13 -> 0 | AX32: =-Loans!AX13 -> 0 | AY32: =-Loans!AY13 -> 0 | AZ32: =-Loans!AZ13 -> 0 | BA32: =-Loans!BA13 -> 0 | BB32: =-Loans!BB13 -> 0 | BC32: =-Loans!BC13 -> 0 | BD32: =-Loans!BD13 -> 0 | BE32: =-Loans!BE13 -> 0 | BF32: =-Loans!BF13 -> 0 | BG32: =-Loans!BG13 -> 0 | BH32: =-Loans!BH13 -> 0 | BI32: =-Loans!BI13 -> 0 | BJ32: =-Loans!BJ13 -> 0 | BK32: =-Loans!BK13 -> 0
B33: Capital Stock | D33: =Stock!D7 -> 0 | E33: =Stock!E7 -> 0 | F33: =Stock!F7 -> 0 | G33: =Stock!G7 -> 0 | H33: =Stock!H7 -> 0 | I33: =Stock!I7 -> 0 | J33: =Stock!J7 -> 0 | K33: =Stock!K7 -> 1300000 | L33: =Stock!L7 -> 0 | M33: =Stock!M7 -> 0 | N33: =Stock!N7 -> 0 | O33: =Stock!O7 -> 0 | P33: =Stock!P7 -> 0 | Q33: =Stock!Q7 -> 0 | R33: =Stock!R7 -> 0 | S33: =Stock!S7 -> 0 | T33: =Stock!T7 -> 0 | U33: =Stock!U7 -> 0 | V33: =Stock!V7 -> 0 | W33: =Stock!W7 -> 0 | X33: =Stock!X7 -> 0 | Y33: =Stock!Y7 -> 0 | Z33: =Stock!Z7 -> 0 | AA33: =Stock!AA7 -> 0 | AB33: =Stock!AB7 -> 0 | AC33: =Stock!AC7 -> 0 | AD33: =Stock!AD7 -> 0 | AE33: =Stock!AE7 -> 0 | AF33: =Stock!AF7 -> 0 | AG33: =Stock!AG7 -> 0 | AH33: =Stock!AH7 -> 0 | AI33: =Stock!AI7 -> 0 | AJ33: =Stock!AJ7 -> 0 | AK33: =Stock!AK7 -> 0 | AL33: =Stock!AL7 -> 0 | AM33: =Stock!AM7 -> 0 | AN33: =Stock!AN7 -> 0 | AO33: =Stock!AO7 -> 0 | AP33: =Stock!AP7 -> 0 | AQ33: =Stock!AQ7 -> 0 | AR33: =Stock!AR7 -> 0 | AS33: =Stock!AS7 -> 0 | AT33: =Stock!AT7 -> 0 | AU33: =Stock!AU7 -> 0 | AV33: =Stock!AV7 -> 0 | AW33: =Stock!AW7 -> 0 | AX33: =Stock!AX7 -> 0 | AY33: =Stock!AY7 -> 0 | AZ33: =Stock!AZ7 -> 0 | BA33: =Stock!BA7 -> 0 | BB33: =Stock!BB7 -> 0 | BC33: =Stock!BC7 -> 0 | BD33: =Stock!BD7 -> 0 | BE33: =Stock!BE7 -> 0 | BF33: =Stock!BF7 -> 0 | BG33: =Stock!BG7 -> 0 | BH33: =Stock!BH7 -> 0 | BI33: =Stock!BI7 -> 0 | BJ33: =Stock!BJ7 -> 0 | BK33: =Stock!BK7 -> 0
B34: Change in Cash | D34: =SUM(D24:D33) -> 227015 | E34: =SUM(E24:E33) -> -30365 | F34: -46353 | G34: -20572 | H34: -25020 | I34: -61431 | J34: -36656 | K34: 1262628 | L34: -36038 | M34: -89531 | N34: -78817 | O34: -92215 | P34: -94684 | Q34: -76566 | R34: -78014 | S34: -80313 | T34: -75619 | U34: -83798 | V34: -83964 | W34: -61185 | X34: -36142 | Y34: -30818 | Z34: -18061 | AA34: -19717 | AB34: -29489 | AC34: -10232 | AD34: -4969 | AE34: 3298 | AF34: 11068 | AG34: 20819 | AH34: 28597 | AI34: 34338 | AJ34: 42320 | AK34: 48865 | AL34: 60854 | AM34: 67551 | AN34: =SUM(AN24:AN33) -> 76044 | AO34: 85046 | AP34: 94052 | AQ34: 103062 | AR34: 111973 | AS34: 119762 | AT34: 129782 | AU34: 138808 | AV34: 147835 | AW34: 156412 | AX34: 165448 | AY34: 174322 | AZ34: 175023 | BA34: 184067 | BB34: -242667 | BC34: 93038 | BD34: 210886 | BE34: 218710 | BF34: 119827 | BG34: 237793 | BH34: =SUM(BH24:BH33) -> 490433 | BI34: 140223 | BJ34: 258227 | BK34: 158217
B37: Pro Forma Balance Sheet
B38: as of the end of each month
D39: =IF(B39="",FirstMonth,IF(B39=LastMonth,"",DATE(YEAR(B39),MONTH(B39)+1,DAY(B39)))) -> 2015-01-01 | E39: =IF(D39="",FirstMonth,IF(D39=LastMonth,"",DATE(YEAR(D39),MONTH(D39)+1,DAY(D39)))) -> 2015-02-01 | F39: =IF(E39="",FirstMonth,IF(E39=LastMonth,"",DATE(YEAR(E39),MONTH(E39)+1,DAY(E39)))) -> 2015-03-01 | G39: =IF(F39="",FirstMonth,IF(F39=LastMonth,"",DATE(YEAR(F39),MONTH(F39)+1,DAY(F39)))) -> 2015-04-01 | H39: =IF(G39="",FirstMonth,IF(G39=LastMonth,"",DATE(YEAR(G39),MONTH(G39)+1,DAY(G39)))) -> 2015-05-01 | I39: =IF(H39="",FirstMonth,IF(H39=LastMonth,"",DATE(YEAR(H39),MONTH(H39)+1,DAY(H39)))) -> 2015-06-01 | J39: =IF(I39="",FirstMonth,IF(I39=LastMonth,"",DATE(YEAR(I39),MONTH(I39)+1,DAY(I39)))) -> 2015-07-01 | K39: =IF(J39="",FirstMonth,IF(J39=LastMonth,"",DATE(YEAR(J39),MONTH(J39)+1,DAY(J39)))) -> 2015-08-01 | L39: =IF(K39="",FirstMonth,IF(K39=LastMonth,"",DATE(YEAR(K39),MONTH(K39)+1,DAY(K39)))) -> 2015-09-01 | M39: =IF(L39="",FirstMonth,IF(L39=LastMonth,"",DATE(YEAR(L39),MONTH(L39)+1,DAY(L39)))) -> 2015-10-01 | N39: =IF(M39="",FirstMonth,IF(M39=LastMonth,"",DATE(YEAR(M39),MONTH(M39)+1,DAY(M39)))) -> 2015-11-01 | O39: =IF(N39="",FirstMonth,IF(N39=LastMonth,"",DATE(YEAR(N39),MONTH(N39)+1,DAY(N39)))) -> 2015-12-01 | P39: =IF(O39="",FirstMonth,IF(O39=LastMonth,"",DATE(YEAR(O39),MONTH(O39)+1,DAY(O39)))) -> 2016-01-01 | Q39: =IF(P39="",FirstMonth,IF(P39=LastMonth,"",DATE(YEAR(P39),MONTH(P39)+1,DAY(P39)))) -> 2016-02-01 | R39: =IF(Q39="",FirstMonth,IF(Q39=LastMonth,"",DATE(YEAR(Q39),MONTH(Q39)+1,DAY(Q39)))) -> 2016-03-01 | S39: =IF(R39="",FirstMonth,IF(R39=LastMonth,"",DATE(YEAR(R39),MONTH(R39)+1,DAY(R39)))) -> 2016-04-01 | T39: =IF(S39="",FirstMonth,IF(S39=LastMonth,"",DATE(YEAR(S39),MONTH(S39)+1,DAY(S39)))) -> 2016-05-01 | U39: =IF(T39="",FirstMonth,IF(T39=LastMonth,"",DATE(YEAR(T39),MONTH(T39)+1,DAY(T39)))) -> 2016-06-01 | V39: =IF(U39="",FirstMonth,IF(U39=LastMonth,"",DATE(YEAR(U39),MONTH(U39)+1,DAY(U39)))) -> 2016-07-01 | W39: =IF(V39="",FirstMonth,IF(V39=LastMonth,"",DATE(YEAR(V39),MONTH(V39)+1,DAY(V39)))) -> 2016-08-01 | X39: =IF(W39="",FirstMonth,IF(W39=LastMonth,"",DATE(YEAR(W39),MONTH(W39)+1,DAY(W39)))) -> 2016-09-01 | Y39: =IF(X39="",FirstMonth,IF(X39=LastMonth,"",DATE(YEAR(X39),MONTH(X39)+1,DAY(X39)))) -> 2016-10-01 | Z39: =IF(Y39="",FirstMonth,IF(Y39=LastMonth,"",DATE(YEAR(Y39),MONTH(Y39)+1,DAY(Y39)))) -> 2016-11-01 | AA39: =IF(Z39="",FirstMonth,IF(Z39=LastMonth,"",DATE(YEAR(Z39),MONTH(Z39)+1,DAY(Z39)))) -> 2016-12-01 | AB39: =IF(AA39="",FirstMonth,IF(AA39=LastMonth,"",DATE(YEAR(AA39),MONTH(AA39)+1,DAY(AA39)))) -> 2017-01-01 | AC39: =IF(AB39="",FirstMonth,IF(AB39=LastMonth,"",DATE(YEAR(AB39),MONTH(AB39)+1,DAY(AB39)))) -> 2017-02-01 | AD39: =IF(AC39="",FirstMonth,IF(AC39=LastMonth,"",DATE(YEAR(AC39),MONTH(AC39)+1,DAY(AC39)))) -> 2017-03-01 | AE39: =IF(AD39="",FirstMonth,IF(AD39=LastMonth,"",DATE(YEAR(AD39),MONTH(AD39)+1,DAY(AD39)))) -> 2017-04-01 | AF39: =IF(AE39="",FirstMonth,IF(AE39=LastMonth,"",DATE(YEAR(AE39),MONTH(AE39)+1,DAY(AE39)))) -> 2017-05-01 | AG39: =IF(AF39="",FirstMonth,IF(AF39=LastMonth,"",DATE(YEAR(AF39),MONTH(AF39)+1,DAY(AF39)))) -> 2017-06-01 | AH39: =IF(AG39="",FirstMonth,IF(AG39=LastMonth,"",DATE(YEAR(AG39),MONTH(AG39)+1,DAY(AG39)))) -> 2017-07-01 | AI39: =IF(AH39="",FirstMonth,IF(AH39=LastMonth,"",DATE(YEAR(AH39),MONTH(AH39)+1,DAY(AH39)))) -> 2017-08-01 | AJ39: =IF(AI39="",FirstMonth,IF(AI39=LastMonth,"",DATE(YEAR(AI39),MONTH(AI39)+1,DAY(AI39)))) -> 2017-09-01 | AK39: =IF(AJ39="",FirstMonth,IF(AJ39=LastMonth,"",DATE(YEAR(AJ39),MONTH(AJ39)+1,DAY(AJ39)))) -> 2017-10-01 | AL39: =IF(AK39="",FirstMonth,IF(AK39=LastMonth,"",DATE(YEAR(AK39),MONTH(AK39)+1,DAY(AK39)))) -> 2017-11-01 | AM39: =IF(AL39="",FirstMonth,IF(AL39=LastMonth,"",DATE(YEAR(AL39),MONTH(AL39)+1,DAY(AL39)))) -> 2017-12-01 | AN39: =IF(AM39="",FirstMonth,IF(AM39=LastMonth,"",DATE(YEAR(AM39),MONTH(AM39)+1,DAY(AM39)))) -> 2018-01-01 | AO39: =IF(AN39="",FirstMonth,IF(AN39=LastMonth,"",DATE(YEAR(AN39),MONTH(AN39)+1,DAY(AN39)))) -> 2018-02-01 | AP39: =IF(AO39="",FirstMonth,IF(AO39=LastMonth,"",DATE(YEAR(AO39),MONTH(AO39)+1,DAY(AO39)))) -> 2018-03-01 | AQ39: =IF(AP39="",FirstMonth,IF(AP39=LastMonth,"",DATE(YEAR(AP39),MONTH(AP39)+1,DAY(AP39)))) -> 2018-04-01 | AR39: =IF(AQ39="",FirstMonth,IF(AQ39=LastMonth,"",DATE(YEAR(AQ39),MONTH(AQ39)+1,DAY(AQ39)))) -> 2018-05-01 | AS39: =IF(AR39="",FirstMonth,IF(AR39=LastMonth,"",DATE(YEAR(AR39),MONTH(AR39)+1,DAY(AR39)))) -> 2018-06-01 | AT39: =IF(AS39="",FirstMonth,IF(AS39=LastMonth,"",DATE(YEAR(AS39),MONTH(AS39)+1,DAY(AS39)))) -> 2018-07-01 | AU39: =IF(AT39="",FirstMonth,IF(AT39=LastMonth,"",DATE(YEAR(AT39),MONTH(AT39)+1,DAY(AT39)))) -> 2018-08-01 | AV39: =IF(AU39="",FirstMonth,IF(AU39=LastMonth,"",DATE(YEAR(AU39),MONTH(AU39)+1,DAY(AU39)))) -> 2018-09-01 | AW39: =IF(AV39="",FirstMonth,IF(AV39=LastMonth,"",DATE(YEAR(AV39),MONTH(AV39)+1,DAY(AV39)))) -> 2018-10-01 | AX39: =IF(AW39="",FirstMonth,IF(AW39=LastMonth,"",DATE(YEAR(AW39),MONTH(AW39)+1,DAY(AW39)))) -> 2018-11-01 | AY39: =IF(AX39="",FirstMonth,IF(AX39=LastMonth,"",DATE(YEAR(AX39),MONTH(AX39)+1,DAY(AX39)))) -> 2018-12-01 | AZ39: =IF(AY39="",FirstMonth,IF(AY39=LastMonth,"",DATE(YEAR(AY39),MONTH(AY39)+1,DAY(AY39)))) -> 2019-01-01 | BA39: =IF(AZ39="",FirstMonth,IF(AZ39=LastMonth,"",DATE(YEAR(AZ39),MONTH(AZ39)+1,DAY(AZ39)))) -> 2019-02-01 | BB39: =IF(BA39="",FirstMonth,IF(BA39=LastMonth,"",DATE(YEAR(BA39),MONTH(BA39)+1,DAY(BA39)))) -> 2019-03-01 | BC39: =IF(BB39="",FirstMonth,IF(BB39=LastMonth,"",DATE(YEAR(BB39),MONTH(BB39)+1,DAY(BB39)))) -> 2019-04-01 | BD39: =IF(BC39="",FirstMonth,IF(BC39=LastMonth,"",DATE(YEAR(BC39),MONTH(BC39)+1,DAY(BC39)))) -> 2019-05-01 | BE39: =IF(BD39="",FirstMonth,IF(BD39=LastMonth,"",DATE(YEAR(BD39),MONTH(BD39)+1,DAY(BD39)))) -> 2019-06-01 | BF39: =IF(BE39="",FirstMonth,IF(BE39=LastMonth,"",DATE(YEAR(BE39),MONTH(BE39)+1,DAY(BE39)))) -> 2019-07-01 | BG39: =IF(BF39="",FirstMonth,IF(BF39=LastMonth,"",DATE(YEAR(BF39),MONTH(BF39)+1,DAY(BF39)))) -> 2019-08-01 | BH39: =IF(BG39="",FirstMonth,IF(BG39=LastMonth,"",DATE(YEAR(BG39),MONTH(BG39)+1,DAY(BG39)))) -> 2019-09-01 | BI39: =IF(BH39="",FirstMonth,IF(BH39=LastMonth,"",DATE(YEAR(BH39),MONTH(BH39)+1,DAY(BH39)))) -> 2019-10-01 | BJ39: =IF(BI39="",FirstMonth,IF(BI39=LastMonth,"",DATE(YEAR(BI39),MONTH(BI39)+1,DAY(BI39)))) -> 2019-11-01 | BK39: =IF(BJ39="",FirstMonth,IF(BJ39=LastMonth,"",DATE(YEAR(BJ39),MONTH(BJ39)+1,DAY(BJ39)))) -> 2019-12-01
B40: Assets
B41: Cash | C41: =bsCash -> 0 | D41: =C41+D34 -> 227015 | E41: =D41+E34 -> 196650 | F41: 150297 | G41: 129725 | H41: 104705 | I41: 43274 | J41: 6618 | K41: 1269246 | L41: 1233208 | M41: 1143677 | N41: 1064860 | O41: 972645 | P41: 877961 | Q41: 801395 | R41: 723381 | S41: 643068 | T41: 567449 | U41: 483651 | V41: 399687 | W41: 338502 | X41: 302360 | Y41: 271542 | Z41: 253481 | AA41: 233764 | AB41: 204275 | AC41: 194043 | AD41: 189074 | AE41: 192372 | AF41: 203440 | AG41: 224259 | AH41: 252856 | AI41: 287194 | AJ41: 329514 | AK41: 378379 | AL41: 439233 | AM41: 506784 | AN41: =AM41+AN34 -> 582828 | AO41: =AN41+AO34 -> 667874 | AP41: =AO41+AP34 -> 761926 | AQ41: =AP41+AQ34 -> 864988 | AR41: =AQ41+AR34 -> 976961 | AS41: =AR41+AS34 -> 1096723 | AT41: =AS41+AT34 -> 1226505 | AU41: =AT41+AU34 -> 1365313 | AV41: =AU41+AV34 -> 1513148 | AW41: =AV41+AW34 -> 1669560 | AX41: =AW41+AX34 -> 1835008 | AY41: =AX41+AY34 -> 2009330 | AZ41: =AY41+AZ34 -> 2184353 | BA41: =AZ41+BA34 -> 2368420 | BB41: =BA41+BB34 -> 2125753 | BC41: =BB41+BC34 -> 2218791 | BD41: =BC41+BD34 -> 2429677 | BE41: =BD41+BE34 -> 2648387 | BF41: =BE41+BF34 -> 2768214 | BG41: =BF41+BG34 -> 3006007 | BH41: =BG41+BH34 -> 3496440 | BI41: =BH41+BI34 -> 3636663 | BJ41: =BI41+BJ34 -> 3894890 | BK41: =BJ41+BK34 -> 4053107
B42: Accounts Receivable | D42: ='Cash Flow'!D12 -> 0 | E42: ='Cash Flow'!E12 -> 0 | F42: ='Cash Flow'!F12 -> 0 | G42: ='Cash Flow'!G12 -> 0 | H42: ='Cash Flow'!H12 -> 0 | I42: ='Cash Flow'!I12 -> 0 | J42: ='Cash Flow'!J12 -> 0 | K42: ='Cash Flow'!K12 -> 0 | L42: ='Cash Flow'!L12 -> 0 | M42: ='Cash Flow'!M12 -> 20000 | N42: ='Cash Flow'!N12 -> 42500 | O42: ='Cash Flow'!O12 -> 47500 | P42: ='Cash Flow'!P12 -> 52500 | Q42: ='Cash Flow'!Q12 -> 57500 | R42: ='Cash Flow'!R12 -> 62500 | S42: ='Cash Flow'!S12 -> 67500 | T42: ='Cash Flow'!T12 -> 92500 | U42: ='Cash Flow'!U12 -> 120000 | V42: ='Cash Flow'!V12 -> 130000 | W42: ='Cash Flow'!W12 -> 140000 | X42: ='Cash Flow'!X12 -> 150000 | Y42: ='Cash Flow'!Y12 -> 160000 | Z42: ='Cash Flow'!Z12 -> 170000 | AA42: ='Cash Flow'!AA12 -> 180000 | AB42: ='Cash Flow'!AB12 -> 190000 | AC42: ='Cash Flow'!AC12 -> 200000 | AD42: ='Cash Flow'!AD12 -> 210000 | AE42: ='Cash Flow'!AE12 -> 220000 | AF42: ='Cash Flow'!AF12 -> 230000 | AG42: ='Cash Flow'!AG12 -> 240000 | AH42: ='Cash Flow'!AH12 -> 250000 | AI42: ='Cash Flow'!AI12 -> 260000 | AJ42: ='Cash Flow'!AJ12 -> 270000 | AK42: ='Cash Flow'!AK12 -> 280000 | AL42: ='Cash Flow'!AL12 -> 290000 | AM42: ='Cash Flow'!AM12 -> 300000 | AN42: ='Cash Flow'!AN12 -> 310000 | AO42: ='Cash Flow'!AO12 -> 320000 | AP42: ='Cash Flow'!AP12 -> 330000 | AQ42: ='Cash Flow'!AQ12 -> 340000 | AR42: ='Cash Flow'!AR12 -> 350000 | AS42: ='Cash Flow'!AS12 -> 360000 | AT42: ='Cash Flow'!AT12 -> 370000 | AU42: ='Cash Flow'!AU12 -> 380000 | AV42: ='Cash Flow'!AV12 -> 390000 | AW42: ='Cash Flow'!AW12 -> 400000 | AX42: ='Cash Flow'!AX12 -> 410000 | AY42: ='Cash Flow'!AY12 -> 420000 | AZ42: ='Cash Flow'!AZ12 -> 430000 | BA42: ='Cash Flow'!BA12 -> 440000 | BB42: ='Cash Flow'!BB12 -> 450000 | BC42: ='Cash Flow'!BC12 -> 460000 | BD42: ='Cash Flow'!BD12 -> 470000 | BE42: ='Cash Flow'!BE12 -> 480000 | BF42: ='Cash Flow'!BF12 -> 490000 | BG42: ='Cash Flow'!BG12 -> 500000 | BH42: ='Cash Flow'!BH12 -> 510000 | BI42: ='Cash Flow'!BI12 -> 520000 | BJ42: ='Cash Flow'!BJ12 -> 530000 | BK42: ='Cash Flow'!BK12 -> 540000
B43: Inventory | D43: ='Cash Flow'!D13 -> 0 | E43: ='Cash Flow'!E13 -> 0 | F43: ='Cash Flow'!F13 -> 0 | G43: ='Cash Flow'!G13 -> 0 | H43: ='Cash Flow'!H13 -> 0 | I43: ='Cash Flow'!I13 -> 0 | J43: ='Cash Flow'!J13 -> 0 | K43: ='Cash Flow'!K13 -> 0 | L43: ='Cash Flow'!L13 -> 0 | M43: ='Cash Flow'!M13 -> 15000 | N43: ='Cash Flow'!N13 -> 45000 | O43: ='Cash Flow'!O13 -> 75000 | P43: ='Cash Flow'!P13 -> 90000 | Q43: ='Cash Flow'!Q13 -> 90000 | R43: ='Cash Flow'!R13 -> 90000 | S43: ='Cash Flow'!S13 -> 90000 | T43: ='Cash Flow'!T13 -> 105000 | U43: ='Cash Flow'!U13 -> 135000 | V43: ='Cash Flow'!V13 -> 165000 | W43: ='Cash Flow'!W13 -> 180000 | X43: ='Cash Flow'!X13 -> 180000 | Y43: ='Cash Flow'!Y13 -> 180000 | Z43: ='Cash Flow'!Z13 -> 180000 | AA43: ='Cash Flow'!AA13 -> 180000 | AB43: ='Cash Flow'!AB13 -> 180000 | AC43: ='Cash Flow'!AC13 -> 180000 | AD43: ='Cash Flow'!AD13 -> 180000 | AE43: ='Cash Flow'!AE13 -> 180000 | AF43: ='Cash Flow'!AF13 -> 180000 | AG43: ='Cash Flow'!AG13 -> 180000 | AH43: ='Cash Flow'!AH13 -> 180000 | AI43: ='Cash Flow'!AI13 -> 180000 | AJ43: ='Cash Flow'!AJ13 -> 180000 | AK43: ='Cash Flow'!AK13 -> 180000 | AL43: ='Cash Flow'!AL13 -> 180000 | AM43: ='Cash Flow'!AM13 -> 180000 | AN43: ='Cash Flow'!AN13 -> 180000 | AO43: ='Cash Flow'!AO13 -> 180000 | AP43: ='Cash Flow'!AP13 -> 180000 | AQ43: ='Cash Flow'!AQ13 -> 180000 | AR43: ='Cash Flow'!AR13 -> 180000 | AS43: ='Cash Flow'!AS13 -> 180000 | AT43: ='Cash Flow'!AT13 -> 180000 | AU43: ='Cash Flow'!AU13 -> 180000 | AV43: ='Cash Flow'!AV13 -> 180000 | AW43: ='Cash Flow'!AW13 -> 180000 | AX43: ='Cash Flow'!AX13 -> 180000 | AY43: ='Cash Flow'!AY13 -> 180000 | AZ43: ='Cash Flow'!AZ13 -> 180000 | BA43: ='Cash Flow'!BA13 -> 180000 | BB43: ='Cash Flow'!BB13 -> 180000 | BC43: ='Cash Flow'!BC13 -> 180000 | BD43: ='Cash Flow'!BD13 -> 180000 | BE43: ='Cash Flow'!BE13 -> 180000 | BF43: ='Cash Flow'!BF13 -> 180000 | BG43: ='Cash Flow'!BG13 -> 180000 | BH43: ='Cash Flow'!BH13 -> 180000 | BI43: ='Cash Flow'!BI13 -> 180000 | BJ43: ='Cash Flow'!BJ13 -> 180000 | BK43: ='Cash Flow'!BK13 -> 180000
B44: Prepaid Expenses | D44: ='Cash Flow'!D14 -> 375 | E44: ='Cash Flow'!E14 -> 600 | F44: ='Cash Flow'!F14 -> 600 | G44: ='Cash Flow'!G14 -> 600 | H44: ='Cash Flow'!H14 -> 600 | I44: ='Cash Flow'!I14 -> 600 | J44: ='Cash Flow'!J14 -> 600 | K44: ='Cash Flow'!K14 -> 600 | L44: ='Cash Flow'!L14 -> 600 | M44: ='Cash Flow'!M14 -> 1275 | N44: ='Cash Flow'!N14 -> 1875 | O44: ='Cash Flow'!O14 -> 1875 | P44: ='Cash Flow'!P14 -> 1875 | Q44: ='Cash Flow'!Q14 -> 1875 | R44: ='Cash Flow'!R14 -> 1875 | S44: ='Cash Flow'!S14 -> 1875 | T44: ='Cash Flow'!T14 -> 1875 | U44: ='Cash Flow'!U14 -> 1875 | V44: ='Cash Flow'!V14 -> 3700 | W44: ='Cash Flow'!W14 -> 4000 | X44: ='Cash Flow'!X14 -> 4000 | Y44: ='Cash Flow'!Y14 -> 4000 | Z44: ='Cash Flow'!Z14 -> 4000 | AA44: ='Cash Flow'!AA14 -> 4000 | AB44: ='Cash Flow'!AB14 -> 4000 | AC44: ='Cash Flow'!AC14 -> 4000 | AD44: ='Cash Flow'!AD14 -> 4000 | AE44: ='Cash Flow'!AE14 -> 4000 | AF44: ='Cash Flow'!AF14 -> 4000 | AG44: ='Cash Flow'!AG14 -> 4000 | AH44: ='Cash Flow'!AH14 -> 4000 | AI44: ='Cash Flow'!AI14 -> 4000 | AJ44: ='Cash Flow'!AJ14 -> 4000 | AK44: ='Cash Flow'!AK14 -> 4000 | AL44: ='Cash Flow'!AL14 -> 4000 | AM44: ='Cash Flow'!AM14 -> 4000 | AN44: ='Cash Flow'!AN14 -> 4000 | AO44: ='Cash Flow'!AO14 -> 4000 | AP44: ='Cash Flow'!AP14 -> 4000 | AQ44: ='Cash Flow'!AQ14 -> 4000 | AR44: ='Cash Flow'!AR14 -> 4000 | AS44: ='Cash Flow'!AS14 -> 4000 | AT44: ='Cash Flow'!AT14 -> 4000 | AU44: ='Cash Flow'!AU14 -> 4000 | AV44: ='Cash Flow'!AV14 -> 4000 | AW44: ='Cash Flow'!AW14 -> 4000 | AX44: ='Cash Flow'!AX14 -> 4000 | AY44: ='Cash Flow'!AY14 -> 4000 | AZ44: ='Cash Flow'!AZ14 -> 4000 | BA44: ='Cash Flow'!BA14 -> 4000 | BB44: ='Cash Flow'!BB14 -> 4000 | BC44: ='Cash Flow'!BC14 -> 4000 | BD44: ='Cash Flow'!BD14 -> 4000 | BE44: ='Cash Flow'!BE14 -> 4000 | BF44: ='Cash Flow'!BF14 -> 4000 | BG44: ='Cash Flow'!BG14 -> 4000 | BH44: ='Cash Flow'!BH14 -> 4000 | BI44: ='Cash Flow'!BI14 -> 4000 | BJ44: ='Cash Flow'!BJ14 -> 4000 | BK44: ='Cash Flow'!BK14 -> 4000
B45: Current Assets | D45: =SUM(D41:D44) -> 227390 | E45: =SUM(E41:E44) -> 197250 | F45: 150897 | G45: 130325 | H45: 105305 | I45: 43874 | J45: 7218 | K45: 1269846 | L45: 1233808 | M45: 1179952 | N45: 1154235 | O45: 1097020 | P45: 1022336 | Q45: 950770 | R45: 877756 | S45: 802443 | T45: 766824 | U45: 740526 | V45: 698387 | W45: 662502 | X45: 636360 | Y45: 615542 | Z45: 607481 | AA45: 597764 | AB45: 578275 | AC45: 578043 | AD45: 583074 | AE45: 596372 | AF45: 617440 | AG45: 648259 | AH45: 686856 | AI45: 731194 | AJ45: 783514 | AK45: 842379 | AL45: 913233 | AM45: 990784 | AN45: 1076828 | AO45: 1171874 | AP45: 1275926 | AQ45: 1388988 | AR45: 1510961 | AS45: 1640723 | AT45: 1780505 | AU45: 1929313 | AV45: 2087148 | AW45: 2253560 | AX45: 2429008 | AY45: 2613330 | AZ45: 2798353 | BA45: 2992420 | BB45: 2759753 | BC45: 2862791 | BD45: 3083677 | BE45: 3312387 | BF45: 3442214 | BG45: 3690007 | BH45: 4190440 | BI45: 4340663 | BJ45: 4608890 | BK45: 4777107
B46: Fixed Assets at Cost | D46: ='Assets & Dep'!D21+'Assets & Dep'!D25 -> 0 | E46: ='Assets & Dep'!E21+'Assets & Dep'!E25 -> 0 | F46: ='Assets & Dep'!F21+'Assets & Dep'!F25 -> 1500 | G46: ='Assets & Dep'!G21+'Assets & Dep'!G25 -> 1500 | H46: ='Assets & Dep'!H21+'Assets & Dep'!H25 -> 1500 | I46: ='Assets & Dep'!I21+'Assets & Dep'!I25 -> 26500 | J46: ='Assets & Dep'!J21+'Assets & Dep'!J25 -> 26500 | K46: ='Assets & Dep'!K21+'Assets & Dep'!K25 -> 26500 | L46: ='Assets & Dep'!L21+'Assets & Dep'!L25 -> 26500 | M46: ='Assets & Dep'!M21+'Assets & Dep'!M25 -> 26500 | N46: ='Assets & Dep'!N21+'Assets & Dep'!N25 -> 26500 | O46: ='Assets & Dep'!O21+'Assets & Dep'!O25 -> 26500 | P46: ='Assets & Dep'!P21+'Assets & Dep'!P25 -> 26500 | Q46: ='Assets & Dep'!Q21+'Assets & Dep'!Q25 -> 26500 | R46: ='Assets & Dep'!R21+'Assets & Dep'!R25 -> 26500 | S46: ='Assets & Dep'!S21+'Assets & Dep'!S25 -> 26500 | T46: ='Assets & Dep'!T21+'Assets & Dep'!T25 -> 26500 | U46: ='Assets & Dep'!U21+'Assets & Dep'!U25 -> 26500 | V46: ='Assets & Dep'!V21+'Assets & Dep'!V25 -> 26500 | W46: ='Assets & Dep'!W21+'Assets & Dep'!W25 -> 26500 | X46: ='Assets & Dep'!X21+'Assets & Dep'!X25 -> 26500 | Y46: ='Assets & Dep'!Y21+'Assets & Dep'!Y25 -> 26500 | Z46: ='Assets & Dep'!Z21+'Assets & Dep'!Z25 -> 26500 | AA46: ='Assets & Dep'!AA21+'Assets & Dep'!AA25 -> 26500 | AB46: ='Assets & Dep'!AB21+'Assets & Dep'!AB25 -> 36500 | AC46: ='Assets & Dep'!AC21+'Assets & Dep'!AC25 -> 36500 | AD46: ='Assets & Dep'!AD21+'Assets & Dep'!AD25 -> 36500 | AE46: ='Assets & Dep'!AE21+'Assets & Dep'!AE25 -> 36500 | AF46: ='Assets & Dep'!AF21+'Assets & Dep'!AF25 -> 36500 | AG46: ='Assets & Dep'!AG21+'Assets & Dep'!AG25 -> 36500 | AH46: ='Assets & Dep'!AH21+'Assets & Dep'!AH25 -> 36500 | AI46: ='Assets & Dep'!AI21+'Assets & Dep'!AI25 -> 36500 | AJ46: ='Assets & Dep'!AJ21+'Assets & Dep'!AJ25 -> 36500 | AK46: ='Assets & Dep'!AK21+'Assets & Dep'!AK25 -> 36500 | AL46: ='Assets & Dep'!AL21+'Assets & Dep'!AL25 -> 36500 | AM46: ='Assets & Dep'!AM21+'Assets & Dep'!AM25 -> 36500 | AN46: ='Assets & Dep'!AN21+'Assets & Dep'!AN25 -> 36500 | AO46: ='Assets & Dep'!AO21+'Assets & Dep'!AO25 -> 36500 | AP46: ='Assets & Dep'!AP21+'Assets & Dep'!AP25 -> 36500 | AQ46: ='Assets & Dep'!AQ21+'Assets & Dep'!AQ25 -> 36500 | AR46: ='Assets & Dep'!AR21+'Assets & Dep'!AR25 -> 36500 | AS46: ='Assets & Dep'!AS21+'Assets & Dep'!AS25 -> 36500 | AT46: ='Assets & Dep'!AT21+'Assets & Dep'!AT25 -> 36500 | AU46: ='Assets & Dep'!AU21+'Assets & Dep'!AU25 -> 36500 | AV46: ='Assets & Dep'!AV21+'Assets & Dep'!AV25 -> 36500 | AW46: ='Assets & Dep'!AW21+'Assets & Dep'!AW25 -> 36500 | AX46: ='Assets & Dep'!AX21+'Assets & Dep'!AX25 -> 36500 | AY46: ='Assets & Dep'!AY21+'Assets & Dep'!AY25 -> 36500 | AZ46: ='Assets & Dep'!AZ21+'Assets & Dep'!AZ25 -> 36500 | BA46: ='Assets & Dep'!BA21+'Assets & Dep'!BA25 -> 36500 | BB46: ='Assets & Dep'!BB21+'Assets & Dep'!BB25 -> 36500 | BC46: ='Assets & Dep'!BC21+'Assets & Dep'!BC25 -> 36500 | BD46: ='Assets & Dep'!BD21+'Assets & Dep'!BD25 -> 36500 | BE46: ='Assets & Dep'!BE21+'Assets & Dep'!BE25 -> 36500 | BF46: ='Assets & Dep'!BF21+'Assets & Dep'!BF25 -> 36500 | BG46: ='Assets & Dep'!BG21+'Assets & Dep'!BG25 -> 36500 | BH46: ='Assets & Dep'!BH21+'Assets & Dep'!BH25 -> 36500 | BI46: ='Assets & Dep'!BI21+'Assets & Dep'!BI25 -> 36500 | BJ46: ='Assets & Dep'!BJ21+'Assets & Dep'!BJ25 -> 36500 | BK46: ='Assets & Dep'!BK21+'Assets & Dep'!BK25 -> 36500
B47: Accumulated Depreciation | D47: ='Assets & Dep'!D23+'Assets & Dep'!D27 -> 0 | E47: ='Assets & Dep'!E23+'Assets & Dep'!E27 -> 0 | F47: ='Assets & Dep'!F23+'Assets & Dep'!F27 -> 23 | G47: ='Assets & Dep'!G23+'Assets & Dep'!G27 -> 46 | H47: ='Assets & Dep'!H23+'Assets & Dep'!H27 -> 69 | I47: ='Assets & Dep'!I23+'Assets & Dep'!I27 -> 390 | J47: ='Assets & Dep'!J23+'Assets & Dep'!J27 -> 711 | K47: ='Assets & Dep'!K23+'Assets & Dep'!K27 -> 1032 | L47: ='Assets & Dep'!L23+'Assets & Dep'!L27 -> 1353 | M47: ='Assets & Dep'!M23+'Assets & Dep'!M27 -> 1674 | N47: ='Assets & Dep'!N23+'Assets & Dep'!N27 -> 1995 | O47: ='Assets & Dep'!O23+'Assets & Dep'!O27 -> 2316 | P47: ='Assets & Dep'!P23+'Assets & Dep'!P27 -> 2637 | Q47: ='Assets & Dep'!Q23+'Assets & Dep'!Q27 -> 2958 | R47: ='Assets & Dep'!R23+'Assets & Dep'!R27 -> 3279 | S47: ='Assets & Dep'!S23+'Assets & Dep'!S27 -> 3600 | T47: ='Assets & Dep'!T23+'Assets & Dep'!T27 -> 3921 | U47: ='Assets & Dep'!U23+'Assets & Dep'!U27 -> 4242 | V47: ='Assets & Dep'!V23+'Assets & Dep'!V27 -> 4563 | W47: ='Assets & Dep'!W23+'Assets & Dep'!W27 -> 4884 | X47: ='Assets & Dep'!X23+'Assets & Dep'!X27 -> 5205 | Y47: ='Assets & Dep'!Y23+'Assets & Dep'!Y27 -> 5526 | Z47: ='Assets & Dep'!Z23+'Assets & Dep'!Z27 -> 5847 | AA47: ='Assets & Dep'!AA23+'Assets & Dep'!AA27 -> 6168 | AB47: ='Assets & Dep'!AB23+'Assets & Dep'!AB27 -> 6608 | AC47: ='Assets & Dep'!AC23+'Assets & Dep'!AC27 -> 7048 | AD47: ='Assets & Dep'!AD23+'Assets & Dep'!AD27 -> 7488 | AE47: ='Assets & Dep'!AE23+'Assets & Dep'!AE27 -> 7928 | AF47: ='Assets & Dep'!AF23+'Assets & Dep'!AF27 -> 8368 | AG47: ='Assets & Dep'!AG23+'Assets & Dep'!AG27 -> 8808 | AH47: ='Assets & Dep'!AH23+'Assets & Dep'!AH27 -> 9248 | AI47: ='Assets & Dep'!AI23+'Assets & Dep'!AI27 -> 9688 | AJ47: ='Assets & Dep'!AJ23+'Assets & Dep'!AJ27 -> 10128 | AK47: ='Assets & Dep'!AK23+'Assets & Dep'!AK27 -> 10568 | AL47: ='Assets & Dep'!AL23+'Assets & Dep'!AL27 -> 11008 | AM47: ='Assets & Dep'!AM23+'Assets & Dep'!AM27 -> 11448 | AN47: ='Assets & Dep'!AN23+'Assets & Dep'!AN27 -> 11888 | AO47: ='Assets & Dep'!AO23+'Assets & Dep'!AO27 -> 12328 | AP47: ='Assets & Dep'!AP23+'Assets & Dep'!AP27 -> 12768 | AQ47: ='Assets & Dep'!AQ23+'Assets & Dep'!AQ27 -> 13208 | AR47: ='Assets & Dep'!AR23+'Assets & Dep'!AR27 -> 13648 | AS47: ='Assets & Dep'!AS23+'Assets & Dep'!AS27 -> 14088 | AT47: ='Assets & Dep'!AT23+'Assets & Dep'!AT27 -> 14528 | AU47: ='Assets & Dep'!AU23+'Assets & Dep'!AU27 -> 14968 | AV47: ='Assets & Dep'!AV23+'Assets & Dep'!AV27 -> 15408 | AW47: ='Assets & Dep'!AW23+'Assets & Dep'!AW27 -> 15848 | AX47: ='Assets & Dep'!AX23+'Assets & Dep'!AX27 -> 16288 | AY47: ='Assets & Dep'!AY23+'Assets & Dep'!AY27 -> 16728 | AZ47: ='Assets & Dep'!AZ23+'Assets & Dep'!AZ27 -> 17168 | BA47: ='Assets & Dep'!BA23+'Assets & Dep'!BA27 -> 17608 | BB47: ='Assets & Dep'!BB23+'Assets & Dep'!BB27 -> 18048 | BC47: ='Assets & Dep'!BC23+'Assets & Dep'!BC27 -> 18488 | BD47: ='Assets & Dep'!BD23+'Assets & Dep'!BD27 -> 18928 | BE47: ='Assets & Dep'!BE23+'Assets & Dep'!BE27 -> 19368 | BF47: ='Assets & Dep'!BF23+'Assets & Dep'!BF27 -> 19808 | BG47: ='Assets & Dep'!BG23+'Assets & Dep'!BG27 -> 20248 | BH47: ='Assets & Dep'!BH23+'Assets & Dep'!BH27 -> 20688 | BI47: ='Assets & Dep'!BI23+'Assets & Dep'!BI27 -> 21128 | BJ47: ='Assets & Dep'!BJ23+'Assets & Dep'!BJ27 -> 21568 | BK47: ='Assets & Dep'!BK23+'Assets & Dep'!BK27 -> 22008
B48: Net Fixed Assets | D48: =D46-D47 -> 0 | E48: 0 | F48: 1477 | G48: 1454 | H48: 1431 | I48: 26110 | J48: 25789 | K48: 25468 | L48: 25147 | M48: 24826 | N48: 24505 | O48: 24184 | P48: 23863 | Q48: 23542 | R48: 23221 | S48: 22900 | T48: 22579 | U48: 22258 | V48: 21937 | W48: 21616 | X48: 21295 | Y48: 20974 | Z48: 20653 | AA48: 20332 | AB48: 29892 | AC48: 29452 | AD48: 29012 | AE48: 28572 | AF48: 28132 | AG48: 27692 | AH48: 27252 | AI48: 26812 | AJ48: 26372 | AK48: 25932 | AL48: 25492 | AM48: 25052 | AN48: 24612 | AO48: 24172 | AP48: 23732 | AQ48: 23292 | AR48: 22852 | AS48: 22412 | AT48: 21972 | AU48: 21532 | AV48: 21092 | AW48: 20652 | AX48: 20212 | AY48: 19772 | AZ48: 19332 | BA48: 18892 | BB48: 18452 | BC48: 18012 | BD48: 17572 | BE48: 17132 | BF48: 16692 | BG48: 16252 | BH48: 15812 | BI48: 15372 | BJ48: 14932 | BK48: 14492
B49: Intangible Assets | D49: ='Assets & Dep'!D17 -> 0 | E49: ='Assets & Dep'!E17 -> 0 | F49: ='Assets & Dep'!F17 -> 20000 | G49: ='Assets & Dep'!G17 -> 20000 | H49: ='Assets & Dep'!H17 -> 20000 | I49: ='Assets & Dep'!I17 -> 20000 | J49: ='Assets & Dep'!J17 -> 20000 | K49: ='Assets & Dep'!K17 -> 20000 | L49: ='Assets & Dep'!L17 -> 20000 | M49: ='Assets & Dep'!M17 -> 20000 | N49: ='Assets & Dep'!N17 -> 20000 | O49: ='Assets & Dep'!O17 -> 20000 | P49: ='Assets & Dep'!P17 -> 20000 | Q49: ='Assets & Dep'!Q17 -> 20000 | R49: ='Assets & Dep'!R17 -> 20000 | S49: ='Assets & Dep'!S17 -> 25000 | T49: ='Assets & Dep'!T17 -> 25000 | U49: ='Assets & Dep'!U17 -> 25000 | V49: ='Assets & Dep'!V17 -> 25000 | W49: ='Assets & Dep'!W17 -> 25000 | X49: ='Assets & Dep'!X17 -> 25000 | Y49: ='Assets & Dep'!Y17 -> 25000 | Z49: ='Assets & Dep'!Z17 -> 25000 | AA49: ='Assets & Dep'!AA17 -> 25000 | AB49: ='Assets & Dep'!AB17 -> 25000 | AC49: ='Assets & Dep'!AC17 -> 25000 | AD49: ='Assets & Dep'!AD17 -> 25000 | AE49: ='Assets & Dep'!AE17 -> 26000 | AF49: ='Assets & Dep'!AF17 -> 26000 | AG49: ='Assets & Dep'!AG17 -> 26000 | AH49: ='Assets & Dep'!AH17 -> 26000 | AI49: ='Assets & Dep'!AI17 -> 26000 | AJ49: ='Assets & Dep'!AJ17 -> 26000 | AK49: ='Assets & Dep'!AK17 -> 26000 | AL49: ='Assets & Dep'!AL17 -> 26000 | AM49: ='Assets & Dep'!AM17 -> 26000 | AN49: ='Assets & Dep'!AN17 -> 26000 | AO49: ='Assets & Dep'!AO17 -> 26000 | AP49: ='Assets & Dep'!AP17 -> 26000 | AQ49: ='Assets & Dep'!AQ17 -> 26000 | AR49: ='Assets & Dep'!AR17 -> 26000 | AS49: ='Assets & Dep'!AS17 -> 27000 | AT49: ='Assets & Dep'!AT17 -> 27000 | AU49: ='Assets & Dep'!AU17 -> 27000 | AV49: ='Assets & Dep'!AV17 -> 27000 | AW49: ='Assets & Dep'!AW17 -> 27000 | AX49: ='Assets & Dep'!AX17 -> 27000 | AY49: ='Assets & Dep'!AY17 -> 27000 | AZ49: ='Assets & Dep'!AZ17 -> 27000 | BA49: ='Assets & Dep'!BA17 -> 27000 | BB49: ='Assets & Dep'!BB17 -> 27000 | BC49: ='Assets & Dep'!BC17 -> 27000 | BD49: ='Assets & Dep'!BD17 -> 27000 | BE49: ='Assets & Dep'!BE17 -> 28000 | BF49: ='Assets & Dep'!BF17 -> 28000 | BG49: ='Assets & Dep'!BG17 -> 28000 | BH49: ='Assets & Dep'!BH17 -> 28000 | BI49: ='Assets & Dep'!BI17 -> 28000 | BJ49: ='Assets & Dep'!BJ17 -> 28000 | BK49: ='Assets & Dep'!BK17 -> 28000
B50: Accumulated Amortization | D50: ='Assets & Dep'!D19 -> 0 | E50: ='Assets & Dep'!E19 -> 0 | F50: ='Assets & Dep'!F19 -> 83 | G50: ='Assets & Dep'!G19 -> 166 | H50: ='Assets & Dep'!H19 -> 249 | I50: ='Assets & Dep'!I19 -> 332 | J50: ='Assets & Dep'!J19 -> 415 | K50: ='Assets & Dep'!K19 -> 498 | L50: ='Assets & Dep'!L19 -> 581 | M50: ='Assets & Dep'!M19 -> 664 | N50: ='Assets & Dep'!N19 -> 747 | O50: ='Assets & Dep'!O19 -> 830 | P50: ='Assets & Dep'!P19 -> 913 | Q50: ='Assets & Dep'!Q19 -> 996 | R50: ='Assets & Dep'!R19 -> 1079 | S50: ='Assets & Dep'!S19 -> 1183 | T50: ='Assets & Dep'!T19 -> 1287 | U50: ='Assets & Dep'!U19 -> 1391 | V50: ='Assets & Dep'!V19 -> 1495 | W50: ='Assets & Dep'!W19 -> 1599 | X50: ='Assets & Dep'!X19 -> 1703 | Y50: ='Assets & Dep'!Y19 -> 1807 | Z50: ='Assets & Dep'!Z19 -> 1911 | AA50: ='Assets & Dep'!AA19 -> 2015 | AB50: ='Assets & Dep'!AB19 -> 2119 | AC50: ='Assets & Dep'!AC19 -> 2223 | AD50: ='Assets & Dep'!AD19 -> 2327 | AE50: ='Assets & Dep'!AE19 -> 2435 | AF50: ='Assets & Dep'!AF19 -> 2543 | AG50: ='Assets & Dep'!AG19 -> 2651 | AH50: ='Assets & Dep'!AH19 -> 2759 | AI50: ='Assets & Dep'!AI19 -> 2867 | AJ50: ='Assets & Dep'!AJ19 -> 2975 | AK50: ='Assets & Dep'!AK19 -> 3083 | AL50: ='Assets & Dep'!AL19 -> 3191 | AM50: ='Assets & Dep'!AM19 -> 3299 | AN50: ='Assets & Dep'!AN19 -> 3407 | AO50: ='Assets & Dep'!AO19 -> 3515 | AP50: ='Assets & Dep'!AP19 -> 3623 | AQ50: ='Assets & Dep'!AQ19 -> 3731 | AR50: ='Assets & Dep'!AR19 -> 3839 | AS50: ='Assets & Dep'!AS19 -> 3951 | AT50: ='Assets & Dep'!AT19 -> 4063 | AU50: ='Assets & Dep'!AU19 -> 4175 | AV50: ='Assets & Dep'!AV19 -> 4287 | AW50: ='Assets & Dep'!AW19 -> 4399 | AX50: ='Assets & Dep'!AX19 -> 4511 | AY50: ='Assets & Dep'!AY19 -> 4623 | AZ50: ='Assets & Dep'!AZ19 -> 4735 | BA50: ='Assets & Dep'!BA19 -> 4847 | BB50: ='Assets & Dep'!BB19 -> 4959 | BC50: ='Assets & Dep'!BC19 -> 5071 | BD50: ='Assets & Dep'!BD19 -> 5183 | BE50: ='Assets & Dep'!BE19 -> 5299 | BF50: ='Assets & Dep'!BF19 -> 5415 | BG50: ='Assets & Dep'!BG19 -> 5531 | BH50: ='Assets & Dep'!BH19 -> 5647 | BI50: ='Assets & Dep'!BI19 -> 5763 | BJ50: ='Assets & Dep'!BJ19 -> 5879 | BK50: ='Assets & Dep'!BK19 -> 5995
B51: Net Intangible Assets | D51: =D49-D50 -> 0 | E51: 0 | F51: 19917 | G51: 19834 | H51: 19751 | I51: 19668 | J51: 19585 | K51: 19502 | L51: 19419 | M51: 19336 | N51: 19253 | O51: 19170 | P51: 19087 | Q51: 19004 | R51: 18921 | S51: 23817 | T51: 23713 | U51: 23609 | V51: 23505 | W51: 23401 | X51: 23297 | Y51: 23193 | Z51: 23089 | AA51: 22985 | AB51: 22881 | AC51: 22777 | AD51: 22673 | AE51: 23565 | AF51: 23457 | AG51: 23349 | AH51: 23241 | AI51: 23133 | AJ51: 23025 | AK51: 22917 | AL51: 22809 | AM51: 22701 | AN51: 22593 | AO51: 22485 | AP51: 22377 | AQ51: 22269 | AR51: 22161 | AS51: 23049 | AT51: 22937 | AU51: 22825 | AV51: 22713 | AW51: 22601 | AX51: 22489 | AY51: 22377 | AZ51: 22265 | BA51: 22153 | BB51: 22041 | BC51: 21929 | BD51: 21817 | BE51: 22701 | BF51: 22585 | BG51: 22469 | BH51: 22353 | BI51: 22237 | BJ51: 22121 | BK51: 22005
B52: Total Assets | D52: =D45+D48+D51 -> 227390 | E52: =E45+E48+E51 -> 197250 | F52: 172291 | G52: 151613 | H52: 126487 | I52: 89652 | J52: 52592 | K52: 1314816 | L52: 1278374 | M52: 1224114 | N52: 1197993 | O52: 1140374 | P52: 1065286 | Q52: 993316 | R52: 919898 | S52: 849160 | T52: 813116 | U52: 786393 | V52: 743829 | W52: 707519 | X52: 680952 | Y52: 659709 | Z52: 651223 | AA52: 641081 | AB52: 631048 | AC52: 630272 | AD52: 634759 | AE52: 648509 | AF52: 669029 | AG52: 699300 | AH52: 737349 | AI52: 781139 | AJ52: 832911 | AK52: 891228 | AL52: 961534 | AM52: 1038537 | AN52: 1124033 | AO52: 1218531 | AP52: 1322035 | AQ52: 1434549 | AR52: 1555974 | AS52: 1686184 | AT52: 1825414 | AU52: 1973670 | AV52: 2130953 | AW52: 2296813 | AX52: 2471709 | AY52: 2655479 | AZ52: 2839950 | BA52: 3033465 | BB52: 2800246 | BC52: 2902732 | BD52: 3123066 | BE52: 3352220 | BF52: 3481491 | BG52: 3728728 | BH52: 4228605 | BI52: 4378272 | BJ52: 4645943 | BK52: 4813604
B54: Liabilities
B55: Accounts Payable | D55: ='Cash Flow'!D15 -> 1200 | E55: ='Cash Flow'!E15 -> 1200 | F55: ='Cash Flow'!F15 -> 1200 | G55: ='Cash Flow'!G15 -> 1200 | H55: ='Cash Flow'!H15 -> 1200 | I55: ='Cash Flow'!I15 -> 1200 | J55: ='Cash Flow'!J15 -> 1200 | K55: ='Cash Flow'!K15 -> 1200 | L55: ='Cash Flow'!L15 -> 1200 | M55: ='Cash Flow'!M15 -> 16200 | N55: ='Cash Flow'!N15 -> 31200 | O55: ='Cash Flow'!O15 -> 31200 | P55: ='Cash Flow'!P15 -> 31200 | Q55: ='Cash Flow'!Q15 -> 31200 | R55: ='Cash Flow'!R15 -> 31200 | S55: ='Cash Flow'!S15 -> 31200 | T55: ='Cash Flow'!T15 -> 46200 | U55: ='Cash Flow'!U15 -> 61200 | V55: ='Cash Flow'!V15 -> 61200 | W55: ='Cash Flow'!W15 -> 61200 | X55: ='Cash Flow'!X15 -> 61200 | Y55: ='Cash Flow'!Y15 -> 61200 | Z55: ='Cash Flow'!Z15 -> 61200 | AA55: ='Cash Flow'!AA15 -> 61200 | AB55: ='Cash Flow'!AB15 -> 61200 | AC55: ='Cash Flow'!AC15 -> 61200 | AD55: ='Cash Flow'!AD15 -> 61200 | AE55: ='Cash Flow'!AE15 -> 61200 | AF55: ='Cash Flow'!AF15 -> 61200 | AG55: ='Cash Flow'!AG15 -> 61200 | AH55: ='Cash Flow'!AH15 -> 61200 | AI55: ='Cash Flow'!AI15 -> 61200 | AJ55: ='Cash Flow'!AJ15 -> 61200 | AK55: ='Cash Flow'!AK15 -> 61200 | AL55: ='Cash Flow'!AL15 -> 61200 | AM55: ='Cash Flow'!AM15 -> 61200 | AN55: ='Cash Flow'!AN15 -> 61200 | AO55: ='Cash Flow'!AO15 -> 61200 | AP55: ='Cash Flow'!AP15 -> 61200 | AQ55: ='Cash Flow'!AQ15 -> 61200 | AR55: ='Cash Flow'!AR15 -> 61200 | AS55: ='Cash Flow'!AS15 -> 61200 | AT55: ='Cash Flow'!AT15 -> 61200 | AU55: ='Cash Flow'!AU15 -> 61200 | AV55: ='Cash Flow'!AV15 -> 61200 | AW55: ='Cash Flow'!AW15 -> 61200 | AX55: ='Cash Flow'!AX15 -> 61200 | AY55: ='Cash Flow'!AY15 -> 61200 | AZ55: ='Cash Flow'!AZ15 -> 61200 | BA55: ='Cash Flow'!BA15 -> 61200 | BB55: ='Cash Flow'!BB15 -> 61200 | BC55: ='Cash Flow'!BC15 -> 61200 | BD55: ='Cash Flow'!BD15 -> 61200 | BE55: ='Cash Flow'!BE15 -> 61200 | BF55: ='Cash Flow'!BF15 -> 61200 | BG55: ='Cash Flow'!BG15 -> 61200 | BH55: ='Cash Flow'!BH15 -> 61200 | BI55: ='Cash Flow'!BI15 -> 61200 | BJ55: ='Cash Flow'!BJ15 -> 61200 | BK55: ='Cash Flow'!BK15 -> 61200
B56: Current Portion of Debt | D56: =Loans!D14 -> 78790 | E56: =Loans!E14 -> 79184 | F56: =Loans!F14 -> 79580 | G56: =Loans!G14 -> 79978 | H56: =Loans!H14 -> 80377 | I56: =Loans!I14 -> 80779 | J56: =Loans!J14 -> 81182 | K56: =Loans!K14 -> 81588 | L56: =Loans!L14 -> 81996 | M56: =Loans!M14 -> 82406 | N56: =Loans!N14 -> 104068 | O56: =Loans!O14 -> 106982 | P56: =Loans!P14 -> 109899 | Q56: =Loans!Q14 -> 112817 | R56: =Loans!R14 -> 115737 | S56: =Loans!S14 -> 118660 | T56: =Loans!T14 -> 131585 | U56: =Loans!U14 -> 145762 | V56: =Loans!V14 -> 151191 | W56: =Loans!W14 -> 156622 | X56: =Loans!X14 -> 162055 | Y56: =Loans!Y14 -> 167491 | Z56: =Loans!Z14 -> 172928 | AA56: =Loans!AA14 -> 178368 | AB56: =Loans!AB14 -> 176204 | AC56: =Loans!AC14 -> 174005 | AD56: =Loans!AD14 -> 171770 | AE56: =Loans!AE14 -> 169498 | AF56: =Loans!AF14 -> 167190 | AG56: =Loans!AG14 -> 164845 | AH56: =Loans!AH14 -> 162464 | AI56: =Loans!AI14 -> 160046 | AJ56: =Loans!AJ14 -> 157591 | AK56: =Loans!AK14 -> 155098 | AL56: =Loans!AL14 -> 152568 | AM56: =Loans!AM14 -> 150000 | AN56: =Loans!AN14 -> 155000 | AO56: =Loans!AO14 -> 160000 | AP56: =Loans!AP14 -> 165000 | AQ56: =Loans!AQ14 -> 170000 | AR56: =Loans!AR14 -> 175000 | AS56: =Loans!AS14 -> 180000 | AT56: =Loans!AT14 -> 185000 | AU56: =Loans!AU14 -> 190000 | AV56: =Loans!AV14 -> 195000 | AW56: =Loans!AW14 -> 200000 | AX56: =Loans!AX14 -> 205000 | AY56: =Loans!AY14 -> 210000 | AZ56: =Loans!AZ14 -> 215000 | BA56: =Loans!BA14 -> 220000 | BB56: =Loans!BB14 -> 225000 | BC56: =Loans!BC14 -> 230000 | BD56: =Loans!BD14 -> 235000 | BE56: =Loans!BE14 -> 240000 | BF56: =Loans!BF14 -> 245000 | BG56: =Loans!BG14 -> 250000 | BH56: =Loans!BH14 -> 500000 | BI56: =Loans!BI14 -> 500000 | BJ56: =Loans!BJ14 -> 500000 | BK56: =Loans!BK14 -> 500000
B57: Income Taxes Payable | D57: =SUM('Cash Flow'!D19:$D19)-SUM('Cash Flow'!D20:$D20) -> 0 | E57: =SUM('Cash Flow'!$D19:E19)-SUM('Cash Flow'!$D20:E20) -> 0 | F57: =SUM('Cash Flow'!$D19:F19)-SUM('Cash Flow'!$D20:F20) -> 0 | G57: =SUM('Cash Flow'!$D19:G19)-SUM('Cash Flow'!$D20:G20) -> 0 | H57: =SUM('Cash Flow'!$D19:H19)-SUM('Cash Flow'!$D20:H20) -> 0 | I57: =SUM('Cash Flow'!$D19:I19)-SUM('Cash Flow'!$D20:I20) -> 0 | J57: =SUM('Cash Flow'!$D19:J19)-SUM('Cash Flow'!$D20:J20) -> 0 | K57: =SUM('Cash Flow'!$D19:K19)-SUM('Cash Flow'!$D20:K20) -> 0 | L57: =SUM('Cash Flow'!$D19:L19)-SUM('Cash Flow'!$D20:L20) -> 0 | M57: =SUM('Cash Flow'!$D19:M19)-SUM('Cash Flow'!$D20:M20) -> 0 | N57: =SUM('Cash Flow'!$D19:N19)-SUM('Cash Flow'!$D20:N20) -> 0 | O57: =SUM('Cash Flow'!$D19:O19)-SUM('Cash Flow'!$D20:O20) -> 0 | P57: =SUM('Cash Flow'!$D19:P19)-SUM('Cash Flow'!$D20:P20) -> 0 | Q57: =SUM('Cash Flow'!$D19:Q19)-SUM('Cash Flow'!$D20:Q20) -> 0 | R57: =SUM('Cash Flow'!$D19:R19)-SUM('Cash Flow'!$D20:R20) -> 0 | S57: =SUM('Cash Flow'!$D19:S19)-SUM('Cash Flow'!$D20:S20) -> 0 | T57: =SUM('Cash Flow'!$D19:T19)-SUM('Cash Flow'!$D20:T20) -> 0 | U57: =SUM('Cash Flow'!$D19:U19)-SUM('Cash Flow'!$D20:U20) -> 0 | V57: =SUM('Cash Flow'!$D19:V19)-SUM('Cash Flow'!$D20:V20) -> 0 | W57: =SUM('Cash Flow'!$D19:W19)-SUM('Cash Flow'!$D20:W20) -> 0 | X57: =SUM('Cash Flow'!$D19:X19)-SUM('Cash Flow'!$D20:X20) -> 0 | Y57: =SUM('Cash Flow'!$D19:Y19)-SUM('Cash Flow'!$D20:Y20) -> 0 | Z57: =SUM('Cash Flow'!$D19:Z19)-SUM('Cash Flow'!$D20:Z20) -> 0 | AA57: =SUM('Cash Flow'!$D19:AA19)-SUM('Cash Flow'!$D20:AA20) -> 0 | AB57: =SUM('Cash Flow'!$D19:AB19)-SUM('Cash Flow'!$D20:AB20) -> 0 | AC57: =SUM('Cash Flow'!$D19:AC19)-SUM('Cash Flow'!$D20:AC20) -> 0 | AD57: =SUM('Cash Flow'!$D19:AD19)-SUM('Cash Flow'!$D20:AD20) -> 0 | AE57: =SUM('Cash Flow'!$D19:AE19)-SUM('Cash Flow'!$D20:AE20) -> 0 | AF57: =SUM('Cash Flow'!$D19:AF19)-SUM('Cash Flow'!$D20:AF20) -> 0 | AG57: =SUM('Cash Flow'!$D19:AG19)-SUM('Cash Flow'!$D20:AG20) -> 0 | AH57: =SUM('Cash Flow'!$D19:AH19)-SUM('Cash Flow'!$D20:AH20) -> 0 | AI57: =SUM('Cash Flow'!$D19:AI19)-SUM('Cash Flow'!$D20:AI20) -> 0 | AJ57: =SUM('Cash Flow'!$D19:AJ19)-SUM('Cash Flow'!$D20:AJ20) -> 0 | AK57: =SUM('Cash Flow'!$D19:AK19)-SUM('Cash Flow'!$D20:AK20) -> 0 | AL57: =SUM('Cash Flow'!$D19:AL19)-SUM('Cash Flow'!$D20:AL20) -> 0 | AM57: =SUM('Cash Flow'!$D19:AM19)-SUM('Cash Flow'!$D20:AM20) -> 0 | AN57: =SUM('Cash Flow'!$D19:AN19)-SUM('Cash Flow'!$D20:AN20) -> 36315 | AO57: =SUM('Cash Flow'!$D19:AO19)-SUM('Cash Flow'!$D20:AO20) -> 72630 | AP57: =SUM('Cash Flow'!$D19:AP19)-SUM('Cash Flow'!$D20:AP20) -> 108945 | AQ57: =SUM('Cash Flow'!$D19:AQ19)-SUM('Cash Flow'!$D20:AQ20) -> 145260 | AR57: =SUM('Cash Flow'!$D19:AR19)-SUM('Cash Flow'!$D20:AR20) -> 181575 | AS57: =SUM('Cash Flow'!$D19:AS19)-SUM('Cash Flow'!$D20:AS20) -> 217890 | AT57: =SUM('Cash Flow'!$D19:AT19)-SUM('Cash Flow'!$D20:AT20) -> 254205 | AU57: =SUM('Cash Flow'!$D19:AU19)-SUM('Cash Flow'!$D20:AU20) -> 290520 | AV57: =SUM('Cash Flow'!$D19:AV19)-SUM('Cash Flow'!$D20:AV20) -> 326835 | AW57: =SUM('Cash Flow'!$D19:AW19)-SUM('Cash Flow'!$D20:AW20) -> 363150 | AX57: =SUM('Cash Flow'!$D19:AX19)-SUM('Cash Flow'!$D20:AX20) -> 399465 | AY57: =SUM('Cash Flow'!$D19:AY19)-SUM('Cash Flow'!$D20:AY20) -> 435780 | AZ57: =SUM('Cash Flow'!$D19:AZ19)-SUM('Cash Flow'!$D20:AZ20) -> 527235 | BA57: =SUM('Cash Flow'!$D19:BA19)-SUM('Cash Flow'!$D20:BA20) -> 618690 | BB57: =SUM('Cash Flow'!$D19:BB19)-SUM('Cash Flow'!$D20:BB20) -> 274365 | BC57: =SUM('Cash Flow'!$D19:BC19)-SUM('Cash Flow'!$D20:BC20) -> 256875 | BD57: =SUM('Cash Flow'!$D19:BD19)-SUM('Cash Flow'!$D20:BD20) -> 348330 | BE57: =SUM('Cash Flow'!$D19:BE19)-SUM('Cash Flow'!$D20:BE20) -> 439785 | BF57: =SUM('Cash Flow'!$D19:BF19)-SUM('Cash Flow'!$D20:BF20) -> 422295 | BG57: =SUM('Cash Flow'!$D19:BG19)-SUM('Cash Flow'!$D20:BG20) -> 513750 | BH57: =SUM('Cash Flow'!$D19:BH19)-SUM('Cash Flow'!$D20:BH20) -> 605205 | BI57: =SUM('Cash Flow'!$D19:BI19)-SUM('Cash Flow'!$D20:BI20) -> 587715 | BJ57: =SUM('Cash Flow'!$D19:BJ19)-SUM('Cash Flow'!$D20:BJ20) -> 679170 | BK57: =SUM('Cash Flow'!$D19:BK19)-SUM('Cash Flow'!$D20:BK20) -> 661680
B58: Current Liabilities | D58: =SUM(D55:D57) -> 79990 | E58: =SUM(E55:E57) -> 80384 | F58: 80780 | G58: 81178 | H58: 81577 | I58: 81979 | J58: 82382 | K58: 82788 | L58: 83196 | M58: 98606 | N58: 135268 | O58: 138182 | P58: 141099 | Q58: 144017 | R58: 146937 | S58: 149860 | T58: 177785 | U58: 206962 | V58: 212391 | W58: 217822 | X58: 223255 | Y58: 228691 | Z58: 234128 | AA58: 239568 | AB58: 237404 | AC58: 235205 | AD58: 232970 | AE58: 230698 | AF58: 228390 | AG58: 226045 | AH58: 223664 | AI58: 221246 | AJ58: 218791 | AK58: 216298 | AL58: 213768 | AM58: 211200 | AN58: =SUM(AN55:AN57) -> 252515 | AO58: 293830 | AP58: 335145 | AQ58: 376460 | AR58: 417775 | AS58: 459090 | AT58: 500405 | AU58: 541720 | AV58: 583035 | AW58: 624350 | AX58: 665665 | AY58: 706980 | AZ58: 803435 | BA58: 899890 | BB58: 560565 | BC58: 548075 | BD58: 644530 | BE58: 740985 | BF58: 728495 | BG58: 824950 | BH58: 1166405 | BI58: 1148915 | BJ58: 1240370 | BK58: 1222880
B59: Long-Term Debt | D59: =Loans!D15 -> 164855 | E59: =Loans!E15 -> 158074 | F59: =Loans!F15 -> 151259 | G59: =Loans!G15 -> 144410 | H59: =Loans!H15 -> 137527 | I59: =Loans!I15 -> 130609 | J59: =Loans!J15 -> 123657 | K59: =Loans!K15 -> 116670 | L59: =Loans!L15 -> 109648 | M59: =Loans!M15 -> 102591 | N59: =Loans!N15 -> 95498 | O59: =Loans!O15 -> 88370 | P59: =Loans!P15 -> 81206 | Q59: =Loans!Q15 -> 74007 | R59: =Loans!R15 -> 66772 | S59: =Loans!S15 -> 59500 | T59: =Loans!T15 -> 52192 | U59: =Loans!U15 -> 44847 | V59: =Loans!V15 -> 37466 | W59: =Loans!W15 -> 30048 | X59: =Loans!X15 -> 22593 | Y59: =Loans!Y15 -> 15100 | Z59: =Loans!Z15 -> 7570 | AA59: =Loans!AA15 -> 0 | AB59: =Loans!AB15 -> 0 | AC59: =Loans!AC15 -> 0 | AD59: =Loans!AD15 -> 0 | AE59: =Loans!AE15 -> 0 | AF59: =Loans!AF15 -> 0 | AG59: =Loans!AG15 -> 0 | AH59: =Loans!AH15 -> 0 | AI59: =Loans!AI15 -> 0 | AJ59: =Loans!AJ15 -> 0 | AK59: =Loans!AK15 -> 0 | AL59: =Loans!AL15 -> 0 | AM59: =Loans!AM15 -> 0 | AN59: =Loans!AN15 -> 0 | AO59: =Loans!AO15 -> 0 | AP59: =Loans!AP15 -> 0 | AQ59: =Loans!AQ15 -> 0 | AR59: =Loans!AR15 -> 0 | AS59: =Loans!AS15 -> 0 | AT59: =Loans!AT15 -> 0 | AU59: =Loans!AU15 -> 0 | AV59: =Loans!AV15 -> 0 | AW59: =Loans!AW15 -> 0 | AX59: =Loans!AX15 -> 0 | AY59: =Loans!AY15 -> 0 | AZ59: =Loans!AZ15 -> 0 | BA59: =Loans!BA15 -> 0 | BB59: =Loans!BB15 -> 0 | BC59: =Loans!BC15 -> 0 | BD59: =Loans!BD15 -> 0 | BE59: =Loans!BE15 -> 0 | BF59: =Loans!BF15 -> 0 | BG59: =Loans!BG15 -> 0 | BH59: =Loans!BH15 -> 0 | BI59: =Loans!BI15 -> 0 | BJ59: =Loans!BJ15 -> 0 | BK59: =Loans!BK15 -> 0
B60: Capital Stock | D60: =Stock!D8 -> 10000 | E60: =Stock!E8 -> 10000 | F60: =Stock!F8 -> 10000 | G60: =Stock!G8 -> 10000 | H60: =Stock!H8 -> 10000 | I60: =Stock!I8 -> 10000 | J60: =Stock!J8 -> 10000 | K60: =Stock!K8 -> 1310000 | L60: =Stock!L8 -> 1310000 | M60: =Stock!M8 -> 1310000 | N60: =Stock!N8 -> 1310000 | O60: =Stock!O8 -> 1310000 | P60: =Stock!P8 -> 1310000 | Q60: =Stock!Q8 -> 1310000 | R60: =Stock!R8 -> 1310000 | S60: =Stock!S8 -> 1310000 | T60: =Stock!T8 -> 1310000 | U60: =Stock!U8 -> 1310000 | V60: =Stock!V8 -> 1310000 | W60: =Stock!W8 -> 1310000 | X60: =Stock!X8 -> 1310000 | Y60: =Stock!Y8 -> 1310000 | Z60: =Stock!Z8 -> 1310000 | AA60: =Stock!AA8 -> 1310000 | AB60: =Stock!AB8 -> 1310000 | AC60: =Stock!AC8 -> 1310000 | AD60: =Stock!AD8 -> 1310000 | AE60: =Stock!AE8 -> 1310000 | AF60: =Stock!AF8 -> 1310000 | AG60: =Stock!AG8 -> 1310000 | AH60: =Stock!AH8 -> 1310000 | AI60: =Stock!AI8 -> 1310000 | AJ60: =Stock!AJ8 -> 1310000 | AK60: =Stock!AK8 -> 1310000 | AL60: =Stock!AL8 -> 1310000 | AM60: =Stock!AM8 -> 1310000 | AN60: =Stock!AN8 -> 1310000 | AO60: =Stock!AO8 -> 1310000 | AP60: =Stock!AP8 -> 1310000 | AQ60: =Stock!AQ8 -> 1310000 | AR60: =Stock!AR8 -> 1310000 | AS60: =Stock!AS8 -> 1310000 | AT60: =Stock!AT8 -> 1310000 | AU60: =Stock!AU8 -> 1310000 | AV60: =Stock!AV8 -> 1310000 | AW60: =Stock!AW8 -> 1310000 | AX60: =Stock!AX8 -> 1310000 | AY60: =Stock!AY8 -> 1310000 | AZ60: =Stock!AZ8 -> 1310000 | BA60: =Stock!BA8 -> 1310000 | BB60: =Stock!BB8 -> 1310000 | BC60: =Stock!BC8 -> 1310000 | BD60: =Stock!BD8 -> 1310000 | BE60: =Stock!BE8 -> 1310000 | BF60: =Stock!BF8 -> 1310000 | BG60: =Stock!BG8 -> 1310000 | BH60: =Stock!BH8 -> 1310000 | BI60: =Stock!BI8 -> 1310000 | BJ60: =Stock!BJ8 -> 1310000 | BK60: =Stock!BK8 -> 1310000
B61: Retained Earnings | D61: =Stock!D9 -> -27455 | E61: =Stock!E9 -> -51208 | F61: =Stock!F9 -> -69748 | G61: =Stock!G9 -> -83975 | H61: =Stock!H9 -> -102617 | I61: =Stock!I9 -> -132936 | J61: =Stock!J9 -> -163447 | K61: =Stock!K9 -> -194642 | L61: =Stock!L9 -> -224470 | M61: =Stock!M9 -> -287083 | N61: =Stock!N9 -> -342773 | O61: =Stock!O9 -> -396178 | P61: =Stock!P9 -> -467019 | Q61: =Stock!Q9 -> -534708 | R61: =Stock!R9 -> -603811 | S61: =Stock!S9 -> -670200 | T61: =Stock!T9 -> -726861 | U61: =Stock!U9 -> -775416 | V61: =Stock!V9 -> -816028 | W61: =Stock!W9 -> -850351 | X61: =Stock!X9 -> -874896 | Y61: =Stock!Y9 -> -894082 | Z61: =Stock!Z9 -> -900475 | AA61: =Stock!AA9 -> -908487 | AB61: =Stock!AB9 -> -916356 | AC61: =Stock!AC9 -> -914933 | AD61: =Stock!AD9 -> -908211 | AE61: =Stock!AE9 -> -892189 | AF61: =Stock!AF9 -> -869361 | AG61: =Stock!AG9 -> -836745 | AH61: =Stock!AH9 -> -796315 | AI61: =Stock!AI9 -> -750107 | AJ61: =Stock!AJ9 -> -695880 | AK61: =Stock!AK9 -> -635070 | AL61: =Stock!AL9 -> -562234 | AM61: =Stock!AM9 -> -482663 | AN61: =Stock!AN9 -> -438482 | AO61: =Stock!AO9 -> -385299 | AP61: =Stock!AP9 -> -323110 | AQ61: =Stock!AQ9 -> -251911 | AR61: =Stock!AR9 -> -171801 | AS61: =Stock!AS9 -> -82906 | AT61: =Stock!AT9 -> 15009 | AU61: =Stock!AU9 -> 121950 | AV61: =Stock!AV9 -> 237918 | AW61: =Stock!AW9 -> 362463 | AX61: =Stock!AX9 -> 496044 | AY61: =Stock!AY9 -> 638499 | AZ61: =Stock!AZ9 -> 726515 | BA61: =Stock!BA9 -> 823575 | BB61: =Stock!BB9 -> 929681 | BC61: =Stock!BC9 -> 1044657 | BD61: =Stock!BD9 -> 1168536 | BE61: =Stock!BE9 -> 1301235 | BF61: =Stock!BF9 -> 1442996 | BG61: =Stock!BG9 -> 1593778 | BH61: =Stock!BH9 -> 1752200 | BI61: =Stock!BI9 -> 1919357 | BJ61: =Stock!BJ9 -> 2095573 | BK61: =Stock!BK9 -> 2280724
B62: Shareholder's Equity | D62: =D60+D61 -> -17455 | E62: =E60+E61 -> -41208 | F62: -59748 | G62: -73975 | H62: -92617 | I62: -122936 | J62: -153447 | K62: 1115358 | L62: 1085530 | M62: 1022917 | N62: 967227 | O62: 913822 | P62: 842981 | Q62: 775292 | R62: 706189 | S62: 639800 | T62: 583139 | U62: 534584 | V62: 493972 | W62: 459649 | X62: 435104 | Y62: 415918 | Z62: 409525 | AA62: 401513 | AB62: 393644 | AC62: 395067 | AD62: 401789 | AE62: 417811 | AF62: 440639 | AG62: 473255 | AH62: 513685 | AI62: 559893 | AJ62: 614120 | AK62: 674930 | AL62: 747766 | AM62: 827337 | AN62: =AN60+AN61 -> 871518 | AO62: 924701 | AP62: 986890 | AQ62: 1058089 | AR62: 1138199 | AS62: 1227094 | AT62: 1325009 | AU62: 1431950 | AV62: 1547918 | AW62: 1672463 | AX62: 1806044 | AY62: 1948499 | AZ62: 2036515 | BA62: 2133575 | BB62: 2239681 | BC62: 2354657 | BD62: 2478536 | BE62: 2611235 | BF62: 2752996 | BG62: 2903778 | BH62: 3062200 | BI62: 3229357 | BJ62: 3405573 | BK62: 3590724
B63: Total Liabilities and Equity | D63: =D58+D59+D62 -> 227390 | E63: =E58+E59+E62 -> 197250 | F63: 172291 | G63: 151613 | H63: 126487 | I63: 89652 | J63: 52592 | K63: 1314816 | L63: 1278374 | M63: 1224114 | N63: 1197993 | O63: 1140374 | P63: 1065286 | Q63: 993316 | R63: 919898 | S63: 849160 | T63: 813116 | U63: 786393 | V63: 743829 | W63: 707519 | X63: 680952 | Y63: 659709 | Z63: 651223 | AA63: 641081 | AB63: 631048 | AC63: 630272 | AD63: 634759 | AE63: 648509 | AF63: 669029 | AG63: 699300 | AH63: 737349 | AI63: 781139 | AJ63: 832911 | AK63: 891228 | AL63: 961534 | AM63: 1038537 | AN63: =AN58+AN59+AN62 -> 1124033 | AO63: 1218531 | AP63: 1322035 | AQ63: 1434549 | AR63: 1555974 | AS63: 1686184 | AT63: 1825414 | AU63: 1973670 | AV63: 2130953 | AW63: 2296813 | AX63: 2471709 | AY63: 2655479 | AZ63: 2839950 | BA63: 3033465 | BB63: 2800246 | BC63: 2902732 | BD63: 3123066 | BE63: 3352220 | BF63: 3481491 | BG63: 3728728 | BH63: 4228605 | BI63: 4378272 | BJ63: 4645943 | BK63: 4813604
B65: Do not remove this line
B67: Employee count | D67: =COUNT(OFFSET('Supp Costs'!$D10,0,0,20,1))+COUNT(OFFSET('Sales Costs'!$D10,0,0,20,1))+COUNT(OFFSET('R&D Costs'!$D10,0,0,20,1))+COUNT(OFFSET('G&A Costs'!$D10,0,0,19,1)) -> 2 | E67: =COUNT(OFFSET('Supp Costs'!$D10,0,1,20,1))+COUNT(OFFSET('Sales Costs'!$D10,0,1,20,1))+COUNT(OFFSET('R&D Costs'!$D10,0,1,20,1))+COUNT(OFFSET('G&A Costs'!$D10,0,1,19,1)) -> 2 | F67: =COUNT(OFFSET('Supp Costs'!$D10,0,2,20,1))+COUNT(OFFSET('Sales Costs'!$D10,0,2,20,1))+COUNT(OFFSET('R&D Costs'!$D10,0,2,20,1))+COUNT(OFFSET('G&A Costs'!$D10,0,2,19,1)) -> 2 | G67: =COUNT(OFFSET('Supp Costs'!$D10,0,3,20,1))+COUNT(OFFSET('Sales Costs'!$D10,0,3,20,1))+COUNT(OFFSET('R&D Costs'!$D10,0,3,20,1))+COUNT(OFFSET('G&A Costs'!$D10,0,3,19,1)) -> 2 | H67: =COUNT(OFFSET('Supp Costs'!$D10,0,4,20,1))+COUNT(OFFSET('Sales Costs'!$D10,0,4,20,1))+COUNT(OFFSET('R&D Costs'!$D10,0,4,20,1))+COUNT(OFFSET('G&A Costs'!$D10,0,4,19,1)) -> 3 | I67: =COUNT(OFFSET('Supp Costs'!$D10,0,5,20,1))+COUNT(OFFSET('Sales Costs'!$D10,0,5,20,1))+COUNT(OFFSET('R&D Costs'!$D10,0,5,20,1))+COUNT(OFFSET('G&A Costs'!$D10,0,5,19,1)) -> 4 | J67: =COUNT(OFFSET('Supp Costs'!$D10,0,6,20,1))+COUNT(OFFSET('Sales Costs'!$D10,0,6,20,1))+COUNT(OFFSET('R&D Costs'!$D10,0,6,20,1))+COUNT(OFFSET('G&A Costs'!$D10,0,6,19,1)) -> 4 | K67: =COUNT(OFFSET('Supp Costs'!$D10,0,7,20,1))+COUNT(OFFSET('Sales Costs'!$D10,0,7,20,1))+COUNT(OFFSET('R&D Costs'!$D10,0,7,20,1))+COUNT(OFFSET('G&A Costs'!$D10,0,7,19,1)) -> 4 | L67: =COUNT(OFFSET('Supp Costs'!$D10,0,8,20,1))+COUNT(OFFSET('Sales Costs'!$D10,0,8,20,1))+COUNT(OFFSET('R&D Costs'!$D10,0,8,20,1))+COUNT(OFFSET('G&A Costs'!$D10,0,8,19,1)) -> 4 | M67: =COUNT(OFFSET('Supp Costs'!$D10,0,9,20,1))+COUNT(OFFSET('Sales Costs'!$D10,0,9,20,1))+COUNT(OFFSET('R&D Costs'!$D10,0,9,20,1))+COUNT(OFFSET('G&A Costs'!$D10,0,9,19,1)) -> 7 | N67: =COUNT(OFFSET('Supp Costs'!$D10,0,10,20,1))+COUNT(OFFSET('Sales Costs'!$D10,0,10,20,1))+COUNT(OFFSET('R&D Costs'!$D10,0,10,20,1))+COUNT(OFFSET('G&A Costs'!$D10,0,10,19,1)) -> 7 | O67: =COUNT(OFFSET('Supp Costs'!$D10,0,11,20,1))+COUNT(OFFSET('Sales Costs'!$D10,0,11,20,1))+COUNT(OFFSET('R&D Costs'!$D10,0,11,20,1))+COUNT(OFFSET('G&A Costs'!$D10,0,11,19,1)) -> 7 | P67: =COUNT(OFFSET('Supp Costs'!$D10,0,12,20,1))+COUNT(OFFSET('Sales Costs'!$D10,0,12,20,1))+COUNT(OFFSET('R&D Costs'!$D10,0,12,20,1))+COUNT(OFFSET('G&A Costs'!$D10,0,12,19,1)) -> 10 | Q67: =COUNT(OFFSET('Supp Costs'!$D10,0,13,20,1))+COUNT(OFFSET('Sales Costs'!$D10,0,13,20,1))+COUNT(OFFSET('R&D Costs'!$D10,0,13,20,1))+COUNT(OFFSET('G&A Costs'!$D10,0,13,19,1)) -> 10 | R67: =COUNT(OFFSET('Supp Costs'!$D10,0,14,20,1))+COUNT(OFFSET('Sales Costs'!$D10,0,14,20,1))+COUNT(OFFSET('R&D Costs'!$D10,0,14,20,1))+COUNT(OFFSET('G&A Costs'!$D10,0,14,19,1)) -> 10 | S67: =COUNT(OFFSET('Supp Costs'!$D10,0,15,20,1))+COUNT(OFFSET('Sales Costs'!$D10,0,15,20,1))+COUNT(OFFSET('R&D Costs'!$D10,0,15,20,1))+COUNT(OFFSET('G&A Costs'!$D10,0,15,19,1)) -> 10 | T67: =COUNT(OFFSET('Supp Costs'!$D10,0,16,20,1))+COUNT(OFFSET('Sales Costs'!$D10,0,16,20,1))+COUNT(OFFSET('R&D Costs'!$D10,0,16,20,1))+COUNT(OFFSET('G&A Costs'!$D10,0,16,19,1)) -> 10 | U67: =COUNT(OFFSET('Supp Costs'!$D10,0,17,20,1))+COUNT(OFFSET('Sales Costs'!$D10,0,17,20,1))+COUNT(OFFSET('R&D Costs'!$D10,0,17,20,1))+COUNT(OFFSET('G&A Costs'!$D10,0,17,19,1)) -> 10 | V67: =COUNT(OFFSET('Supp Costs'!$D10,0,18,20,1))+COUNT(OFFSET('Sales Costs'!$D10,0,18,20,1))+COUNT(OFFSET('R&D Costs'!$D10,0,18,20,1))+COUNT(OFFSET('G&A Costs'!$D10,0,18,19,1)) -> 10 | W67: =COUNT(OFFSET('Supp Costs'!$D10,0,19,20,1))+COUNT(OFFSET('Sales Costs'!$D10,0,19,20,1))+COUNT(OFFSET('R&D Costs'!$D10,0,19,20,1))+COUNT(OFFSET('G&A Costs'!$D10,0,19,19,1)) -> 10 | X67: =COUNT(OFFSET('Supp Costs'!$D10,0,20,20,1))+COUNT(OFFSET('Sales Costs'!$D10,0,20,20,1))+COUNT(OFFSET('R&D Costs'!$D10,0,20,20,1))+COUNT(OFFSET('G&A Costs'!$D10,0,20,19,1)) -> 10 | Y67: =COUNT(OFFSET('Supp Costs'!$D10,0,21,20,1))+COUNT(OFFSET('Sales Costs'!$D10,0,21,20,1))+COUNT(OFFSET('R&D Costs'!$D10,0,21,20,1))+COUNT(OFFSET('G&A Costs'!$D10,0,21,19,1)) -> 10 | Z67: =COUNT(OFFSET('Supp Costs'!$D10,0,22,20,1))+COUNT(OFFSET('Sales Costs'!$D10,0,22,20,1))+COUNT(OFFSET('R&D Costs'!$D10,0,22,20,1))+COUNT(OFFSET('G&A Costs'!$D10,0,22,19,1)) -> 10 | AA67: =COUNT(OFFSET('Supp Costs'!$D10,0,23,20,1))+COUNT(OFFSET('Sales Costs'!$D10,0,23,20,1))+COUNT(OFFSET('R&D Costs'!$D10,0,23,20,1))+COUNT(OFFSET('G&A Costs'!$D10,0,23,19,1)) -> 11 | AB67: =COUNT(OFFSET('Supp Costs'!$D10,0,24,20,1))+COUNT(OFFSET('Sales Costs'!$D10,0,24,20,1))+COUNT(OFFSET('R&D Costs'!$D10,0,24,20,1))+COUNT(OFFSET('G&A Costs'!$D10,0,24,19,1)) -> 13 | AC67: =COUNT(OFFSET('Supp Costs'!$D10,0,25,20,1))+COUNT(OFFSET('Sales Costs'!$D10,0,25,20,1))+COUNT(OFFSET('R&D Costs'!$D10,0,25,20,1))+COUNT(OFFSET('G&A Costs'!$D10,0,25,19,1)) -> 13 | AD67: =COUNT(OFFSET('Supp Costs'!$D10,0,26,20,1))+COUNT(OFFSET('Sales Costs'!$D10,0,26,20,1))+COUNT(OFFSET('R&D Costs'!$D10,0,26,20,1))+COUNT(OFFSET('G&A Costs'!$D10,0,26,19,1)) -> 13 | AE67: =COUNT(OFFSET('Supp Costs'!$D10,0,27,20,1))+COUNT(OFFSET('Sales Costs'!$D10,0,27,20,1))+COUNT(OFFSET('R&D Costs'!$D10,0,27,20,1))+COUNT(OFFSET('G&A Costs'!$D10,0,27,19,1)) -> 13 | AF67: =COUNT(OFFSET('Supp Costs'!$D10,0,28,20,1))+COUNT(OFFSET('Sales Costs'!$D10,0,28,20,1))+COUNT(OFFSET('R&D Costs'!$D10,0,28,20,1))+COUNT(OFFSET('G&A Costs'!$D10,0,28,19,1)) -> 13 | AG67: =COUNT(OFFSET('Supp Costs'!$D10,0,29,20,1))+COUNT(OFFSET('Sales Costs'!$D10,0,29,20,1))+COUNT(OFFSET('R&D Costs'!$D10,0,29,20,1))+COUNT(OFFSET('G&A Costs'!$D10,0,29,19,1)) -> 13 | AH67: =COUNT(OFFSET('Supp Costs'!$D10,0,30,20,1))+COUNT(OFFSET('Sales Costs'!$D10,0,30,20,1))+COUNT(OFFSET('R&D Costs'!$D10,0,30,20,1))+COUNT(OFFSET('G&A Costs'!$D10,0,30,19,1)) -> 13 | AI67: =COUNT(OFFSET('Supp Costs'!$D10,0,31,20,1))+COUNT(OFFSET('Sales Costs'!$D10,0,31,20,1))+COUNT(OFFSET('R&D Costs'!$D10,0,31,20,1))+COUNT(OFFSET('G&A Costs'!$D10,0,31,19,1)) -> 13 | AJ67: =COUNT(OFFSET('Supp Costs'!$D10,0,32,20,1))+COUNT(OFFSET('Sales Costs'!$D10,0,32,20,1))+COUNT(OFFSET('R&D Costs'!$D10,0,32,20,1))+COUNT(OFFSET('G&A Costs'!$D10,0,32,19,1)) -> 13 | AK67: =COUNT(OFFSET('Supp Costs'!$D10,0,33,20,1))+COUNT(OFFSET('Sales Costs'!$D10,0,33,20,1))+COUNT(OFFSET('R&D Costs'!$D10,0,33,20,1))+COUNT(OFFSET('G&A Costs'!$D10,0,33,19,1)) -> 13 | AL67: =COUNT(OFFSET('Supp Costs'!$D10,0,34,20,1))+COUNT(OFFSET('Sales Costs'!$D10,0,34,20,1))+COUNT(OFFSET('R&D Costs'!$D10,0,34,20,1))+COUNT(OFFSET('G&A Costs'!$D10,0,34,19,1)) -> 13 | AM67: =COUNT(OFFSET('Supp Costs'!$D10,0,35,20,1))+COUNT(OFFSET('Sales Costs'!$D10,0,35,20,1))+COUNT(OFFSET('R&D Costs'!$D10,0,35,20,1))+COUNT(OFFSET('G&A Costs'!$D10,0,35,19,1)) -> 13 | AN67: =COUNT(OFFSET('Supp Costs'!$D10,0,36,20,1))+COUNT(OFFSET('Sales Costs'!$D10,0,36,20,1))+COUNT(OFFSET('R&D Costs'!$D10,0,36,20,1))+COUNT(OFFSET('G&A Costs'!$D10,0,36,19,1)) -> 14 | AO67: =COUNT(OFFSET('Supp Costs'!$D10,0,37,20,1))+COUNT(OFFSET('Sales Costs'!$D10,0,37,20,1))+COUNT(OFFSET('R&D Costs'!$D10,0,37,20,1))+COUNT(OFFSET('G&A Costs'!$D10,0,37,19,1)) -> 14 | AP67: =COUNT(OFFSET('Supp Costs'!$D10,0,38,20,1))+COUNT(OFFSET('Sales Costs'!$D10,0,38,20,1))+COUNT(OFFSET('R&D Costs'!$D10,0,38,20,1))+COUNT(OFFSET('G&A Costs'!$D10,0,38,19,1)) -> 14 | AQ67: =COUNT(OFFSET('Supp Costs'!$D10,0,39,20,1))+COUNT(OFFSET('Sales Costs'!$D10,0,39,20,1))+COUNT(OFFSET('R&D Costs'!$D10,0,39,20,1))+COUNT(OFFSET('G&A Costs'!$D10,0,39,19,1)) -> 14 | AR67: =COUNT(OFFSET('Supp Costs'!$D10,0,40,20,1))+COUNT(OFFSET('Sales Costs'!$D10,0,40,20,1))+COUNT(OFFSET('R&D Costs'!$D10,0,40,20,1))+COUNT(OFFSET('G&A Costs'!$D10,0,40,19,1)) -> 14 | AS67: =COUNT(OFFSET('Supp Costs'!$D10,0,41,20,1))+COUNT(OFFSET('Sales Costs'!$D10,0,41,20,1))+COUNT(OFFSET('R&D Costs'!$D10,0,41,20,1))+COUNT(OFFSET('G&A Costs'!$D10,0,41,19,1)) -> 14 | AT67: =COUNT(OFFSET('Supp Costs'!$D10,0,42,20,1))+COUNT(OFFSET('Sales Costs'!$D10,0,42,20,1))+COUNT(OFFSET('R&D Costs'!$D10,0,42,20,1))+COUNT(OFFSET('G&A Costs'!$D10,0,42,19,1)) -> 14 | AU67: =COUNT(OFFSET('Supp Costs'!$D10,0,43,20,1))+COUNT(OFFSET('Sales Costs'!$D10,0,43,20,1))+COUNT(OFFSET('R&D Costs'!$D10,0,43,20,1))+COUNT(OFFSET('G&A Costs'!$D10,0,43,19,1)) -> 14 | AV67: =COUNT(OFFSET('Supp Costs'!$D10,0,44,20,1))+COUNT(OFFSET('Sales Costs'!$D10,0,44,20,1))+COUNT(OFFSET('R&D Costs'!$D10,0,44,20,1))+COUNT(OFFSET('G&A Costs'!$D10,0,44,19,1)) -> 14 | AW67: =COUNT(OFFSET('Supp Costs'!$D10,0,45,20,1))+COUNT(OFFSET('Sales Costs'!$D10,0,45,20,1))+COUNT(OFFSET('R&D Costs'!$D10,0,45,20,1))+COUNT(OFFSET('G&A Costs'!$D10,0,45,19,1)) -> 14 | AX67: =COUNT(OFFSET('Supp Costs'!$D10,0,46,20,1))+COUNT(OFFSET('Sales Costs'!$D10,0,46,20,1))+COUNT(OFFSET('R&D Costs'!$D10,0,46,20,1))+COUNT(OFFSET('G&A Costs'!$D10,0,46,19,1)) -> 14 | AY67: =COUNT(OFFSET('Supp Costs'!$D10,0,47,20,1))+COUNT(OFFSET('Sales Costs'!$D10,0,47,20,1))+COUNT(OFFSET('R&D Costs'!$D10,0,47,20,1))+COUNT(OFFSET('G&A Costs'!$D10,0,47,19,1)) -> 14 | AZ67: =COUNT(OFFSET('Supp Costs'!$D10,0,48,20,1))+COUNT(OFFSET('Sales Costs'!$D10,0,48,20,1))+COUNT(OFFSET('R&D Costs'!$D10,0,48,20,1))+COUNT(OFFSET('G&A Costs'!$D10,0,48,19,1)) -> 15 | BA67: =COUNT(OFFSET('Supp Costs'!$D10,0,49,20,1))+COUNT(OFFSET('Sales Costs'!$D10,0,49,20,1))+COUNT(OFFSET('R&D Costs'!$D10,0,49,20,1))+COUNT(OFFSET('G&A Costs'!$D10,0,49,19,1)) -> 15 | BB67: =COUNT(OFFSET('Supp Costs'!$D10,0,50,20,1))+COUNT(OFFSET('Sales Costs'!$D10,0,50,20,1))+COUNT(OFFSET('R&D Costs'!$D10,0,50,20,1))+COUNT(OFFSET('G&A Costs'!$D10,0,50,19,1)) -> 15 | BC67: =COUNT(OFFSET('Supp Costs'!$D10,0,51,20,1))+COUNT(OFFSET('Sales Costs'!$D10,0,51,20,1))+COUNT(OFFSET('R&D Costs'!$D10,0,51,20,1))+COUNT(OFFSET('G&A Costs'!$D10,0,51,19,1)) -> 15 | BD67: =COUNT(OFFSET('Supp Costs'!$D10,0,52,20,1))+COUNT(OFFSET('Sales Costs'!$D10,0,52,20,1))+COUNT(OFFSET('R&D Costs'!$D10,0,52,20,1))+COUNT(OFFSET('G&A Costs'!$D10,0,52,19,1)) -> 15 | BE67: =COUNT(OFFSET('Supp Costs'!$D10,0,53,20,1))+COUNT(OFFSET('Sales Costs'!$D10,0,53,20,1))+COUNT(OFFSET('R&D Costs'!$D10,0,53,20,1))+COUNT(OFFSET('G&A Costs'!$D10,0,53,19,1)) -> 15 | BF67: =COUNT(OFFSET('Supp Costs'!$D10,0,54,20,1))+COUNT(OFFSET('Sales Costs'!$D10,0,54,20,1))+COUNT(OFFSET('R&D Costs'!$D10,0,54,20,1))+COUNT(OFFSET('G&A Costs'!$D10,0,54,19,1)) -> 15 | BG67: =COUNT(OFFSET('Supp Costs'!$D10,0,55,20,1))+COUNT(OFFSET('Sales Costs'!$D10,0,55,20,1))+COUNT(OFFSET('R&D Costs'!$D10,0,55,20,1))+COUNT(OFFSET('G&A Costs'!$D10,0,55,19,1)) -> 15 | BH67: =COUNT(OFFSET('Supp Costs'!$D10,0,56,20,1))+COUNT(OFFSET('Sales Costs'!$D10,0,56,20,1))+COUNT(OFFSET('R&D Costs'!$D10,0,56,20,1))+COUNT(OFFSET('G&A Costs'!$D10,0,56,19,1)) -> 15 | BI67: =COUNT(OFFSET('Supp Costs'!$D10,0,57,20,1))+COUNT(OFFSET('Sales Costs'!$D10,0,57,20,1))+COUNT(OFFSET('R&D Costs'!$D10,0,57,20,1))+COUNT(OFFSET('G&A Costs'!$D10,0,57,19,1)) -> 15 | BJ67: =COUNT(OFFSET('Supp Costs'!$D10,0,58,20,1))+COUNT(OFFSET('Sales Costs'!$D10,0,58,20,1))+COUNT(OFFSET('R&D Costs'!$D10,0,58,20,1))+COUNT(OFFSET('G&A Costs'!$D10,0,58,19,1)) -> 15 | BK67: =COUNT(OFFSET('Supp Costs'!$D10,0,59,20,1))+COUNT(OFFSET('Sales Costs'!$D10,0,59,20,1))+COUNT(OFFSET('R&D Costs'!$D10,0,59,20,1))+COUNT(OFFSET('G&A Costs'!$D10,0,59,19,1)) -> 15

Sheet Revenues
A1: LAM | D1: =CYFY&TEXT(StartYear+COLUMN()-4,"0000") -> CY2015 | E1: CY2016 | F1: CY2017 | G1: CY2018 | H1: CY2019
A2: Gross Revenue - Annual | D2: =IF(COLUMN()=4,SUM(OFFSET($D$5,0,0,1,13-IF(CYFY="FY",0,SM_CYFY))),SUM(OFFSET($D$5,0,(13-SM_CYFY)+12*(COLUMN()-5),1,12))) -> 144200 | E2: =IF(COLUMN()=4,SUM(OFFSET($D$5,0,0,1,13-IF(CYFY="FY",0,SM_CYFY))),SUM(OFFSET($D$5,0,(13-SM_CYFY)+12*(COLUMN()-5),1,12))) -> 1417900 | F2: 2958600 | G2: 4380000 | H2: 5820000
D4: =IF(C4="",FirstMonth,DATE(YEAR(C4),MONTH(C4)+1,1)) -> 2015-01-01 | E4: =IF(D4="",FirstMonth,DATE(YEAR(D4),MONTH(D4)+1,1)) -> 2015-02-01 | F4: 2015-03-01 | G4: =IF(F4="",FirstMonth,DATE(YEAR(F4),MONTH(F4)+1,1)) -> 2015-04-01 | H4: 2015-05-01 | I4: 2015-06-01 | J4: 2015-07-01 | K4: 2015-08-01 | L4: 2015-09-01 | M4: 2015-10-01 | N4: 2015-11-01 | O4: 2015-12-01 | P4: 2016-01-01 | Q4: 2016-02-01 | R4: 2016-03-01 | S4: 2016-04-01 | T4: 2016-05-01 | U4: 2016-06-01 | V4: 2016-07-01 | W4: 2016-08-01 | X4: 2016-09-01 | Y4: 2016-10-01 | Z4: 2016-11-01 | AA4: 2016-12-01 | AB4: 2017-01-01 | AC4: 2017-02-01 | AD4: 2017-03-01 | AE4: 2017-04-01 | AF4: 2017-05-01 | AG4: 2017-06-01 | AH4: 2017-07-01 | AI4: 2017-08-01 | AJ4: =IF(AI4="",FirstMonth,DATE(YEAR(AI4),MONTH(AI4)+1,1)) -> 2017-09-01 | AK4: 2017-10-01 | AL4: 2017-11-01 | AM4: 2017-12-01 | AN4: =IF(AM4="",FirstMonth,DATE(YEAR(AM4),MONTH(AM4)+1,1)) -> 2018-01-01 | AO4: =IF(AN4="",FirstMonth,DATE(YEAR(AN4),MONTH(AN4)+1,1)) -> 2018-02-01 | AP4: =IF(AO4="",FirstMonth,DATE(YEAR(AO4),MONTH(AO4)+1,1)) -> 2018-03-01 | AQ4: =IF(AP4="",FirstMonth,DATE(YEAR(AP4),MONTH(AP4)+1,1)) -> 2018-04-01 | AR4: =IF(AQ4="",FirstMonth,DATE(YEAR(AQ4),MONTH(AQ4)+1,1)) -> 2018-05-01 | AS4: =IF(AR4="",FirstMonth,DATE(YEAR(AR4),MONTH(AR4)+1,1)) -> 2018-06-01 | AT4: =IF(AS4="",FirstMonth,DATE(YEAR(AS4),MONTH(AS4)+1,1)) -> 2018-07-01 | AU4: =IF(AT4="",FirstMonth,DATE(YEAR(AT4),MONTH(AT4)+1,1)) -> 2018-08-01 | AV4: =IF(AU4="",FirstMonth,DATE(YEAR(AU4),MONTH(AU4)+1,1)) -> 2018-09-01 | AW4: =IF(AV4="",FirstMonth,DATE(YEAR(AV4),MONTH(AV4)+1,1)) -> 2018-10-01 | AX4: =IF(AW4="",FirstMonth,DATE(YEAR(AW4),MONTH(AW4)+1,1)) -> 2018-11-01 | AY4: =IF(AX4="",FirstMonth,DATE(YEAR(AX4),MONTH(AX4)+1,1)) -> 2018-12-01 | AZ4: =IF(AY4="",FirstMonth,DATE(YEAR(AY4),MONTH(AY4)+1,1)) -> 2019-01-01 | BA4: =IF(AZ4="",FirstMonth,DATE(YEAR(AZ4),MONTH(AZ4)+1,1)) -> 2019-02-01 | BB4: =IF(BA4="",FirstMonth,DATE(YEAR(BA4),MONTH(BA4)+1,1)) -> 2019-03-01 | BC4: =IF(BB4="",FirstMonth,DATE(YEAR(BB4),MONTH(BB4)+1,1)) -> 2019-04-01 | BD4: =IF(BC4="",FirstMonth,DATE(YEAR(BC4),MONTH(BC4)+1,1)) -> 2019-05-01 | BE4: =IF(BD4="",FirstMonth,DATE(YEAR(BD4),MONTH(BD4)+1,1)) -> 2019-06-01 | BF4: =IF(BE4="",FirstMonth,DATE(YEAR(BE4),MONTH(BE4)+1,1)) -> 2019-07-01 | BG4: =IF(BF4="",FirstMonth,DATE(YEAR(BF4),MONTH(BF4)+1,1)) -> 2019-08-01 | BH4: =IF(BG4="",FirstMonth,DATE(YEAR(BG4),MONTH(BG4)+1,1)) -> 2019-09-01 | BI4: =IF(BH4="",FirstMonth,DATE(YEAR(BH4),MONTH(BH4)+1,1)) -> 2019-10-01 | BJ4: =IF(BI4="",FirstMonth,DATE(YEAR(BI4),MONTH(BI4)+1,1)) -> 2019-11-01 | BK4: =IF(BJ4="",FirstMonth,DATE(YEAR(BJ4),MONTH(BJ4)+1,1)) -> 2019-12-01
A5: Gross Revenue - Monthly | D5: =D17+D18+D21 -> 1200 | E5: =E17+E18+E21 -> 1500 | F5: =F17+F18+F21 -> 1800 | G5: 2100 | H5: 2400 | I5: 2700 | J5: 3000 | K5: 3300 | L5: 3600 | M5: 23900 | N5: 46700 | O5: 52000 | P5: 57300 | Q5: 62600 | R5: 63700 | S5: 69000 | T5: 94300 | U5: 122100 | V5: 132400 | W5: 142700 | X5: 153000 | Y5: 163300 | Z5: 173600 | AA5: 183900 | AB5: 194200 | AC5: 204500 | AD5: 214800 | AE5: 225100 | AF5: 230000 | AG5: 240000 | AH5: 250000 | AI5: 260000 | AJ5: 270000 | AK5: 280000 | AL5: 290000 | AM5: 300000 | AN5: 310000 | AO5: 320000 | AP5: 330000 | AQ5: 340000 | AR5: 350000 | AS5: 360000 | AT5: 370000 | AU5: 380000 | AV5: 390000 | AW5: 400000 | AX5: 410000 | AY5: 420000 | AZ5: 430000 | BA5: 440000 | BB5: 450000 | BC5: 460000 | BD5: 470000 | BE5: 480000 | BF5: 490000 | BG5: 500000 | BH5: 510000 | BI5: 520000 | BJ5: 530000 | BK5: 540000
A6: Gross Revenue - Monthly (subject to commisssions) | D6: =D17 -> 0 | E6: =E17 -> 0 | F6: =F17 -> 0 | G6: 0 | H6: 0 | I6: 0 | J6: 0 | K6: 0 | L6: 0 | M6: 20000 | N6: 40000 | O6: 40000 | P6: 40000 | Q6: 40000 | R6: 40000 | S6: 40000 | T6: 60000 | U6: 80000 | V6: 80000 | W6: 80000 | X6: 80000 | Y6: 80000 | Z6: 80000 | AA6: 80000 | AB6: 80000 | AC6: 80000 | AD6: 80000 | AE6: 80000 | AF6: 80000 | AG6: 80000 | AH6: 80000 | AI6: 80000 | AJ6: 80000 | AK6: 80000 | AL6: 80000 | AM6: 80000 | AN6: 80000 | AO6: 80000 | AP6: 80000 | AQ6: 80000 | AR6: 80000 | AS6: 80000 | AT6: 80000 | AU6: 80000 | AV6: 80000 | AW6: 80000 | AX6: 80000 | AY6: 80000 | AZ6: 80000 | BA6: 80000 | BB6: 80000 | BC6: 80000 | BD6: 80000 | BE6: 80000 | BF6: 80000 | BG6: 80000 | BH6: 80000 | BI6: 80000 | BJ6: 80000 | BK6: 80000
A7: Gross Revenue - Monthly (subject to account receivable | D7: =D17+D18 -> 0 | E7: =E17+E18 -> 0 | F7: =F17+F18 -> 0 | G7: 0 | H7: 0 | I7: 0 | J7: 0 | K7: 0 | L7: 0 | M7: 20000 | N7: 42500 | O7: 47500 | P7: 52500 | Q7: 57500 | R7: 62500 | S7: 67500 | T7: 92500 | U7: 120000 | V7: 130000 | W7: 140000 | X7: 150000 | Y7: 160000 | Z7: 170000 | AA7: 180000 | AB7: 190000 | AC7: 200000 | AD7: 210000 | AE7: 220000 | AF7: 230000 | AG7: 240000 | AH7: 250000 | AI7: 260000 | AJ7: 270000 | AK7: 280000 | AL7: 290000 | AM7: 300000 | AN7: 310000 | AO7: 320000 | AP7: 330000 | AQ7: 340000 | AR7: 350000 | AS7: 360000 | AT7: 370000 | AU7: 380000 | AV7: 390000 | AW7: 400000 | AX7: 410000 | AY7: 420000 | AZ7: 430000 | BA7: 440000 | BB7: 450000 | BC7: 460000 | BD7: 470000 | BE7: 480000 | BF7: 490000 | BG7: 500000 | BH7: 510000 | BI7: 520000 | BJ7: 530000 | BK7: 540000
B9: The Monthly Gross Revenue line should do nothing more than sum values from below. Use italics font to denote the lines being summed.
B11: total number of customers | D11: =SUM(D14:$D$14) -> 0 | E11: =SUM($D14:E$14) -> 0 | F11: =SUM($D14:F$14) -> 0 | G11: =SUM($D14:G$14) -> 0 | H11: =SUM($D14:H$14) -> 0 | I11: =SUM($D14:I$14) -> 1 | J11: =SUM($D14:J$14) -> 2 | K11: =SUM($D14:K$14) -> 3 | L11: =SUM($D14:L$14) -> 4 | M11: =SUM($D14:M$14) -> 5 | N11: =SUM($D14:N$14) -> 6 | O11: =SUM($D14:O$14) -> 7 | P11: =SUM($D14:P$14) -> 9 | Q11: =SUM($D14:Q$14) -> 11 | R11: =SUM($D14:R$14) -> 13 | S11: =SUM($D14:S$14) -> 15 | T11: =SUM($D14:T$14) -> 17 | U11: =SUM($D14:U$14) -> 19 | V11: =SUM($D14:V$14) -> 21 | W11: =SUM($D14:W$14) -> 23 | X11: =SUM($D14:X$14) -> 25 | Y11: =SUM($D14:Y$14) -> 27 | Z11: =SUM($D14:Z$14) -> 29 | AA11: =SUM($D14:AA$14) -> 31 | AB11: =SUM($D14:AB$14) -> 33 | AC11: =SUM($D14:AC$14) -> 35 | AD11: =SUM($D14:AD$14) -> 37 | AE11: =SUM($D14:AE$14) -> 39 | AF11: =SUM($D14:AF$14) -> 41 | AG11: =SUM($D14:AG$14) -> 43 | AH11: =SUM($D14:AH$14) -> 45 | AI11: =SUM($D14:AI$14) -> 47 | AJ11: =SUM($D14:AJ$14) -> 49 | AK11: =SUM($D14:AK$14) -> 51 | AL11: =SUM($D14:AL$14) -> 53 | AM11: =SUM($D14:AM$14) -> 55 | AN11: =SUM($D14:AN$14) -> 57 | AO11: =SUM($D14:AO$14) -> 59 | AP11: =SUM($D14:AP$14) -> 61 | AQ11: =SUM($D14:AQ$14) -> 63 | AR11: =SUM($D14:AR$14) -> 65 | AS11: =SUM($D14:AS$14) -> 67 | AT11: =SUM($D14:AT$14) -> 69 | AU11: =SUM($D14:AU$14) -> 71 | AV11: =SUM($D14:AV$14) -> 73 | AW11: =SUM($D14:AW$14) -> 75 | AX11: =SUM($D14:AX$14) -> 77 | AY11: =SUM($D14:AY$14) -> 79 | AZ11: =SUM($D14:AZ$14) -> 81 | BA11: =SUM($D14:BA$14) -> 83 | BB11: =SUM($D14:BB$14) -> 85 | BC11: =SUM($D14:BC$14) -> 87 | BD11: =SUM($D14:BD$14) -> 89 | BE11: =SUM($D14:BE$14) -> 91 | BF11: =SUM($D14:BF$14) -> 93 | BG11: =SUM($D14:BG$14) -> 95 | BH11: =SUM($D14:BH$14) -> 97 | BI11: =SUM($D14:BI$14) -> 99 | BJ11: =SUM($D14:BJ$14) -> 101 | BK11: =SUM($D14:BK$14) -> 103
A13: Product Sales Revenue
B14: Number of active sales people | D14: 0 | E14: 0 | F14: 0 | G14: 0 | H14: 0 | I14: 1 | J14: 1 | K14: 1 | L14: 1 | M14: 1 | N14: 1 | O14: 1 | P14: 2 | Q14: 2 | R14: 2 | S14: 2 | T14: 2 | U14: 2 | V14: 2 | W14: 2 | X14: 2 | Y14: 2 | Z14: 2 | AA14: 2 | AB14: 2 | AC14: 2 | AD14: 2 | AE14: 2 | AF14: 2 | AG14: 2 | AH14: 2 | AI14: 2 | AJ14: 2 | AK14: 2 | AL14: 2 | AM14: 2 | AN14: 2 | AO14: 2 | AP14: 2 | AQ14: 2 | AR14: 2 | AS14: 2 | AT14: 2 | AU14: 2 | AV14: 2 | AW14: 2 | AX14: 2 | AY14: 2 | AZ14: 2 | BA14: 2 | BB14: 2 | BC14: 2 | BD14: 2 | BE14: 2 | BF14: 2 | BG14: 2 | BH14: 2 | BI14: 2 | BJ14: 2 | BK14: 2
B16: Number of new customers | D16: 0 | E16: 0 | F16: 0 | G16: 0 | H16: 0 | I16: 0 | J16: 0 | K16: 0 | L16: 0 | M16: 1 | N16: 2 | O16: 2 | P16: 2 | Q16: 2 | R16: 2 | S16: 2 | T16: 3 | U16: 4 | V16: 4 | W16: 4 | X16: 4 | Y16: 4 | Z16: 4 | AA16: 4 | AB16: 4 | AC16: 4 | AD16: 4 | AE16: 4 | AF16: 4 | AG16: 4 | AH16: 4 | AI16: 4 | AJ16: 4 | AK16: 4 | AL16: 4 | AM16: 4 | AN16: 4 | AO16: 4 | AP16: 4 | AQ16: 4 | AR16: 4 | AS16: 4 | AT16: 4 | AU16: 4 | AV16: 4 | AW16: 4 | AX16: 4 | AY16: 4 | AZ16: 4 | BA16: 4 | BB16: 4 | BC16: 4 | BD16: 4 | BE16: 4 | BF16: 4 | BG16: 4 | BH16: 4 | BI16: 4 | BJ16: 4 | BK16: 4
B17: Initial Sales Revenue | D17: 0 | E17: 0 | F17: 0 | G17: 0 | H17: 0 | I17: 0 | J17: 0 | K17: 0 | L17: 0 | M17: 20000 | N17: 40000 | O17: 40000 | P17: 40000 | Q17: 40000 | R17: 40000 | S17: 40000 | T17: 60000 | U17: 80000 | V17: 80000 | W17: 80000 | X17: 80000 | Y17: 80000 | Z17: 80000 | AA17: 80000 | AB17: 80000 | AC17: 80000 | AD17: 80000 | AE17: 80000 | AF17: 80000 | AG17: 80000 | AH17: 80000 | AI17: 80000 | AJ17: 80000 | AK17: 80000 | AL17: 80000 | AM17: 80000 | AN17: 80000 | AO17: 80000 | AP17: 80000 | AQ17: 80000 | AR17: 80000 | AS17: 80000 | AT17: 80000 | AU17: 80000 | AV17: 80000 | AW17: 80000 | AX17: 80000 | AY17: 80000 | AZ17: 80000 | BA17: 80000 | BB17: 80000 | BC17: 80000 | BD17: 80000 | BE17: 80000 | BF17: 80000 | BG17: 80000 | BH17: 80000 | BI17: 80000 | BJ17: 80000 | BK17: 80000
B18: Recurring Reveue | D18: 0 | E18: 0 | F18: 0 | G18: 0 | H18: 0 | I18: 0 | J18: 0 | K18: 0 | L18: 0 | M18: 0 | N18: 2500 | O18: 7500 | P18: 12500 | Q18: 17500 | R18: 22500 | S18: 27500 | T18: 32500 | U18: 40000 | V18: 50000 | W18: 60000 | X18: 70000 | Y18: 80000 | Z18: 90000 | AA18: 100000 | AB18: 110000 | AC18: 120000 | AD18: 130000 | AE18: 140000 | AF18: 150000 | AG18: 160000 | AH18: 170000 | AI18: 180000 | AJ18: 190000 | AK18: 200000 | AL18: 210000 | AM18: 220000 | AN18: 230000 | AO18: 240000 | AP18: 250000 | AQ18: 260000 | AR18: 270000 | AS18: 280000 | AT18: 290000 | AU18: 300000 | AV18: 310000 | AW18: 320000 | AX18: 330000 | AY18: 340000 | AZ18: 350000 | BA18: 360000 | BB18: 370000 | BC18: 380000 | BD18: 390000 | BE18: 400000 | BF18: 410000 | BG18: 420000 | BH18: 430000 | BI18: 440000 | BJ18: 450000 | BK18: 460000
A20: Grant Income
D21: 1200 | E21: 1500 | F21: 1800 | G21: 2100 | H21: 2400 | I21: 2700 | J21: 3000 | K21: 3300 | L21: 3600 | M21: 3900 | N21: 4200 | O21: 4500 | P21: 4800 | Q21: 5100 | R21: 1200 | S21: 1500 | T21: 1800 | U21: 2100 | V21: 2400 | W21: 2700 | X21: 3000 | Y21: 3300 | Z21: 3600 | AA21: 3900 | AB21: 4200 | AC21: 4500 | AD21: 4800 | AE21: 5100
B27: Do not remove this line
A29: Assumptions and notes:
B31: Customer visits per month | C31: 4
B32: Number of months of pre-training | C32: 1 | D32: no sales until training is complete
B33: Number of months until full trained | C33: 4
B34: Closing rate | C34: 0.5
B35: Time between visit and sale (months) | C35: 2
B36: Initial sale Price | C36: 20000
B37: Monthly recurring revenue | C37: 2500
C40: Sales Person Designation | E40: Start Month | F40: Salary
C41: Region 1 Sales | E41: 2015-06-01 | F41: 80000
C42: Region 2 Sales | E42: 2016-01-01 | F42: 80000
C48: Note: Dates must be entered in ascending order

Sheet COGS
A1: LAM | D1: =CYFY&TEXT(StartYear+COLUMN()-4,"0000") -> CY2015 | E1: CY2016 | F1: CY2017 | G1: CY2018 | H1: CY2019
A2: COGS - Annual | D2: =IF(COLUMN()=4,SUM(OFFSET($D$5,0,0,1,13-IF(CYFY="FY",0,SM_CYFY))),SUM(OFFSET($D$5,0,(13-SM_CYFY)+12*(COLUMN()-5),1,12))) -> 95986 | E2: 643991 | F2: 853926 | G2: 927430 | H2: 1003324
D4: =IF(C4="",FirstMonth,DATE(YEAR(C4),MONTH(C4)+1,1)) -> 2015-01-01 | E4: 2015-02-01 | F4: 2015-03-01 | G4: 2015-04-01 | H4: 2015-05-01 | I4: 2015-06-01 | J4: 2015-07-01 | K4: 2015-08-01 | L4: 2015-09-01 | M4: 2015-10-01 | N4: 2015-11-01 | O4: 2015-12-01 | P4: 2016-01-01 | Q4: 2016-02-01 | R4: 2016-03-01 | S4: 2016-04-01 | T4: 2016-05-01 | U4: 2016-06-01 | V4: 2016-07-01 | W4: 2016-08-01 | X4: 2016-09-01 | Y4: 2016-10-01 | Z4: 2016-11-01 | AA4: 2016-12-01 | AB4: 2017-01-01 | AC4: 2017-02-01 | AD4: 2017-03-01 | AE4: 2017-04-01 | AF4: 2017-05-01 | AG4: 2017-06-01 | AH4: 2017-07-01 | AI4: 2017-08-01 | AJ4: =IF(AI4="",FirstMonth,DATE(YEAR(AI4),MONTH(AI4)+1,1)) -> 2017-09-01 | AK4: 2017-10-01 | AL4: 2017-11-01 | AM4: 2017-12-01 | AN4: =IF(AM4="",FirstMonth,DATE(YEAR(AM4),MONTH(AM4)+1,1)) -> 2018-01-01 | AO4: =IF(AN4="",FirstMonth,DATE(YEAR(AN4),MONTH(AN4)+1,1)) -> 2018-02-01 | AP4: =IF(AO4="",FirstMonth,DATE(YEAR(AO4),MONTH(AO4)+1,1)) -> 2018-03-01 | AQ4: =IF(AP4="",FirstMonth,DATE(YEAR(AP4),MONTH(AP4)+1,1)) -> 2018-04-01 | AR4: =IF(AQ4="",FirstMonth,DATE(YEAR(AQ4),MONTH(AQ4)+1,1)) -> 2018-05-01 | AS4: =IF(AR4="",FirstMonth,DATE(YEAR(AR4),MONTH(AR4)+1,1)) -> 2018-06-01 | AT4: =IF(AS4="",FirstMonth,DATE(YEAR(AS4),MONTH(AS4)+1,1)) -> 2018-07-01 | AU4: =IF(AT4="",FirstMonth,DATE(YEAR(AT4),MONTH(AT4)+1,1)) -> 2018-08-01 | AV4: =IF(AU4="",FirstMonth,DATE(YEAR(AU4),MONTH(AU4)+1,1)) -> 2018-09-01 | AW4: =IF(AV4="",FirstMonth,DATE(YEAR(AV4),MONTH(AV4)+1,1)) -> 2018-10-01 | AX4: =IF(AW4="",FirstMonth,DATE(YEAR(AW4),MONTH(AW4)+1,1)) -> 2018-11-01 | AY4: =IF(AX4="",FirstMonth,DATE(YEAR(AX4),MONTH(AX4)+1,1)) -> 2018-12-01 | AZ4: =IF(AY4="",FirstMonth,DATE(YEAR(AY4),MONTH(AY4)+1,1)) -> 2019-01-01 | BA4: =IF(AZ4="",FirstMonth,DATE(YEAR(AZ4),MONTH(AZ4)+1,1)) -> 2019-02-01 | BB4: =IF(BA4="",FirstMonth,DATE(YEAR(BA4),MONTH(BA4)+1,1)) -> 2019-03-01 | BC4: =IF(BB4="",FirstMonth,DATE(YEAR(BB4),MONTH(BB4)+1,1)) -> 2019-04-01 | BD4: =IF(BC4="",FirstMonth,DATE(YEAR(BC4),MONTH(BC4)+1,1)) -> 2019-05-01 | BE4: =IF(BD4="",FirstMonth,DATE(YEAR(BD4),MONTH(BD4)+1,1)) -> 2019-06-01 | BF4: =IF(BE4="",FirstMonth,DATE(YEAR(BE4),MONTH(BE4)+1,1)) -> 2019-07-01 | BG4: =IF(BF4="",FirstMonth,DATE(YEAR(BF4),MONTH(BF4)+1,1)) -> 2019-08-01 | BH4: =IF(BG4="",FirstMonth,DATE(YEAR(BG4),MONTH(BG4)+1,1)) -> 2019-09-01 | BI4: =IF(BH4="",FirstMonth,DATE(YEAR(BH4),MONTH(BH4)+1,1)) -> 2019-10-01 | BJ4: =IF(BI4="",FirstMonth,DATE(YEAR(BI4),MONTH(BI4)+1,1)) -> 2019-11-01 | BK4: =IF(BJ4="",FirstMonth,DATE(YEAR(BJ4),MONTH(BJ4)+1,1)) -> 2019-12-01
A5: COGS - Monthly | D5: =D14+D15+D17+D18+D19+D28+D29 -> 1200 | E5: =E14+E15+E17+E18+E19+E28+E29 -> 1200 | F5: 1200 | G5: 1200 | H5: 1200 | I5: 1498 | J5: 1498 | K5: 1498 | L5: 1498 | M5: 17398 | N5: 33298 | O5: 33298 | P5: 33298 | Q5: 33298 | R5: 33298 | S5: 33298 | T5: 49198 | U5: 65098 | V5: 65098 | W5: 65098 | X5: 65098 | Y5: 65098 | Z5: 65098 | AA5: 71013 | AB5: 71147 | AC5: 71147 | AD5: 71147 | AE5: 71147 | AF5: 71147 | AG5: 71147 | AH5: 71147 | AI5: 71147 | AJ5: 71147 | AK5: 71147 | AL5: 71147 | AM5: 71309 | AN5: 77272 | AO5: 77272 | AP5: 77272 | AQ5: 77272 | AR5: 77272 | AS5: 77272 | AT5: 77272 | AU5: 77272 | AV5: 77272 | AW5: 77272 | AX5: 77272 | AY5: 77438 | AZ5: 83596 | BA5: 83596 | BB5: 83596 | BC5: 83596 | BD5: 83596 | BE5: 83596 | BF5: 83596 | BG5: 83596 | BH5: 83596 | BI5: 83596 | BJ5: 83596 | BK5: 83768
A6: COGS - Monthly (subject to inventory) | D6: =D17 -> 0 | E6: =E17 -> 0 | F6: 0 | G6: 0 | H6: 0 | I6: 0 | J6: 0 | K6: 0 | L6: 0 | M6: 15000 | N6: 30000 | O6: 30000 | P6: 30000 | Q6: 30000 | R6: 30000 | S6: 30000 | T6: 45000 | U6: 60000 | V6: 60000 | W6: 60000 | X6: 60000 | Y6: 60000 | Z6: 60000 | AA6: 60000 | AB6: 60000 | AC6: 60000 | AD6: 60000 | AE6: 60000 | AF6: 60000 | AG6: 60000 | AH6: 60000 | AI6: 60000 | AJ6: 60000 | AK6: 60000 | AL6: 60000 | AM6: 60000 | AN6: 60000 | AO6: 60000 | AP6: 60000 | AQ6: 60000 | AR6: 60000 | AS6: 60000 | AT6: 60000 | AU6: 60000 | AV6: 60000 | AW6: 60000 | AX6: 60000 | AY6: 60000 | AZ6: 60000 | BA6: 60000 | BB6: 60000 | BC6: 60000 | BD6: 60000 | BE6: 60000 | BF6: 60000 | BG6: 60000 | BH6: 60000 | BI6: 60000 | BJ6: 60000 | BK6: 60000
A7: COGS - Monthly (subject to accounts payable) | D7: =D14+D15+D17 -> 1200 | E7: =E14+E15+E17 -> 1200 | F7: 1200 | G7: 1200 | H7: 1200 | I7: 1200 | J7: 1200 | K7: 1200 | L7: 1200 | M7: 16200 | N7: 31200 | O7: 31200 | P7: 31200 | Q7: 31200 | R7: 31200 | S7: 31200 | T7: 46200 | U7: 61200 | V7: 61200 | W7: 61200 | X7: 61200 | Y7: 61200 | Z7: 61200 | AA7: 61200 | AB7: 61200 | AC7: 61200 | AD7: 61200 | AE7: 61200 | AF7: 61200 | AG7: 61200 | AH7: 61200 | AI7: 61200 | AJ7: 61200 | AK7: 61200 | AL7: 61200 | AM7: 61200 | AN7: 61200 | AO7: 61200 | AP7: 61200 | AQ7: 61200 | AR7: 61200 | AS7: 61200 | AT7: 61200 | AU7: 61200 | AV7: 61200 | AW7: 61200 | AX7: 61200 | AY7: 61200 | AZ7: 61200 | BA7: 61200 | BB7: 61200 | BC7: 61200 | BD7: 61200 | BE7: 61200 | BF7: 61200 | BG7: 61200 | BH7: 61200 | BI7: 61200 | BJ7: 61200 | BK7: 61200
B9: The Monthly COGS line should do nothing more than sum values from below.
B11: Unit sold (for reference) | D11: =Revenues!D16 -> 0 | E11: =Revenues!E16 -> 0 | F11: =Revenues!F16 -> 0 | G11: =Revenues!G16 -> 0 | H11: =Revenues!H16 -> 0 | I11: =Revenues!I16 -> 0 | J11: =Revenues!J16 -> 0 | K11: =Revenues!K16 -> 0 | L11: =Revenues!L16 -> 0 | M11: =Revenues!M16 -> 1 | N11: =Revenues!N16 -> 2 | O11: =Revenues!O16 -> 2 | P11: =Revenues!P16 -> 2 | Q11: =Revenues!Q16 -> 2 | R11: =Revenues!R16 -> 2 | S11: =Revenues!S16 -> 2 | T11: =Revenues!T16 -> 3 | U11: =Revenues!U16 -> 4 | V11: =Revenues!V16 -> 4 | W11: =Revenues!W16 -> 4 | X11: =Revenues!X16 -> 4 | Y11: =Revenues!Y16 -> 4 | Z11: =Revenues!Z16 -> 4 | AA11: =Revenues!AA16 -> 4 | AB11: =Revenues!AB16 -> 4 | AC11: =Revenues!AC16 -> 4 | AD11: =Revenues!AD16 -> 4 | AE11: =Revenues!AE16 -> 4 | AF11: =Revenues!AF16 -> 4 | AG11: =Revenues!AG16 -> 4 | AH11: =Revenues!AH16 -> 4 | AI11: =Revenues!AI16 -> 4 | AJ11: =Revenues!AJ16 -> 4 | AK11: =Revenues!AK16 -> 4 | AL11: =Revenues!AL16 -> 4 | AM11: =Revenues!AM16 -> 4 | AN11: =Revenues!AN16 -> 4 | AO11: =Revenues!AO16 -> 4 | AP11: =Revenues!AP16 -> 4 | AQ11: =Revenues!AQ16 -> 4 | AR11: =Revenues!AR16 -> 4 | AS11: =Revenues!AS16 -> 4 | AT11: =Revenues!AT16 -> 4 | AU11: =Revenues!AU16 -> 4 | AV11: =Revenues!AV16 -> 4 | AW11: =Revenues!AW16 -> 4 | AX11: =Revenues!AX16 -> 4 | AY11: =Revenues!AY16 -> 4 | AZ11: =Revenues!AZ16 -> 4 | BA11: =Revenues!BA16 -> 4 | BB11: =Revenues!BB16 -> 4 | BC11: =Revenues!BC16 -> 4 | BD11: =Revenues!BD16 -> 4 | BE11: =Revenues!BE16 -> 4 | BF11: =Revenues!BF16 -> 4 | BG11: =Revenues!BG16 -> 4 | BH11: =Revenues!BH16 -> 4 | BI11: =Revenues!BI16 -> 4 | BJ11: =Revenues!BJ16 -> 4 | BK11: =Revenues!BK16 -> 4
B12: Sales revenue (for reference) | D12: =Revenues!D17 -> 0 | E12: =Revenues!E17 -> 0 | F12: =Revenues!F17 -> 0 | G12: =Revenues!G17 -> 0 | H12: =Revenues!H17 -> 0 | I12: =Revenues!I17 -> 0 | J12: =Revenues!J17 -> 0 | K12: =Revenues!K17 -> 0 | L12: =Revenues!L17 -> 0 | M12: =Revenues!M17 -> 20000 | N12: =Revenues!N17 -> 40000 | O12: =Revenues!O17 -> 40000 | P12: =Revenues!P17 -> 40000 | Q12: =Revenues!Q17 -> 40000 | R12: =Revenues!R17 -> 40000 | S12: =Revenues!S17 -> 40000 | T12: =Revenues!T17 -> 60000 | U12: =Revenues!U17 -> 80000 | V12: =Revenues!V17 -> 80000 | W12: =Revenues!W17 -> 80000 | X12: =Revenues!X17 -> 80000 | Y12: =Revenues!Y17 -> 80000 | Z12: =Revenues!Z17 -> 80000 | AA12: =Revenues!AA17 -> 80000 | AB12: =Revenues!AB17 -> 80000 | AC12: =Revenues!AC17 -> 80000 | AD12: =Revenues!AD17 -> 80000 | AE12: =Revenues!AE17 -> 80000 | AF12: =Revenues!AF17 -> 80000 | AG12: =Revenues!AG17 -> 80000 | AH12: =Revenues!AH17 -> 80000 | AI12: =Revenues!AI17 -> 80000 | AJ12: =Revenues!AJ17 -> 80000 | AK12: =Revenues!AK17 -> 80000 | AL12: =Revenues!AL17 -> 80000 | AM12: =Revenues!AM17 -> 80000 | AN12: =Revenues!AN17 -> 80000 | AO12: =Revenues!AO17 -> 80000 | AP12: =Revenues!AP17 -> 80000 | AQ12: =Revenues!AQ17 -> 80000 | AR12: =Revenues!AR17 -> 80000 | AS12: =Revenues!AS17 -> 80000 | AT12: =Revenues!AT17 -> 80000 | AU12: =Revenues!AU17 -> 80000 | AV12: =Revenues!AV17 -> 80000 | AW12: =Revenues!AW17 -> 80000 | AX12: =Revenues!AX17 -> 80000 | AY12: =Revenues!AY17 -> 80000 | AZ12: =Revenues!AZ17 -> 80000 | BA12: =Revenues!BA17 -> 80000 | BB12: =Revenues!BB17 -> 80000 | BC12: =Revenues!BC17 -> 80000 | BD12: =Revenues!BD17 -> 80000 | BE12: =Revenues!BE17 -> 80000 | BF12: =Revenues!BF17 -> 80000 | BG12: =Revenues!BG17 -> 80000 | BH12: =Revenues!BH17 -> 80000 | BI12: =Revenues!BI17 -> 80000 | BJ12: =Revenues!BJ17 -> 80000 | BK12: =Revenues!BK17 -> 80000
B14: Manufacturing facility rent | D14: 1000 | E14: 1000 | F14: 1000 | G14: 1000 | H14: 1000 | I14: 1000 | J14: 1000 | K14: 1000 | L14: 1000 | M14: 1000 | N14: 1000 | O14: 1000 | P14: 1000 | Q14: 1000 | R14: 1000 | S14: 1000 | T14: 1000 | U14: 1000 | V14: 1000 | W14: 1000 | X14: 1000 | Y14: 1000 | Z14: 1000 | AA14: 1000 | AB14: 1000 | AC14: 1000 | AD14: 1000 | AE14: 1000 | AF14: 1000 | AG14: 1000 | AH14: 1000 | AI14: 1000 | AJ14: 1000 | AK14: 1000 | AL14: 1000 | AM14: 1000 | AN14: 1000 | AO14: 1000 | AP14: 1000 | AQ14: 1000 | AR14: 1000 | AS14: 1000 | AT14: 1000 | AU14: 1000 | AV14: 1000 | AW14: 1000 | AX14: 1000 | AY14: 1000 | AZ14: 1000 | BA14: 1000 | BB14: 1000 | BC14: 1000 | BD14: 1000 | BE14: 1000 | BF14: 1000 | BG14: 1000 | BH14: 1000 | BI14: 1000 | BJ14: 1000 | BK14: 1000
B15: Manufacturing facility utilities | D15: 200 | E15: 200 | F15: 200 | G15: 200 | H15: 200 | I15: 200 | J15: 200 | K15: 200 | L15: 200 | M15: 200 | N15: 200 | O15: 200 | P15: 200 | Q15: 200 | R15: 200 | S15: 200 | T15: 200 | U15: 200 | V15: 200 | W15: 200 | X15: 200 | Y15: 200 | Z15: 200 | AA15: 200 | AB15: 200 | AC15: 200 | AD15: 200 | AE15: 200 | AF15: 200 | AG15: 200 | AH15: 200 | AI15: 200 | AJ15: 200 | AK15: 200 | AL15: 200 | AM15: 200 | AN15: 200 | AO15: 200 | AP15: 200 | AQ15: 200 | AR15: 200 | AS15: 200 | AT15: 200 | AU15: 200 | AV15: 200 | AW15: 200 | AX15: 200 | AY15: 200 | AZ15: 200 | BA15: 200 | BB15: 200 | BC15: 200 | BD15: 200 | BE15: 200 | BF15: 200 | BG15: 200 | BH15: 200 | BI15: 200 | BJ15: 200 | BK15: 200
B17: Hardware costs | D17: =D11*$C$35 -> 0 | E17: =E11*$C$35 -> 0 | F17: 0 | G17: 0 | H17: 0 | I17: 0 | J17: 0 | K17: 0 | L17: 0 | M17: 15000 | N17: 30000 | O17: 30000 | P17: 30000 | Q17: 30000 | R17: 30000 | S17: 30000 | T17: 45000 | U17: 60000 | V17: 60000 | W17: 60000 | X17: 60000 | Y17: 60000 | Z17: 60000 | AA17: 60000 | AB17: 60000 | AC17: 60000 | AD17: 60000 | AE17: 60000 | AF17: 60000 | AG17: 60000 | AH17: 60000 | AI17: 60000 | AJ17: 60000 | AK17: 60000 | AL17: 60000 | AM17: 60000 | AN17: 60000 | AO17: 60000 | AP17: 60000 | AQ17: 60000 | AR17: 60000 | AS17: 60000 | AT17: 60000 | AU17: 60000 | AV17: 60000 | AW17: 60000 | AX17: 60000 | AY17: 60000 | AZ17: 60000 | BA17: 60000 | BB17: 60000 | BC17: 60000 | BD17: 60000 | BE17: 60000 | BF17: 60000 | BG17: 60000 | BH17: 60000 | BI17: 60000 | BJ17: 60000 | BK17: 60000
B18: Payment processing costs | D18: =D12*$C$36 -> 0 | E18: =E12*$C$36 -> 0 | F18: 0 | G18: 0 | H18: 0 | I18: 0 | J18: 0 | K18: 0 | L18: 0 | M18: 400 | N18: 800 | O18: 800 | P18: 800 | Q18: 800 | R18: 800 | S18: 800 | T18: 1200 | U18: 1600 | V18: 1600 | W18: 1600 | X18: 1600 | Y18: 1600 | Z18: 1600 | AA18: 1600 | AB18: 1600 | AC18: 1600 | AD18: 1600 | AE18: 1600 | AF18: 1600 | AG18: 1600 | AH18: 1600 | AI18: 1600 | AJ18: 1600 | AK18: 1600 | AL18: 1600 | AM18: 1600 | AN18: 1600 | AO18: 1600 | AP18: 1600 | AQ18: 1600 | AR18: 1600 | AS18: 1600 | AT18: 1600 | AU18: 1600 | AV18: 1600 | AW18: 1600 | AX18: 1600 | AY18: 1600 | AZ18: 1600 | BA18: 1600 | BB18: 1600 | BC18: 1600 | BD18: 1600 | BE18: 1600 | BF18: 1600 | BG18: 1600 | BH18: 1600 | BI18: 1600 | BJ18: 1600 | BK18: 1600
B19: Labor costs | D19: =D11*$C$37 -> 0 | E19: =E11*$C$37 -> 0 | F19: 0 | G19: 0 | H19: 0 | I19: 0 | J19: 0 | K19: 0 | L19: 0 | M19: 500 | N19: 1000 | O19: 1000 | P19: 1000 | Q19: 1000 | R19: 1000 | S19: 1000 | T19: 1500 | U19: 2000 | V19: 2000 | W19: 2000 | X19: 2000 | Y19: 2000 | Z19: 2000 | AA19: 2000 | AB19: 2000 | AC19: 2000 | AD19: 2000 | AE19: 2000 | AF19: 2000 | AG19: 2000 | AH19: 2000 | AI19: 2000 | AJ19: 2000 | AK19: 2000 | AL19: 2000 | AM19: 2000 | AN19: 2000 | AO19: 2000 | AP19: 2000 | AQ19: 2000 | AR19: 2000 | AS19: 2000 | AT19: 2000 | AU19: 2000 | AV19: 2000 | AW19: 2000 | AX19: 2000 | AY19: 2000 | AZ19: 2000 | BA19: 2000 | BB19: 2000 | BC19: 2000 | BD19: 2000 | BE19: 2000 | BF19: 2000 | BG19: 2000 | BH19: 2000 | BI19: 2000 | BJ19: 2000 | BK19: 2000
B28: Customer support | D28: ='Supp Costs'!D5 -> 0 | E28: ='Supp Costs'!E5 -> 0 | F28: ='Supp Costs'!F5 -> 0 | G28: ='Supp Costs'!G5 -> 0 | H28: ='Supp Costs'!H5 -> 0 | I28: ='Supp Costs'!I5 -> 0 | J28: ='Supp Costs'!J5 -> 0 | K28: ='Supp Costs'!K5 -> 0 | L28: ='Supp Costs'!L5 -> 0 | M28: ='Supp Costs'!M5 -> 0 | N28: ='Supp Costs'!N5 -> 0 | O28: ='Supp Costs'!O5 -> 0 | P28: ='Supp Costs'!P5 -> 0 | Q28: ='Supp Costs'!Q5 -> 0 | R28: ='Supp Costs'!R5 -> 0 | S28: ='Supp Costs'!S5 -> 0 | T28: ='Supp Costs'!T5 -> 0 | U28: ='Supp Costs'!U5 -> 0 | V28: ='Supp Costs'!V5 -> 0 | W28: ='Supp Costs'!W5 -> 0 | X28: ='Supp Costs'!X5 -> 0 | Y28: ='Supp Costs'!Y5 -> 0 | Z28: ='Supp Costs'!Z5 -> 0 | AA28: ='Supp Costs'!AA5 -> 5915 | AB28: ='Supp Costs'!AB5 -> 5930 | AC28: ='Supp Costs'!AC5 -> 5930 | AD28: ='Supp Costs'!AD5 -> 5930 | AE28: ='Supp Costs'!AE5 -> 5930 | AF28: ='Supp Costs'!AF5 -> 5930 | AG28: ='Supp Costs'!AG5 -> 5930 | AH28: ='Supp Costs'!AH5 -> 5930 | AI28: ='Supp Costs'!AI5 -> 5930 | AJ28: ='Supp Costs'!AJ5 -> 5930 | AK28: ='Supp Costs'!AK5 -> 5930 | AL28: ='Supp Costs'!AL5 -> 5930 | AM28: ='Supp Costs'!AM5 -> 6092 | AN28: ='Supp Costs'!AN5 -> 12055 | AO28: ='Supp Costs'!AO5 -> 12055 | AP28: ='Supp Costs'!AP5 -> 12055 | AQ28: ='Supp Costs'!AQ5 -> 12055 | AR28: ='Supp Costs'!AR5 -> 12055 | AS28: ='Supp Costs'!AS5 -> 12055 | AT28: ='Supp Costs'!AT5 -> 12055 | AU28: ='Supp Costs'!AU5 -> 12055 | AV28: ='Supp Costs'!AV5 -> 12055 | AW28: ='Supp Costs'!AW5 -> 12055 | AX28: ='Supp Costs'!AX5 -> 12055 | AY28: ='Supp Costs'!AY5 -> 12221 | AZ28: ='Supp Costs'!AZ5 -> 18379 | BA28: ='Supp Costs'!BA5 -> 18379 | BB28: ='Supp Costs'!BB5 -> 18379 | BC28: ='Supp Costs'!BC5 -> 18379 | BD28: ='Supp Costs'!BD5 -> 18379 | BE28: ='Supp Costs'!BE5 -> 18379 | BF28: ='Supp Costs'!BF5 -> 18379 | BG28: ='Supp Costs'!BG5 -> 18379 | BH28: ='Supp Costs'!BH5 -> 18379 | BI28: ='Supp Costs'!BI5 -> 18379 | BJ28: ='Supp Costs'!BJ5 -> 18379 | BK28: ='Supp Costs'!BK5 -> 18551
B29: Depreciation - production equipment | D29: ='Assets & Dep'!D26 -> 0 | E29: ='Assets & Dep'!E26 -> 0 | F29: ='Assets & Dep'!F26 -> 0 | G29: ='Assets & Dep'!G26 -> 0 | H29: ='Assets & Dep'!H26 -> 0 | I29: ='Assets & Dep'!I26 -> 298 | J29: ='Assets & Dep'!J26 -> 298 | K29: ='Assets & Dep'!K26 -> 298 | L29: ='Assets & Dep'!L26 -> 298 | M29: ='Assets & Dep'!M26 -> 298 | N29: ='Assets & Dep'!N26 -> 298 | O29: ='Assets & Dep'!O26 -> 298 | P29: ='Assets & Dep'!P26 -> 298 | Q29: ='Assets & Dep'!Q26 -> 298 | R29: ='Assets & Dep'!R26 -> 298 | S29: ='Assets & Dep'!S26 -> 298 | T29: ='Assets & Dep'!T26 -> 298 | U29: ='Assets & Dep'!U26 -> 298 | V29: ='Assets & Dep'!V26 -> 298 | W29: ='Assets & Dep'!W26 -> 298 | X29: ='Assets & Dep'!X26 -> 298 | Y29: ='Assets & Dep'!Y26 -> 298 | Z29: ='Assets & Dep'!Z26 -> 298 | AA29: ='Assets & Dep'!AA26 -> 298 | AB29: ='Assets & Dep'!AB26 -> 417 | AC29: ='Assets & Dep'!AC26 -> 417 | AD29: ='Assets & Dep'!AD26 -> 417 | AE29: ='Assets & Dep'!AE26 -> 417 | AF29: ='Assets & Dep'!AF26 -> 417 | AG29: ='Assets & Dep'!AG26 -> 417 | AH29: ='Assets & Dep'!AH26 -> 417 | AI29: ='Assets & Dep'!AI26 -> 417 | AJ29: ='Assets & Dep'!AJ26 -> 417 | AK29: ='Assets & Dep'!AK26 -> 417 | AL29: ='Assets & Dep'!AL26 -> 417 | AM29: ='Assets & Dep'!AM26 -> 417 | AN29: ='Assets & Dep'!AN26 -> 417 | AO29: ='Assets & Dep'!AO26 -> 417 | AP29: ='Assets & Dep'!AP26 -> 417 | AQ29: ='Assets & Dep'!AQ26 -> 417 | AR29: ='Assets & Dep'!AR26 -> 417 | AS29: ='Assets & Dep'!AS26 -> 417 | AT29: ='Assets & Dep'!AT26 -> 417 | AU29: ='Assets & Dep'!AU26 -> 417 | AV29: ='Assets & Dep'!AV26 -> 417 | AW29: ='Assets & Dep'!AW26 -> 417 | AX29: ='Assets & Dep'!AX26 -> 417 | AY29: ='Assets & Dep'!AY26 -> 417 | AZ29: ='Assets & Dep'!AZ26 -> 417 | BA29: ='Assets & Dep'!BA26 -> 417 | BB29: ='Assets & Dep'!BB26 -> 417 | BC29: ='Assets & Dep'!BC26 -> 417 | BD29: ='Assets & Dep'!BD26 -> 417 | BE29: ='Assets & Dep'!BE26 -> 417 | BF29: ='Assets & Dep'!BF26 -> 417 | BG29: ='Assets & Dep'!BG26 -> 417 | BH29: ='Assets & Dep'!BH26 -> 417 | BI29: ='Assets & Dep'!BI26 -> 417 | BJ29: ='Assets & Dep'!BJ26 -> 417 | BK29: ='Assets & Dep'!BK26 -> 417
B31: Do not remove this line
A33: Assumptions and notes:
B35: Hardware costs per unit sold | C35: 15000
B36: Payment processing costs | C36: 0.02
B37: Labor per customer sold | C37: 500

Sheet Supp Costs
A1: LAM | D1: =CYFY&TEXT(StartYear+COLUMN()-4,"0000") -> CY2015 | E1: CY2016 | F1: CY2017 | G1: CY2018 | H1: CY2019
A2: Supp Costs - Annual | D2: =IF(COLUMN()=4,SUM(OFFSET($D$5,0,0,1,13-IF(CYFY="FY",0,SM_CYFY))),SUM(OFFSET($D$5,0,(13-SM_CYFY)+12*(COLUMN()-5),1,12))) -> 0 | E2: =IF(COLUMN()=4,SUM(OFFSET($D$5,0,0,1,13-IF(CYFY="FY",0,SM_CYFY))),SUM(OFFSET($D$5,0,(13-SM_CYFY)+12*(COLUMN()-5),1,12))) -> 5915 | F2: =IF(COLUMN()=4,SUM(OFFSET($D$5,0,0,1,13-IF(CYFY="FY",0,SM_CYFY))),SUM(OFFSET($D$5,0,(13-SM_CYFY)+12*(COLUMN()-5),1,12))) -> 71322 | G2: =IF(COLUMN()=4,SUM(OFFSET($D$5,0,0,1,13-IF(CYFY="FY",0,SM_CYFY))),SUM(OFFSET($D$5,0,(13-SM_CYFY)+12*(COLUMN()-5),1,12))) -> 144826 | H2: =IF(COLUMN()=4,SUM(OFFSET($D$5,0,0,1,13-IF(CYFY="FY",0,SM_CYFY))),SUM(OFFSET($D$5,0,(13-SM_CYFY)+12*(COLUMN()-5),1,12))) -> 220720
D4: =IF(C4="",FirstMonth,DATE(YEAR(C4),MONTH(C4)+1,1)) -> 2015-01-01 | E4: 2015-02-01 | F4: 2015-03-01 | G4: 2015-04-01 | H4: 2015-05-01 | I4: 2015-06-01 | J4: 2015-07-01 | K4: 2015-08-01 | L4: 2015-09-01 | M4: 2015-10-01 | N4: 2015-11-01 | O4: 2015-12-01 | P4: 2016-01-01 | Q4: 2016-02-01 | R4: 2016-03-01 | S4: 2016-04-01 | T4: 2016-05-01 | U4: 2016-06-01 | V4: 2016-07-01 | W4: 2016-08-01 | X4: 2016-09-01 | Y4: 2016-10-01 | Z4: 2016-11-01 | AA4: 2016-12-01 | AB4: 2017-01-01 | AC4: 2017-02-01 | AD4: 2017-03-01 | AE4: 2017-04-01 | AF4: 2017-05-01 | AG4: 2017-06-01 | AH4: 2017-07-01 | AI4: 2017-08-01 | AJ4: 2017-09-01 | AK4: 2017-10-01 | AL4: 2017-11-01 | AM4: 2017-12-01 | AN4: 2018-01-01 | AO4: 2018-02-01 | AP4: 2018-03-01 | AQ4: 2018-04-01 | AR4: 2018-05-01 | AS4: 2018-06-01 | AT4: 2018-07-01 | AU4: 2018-08-01 | AV4: 2018-09-01 | AW4: 2018-10-01 | AX4: 2018-11-01 | AY4: 2018-12-01 | AZ4: 2019-01-01 | BA4: 2019-02-01 | BB4: 2019-03-01 | BC4: 2019-04-01 | BD4: 2019-05-01 | BE4: 2019-06-01 | BF4: 2019-07-01 | BG4: 2019-08-01 | BH4: 2019-09-01 | BI4: 2019-10-01 | BJ4: 2019-11-01 | BK4: 2019-12-01
A5: Supp Costs - Monthly | D5: =SUM(D11:D30)+SUM(D34:D46) -> 0 | E5: 0 | F5: 0 | G5: 0 | H5: 0 | I5: 0 | J5: 0 | K5: 0 | L5: 0 | M5: 0 | N5: 0 | O5: 0 | P5: 0 | Q5: 0 | R5: 0 | S5: 0 | T5: 0 | U5: 0 | V5: 0 | W5: 0 | X5: 0 | Y5: 0 | Z5: 0 | AA5: 5915 | AB5: 5930 | AC5: 5930 | AD5: 5930 | AE5: 5930 | AF5: 5930 | AG5: 5930 | AH5: 5930 | AI5: 5930 | AJ5: =SUM(AJ11:AJ30)+SUM(AJ34:AJ46) -> 5930 | AK5: 5930 | AL5: 5930 | AM5: 6092 | AN5: 12055 | AO5: 12055 | AP5: 12055 | AQ5: 12055 | AR5: 12055 | AS5: 12055 | AT5: 12055 | AU5: 12055 | AV5: 12055 | AW5: 12055 | AX5: 12055 | AY5: 12221 | AZ5: 18379 | BA5: 18379 | BB5: 18379 | BC5: 18379 | BD5: 18379 | BE5: 18379 | BF5: 18379 | BG5: 18379 | BH5: 18379 | BI5: 18379 | BJ5: 18379 | BK5: 18551
C8: The Monthly G&A Cost line should do nothing more than sum values from below.
B10: BEN | C10: Name/Position
A11: Use macro to add staff | B11: =IF(LEFT(C11,1)="C", "F","") -> F | C11: =IF( ISERROR(TEXT(OFFSET($C$4,0,MATCH(TRUE,INDEX(Revenues!$D$11:$BK$11>supp1st+(ROW()-11)*suppAdd,0),0),1,1),"mmm-yyyy")),"","Customer Support - start date: " & TEXT(OFFSET($C$4,0,MATCH(TRUE,INDEX(Revenues!$D$11:$BK$11>supp1st+(ROW()-11)*suppAdd,0),0),1,1),"mmm-yyyy")) -> Customer Support - start date: Nov-2015 | AA11: 5000 | AB11: 5000 | AC11: 5000 | AD11: 5000 | AE11: 5000 | AF11: 5000 | AG11: 5000 | AH11: 5000 | AI11: 5000 | AJ11: 5000 | AK11: 5000 | AL11: 5000 | AM11: 5150 | AN11: 5150 | AO11: 5150 | AP11: 5150 | AQ11: 5150 | AR11: 5150 | AS11: 5150 | AT11: 5150 | AU11: 5150 | AV11: 5150 | AW11: 5150 | AX11: 5150 | AY11: 5304 | AZ11: 5304 | BA11: 5304 | BB11: 5304 | BC11: 5304 | BD11: 5304 | BE11: 5304 | BF11: 5304 | BG11: 5304 | BH11: 5304 | BI11: 5304 | BJ11: 5304 | BK11: 5464
B12: F | C12: =IF( ISERROR(TEXT(OFFSET($C$4,0,MATCH(TRUE,INDEX(Revenues!$D$11:$BK$11>supp1st+(ROW()-11)*suppAdd,0),0),1,1),"mmm-yyyy")),"","Customer Support - start date: " & TEXT(OFFSET($C$4,0,MATCH(TRUE,INDEX(Revenues!$D$11:$BK$11>supp1st+(ROW()-11)*suppAdd,0),0),1,1),"mmm-yyyy")) -> Customer Support - start date: Dec-2016 | AN12: 5000 | AO12: 5000 | AP12: 5000 | AQ12: 5000 | AR12: 5000 | AS12: 5000 | AT12: 5000 | AU12: 5000 | AV12: 5000 | AW12: 5000 | AX12: 5000 | AY12: 5000 | AZ12: 5150 | BA12: 5150 | BB12: 5150 | BC12: 5150 | BD12: 5150 | BE12: 5150 | BF12: 5150 | BG12: 5150 | BH12: 5150 | BI12: 5150 | BJ12: 5150 | BK12: 5150
B13: F | C13: =IF( ISERROR(TEXT(OFFSET($C$4,0,MATCH(TRUE,INDEX(Revenues!$D$11:$BK$11>supp1st+(ROW()-11)*suppAdd,0),0),1,1),"mmm-yyyy")),"","Customer Support - start date: " & TEXT(OFFSET($C$4,0,MATCH(TRUE,INDEX(Revenues!$D$11:$BK$11>supp1st+(ROW()-11)*suppAdd,0),0),1,1),"mmm-yyyy")) -> Customer Support - start date: Jan-2018 | AZ13: 5000 | BA13: 5000 | BB13: 5000 | BC13: 5000 | BD13: 5000 | BE13: 5000 | BF13: 5000 | BG13: 5000 | BH13: 5000 | BI13: 5000 | BJ13: 5000 | BK13: 5000
B14: F | C14: =IF( ISERROR(TEXT(OFFSET($C$4,0,MATCH(TRUE,INDEX(Revenues!$D$11:$BK$11>supp1st+(ROW()-11)*suppAdd,0),0),1,1),"mmm-yyyy")),"","Customer Support - start date: " & TEXT(OFFSET($C$4,0,MATCH(TRUE,INDEX(Revenues!$D$11:$BK$11>supp1st+(ROW()-11)*suppAdd,0),0),1,1),"mmm-yyyy")) -> Customer Support - start date: Jan-2019
C15: =IF( ISERROR(TEXT(OFFSET($C$4,0,MATCH(TRUE,INDEX(Revenues!$D$11:$BK$11>supp1st+(ROW()-11)*suppAdd,0),0),1,1),"mmm-yyyy")),"","Customer Support - start date: " & TEXT(OFFSET($C$4,0,MATCH(TRUE,INDEX(Revenues!$D$11:$BK$11>supp1st+(ROW()-11)*suppAdd,0),0),1,1),"mmm-yyyy")) -> 
C16: =IF( ISERROR(TEXT(OFFSET($C$4,0,MATCH(TRUE,INDEX(Revenues!$D$11:$BK$11>supp1st+(ROW()-11)*suppAdd,0),0),1,1),"mmm-yyyy")),"","Customer Support - start date: " & TEXT(OFFSET($C$4,0,MATCH(TRUE,INDEX(Revenues!$D$11:$BK$11>supp1st+(ROW()-11)*suppAdd,0),0),1,1),"mmm-yyyy")) -> 
C17: =IF( ISERROR(TEXT(OFFSET($C$4,0,MATCH(TRUE,INDEX(Revenues!$D$11:$BK$11>supp1st+(ROW()-11)*suppAdd,0),0),1,1),"mmm-yyyy")),"","Customer Support - start date: " & TEXT(OFFSET($C$4,0,MATCH(TRUE,INDEX(Revenues!$D$11:$BK$11>supp1st+(ROW()-11)*suppAdd,0),0),1,1),"mmm-yyyy")) -> 
C18: =IF( ISERROR(TEXT(OFFSET($C$4,0,MATCH(TRUE,INDEX(Revenues!$D$11:$BK$11>supp1st+(ROW()-11)*suppAdd,0),0),1,1),"mmm-yyyy")),"","Customer Support - start date: " & TEXT(OFFSET($C$4,0,MATCH(TRUE,INDEX(Revenues!$D$11:$BK$11>supp1st+(ROW()-11)*suppAdd,0),0),1,1),"mmm-yyyy")) -> 
C19: =IF( ISERROR(TEXT(OFFSET($C$4,0,MATCH(TRUE,INDEX(Revenues!$D$11:$BK$11>supp1st+(ROW()-11)*suppAdd,0),0),1,1),"mmm-yyyy")),"","Customer Support - start date: " & TEXT(OFFSET($C$4,0,MATCH(TRUE,INDEX(Revenues!$D$11:$BK$11>supp1st+(ROW()-11)*suppAdd,0),0),1,1),"mmm-yyyy")) -> 
C20: =IF( ISERROR(TEXT(OFFSET($C$4,0,MATCH(TRUE,INDEX(Revenues!$D$11:$BK$11>supp1st+(ROW()-11)*suppAdd,0),0),1,1),"mmm-yyyy")),"","Customer Support - start date: " & TEXT(OFFSET($C$4,0,MATCH(TRUE,INDEX(Revenues!$D$11:$BK$11>supp1st+(ROW()-11)*suppAdd,0),0),1,1),"mmm-yyyy")) -> 
C21: =IF( ISERROR(TEXT(OFFSET($C$4,0,MATCH(TRUE,INDEX(Revenues!$D$11:$BK$11>supp1st+(ROW()-11)*suppAdd,0),0),1,1),"mmm-yyyy")),"","Customer Support - start date: " & TEXT(OFFSET($C$4,0,MATCH(TRUE,INDEX(Revenues!$D$11:$BK$11>supp1st+(ROW()-11)*suppAdd,0),0),1,1),"mmm-yyyy")) -> 
C22: =IF( ISERROR(TEXT(OFFSET($C$4,0,MATCH(TRUE,INDEX(Revenues!$D$11:$BK$11>supp1st+(ROW()-11)*suppAdd,0),0),1,1),"mmm-yyyy")),"","Customer Support - start date: " & TEXT(OFFSET($C$4,0,MATCH(TRUE,INDEX(Revenues!$D$11:$BK$11>supp1st+(ROW()-11)*suppAdd,0),0),1,1),"mmm-yyyy")) -> 
C23: =IF( ISERROR(TEXT(OFFSET($C$4,0,MATCH(TRUE,INDEX(Revenues!$D$11:$BK$11>supp1st+(ROW()-11)*suppAdd,0),0),1,1),"mmm-yyyy")),"","Customer Support - start date: " & TEXT(OFFSET($C$4,0,MATCH(TRUE,INDEX(Revenues!$D$11:$BK$11>supp1st+(ROW()-11)*suppAdd,0),0),1,1),"mmm-yyyy")) -> 
C24: =IF( ISERROR(TEXT(OFFSET($C$4,0,MATCH(TRUE,INDEX(Revenues!$D$11:$BK$11>supp1st+(ROW()-11)*suppAdd,0),0),1,1),"mmm-yyyy")),"","Customer Support - start date: " & TEXT(OFFSET($C$4,0,MATCH(TRUE,INDEX(Revenues!$D$11:$BK$11>supp1st+(ROW()-11)*suppAdd,0),0),1,1),"mmm-yyyy")) -> 
C25: =IF( ISERROR(TEXT(OFFSET($C$4,0,MATCH(TRUE,INDEX(Revenues!$D$11:$BK$11>supp1st+(ROW()-11)*suppAdd,0),0),1,1),"mmm-yyyy")),"","Customer Support - start date: " & TEXT(OFFSET($C$4,0,MATCH(TRUE,INDEX(Revenues!$D$11:$BK$11>supp1st+(ROW()-11)*suppAdd,0),0),1,1),"mmm-yyyy")) -> 
C26: =IF( ISERROR(TEXT(OFFSET($C$4,0,MATCH(TRUE,INDEX(Revenues!$D$11:$BK$11>supp1st+(ROW()-11)*suppAdd,0),0),1,1),"mmm-yyyy")),"","Customer Support - start date: " & TEXT(OFFSET($C$4,0,MATCH(TRUE,INDEX(Revenues!$D$11:$BK$11>supp1st+(ROW()-11)*suppAdd,0),0),1,1),"mmm-yyyy")) -> 
C27: =IF( ISERROR(TEXT(OFFSET($C$4,0,MATCH(TRUE,INDEX(Revenues!$D$11:$BK$11>supp1st+(ROW()-11)*suppAdd,0),0),1,1),"mmm-yyyy")),"","Customer Support - start date: " & TEXT(OFFSET($C$4,0,MATCH(TRUE,INDEX(Revenues!$D$11:$BK$11>supp1st+(ROW()-11)*suppAdd,0),0),1,1),"mmm-yyyy")) -> 
C28: =IF( ISERROR(TEXT(OFFSET($C$4,0,MATCH(TRUE,INDEX(Revenues!$D$11:$BK$11>supp1st+(ROW()-11)*suppAdd,0),0),1,1),"mmm-yyyy")),"","Customer Support - start date: " & TEXT(OFFSET($C$4,0,MATCH(TRUE,INDEX(Revenues!$D$11:$BK$11>supp1st+(ROW()-11)*suppAdd,0),0),1,1),"mmm-yyyy")) -> 
C29: =IF( ISERROR(TEXT(OFFSET($C$4,0,MATCH(TRUE,INDEX(Revenues!$D$11:$BK$11>supp1st+(ROW()-11)*suppAdd,0),0),1,1),"mmm-yyyy")),"","Customer Support - start date: " & TEXT(OFFSET($C$4,0,MATCH(TRUE,INDEX(Revenues!$D$11:$BK$11>supp1st+(ROW()-11)*suppAdd,0),0),1,1),"mmm-yyyy")) -> 
C30: Benefits (calculated by macro) | D30: 0 | E30: 0 | F30: 0 | G30: 0 | H30: 0 | I30: 0 | J30: 0 | K30: 0 | L30: 0 | M30: 0 | N30: 0 | O30: 0 | P30: 0 | Q30: 0 | R30: 0 | S30: 0 | T30: 0 | U30: 0 | V30: 0 | W30: 0 | X30: 0 | Y30: 0 | Z30: 0 | AA30: 915 | AB30: 930 | AC30: 930 | AD30: 930 | AE30: 930 | AF30: 930 | AG30: 930 | AH30: 930 | AI30: 930 | AJ30: 930 | AK30: 930 | AL30: 930 | AM30: 942 | AN30: 1905 | AO30: 1905 | AP30: 1905 | AQ30: 1905 | AR30: 1905 | AS30: 1905 | AT30: 1905 | AU30: 1905 | AV30: 1905 | AW30: 1905 | AX30: 1905 | AY30: 1917 | AZ30: 2925 | BA30: 2925 | BB30: 2925 | BC30: 2925 | BD30: 2925 | BE30: 2925 | BF30: 2925 | BG30: 2925 | BH30: 2925 | BI30: 2925 | BJ30: 2925 | BK30: 2937
A34: Other costs here
B48: Do not remove this line
C50: Support staff provides training services

Sheet Sales Costs
A1: LAM | D1: =CYFY&TEXT(StartYear+COLUMN()-4,"0000") -> CY2015 | E1: CY2016 | F1: CY2017 | G1: CY2018 | H1: CY2019
A2: Sales Costs - Annual | D2: =IF(COLUMN()=4,SUM(OFFSET($D$5,0,0,1,13-IF(CYFY="FY",0,SM_CYFY))),SUM(OFFSET($D$5,0,(13-SM_CYFY)+12*(COLUMN()-5),1,12))) -> 142040 | E2: 562580 | F2: 820978 | G2: 993039 | H2: 1144829
D4: =IF(C4="",FirstMonth,DATE(YEAR(C4),MONTH(C4)+1,1)) -> 2015-01-01 | E4: 2015-02-01 | F4: 2015-03-01 | G4: 2015-04-01 | H4: 2015-05-01 | I4: 2015-06-01 | J4: 2015-07-01 | K4: 2015-08-01 | L4: 2015-09-01 | M4: 2015-10-01 | N4: 2015-11-01 | O4: 2015-12-01 | P4: 2016-01-01 | Q4: 2016-02-01 | R4: 2016-03-01 | S4: 2016-04-01 | T4: 2016-05-01 | U4: 2016-06-01 | V4: 2016-07-01 | W4: 2016-08-01 | X4: 2016-09-01 | Y4: 2016-10-01 | Z4: 2016-11-01 | AA4: 2016-12-01 | AB4: 2017-01-01 | AC4: 2017-02-01 | AD4: 2017-03-01 | AE4: 2017-04-01 | AF4: 2017-05-01 | AG4: 2017-06-01 | AH4: 2017-07-01 | AI4: 2017-08-01 | AJ4: =IF(AI4="",FirstMonth,DATE(YEAR(AI4),MONTH(AI4)+1,1)) -> 2017-09-01 | AK4: 2017-10-01 | AL4: 2017-11-01 | AM4: 2017-12-01 | AN4: =IF(AM4="",FirstMonth,DATE(YEAR(AM4),MONTH(AM4)+1,1)) -> 2018-01-01 | AO4: =IF(AN4="",FirstMonth,DATE(YEAR(AN4),MONTH(AN4)+1,1)) -> 2018-02-01 | AP4: =IF(AO4="",FirstMonth,DATE(YEAR(AO4),MONTH(AO4)+1,1)) -> 2018-03-01 | AQ4: =IF(AP4="",FirstMonth,DATE(YEAR(AP4),MONTH(AP4)+1,1)) -> 2018-04-01 | AR4: =IF(AQ4="",FirstMonth,DATE(YEAR(AQ4),MONTH(AQ4)+1,1)) -> 2018-05-01 | AS4: =IF(AR4="",FirstMonth,DATE(YEAR(AR4),MONTH(AR4)+1,1)) -> 2018-06-01 | AT4: =IF(AS4="",FirstMonth,DATE(YEAR(AS4),MONTH(AS4)+1,1)) -> 2018-07-01 | AU4: =IF(AT4="",FirstMonth,DATE(YEAR(AT4),MONTH(AT4)+1,1)) -> 2018-08-01 | AV4: =IF(AU4="",FirstMonth,DATE(YEAR(AU4),MONTH(AU4)+1,1)) -> 2018-09-01 | AW4: =IF(AV4="",FirstMonth,DATE(YEAR(AV4),MONTH(AV4)+1,1)) -> 2018-10-01 | AX4: =IF(AW4="",FirstMonth,DATE(YEAR(AW4),MONTH(AW4)+1,1)) -> 2018-11-01 | AY4: =IF(AX4="",FirstMonth,DATE(YEAR(AX4),MONTH(AX4)+1,1)) -> 2018-12-01 | AZ4: =IF(AY4="",FirstMonth,DATE(YEAR(AY4),MONTH(AY4)+1,1)) -> 2019-01-01 | BA4: =IF(AZ4="",FirstMonth,DATE(YEAR(AZ4),MONTH(AZ4)+1,1)) -> 2019-02-01 | BB4: =IF(BA4="",FirstMonth,DATE(YEAR(BA4),MONTH(BA4)+1,1)) -> 2019-03-01 | BC4: =IF(BB4="",FirstMonth,DATE(YEAR(BB4),MONTH(BB4)+1,1)) -> 2019-04-01 | BD4: =IF(BC4="",FirstMonth,DATE(YEAR(BC4),MONTH(BC4)+1,1)) -> 2019-05-01 | BE4: =IF(BD4="",FirstMonth,DATE(YEAR(BD4),MONTH(BD4)+1,1)) -> 2019-06-01 | BF4: =IF(BE4="",FirstMonth,DATE(YEAR(BE4),MONTH(BE4)+1,1)) -> 2019-07-01 | BG4: =IF(BF4="",FirstMonth,DATE(YEAR(BF4),MONTH(BF4)+1,1)) -> 2019-08-01 | BH4: =IF(BG4="",FirstMonth,DATE(YEAR(BG4),MONTH(BG4)+1,1)) -> 2019-09-01 | BI4: =IF(BH4="",FirstMonth,DATE(YEAR(BH4),MONTH(BH4)+1,1)) -> 2019-10-01 | BJ4: =IF(BI4="",FirstMonth,DATE(YEAR(BI4),MONTH(BI4)+1,1)) -> 2019-11-01 | BK4: =IF(BJ4="",FirstMonth,DATE(YEAR(BJ4),MONTH(BJ4)+1,1)) -> 2019-12-01
A5: Sales Costs - Monthly | D5: =SUM(D11:D30)+SUM(D34:D46) -> 0 | E5: 0 | F5: 0 | G5: 0 | H5: 3740 | I5: 14440 | J5: 14940 | K5: 15940 | L5: 16440 | M5: 23180 | N5: 25180 | O5: 28180 | P5: 36941 | Q5: 38941 | R5: 41441 | S5: 42941 | T5: 43538 | U5: 47254 | V5: 47754 | W5: 50254 | X5: 50754 | Y5: 52254 | Z5: 52754 | AA5: 57754 | AB5: 61290 | AC5: 62290 | AD5: 67290 | AE5: 67290 | AF5: 66391 | AG5: 66613 | AH5: 68613 | AI5: 69613 | AJ5: =SUM(AJ11:AJ30)+SUM(AJ34:AJ46) -> 71613 | AK5: 71613 | AL5: 72613 | AM5: 75749 | AN5: 77051 | AO5: 78051 | AP5: 79051 | AQ5: 80051 | AR5: 81154 | AS5: 82383 | AT5: 83383 | AU5: 84383 | AV5: 85383 | AW5: 86383 | AX5: 87383 | AY5: 88383 | AZ5: 89694 | BA5: 90694 | BB5: 91694 | BC5: 92694 | BD5: 93801 | BE5: 95036 | BF5: 96036 | BG5: 97036 | BH5: 98036 | BI5: 99036 | BJ5: 100036 | BK5: 101036
C8: The Monthly Sales Cost line should do nothing more than sum values from below.
B10: BEN | C10: Name/Position
A11: Use macro to add staff | B11: F | C11: Sales Manager | H11: 3000 | I11: 3000 | J11: 3000 | K11: 3000 | L11: 3000 | M11: 3000 | N11: 3000 | O11: 3000 | P11: 3000 | Q11: 3000 | R11: 3000 | S11: 3000 | T11: 3090 | U11: 3090 | V11: 3090 | W11: 3090 | X11: 3090 | Y11: 3090 | Z11: 3090 | AA11: 3090 | AB11: 3090 | AC11: 3090 | AD11: 3090 | AE11: 3090 | AF11: 3183 | AG11: 3183 | AH11: 3183 | AI11: 3183 | AJ11: 3183 | AK11: 3183 | AL11: 3183 | AM11: 3183 | AN11: 3183 | AO11: 3183 | AP11: 3183 | AQ11: 3183 | AR11: 3278 | AS11: 3278 | AT11: 3278 | AU11: 3278 | AV11: 3278 | AW11: 3278 | AX11: 3278 | AY11: 3278 | AZ11: 3278 | BA11: 3278 | BB11: 3278 | BC11: 3278 | BD11: 3377 | BE11: 3377 | BF11: 3377 | BG11: 3377 | BH11: 3377 | BI11: 3377 | BJ11: 3377 | BK11: 3377
B12: F | C12: Bureau Manager | M12: 3000 | N12: 3000 | O12: 3000 | P12: 3000 | Q12: 3000 | R12: 3000 | S12: 3000 | T12: 3000 | U12: 3000 | V12: 3000 | W12: 3000 | X12: 3000 | Y12: 3000 | Z12: 3000 | AA12: 3000 | AB12: 3000 | AC12: 3000 | AD12: 3000 | AE12: 3000 | AF12: 3000 | AG12: 3000 | AH12: 3000 | AI12: 3000 | AJ12: 3000 | AK12: 3000 | AL12: 3000 | AM12: 3000 | AN12: 3000 | AO12: 3000 | AP12: 3000 | AQ12: 3000 | AR12: 3000 | AS12: 3000 | AT12: 3000 | AU12: 3000 | AV12: 3000 | AW12: 3000 | AX12: 3000 | AY12: 3000 | AZ12: 3000 | BA12: 3000 | BB12: 3000 | BC12: 3000 | BD12: 3000 | BE12: 3000 | BF12: 3000 | BG12: 3000 | BH12: 3000 | BI12: 3000 | BJ12: 3000 | BK12: 3000
B13: F | C13: Industry Sales Engineer | AB13: 5304 | AC13: 5304 | AD13: 5304 | AE13: 5304 | AF13: 5304 | AG13: 5304 | AH13: 5304 | AI13: 5304 | AJ13: 5304 | AK13: 5304 | AL13: 5304 | AM13: 2652 | AN13: 2652 | AO13: 2652 | AP13: 2652 | AQ13: 2652 | AR13: 2652 | AS13: 2652 | AT13: 2652 | AU13: 2652 | AV13: 2652 | AW13: 2652 | AX13: 2652 | AY13: 2652 | AZ13: 2652 | BA13: 2652 | BB13: 2652 | BC13: 2652 | BD13: 2652 | BE13: 2652 | BF13: 2652 | BG13: 2652 | BH13: 2652 | BI13: 2652 | BJ13: 2652 | BK13: 2652
B28: F | C28: Region 1 Sales | I28: 6667 | J28: 6667 | K28: 6667 | L28: 6667 | M28: 6667 | N28: 6667 | O28: 6667 | P28: 6667 | Q28: 6667 | R28: 6667 | S28: 6667 | T28: 6667 | U28: 6867 | V28: 6867 | W28: 6867 | X28: 6867 | Y28: 6867 | Z28: 6867 | AA28: 6867 | AB28: 6867 | AC28: 6867 | AD28: 6867 | AE28: 6867 | AF28: 6867 | AG28: 7073 | AH28: 7073 | AI28: 7073 | AJ28: 7073 | AK28: 7073 | AL28: 7073 | AM28: 7073 | AN28: 7073 | AO28: 7073 | AP28: 7073 | AQ28: 7073 | AR28: 7073 | AS28: 7285 | AT28: 7285 | AU28: 7285 | AV28: 7285 | AW28: 7285 | AX28: 7285 | AY28: 7285 | AZ28: 7285 | BA28: 7285 | BB28: 7285 | BC28: 7285 | BD28: 7285 | BE28: 7503 | BF28: 7503 | BG28: 7503 | BH28: 7503 | BI28: 7503 | BJ28: 7503 | BK28: 7503
B29: F | C29: Region 2 Sales | P29: 6667 | Q29: 6667 | R29: 6667 | S29: 6667 | T29: 6667 | U29: 6667 | V29: 6667 | W29: 6667 | X29: 6667 | Y29: 6667 | Z29: 6667 | AA29: 6667 | AB29: 6867 | AC29: 6867 | AD29: 6867 | AE29: 6867 | AF29: 6867 | AG29: 6867 | AH29: 6867 | AI29: 6867 | AJ29: 6867 | AK29: 6867 | AL29: 6867 | AM29: 6867 | AN29: 7073 | AO29: 7073 | AP29: 7073 | AQ29: 7073 | AR29: 7073 | AS29: 7073 | AT29: 7073 | AU29: 7073 | AV29: 7073 | AW29: 7073 | AX29: 7073 | AY29: 7073 | AZ29: 7285 | BA29: 7285 | BB29: 7285 | BC29: 7285 | BD29: 7285 | BE29: 7285 | BF29: 7285 | BG29: 7285 | BH29: 7285 | BI29: 7285 | BJ29: 7285 | BK29: 7285
D30: 0 | E30: 0 | F30: 0 | G30: 0 | H30: 740 | I30: 1773 | J30: 1773 | K30: 1773 | L30: 1773 | M30: 2513 | N30: 2513 | O30: 2513 | P30: 3607 | Q30: 3607 | R30: 3607 | S30: 3607 | T30: 3614 | U30: 3630 | V30: 3630 | W30: 3630 | X30: 3630 | Y30: 3630 | Z30: 3630 | AA30: 3630 | AB30: 4662 | AC30: 4662 | AD30: 4662 | AE30: 4662 | AF30: 4670 | AG30: 4686 | AH30: 4686 | AI30: 4686 | AJ30: 4686 | AK30: 4686 | AL30: 4686 | AM30: 4474 | AN30: 4570 | AO30: 4570 | AP30: 4570 | AQ30: 4570 | AR30: 4578 | AS30: 4595 | AT30: 4595 | AU30: 4595 | AV30: 4595 | AW30: 4595 | AX30: 4595 | AY30: 4595 | AZ30: 4694 | BA30: 4694 | BB30: 4694 | BC30: 4694 | BD30: 4702 | BE30: 4719 | BF30: 4719 | BG30: 4719 | BH30: 4719 | BI30: 4719 | BJ30: 4719 | BK30: 4719
A34: Other costs here | C34: Marketing communications | K34: 500 | M34: 500 | O34: 500 | Q34: 500 | S34: 500 | U34: 500 | W34: 500 | Y34: 500 | AA34: 1000 | AD34: 1000 | AF34: 1000 | AH34: 1000 | AJ34: 1000 | AM34: 1000 | AN34: 1000 | AO34: 1000 | AP34: 1000 | AQ34: 1000 | AR34: 1000 | AS34: 1000 | AT34: 1000 | AU34: 1000 | AV34: 1000 | AW34: 1000 | AX34: 1000 | AY34: 1000 | AZ34: 1000 | BA34: 1000 | BB34: 1000 | BC34: 1000 | BD34: 1000 | BE34: 1000 | BF34: 1000 | BG34: 1000 | BH34: 1000 | BI34: 1000 | BJ34: 1000 | BK34: 1000
C35: Web, collateral, etc | L35: 500 | M35: 500 | N35: 500 | O35: 500 | P35: 500 | Q35: 1000 | R35: 1000 | S35: 1000 | T35: 1000 | U35: 1000 | V35: 1000 | W35: 2000 | X35: 2000 | Y35: 2000 | Z35: 2000 | AA35: 2000 | AB35: 2000 | AC35: 2000 | AD35: 2000 | AE35: 2000 | AF35: 2000 | AG35: 2000 | AH35: 2000 | AI35: 3000 | AJ35: 3000 | AK35: 3000 | AL35: 3000 | AM35: 3000 | AN35: 3000 | AO35: 3000 | AP35: 3000 | AQ35: 3000 | AR35: 3000 | AS35: 3000 | AT35: 3000 | AU35: 3000 | AV35: 3000 | AW35: 3000 | AX35: 3000 | AY35: 3000 | AZ35: 3000 | BA35: 3000 | BB35: 3000 | BC35: 3000 | BD35: 3000 | BE35: 3000 | BF35: 3000 | BG35: 3000 | BH35: 3000 | BI35: 3000 | BJ35: 3000 | BK35: 3000
C36: Shows and exhibits | O36: 2000 | R36: 2000 | S36: 2000 | AA36: 3000 | AD36: 3000 | AE36: 3000 | AM36: 4000 | AN36: 4000 | AO36: 4000 | AP36: 4000 | AQ36: 4000 | AR36: 4000 | AS36: 4000 | AT36: 4000 | AU36: 4000 | AV36: 4000 | AW36: 4000 | AX36: 4000 | AY36: 4000 | AZ36: 4000 | BA36: 4000 | BB36: 4000 | BC36: 4000 | BD36: 4000 | BE36: 4000 | BF36: 4000 | BG36: 4000 | BH36: 4000 | BI36: 4000 | BJ36: 4000 | BK36: 4000
C37: Supplies, etc | D37: =COUNT(D17:D29)*SalesSupp -> 0 | E37: 0 | F37: 0 | G37: 0 | H37: 0 | I37: 1000 | J37: 1000 | K37: 1000 | L37: 1000 | M37: 1000 | N37: 1000 | O37: 1000 | P37: 2000 | Q37: 2000 | R37: 2000 | S37: 2000 | T37: 2000 | U37: 2000 | V37: 2000 | W37: 2000 | X37: 2000 | Y37: 2000 | Z37: 2000 | AA37: 2000 | AB37: 2000 | AC37: 2000 | AD37: 2000 | AE37: 2000 | AF37: 2000 | AG37: 2000 | AH37: 2000 | AI37: 2000 | AJ37: =COUNT(AJ17:AJ29)*SalesSupp -> 2000 | AK37: 2000 | AL37: 2000 | AM37: 2000 | AN37: 2000 | AO37: 2000 | AP37: 2000 | AQ37: 2000 | AR37: 2000 | AS37: 2000 | AT37: 2000 | AU37: 2000 | AV37: 2000 | AW37: 2000 | AX37: 2000 | AY37: 2000 | AZ37: 2000 | BA37: 2000 | BB37: 2000 | BC37: 2000 | BD37: 2000 | BE37: 2000 | BF37: 2000 | BG37: 2000 | BH37: 2000 | BI37: 2000 | BJ37: 2000 | BK37: 2000
C38: Sales commissions | D38: =ROUNDUP(SalesComm*Revenues!D6,0) -> 0 | E38: =ROUNDUP(SalesComm*Revenues!E6,0) -> 0 | F38: =ROUNDUP(SalesComm*Revenues!F6,0) -> 0 | G38: =ROUNDUP(SalesComm*Revenues!G6,0) -> 0 | H38: =ROUNDUP(SalesComm*Revenues!H6,0) -> 0 | I38: =ROUNDUP(SalesComm*Revenues!I6,0) -> 0 | J38: =ROUNDUP(SalesComm*Revenues!J6,0) -> 0 | K38: =ROUNDUP(SalesComm*Revenues!K6,0) -> 0 | L38: =ROUNDUP(SalesComm*Revenues!L6,0) -> 0 | M38: =ROUNDUP(SalesComm*Revenues!M6,0) -> 2000 | N38: =ROUNDUP(SalesComm*Revenues!N6,0) -> 4000 | O38: =ROUNDUP(SalesComm*Revenues!O6,0) -> 4000 | P38: =ROUNDUP(SalesComm*Revenues!P6,0) -> 4000 | Q38: =ROUNDUP(SalesComm*Revenues!Q6,0) -> 4000 | R38: =ROUNDUP(SalesComm*Revenues!R6,0) -> 4000 | S38: =ROUNDUP(SalesComm*Revenues!S6,0) -> 4000 | T38: =ROUNDUP(SalesComm*Revenues!T6,0) -> 6000 | U38: =ROUNDUP(SalesComm*Revenues!U6,0) -> 8000 | V38: =ROUNDUP(SalesComm*Revenues!V6,0) -> 8000 | W38: =ROUNDUP(SalesComm*Revenues!W6,0) -> 8000 | X38: =ROUNDUP(SalesComm*Revenues!X6,0) -> 8000 | Y38: =ROUNDUP(SalesComm*Revenues!Y6,0) -> 8000 | Z38: =ROUNDUP(SalesComm*Revenues!Z6,0) -> 8000 | AA38: =ROUNDUP(SalesComm*Revenues!AA6,0) -> 8000 | AB38: =ROUNDUP(SalesComm*Revenues!AB6,0) -> 8000 | AC38: =ROUNDUP(SalesComm*Revenues!AC6,0) -> 8000 | AD38: =ROUNDUP(SalesComm*Revenues!AD6,0) -> 8000 | AE38: =ROUNDUP(SalesComm*Revenues!AE6,0) -> 8000 | AF38: =ROUNDUP(SalesComm*Revenues!AF6,0) -> 8000 | AG38: =ROUNDUP(SalesComm*Revenues!AG6,0) -> 8000 | AH38: =ROUNDUP(SalesComm*Revenues!AH6,0) -> 8000 | AI38: =ROUNDUP(SalesComm*Revenues!AI6,0) -> 8000 | AJ38: =ROUNDUP(SalesComm*Revenues!AJ6,0) -> 8000 | AK38: =ROUNDUP(SalesComm*Revenues!AK6,0) -> 8000 | AL38: =ROUNDUP(SalesComm*Revenues!AL6,0) -> 8000 | AM38: =ROUNDUP(SalesComm*Revenues!AM6,0) -> 8000 | AN38: =ROUNDUP(SalesComm*Revenues!AN6,0) -> 8000 | AO38: =ROUNDUP(SalesComm*Revenues!AO6,0) -> 8000 | AP38: =ROUNDUP(SalesComm*Revenues!AP6,0) -> 8000 | AQ38: =ROUNDUP(SalesComm*Revenues!AQ6,0) -> 8000 | AR38: =ROUNDUP(SalesComm*Revenues!AR6,0) -> 8000 | AS38: =ROUNDUP(SalesComm*Revenues!AS6,0) -> 8000 | AT38: =ROUNDUP(SalesComm*Revenues!AT6,0) -> 8000 | AU38: =ROUNDUP(SalesComm*Revenues!AU6,0) -> 8000 | AV38: =ROUNDUP(SalesComm*Revenues!AV6,0) -> 8000 | AW38: =ROUNDUP(SalesComm*Revenues!AW6,0) -> 8000 | AX38: =ROUNDUP(SalesComm*Revenues!AX6,0) -> 8000 | AY38: =ROUNDUP(SalesComm*Revenues!AY6,0) -> 8000 | AZ38: =ROUNDUP(SalesComm*Revenues!AZ6,0) -> 8000 | BA38: =ROUNDUP(SalesComm*Revenues!BA6,0) -> 8000 | BB38: =ROUNDUP(SalesComm*Revenues!BB6,0) -> 8000 | BC38: =ROUNDUP(SalesComm*Revenues!BC6,0) -> 8000 | BD38: =ROUNDUP(SalesComm*Revenues!BD6,0) -> 8000 | BE38: =ROUNDUP(SalesComm*Revenues!BE6,0) -> 8000 | BF38: =ROUNDUP(SalesComm*Revenues!BF6,0) -> 8000 | BG38: =ROUNDUP(SalesComm*Revenues!BG6,0) -> 8000 | BH38: =ROUNDUP(SalesComm*Revenues!BH6,0) -> 8000 | BI38: =ROUNDUP(SalesComm*Revenues!BI6,0) -> 8000 | BJ38: =ROUNDUP(SalesComm*Revenues!BJ6,0) -> 8000 | BK38: =ROUNDUP(SalesComm*Revenues!BK6,0) -> 8000
C39: Travel costs | D39: =COUNT(D17:D29)*$D$52 -> 0 | E39: 0 | F39: 0 | G39: 0 | H39: 0 | I39: 1500 | J39: 1500 | K39: 1500 | L39: 1500 | M39: 1500 | N39: 1500 | O39: 1500 | P39: 3000 | Q39: 3000 | R39: 3000 | S39: 3000 | T39: 3000 | U39: 3000 | V39: 3000 | W39: 3000 | X39: 3000 | Y39: 3000 | Z39: 3000 | AA39: 3000 | AB39: 3000 | AC39: 3000 | AD39: 3000 | AE39: 3000 | AF39: 3000 | AG39: 3000 | AH39: 3000 | AI39: 3000 | AJ39: =COUNT(AJ17:AJ29)*$D$52 -> 3000 | AK39: 3000 | AL39: 3000 | AM39: 3000 | AN39: 3000 | AO39: 3000 | AP39: 3000 | AQ39: 3000 | AR39: 3000 | AS39: 3000 | AT39: 3000 | AU39: 3000 | AV39: 3000 | AW39: 3000 | AX39: 3000 | AY39: 3000 | AZ39: 3000 | BA39: 3000 | BB39: 3000 | BC39: 3000 | BD39: 3000 | BE39: 3000 | BF39: 3000 | BG39: 3000 | BH39: 3000 | BI39: 3000 | BJ39: 3000 | BK39: 3000
C41: Advertising costs | D41: =Revenues!D11*$D$53 -> 0 | E41: =Revenues!E11*$D$53 -> 0 | F41: =Revenues!F11*$D$53 -> 0 | G41: =Revenues!G11*$D$53 -> 0 | H41: =Revenues!H11*$D$53 -> 0 | I41: =Revenues!I11*$D$53 -> 500 | J41: =Revenues!J11*$D$53 -> 1000 | K41: =Revenues!K11*$D$53 -> 1500 | L41: =Revenues!L11*$D$53 -> 2000 | M41: =Revenues!M11*$D$53 -> 2500 | N41: =Revenues!N11*$D$53 -> 3000 | O41: =Revenues!O11*$D$53 -> 3500 | P41: =Revenues!P11*$D$53 -> 4500 | Q41: =Revenues!Q11*$D$53 -> 5500 | R41: =Revenues!R11*$D$53 -> 6500 | S41: =Revenues!S11*$D$53 -> 7500 | T41: =Revenues!T11*$D$53 -> 8500 | U41: =Revenues!U11*$D$53 -> 9500 | V41: =Revenues!V11*$D$53 -> 10500 | W41: =Revenues!W11*$D$53 -> 11500 | X41: =Revenues!X11*$D$53 -> 12500 | Y41: =Revenues!Y11*$D$53 -> 13500 | Z41: =Revenues!Z11*$D$53 -> 14500 | AA41: =Revenues!AA11*$D$53 -> 15500 | AB41: =Revenues!AB11*$D$53 -> 16500 | AC41: =Revenues!AC11*$D$53 -> 17500 | AD41: =Revenues!AD11*$D$53 -> 18500 | AE41: =Revenues!AE11*$D$53 -> 19500 | AF41: =Revenues!AF11*$D$53 -> 20500 | AG41: =Revenues!AG11*$D$53 -> 21500 | AH41: =Revenues!AH11*$D$53 -> 22500 | AI41: =Revenues!AI11*$D$53 -> 23500 | AJ41: =Revenues!AJ11*$D$53 -> 24500 | AK41: =Revenues!AK11*$D$53 -> 25500 | AL41: =Revenues!AL11*$D$53 -> 26500 | AM41: =Revenues!AM11*$D$53 -> 27500 | AN41: =Revenues!AN11*$D$53 -> 28500 | AO41: =Revenues!AO11*$D$53 -> 29500 | AP41: =Revenues!AP11*$D$53 -> 30500 | AQ41: =Revenues!AQ11*$D$53 -> 31500 | AR41: =Revenues!AR11*$D$53 -> 32500 | AS41: =Revenues!AS11*$D$53 -> 33500 | AT41: =Revenues!AT11*$D$53 -> 34500 | AU41: =Revenues!AU11*$D$53 -> 35500 | AV41: =Revenues!AV11*$D$53 -> 36500 | AW41: =Revenues!AW11*$D$53 -> 37500 | AX41: =Revenues!AX11*$D$53 -> 38500 | AY41: =Revenues!AY11*$D$53 -> 39500 | AZ41: =Revenues!AZ11*$D$53 -> 40500 | BA41: =Revenues!BA11*$D$53 -> 41500 | BB41: =Revenues!BB11*$D$53 -> 42500 | BC41: =Revenues!BC11*$D$53 -> 43500 | BD41: =Revenues!BD11*$D$53 -> 44500 | BE41: =Revenues!BE11*$D$53 -> 45500 | BF41: =Revenues!BF11*$D$53 -> 46500 | BG41: =Revenues!BG11*$D$53 -> 47500 | BH41: =Revenues!BH11*$D$53 -> 48500 | BI41: =Revenues!BI11*$D$53 -> 49500 | BJ41: =Revenues!BJ11*$D$53 -> 50500 | BK41: =Revenues!BK11*$D$53 -> 51500
B48: Do not remove this line
A50: NOTE: The * after a sales person name means that they are outside sales and are used to drive the revenue model
C52: Monthly travel costs | D52: 1500
C53: Monthly advertising cost, per customer | D53: 500
C54: Ratio: sales to inside sales | D54: 6

Sheet R&D Costs
A1: LAM | D1: =CYFY&TEXT(StartYear+COLUMN()-4,"0000") -> CY2015 | E1: CY2016 | F1: CY2017 | G1: CY2018 | H1: CY2019
A2: R&D Costs - Annual | D2: =IF(COLUMN()=4,SUM(OFFSET($D$5,0,0,1,13-IF(CYFY="FY",0,SM_CYFY))),SUM(OFFSET($D$5,0,(13-SM_CYFY)+12*(COLUMN()-5),1,12))) -> 181530 | E2: 400335 | F2: 412350 | G2: 424716 | H2: 437463
D4: =IF(C4="",FirstMonth,DATE(YEAR(C4),MONTH(C4)+1,1)) -> 2015-01-01 | E4: 2015-02-01 | F4: 2015-03-01 | G4: 2015-04-01 | H4: 2015-05-01 | I4: 2015-06-01 | J4: 2015-07-01 | K4: 2015-08-01 | L4: 2015-09-01 | M4: 2015-10-01 | N4: 2015-11-01 | O4: 2015-12-01 | P4: 2016-01-01 | Q4: 2016-02-01 | R4: 2016-03-01 | S4: 2016-04-01 | T4: 2016-05-01 | U4: 2016-06-01 | V4: 2016-07-01 | W4: 2016-08-01 | X4: 2016-09-01 | Y4: 2016-10-01 | Z4: 2016-11-01 | AA4: 2016-12-01 | AB4: 2017-01-01 | AC4: 2017-02-01 | AD4: 2017-03-01 | AE4: 2017-04-01 | AF4: 2017-05-01 | AG4: 2017-06-01 | AH4: 2017-07-01 | AI4: 2017-08-01 | AJ4: =IF(AI4="",FirstMonth,DATE(YEAR(AI4),MONTH(AI4)+1,1)) -> 2017-09-01 | AK4: 2017-10-01 | AL4: 2017-11-01 | AM4: 2017-12-01 | AN4: =IF(AM4="",FirstMonth,DATE(YEAR(AM4),MONTH(AM4)+1,1)) -> 2018-01-01 | AO4: =IF(AN4="",FirstMonth,DATE(YEAR(AN4),MONTH(AN4)+1,1)) -> 2018-02-01 | AP4: =IF(AO4="",FirstMonth,DATE(YEAR(AO4),MONTH(AO4)+1,1)) -> 2018-03-01 | AQ4: =IF(AP4="",FirstMonth,DATE(YEAR(AP4),MONTH(AP4)+1,1)) -> 2018-04-01 | AR4: =IF(AQ4="",FirstMonth,DATE(YEAR(AQ4),MONTH(AQ4)+1,1)) -> 2018-05-01 | AS4: =IF(AR4="",FirstMonth,DATE(YEAR(AR4),MONTH(AR4)+1,1)) -> 2018-06-01 | AT4: =IF(AS4="",FirstMonth,DATE(YEAR(AS4),MONTH(AS4)+1,1)) -> 2018-07-01 | AU4: =IF(AT4="",FirstMonth,DATE(YEAR(AT4),MONTH(AT4)+1,1)) -> 2018-08-01 | AV4: =IF(AU4="",FirstMonth,DATE(YEAR(AU4),MONTH(AU4)+1,1)) -> 2018-09-01 | AW4: =IF(AV4="",FirstMonth,DATE(YEAR(AV4),MONTH(AV4)+1,1)) -> 2018-10-01 | AX4: =IF(AW4="",FirstMonth,DATE(YEAR(AW4),MONTH(AW4)+1,1)) -> 2018-11-01 | AY4: =IF(AX4="",FirstMonth,DATE(YEAR(AX4),MONTH(AX4)+1,1)) -> 2018-12-01 | AZ4: =IF(AY4="",FirstMonth,DATE(YEAR(AY4),MONTH(AY4)+1,1)) -> 2019-01-01 | BA4: =IF(AZ4="",FirstMonth,DATE(YEAR(AZ4),MONTH(AZ4)+1,1)) -> 2019-02-01 | BB4: =IF(BA4="",FirstMonth,DATE(YEAR(BA4),MONTH(BA4)+1,1)) -> 2019-03-01 | BC4: =IF(BB4="",FirstMonth,DATE(YEAR(BB4),MONTH(BB4)+1,1)) -> 2019-04-01 | BD4: =IF(BC4="",FirstMonth,DATE(YEAR(BC4),MONTH(BC4)+1,1)) -> 2019-05-01 | BE4: =IF(BD4="",FirstMonth,DATE(YEAR(BD4),MONTH(BD4)+1,1)) -> 2019-06-01 | BF4: =IF(BE4="",FirstMonth,DATE(YEAR(BE4),MONTH(BE4)+1,1)) -> 2019-07-01 | BG4: =IF(BF4="",FirstMonth,DATE(YEAR(BF4),MONTH(BF4)+1,1)) -> 2019-08-01 | BH4: =IF(BG4="",FirstMonth,DATE(YEAR(BG4),MONTH(BG4)+1,1)) -> 2019-09-01 | BI4: =IF(BH4="",FirstMonth,DATE(YEAR(BH4),MONTH(BH4)+1,1)) -> 2019-10-01 | BJ4: =IF(BI4="",FirstMonth,DATE(YEAR(BI4),MONTH(BI4)+1,1)) -> 2019-11-01 | BK4: =IF(BJ4="",FirstMonth,DATE(YEAR(BJ4),MONTH(BJ4)+1,1)) -> 2019-12-01
A5: R&D Costs - Monthly | D5: =SUM(D11:D30)+SUM(D34:D46) -> 11300 | E5: =SUM(E11:E30)+SUM(E34:E46) -> 11300 | F5: 11300 | G5: 11300 | H5: 11300 | I5: 11300 | J5: 11300 | K5: 11300 | L5: 11300 | M5: 26610 | N5: 26610 | O5: 26610 | P5: 33254 | Q5: 33254 | R5: 33254 | S5: 33254 | T5: 33254 | U5: 33254 | V5: 33254 | W5: 33254 | X5: 33254 | Y5: 33683 | Z5: 33683 | AA5: 33683 | AB5: 34252 | AC5: 34252 | AD5: 34252 | AE5: 34252 | AF5: 34252 | AG5: 34252 | AH5: 34252 | AI5: 34252 | AJ5: 34252 | AK5: 34694 | AL5: 34694 | AM5: 34694 | AN5: =SUM(AN11:AN30)+SUM(AN34:AN46) -> 35279 | AO5: 35279 | AP5: 35279 | AQ5: 35279 | AR5: 35279 | AS5: 35279 | AT5: 35279 | AU5: 35279 | AV5: 35279 | AW5: 35735 | AX5: 35735 | AY5: 35735 | AZ5: 36338 | BA5: 36338 | BB5: 36338 | BC5: 36338 | BD5: 36338 | BE5: 36338 | BF5: 36338 | BG5: 36338 | BH5: 36338 | BI5: 36807 | BJ5: 36807 | BK5: 36807
C8: The Monthly R&D Cost line should do nothing more than sum values from below.
B10: BEN | C10: Name/Position
A11: Use macro to add staff | B11: F | C11: CTO | D11: 10000 | E11: 10000 | F11: 10000 | G11: 10000 | H11: 10000 | I11: 10000 | J11: 10000 | K11: 10000 | L11: 10000 | M11: 10000 | N11: 10000 | O11: 10000 | P11: 10300 | Q11: 10300 | R11: 10300 | S11: 10300 | T11: 10300 | U11: 10300 | V11: 10300 | W11: 10300 | X11: 10300 | Y11: 10300 | Z11: 10300 | AA11: 10300 | AB11: 10609 | AC11: 10609 | AD11: 10609 | AE11: 10609 | AF11: 10609 | AG11: 10609 | AH11: 10609 | AI11: 10609 | AJ11: 10609 | AK11: 10609 | AL11: 10609 | AM11: 10609 | AN11: 10927 | AO11: 10927 | AP11: 10927 | AQ11: 10927 | AR11: 10927 | AS11: 10927 | AT11: 10927 | AU11: 10927 | AV11: 10927 | AW11: 10927 | AX11: 10927 | AY11: 10927 | AZ11: 11255 | BA11: 11255 | BB11: 11255 | BC11: 11255 | BD11: 11255 | BE11: 11255 | BF11: 11255 | BG11: 11255 | BH11: 11255 | BI11: 11255 | BJ11: 11255 | BK11: 11255
B12: F | C12: Web app developer | M12: 7000 | N12: 7000 | O12: 7000 | P12: 7000 | Q12: 7000 | R12: 7000 | S12: 7000 | T12: 7000 | U12: 7000 | V12: 7000 | W12: 7000 | X12: 7000 | Y12: 7210 | Z12: 7210 | AA12: 7210 | AB12: 7210 | AC12: 7210 | AD12: 7210 | AE12: 7210 | AF12: 7210 | AG12: 7210 | AH12: 7210 | AI12: 7210 | AJ12: 7210 | AK12: 7426 | AL12: 7426 | AM12: 7426 | AN12: 7426 | AO12: 7426 | AP12: 7426 | AQ12: 7426 | AR12: 7426 | AS12: 7426 | AT12: 7426 | AU12: 7426 | AV12: 7426 | AW12: 7649 | AX12: 7649 | AY12: 7649 | AZ12: 7649 | BA12: 7649 | BB12: 7649 | BC12: 7649 | BD12: 7649 | BE12: 7649 | BF12: 7649 | BG12: 7649 | BH12: 7649 | BI12: 7879 | BJ12: 7879 | BK12: 7879
B13: F | C13: Mobile Developer | M13: 6250 | N13: 6250 | O13: 6250 | P13: 6250 | Q13: 6250 | R13: 6250 | S13: 6250 | T13: 6250 | U13: 6250 | V13: 6250 | W13: 6250 | X13: 6250 | Y13: 6438 | Z13: 6438 | AA13: 6438 | AB13: 6438 | AC13: 6438 | AD13: 6438 | AE13: 6438 | AF13: 6438 | AG13: 6438 | AH13: 6438 | AI13: 6438 | AJ13: 6438 | AK13: 6631 | AL13: 6631 | AM13: 6631 | AN13: 6631 | AO13: 6631 | AP13: 6631 | AQ13: 6631 | AR13: 6631 | AS13: 6631 | AT13: 6631 | AU13: 6631 | AV13: 6631 | AW13: 6830 | AX13: 6830 | AY13: 6830 | AZ13: 6830 | BA13: 6830 | BB13: 6830 | BC13: 6830 | BD13: 6830 | BE13: 6830 | BF13: 6830 | BG13: 6830 | BH13: 6830 | BI13: 7034 | BJ13: 7034 | BK13: 7034
B14: F | C14: Systems Engineer | P14: 5333 | Q14: 5333 | R14: 5333 | S14: 5333 | T14: 5333 | U14: 5333 | V14: 5333 | W14: 5333 | X14: 5333 | Y14: 5333 | Z14: 5333 | AA14: 5333 | AB14: 5493 | AC14: 5493 | AD14: 5493 | AE14: 5493 | AF14: 5493 | AG14: 5493 | AH14: 5493 | AI14: 5493 | AJ14: 5493 | AK14: 5493 | AL14: 5493 | AM14: 5493 | AN14: 5658 | AO14: 5658 | AP14: 5658 | AQ14: 5658 | AR14: 5658 | AS14: 5658 | AT14: 5658 | AU14: 5658 | AV14: 5658 | AW14: 5658 | AX14: 5658 | AY14: 5658 | AZ14: 5828 | BA14: 5828 | BB14: 5828 | BC14: 5828 | BD14: 5828 | BE14: 5828 | BF14: 5828 | BG14: 5828 | BH14: 5828 | BI14: 5828 | BJ14: 5828 | BK14: 5828
C30: Benefits (calculated by macro) | D30: 1300 | E30: 1300 | F30: 1300 | G30: 1300 | H30: 1300 | I30: 1300 | J30: 1300 | K30: 1300 | L30: 1300 | M30: 3360 | N30: 3360 | O30: 3360 | P30: 4371 | Q30: 4371 | R30: 4371 | S30: 4371 | T30: 4371 | U30: 4371 | V30: 4371 | W30: 4371 | X30: 4371 | Y30: 4402 | Z30: 4402 | AA30: 4402 | AB30: 4502 | AC30: 4502 | AD30: 4502 | AE30: 4502 | AF30: 4502 | AG30: 4502 | AH30: 4502 | AI30: 4502 | AJ30: 4502 | AK30: 4535 | AL30: 4535 | AM30: 4535 | AN30: 4637 | AO30: 4637 | AP30: 4637 | AQ30: 4637 | AR30: 4637 | AS30: 4637 | AT30: 4637 | AU30: 4637 | AV30: 4637 | AW30: 4671 | AX30: 4671 | AY30: 4671 | AZ30: 4776 | BA30: 4776 | BB30: 4776 | BC30: 4776 | BD30: 4776 | BE30: 4776 | BF30: 4776 | BG30: 4776 | BH30: 4776 | BI30: 4811 | BJ30: 4811 | BK30: 4811
A34: Other costs here | C34: Lab supplies
C35: Lab services
C36: Grant subcontract costs
B48: Do not remove this line

Sheet G&A Costs
A1: LAM | D1: =CYFY&TEXT(StartYear+COLUMN()-4,"0000") -> CY2015 | E1: CY2016 | F1: CY2017 | G1: CY2018 | H1: CY2019
A2: G&A Costs - Annual | D2: =IF(COLUMN()=4,SUM(OFFSET($D$5,0,0,1,13-IF(CYFY="FY",0,SM_CYFY))),SUM(OFFSET($D$5,0,(13-SM_CYFY)+12*(COLUMN()-5),1,12))) -> 100960 | E2: 312551 | F2: 433804 | G2: 468948 | H2: 484200
D4: =IF(C4="",FirstMonth,DATE(YEAR(C4),MONTH(C4)+1,1)) -> 2015-01-01 | E4: 2015-02-01 | F4: 2015-03-01 | G4: 2015-04-01 | H4: 2015-05-01 | I4: 2015-06-01 | J4: 2015-07-01 | K4: 2015-08-01 | L4: 2015-09-01 | M4: 2015-10-01 | N4: 2015-11-01 | O4: 2015-12-01 | P4: 2016-01-01 | Q4: 2016-02-01 | R4: 2016-03-01 | S4: 2016-04-01 | T4: 2016-05-01 | U4: 2016-06-01 | V4: 2016-07-01 | W4: 2016-08-01 | X4: 2016-09-01 | Y4: 2016-10-01 | Z4: 2016-11-01 | AA4: 2016-12-01 | AB4: 2017-01-01 | AC4: 2017-02-01 | AD4: 2017-03-01 | AE4: 2017-04-01 | AF4: 2017-05-01 | AG4: 2017-06-01 | AH4: 2017-07-01 | AI4: 2017-08-01 | AJ4: =IF(AI4="",FirstMonth,DATE(YEAR(AI4),MONTH(AI4)+1,1)) -> 2017-09-01 | AK4: 2017-10-01 | AL4: 2017-11-01 | AM4: 2017-12-01 | AN4: =IF(AM4="",FirstMonth,DATE(YEAR(AM4),MONTH(AM4)+1,1)) -> 2018-01-01 | AO4: =IF(AN4="",FirstMonth,DATE(YEAR(AN4),MONTH(AN4)+1,1)) -> 2018-02-01 | AP4: =IF(AO4="",FirstMonth,DATE(YEAR(AO4),MONTH(AO4)+1,1)) -> 2018-03-01 | AQ4: =IF(AP4="",FirstMonth,DATE(YEAR(AP4),MONTH(AP4)+1,1)) -> 2018-04-01 | AR4: =IF(AQ4="",FirstMonth,DATE(YEAR(AQ4),MONTH(AQ4)+1,1)) -> 2018-05-01 | AS4: =IF(AR4="",FirstMonth,DATE(YEAR(AR4),MONTH(AR4)+1,1)) -> 2018-06-01 | AT4: =IF(AS4="",FirstMonth,DATE(YEAR(AS4),MONTH(AS4)+1,1)) -> 2018-07-01 | AU4: =IF(AT4="",FirstMonth,DATE(YEAR(AT4),MONTH(AT4)+1,1)) -> 2018-08-01 | AV4: =IF(AU4="",FirstMonth,DATE(YEAR(AU4),MONTH(AU4)+1,1)) -> 2018-09-01 | AW4: =IF(AV4="",FirstMonth,DATE(YEAR(AV4),MONTH(AV4)+1,1)) -> 2018-10-01 | AX4: =IF(AW4="",FirstMonth,DATE(YEAR(AW4),MONTH(AW4)+1,1)) -> 2018-11-01 | AY4: =IF(AX4="",FirstMonth,DATE(YEAR(AX4),MONTH(AX4)+1,1)) -> 2018-12-01 | AZ4: =IF(AY4="",FirstMonth,DATE(YEAR(AY4),MONTH(AY4)+1,1)) -> 2019-01-01 | BA4: =IF(AZ4="",FirstMonth,DATE(YEAR(AZ4),MONTH(AZ4)+1,1)) -> 2019-02-01 | BB4: =IF(BA4="",FirstMonth,DATE(YEAR(BA4),MONTH(BA4)+1,1)) -> 2019-03-01 | BC4: =IF(BB4="",FirstMonth,DATE(YEAR(BB4),MONTH(BB4)+1,1)) -> 2019-04-01 | BD4: =IF(BC4="",FirstMonth,DATE(YEAR(BC4),MONTH(BC4)+1,1)) -> 2019-05-01 | BE4: =IF(BD4="",FirstMonth,DATE(YEAR(BD4),MONTH(BD4)+1,1)) -> 2019-06-01 | BF4: =IF(BE4="",FirstMonth,DATE(YEAR(BE4),MONTH(BE4)+1,1)) -> 2019-07-01 | BG4: =IF(BF4="",FirstMonth,DATE(YEAR(BF4),MONTH(BF4)+1,1)) -> 2019-08-01 | BH4: =IF(BG4="",FirstMonth,DATE(YEAR(BG4),MONTH(BG4)+1,1)) -> 2019-09-01 | BI4: =IF(BH4="",FirstMonth,DATE(YEAR(BH4),MONTH(BH4)+1,1)) -> 2019-10-01 | BJ4: =IF(BI4="",FirstMonth,DATE(YEAR(BI4),MONTH(BI4)+1,1)) -> 2019-11-01 | BK4: =IF(BJ4="",FirstMonth,DATE(YEAR(BJ4),MONTH(BJ4)+1,1)) -> 2019-12-01
A5: G&A Costs - Monthly | D5: =SUM(D11:D29)+SUM(D33:D45) -> 5405 | E5: 11630 | F5: 6630 | G5: 2630 | H5: 3630 | I5: 4630 | J5: 4630 | K5: 4630 | L5: 5120 | M5: 18775 | N5: 16625 | O5: 16625 | P5: 23937 | Q5: 24064 | R5: 24066 | S5: 25118 | T5: 24120 | U5: 24122 | V5: 25949 | W5: 27431 | X5: 27433 | Y5: 30435 | Z5: 27437 | AA5: 28439 | AB5: 34356 | AC5: 34358 | AD5: 34360 | AE5: 35362 | AF5: 34364 | AG5: 34366 | AH5: 34568 | AI5: 37810 | AJ5: =SUM(AJ11:AJ29)+SUM(AJ33:AJ45) -> 37812 | AK5: 40814 | AL5: 37816 | AM5: 37818 | AN5: 39079 | AO5: 39079 | AP5: 39079 | AQ5: 39079 | AR5: 39079 | AS5: 39079 | AT5: 39079 | AU5: 39079 | AV5: 39079 | AW5: 39079 | AX5: 39079 | AY5: 39079 | AZ5: 40350 | BA5: 40350 | BB5: 40350 | BC5: 40350 | BD5: 40350 | BE5: 40350 | BF5: 40350 | BG5: 40350 | BH5: 40350 | BI5: 40350 | BJ5: 40350 | BK5: 40350
A6: G&A Costs - Monthly (subject to Pre Pay) | D6: =D36+D37+D38+D39 -> 375 | E6: =E36+E37+E38+E39 -> 600 | F6: 600 | G6: 600 | H6: 600 | I6: 600 | J6: 600 | K6: 600 | L6: 600 | M6: 1275 | N6: 1875 | O6: 1875 | P6: 1875 | Q6: 1875 | R6: 1875 | S6: 1875 | T6: 1875 | U6: 1875 | V6: 3700 | W6: 4000 | X6: 4000 | Y6: 4000 | Z6: 4000 | AA6: 4000 | AB6: 4000 | AC6: 4000 | AD6: 4000 | AE6: 4000 | AF6: 4000 | AG6: 4000 | AH6: 4000 | AI6: 4000 | AJ6: 4000 | AK6: 4000 | AL6: 4000 | AM6: 4000 | AN6: 4000 | AO6: 4000 | AP6: 4000 | AQ6: 4000 | AR6: 4000 | AS6: 4000 | AT6: 4000 | AU6: 4000 | AV6: 4000 | AW6: 4000 | AX6: 4000 | AY6: 4000 | AZ6: 4000 | BA6: 4000 | BB6: 4000 | BC6: 4000 | BD6: 4000 | BE6: 4000 | BF6: 4000 | BG6: 4000 | BH6: 4000 | BI6: 4000 | BJ6: 4000 | BK6: 4000
C8: The Monthly G&A Cost line should do nothing more than sum values from below.
B10: BEN | C10: Name/Position
A11: Use macro to add staff | B11: F | C11: CEO | D11: 0 | E11: 0 | F11: 0 | G11: 0 | H11: 0 | I11: 0 | J11: 0 | K11: 0 | L11: 0 | M11: 6000 | N11: 6000 | O11: 6000 | P11: 6000 | Q11: 6000 | R11: 6000 | S11: 6000 | T11: 6000 | U11: 6000 | V11: 6000 | W11: 7000 | X11: 7000 | Y11: 7000 | Z11: 7000 | AA11: 7000 | AB11: 7000 | AC11: 7000 | AD11: 7000 | AE11: 7000 | AF11: 7000 | AG11: 7000 | AH11: 7000 | AI11: 10000 | AJ11: 10000 | AK11: 10000 | AL11: 10000 | AM11: 10000 | AN11: 10000 | AO11: 10000 | AP11: 10000 | AQ11: 10000 | AR11: 10000 | AS11: 10000 | AT11: 10000 | AU11: 10000 | AV11: 10000 | AW11: 10000 | AX11: 10000 | AY11: 10000 | AZ11: 10000 | BA11: 10000 | BB11: 10000 | BC11: 10000 | BD11: 10000 | BE11: 10000 | BF11: 10000 | BG11: 10000 | BH11: 10000 | BI11: 10000 | BJ11: 10000 | BK11: 10000
B12: F | C12: Office Manager / Bookkeeper | P12: 3500 | Q12: 3500 | R12: 3500 | S12: 3500 | T12: 3500 | U12: 3500 | V12: 3500 | W12: 3500 | X12: 3500 | Y12: 3500 | Z12: 3500 | AA12: 3500 | AB12: 3605 | AC12: 3605 | AD12: 3605 | AE12: 3605 | AF12: 3605 | AG12: 3605 | AH12: 3605 | AI12: 3605 | AJ12: 3605 | AK12: 3605 | AL12: 3605 | AM12: 3605 | AN12: 3713 | AO12: 3713 | AP12: 3713 | AQ12: 3713 | AR12: 3713 | AS12: 3713 | AT12: 3713 | AU12: 3713 | AV12: 3713 | AW12: 3713 | AX12: 3713 | AY12: 3713 | AZ12: 3825 | BA12: 3825 | BB12: 3825 | BC12: 3825 | BD12: 3825 | BE12: 3825 | BF12: 3825 | BG12: 3825 | BH12: 3825 | BI12: 3825 | BJ12: 3825 | BK12: 3825
B13: F | C13: Accounts Receivable | AB13: 3000 | AC13: 3000 | AD13: 3000 | AE13: 3000 | AF13: 3000 | AG13: 3000 | AH13: 3000 | AI13: 3000 | AJ13: 3000 | AK13: 3000 | AL13: 3000 | AM13: 3000 | AN13: 3090 | AO13: 3090 | AP13: 3090 | AQ13: 3090 | AR13: 3090 | AS13: 3090 | AT13: 3090 | AU13: 3090 | AV13: 3090 | AW13: 3090 | AX13: 3090 | AY13: 3090 | AZ13: 3183 | BA13: 3183 | BB13: 3183 | BC13: 3183 | BD13: 3183 | BE13: 3183 | BF13: 3183 | BG13: 3183 | BH13: 3183 | BI13: 3183 | BJ13: 3183 | BK13: 3183
C29: Benefits (calculated by macro) | D29: 0 | E29: 0 | F29: 0 | G29: 0 | H29: 0 | I29: 0 | J29: 0 | K29: 0 | L29: 0 | M29: 980 | N29: 980 | O29: 980 | P29: 1790 | Q29: 1790 | R29: 1790 | S29: 1790 | T29: 1790 | U29: 1790 | V29: 1790 | W29: 1870 | X29: 1870 | Y29: 1870 | Z29: 1870 | AA29: 1870 | AB29: 2680 | AC29: 2680 | AD29: 2680 | AE29: 2680 | AF29: 2680 | AG29: 2680 | AH29: 2680 | AI29: 2920 | AJ29: 2920 | AK29: 2920 | AL29: 2920 | AM29: 2920 | AN29: 2983 | AO29: 2983 | AP29: 2983 | AQ29: 2983 | AR29: 2983 | AS29: 2983 | AT29: 2983 | AU29: 2983 | AV29: 2983 | AW29: 2983 | AX29: 2983 | AY29: 2983 | AZ29: 3049 | BA29: 3049 | BB29: 3049 | BC29: 3049 | BD29: 3049 | BE29: 3049 | BF29: 3049 | BG29: 3049 | BH29: 3049 | BI29: 3049 | BJ29: 3049 | BK29: 3049
A33: Other costs here | C33: Office supplies | D33: ='Fin Statements M'!D67*SalesSupp -> 2000 | E33: ='Fin Statements M'!E67*SalesSupp -> 2000 | F33: ='Fin Statements M'!F67*SalesSupp -> 2000 | G33: ='Fin Statements M'!G67*SalesSupp -> 2000 | H33: ='Fin Statements M'!H67*SalesSupp -> 3000 | I33: ='Fin Statements M'!I67*SalesSupp -> 4000 | J33: ='Fin Statements M'!J67*SalesSupp -> 4000 | K33: ='Fin Statements M'!K67*SalesSupp -> 4000 | L33: ='Fin Statements M'!L67*SalesSupp -> 4000 | M33: ='Fin Statements M'!M67*SalesSupp -> 7000 | N33: ='Fin Statements M'!N67*SalesSupp -> 7000 | O33: ='Fin Statements M'!O67*SalesSupp -> 7000 | P33: ='Fin Statements M'!P67*SalesSupp -> 10000 | Q33: ='Fin Statements M'!Q67*SalesSupp -> 10000 | R33: ='Fin Statements M'!R67*SalesSupp -> 10000 | S33: ='Fin Statements M'!S67*SalesSupp -> 10000 | T33: ='Fin Statements M'!T67*SalesSupp -> 10000 | U33: ='Fin Statements M'!U67*SalesSupp -> 10000 | V33: ='Fin Statements M'!V67*SalesSupp -> 10000 | W33: ='Fin Statements M'!W67*SalesSupp -> 10000 | X33: ='Fin Statements M'!X67*SalesSupp -> 10000 | Y33: ='Fin Statements M'!Y67*SalesSupp -> 10000 | Z33: ='Fin Statements M'!Z67*SalesSupp -> 10000 | AA33: ='Fin Statements M'!AA67*SalesSupp -> 11000 | AB33: ='Fin Statements M'!AB67*SalesSupp -> 13000 | AC33: ='Fin Statements M'!AC67*SalesSupp -> 13000 | AD33: ='Fin Statements M'!AD67*SalesSupp -> 13000 | AE33: ='Fin Statements M'!AE67*SalesSupp -> 13000 | AF33: ='Fin Statements M'!AF67*SalesSupp -> 13000 | AG33: ='Fin Statements M'!AG67*SalesSupp -> 13000 | AH33: ='Fin Statements M'!AH67*SalesSupp -> 13000 | AI33: ='Fin Statements M'!AI67*SalesSupp -> 13000 | AJ33: ='Fin Statements M'!AJ67*SalesSupp -> 13000 | AK33: ='Fin Statements M'!AK67*SalesSupp -> 13000 | AL33: ='Fin Statements M'!AL67*SalesSupp -> 13000 | AM33: ='Fin Statements M'!AM67*SalesSupp -> 13000 | AN33: ='Fin Statements M'!AN67*SalesSupp -> 14000 | AO33: ='Fin Statements M'!AO67*SalesSupp -> 14000 | AP33: ='Fin Statements M'!AP67*SalesSupp -> 14000 | AQ33: ='Fin Statements M'!AQ67*SalesSupp -> 14000 | AR33: ='Fin Statements M'!AR67*SalesSupp -> 14000 | AS33: ='Fin Statements M'!AS67*SalesSupp -> 14000 | AT33: ='Fin Statements M'!AT67*SalesSupp -> 14000 | AU33: ='Fin Statements M'!AU67*SalesSupp -> 14000 | AV33: ='Fin Statements M'!AV67*SalesSupp -> 14000 | AW33: ='Fin Statements M'!AW67*SalesSupp -> 14000 | AX33: ='Fin Statements M'!AX67*SalesSupp -> 14000 | AY33: ='Fin Statements M'!AY67*SalesSupp -> 14000 | AZ33: ='Fin Statements M'!AZ67*SalesSupp -> 15000 | BA33: ='Fin Statements M'!BA67*SalesSupp -> 15000 | BB33: ='Fin Statements M'!BB67*SalesSupp -> 15000 | BC33: ='Fin Statements M'!BC67*SalesSupp -> 15000 | BD33: ='Fin Statements M'!BD67*SalesSupp -> 15000 | BE33: ='Fin Statements M'!BE67*SalesSupp -> 15000 | BF33: ='Fin Statements M'!BF67*SalesSupp -> 15000 | BG33: ='Fin Statements M'!BG67*SalesSupp -> 15000 | BH33: ='Fin Statements M'!BH67*SalesSupp -> 15000 | BI33: ='Fin Statements M'!BI67*SalesSupp -> 15000 | BJ33: ='Fin Statements M'!BJ67*SalesSupp -> 15000 | BK33: ='Fin Statements M'!BK67*SalesSupp -> 15000
C34: Telecom, hosting, etc | D34: 30 | E34: 30 | F34: 30 | G34: 30 | H34: 30 | I34: 30 | J34: 30 | K34: 30 | L34: 70 | M34: 70 | N34: 70 | O34: 70 | P34: 72 | Q34: 74 | R34: 76 | S34: 78 | T34: 80 | U34: 82 | V34: 84 | W34: 86 | X34: 88 | Y34: 90 | Z34: 92 | AA34: 94 | AB34: 96 | AC34: 98 | AD34: 100 | AE34: 102 | AF34: 104 | AG34: 106 | AH34: 108 | AI34: 110 | AJ34: 112 | AK34: 114 | AL34: 116 | AM34: 118 | AN34: 118 | AO34: 118 | AP34: 118 | AQ34: 118 | AR34: 118 | AS34: 118 | AT34: 118 | AU34: 118 | AV34: 118 | AW34: 118 | AX34: 118 | AY34: 118 | AZ34: 118 | BA34: 118 | BB34: 118 | BC34: 118 | BD34: 118 | BE34: 118 | BF34: 118 | BG34: 118 | BH34: 118 | BI34: 118 | BJ34: 118 | BK34: 118
C35: Postage | L35: 50 | M35: 50 | N35: 50 | O35: 50 | P35: 50 | Q35: 50 | R35: 50 | S35: 100 | T35: 100 | U35: 100 | V35: 100 | W35: 100 | X35: 100 | Y35: 100 | Z35: 100 | AA35: 100 | AB35: 100 | AC35: 100 | AD35: 100 | AE35: 100 | AF35: 100 | AG35: 100 | AH35: 200 | AI35: 200 | AJ35: 200 | AK35: 200 | AL35: 200 | AM35: 200 | AN35: 200 | AO35: 200 | AP35: 200 | AQ35: 200 | AR35: 200 | AS35: 200 | AT35: 200 | AU35: 200 | AV35: 200 | AW35: 200 | AX35: 200 | AY35: 200 | AZ35: 200 | BA35: 200 | BB35: 200 | BC35: 200 | BD35: 200 | BE35: 200 | BF35: 200 | BG35: 200 | BH35: 200 | BI35: 200 | BJ35: 200 | BK35: 200
C36: Membership dues
C37: Business Insurance | M37: 675 | N37: 675 | O37: 675 | P37: 675 | Q37: 675 | R37: 675 | S37: 675 | T37: 675 | U37: 675 | V37: 2500 | W37: 2500 | X37: 2500 | Y37: 2500 | Z37: 2500 | AA37: 2500 | AB37: 2500 | AC37: 2500 | AD37: 2500 | AE37: 2500 | AF37: 2500 | AG37: 2500 | AH37: 2500 | AI37: 2500 | AJ37: 2500 | AK37: 2500 | AL37: 2500 | AM37: 2500 | AN37: 2500 | AO37: 2500 | AP37: 2500 | AQ37: 2500 | AR37: 2500 | AS37: 2500 | AT37: 2500 | AU37: 2500 | AV37: 2500 | AW37: 2500 | AX37: 2500 | AY37: 2500 | AZ37: 2500 | BA37: 2500 | BB37: 2500 | BC37: 2500 | BD37: 2500 | BE37: 2500 | BF37: 2500 | BG37: 2500 | BH37: 2500 | BI37: 2500 | BJ37: 2500 | BK37: 2500
C38: D&O Liability Insurance
C39: Facilities / Rent | D39: 375 | E39: 600 | F39: 600 | G39: 600 | H39: 600 | I39: 600 | J39: 600 | K39: 600 | L39: 600 | M39: 600 | N39: 1200 | O39: 1200 | P39: 1200 | Q39: 1200 | R39: 1200 | S39: 1200 | T39: 1200 | U39: 1200 | V39: 1200 | W39: 1500 | X39: 1500 | Y39: 1500 | Z39: 1500 | AA39: 1500 | AB39: 1500 | AC39: 1500 | AD39: 1500 | AE39: 1500 | AF39: 1500 | AG39: 1500 | AH39: 1500 | AI39: 1500 | AJ39: 1500 | AK39: 1500 | AL39: 1500 | AM39: 1500 | AN39: 1500 | AO39: 1500 | AP39: 1500 | AQ39: 1500 | AR39: 1500 | AS39: 1500 | AT39: 1500 | AU39: 1500 | AV39: 1500 | AW39: 1500 | AX39: 1500 | AY39: 1500 | AZ39: 1500 | BA39: 1500 | BB39: 1500 | BC39: 1500 | BD39: 1500 | BE39: 1500 | BF39: 1500 | BG39: 1500 | BH39: 1500 | BI39: 1500 | BJ39: 1500 | BK39: 1500
C40: Utilities | N40: 250 | O40: 250 | P40: 250 | Q40: 375 | R40: 375 | S40: 375 | T40: 375 | U40: 375 | V40: 375 | W40: 375 | X40: 375 | Y40: 375 | Z40: 375 | AA40: 375 | AB40: 375 | AC40: 375 | AD40: 375 | AE40: 375 | AF40: 375 | AG40: 375 | AH40: 375 | AI40: 375 | AJ40: 375 | AK40: 375 | AL40: 375 | AM40: 375 | AN40: 375 | AO40: 375 | AP40: 375 | AQ40: 375 | AR40: 375 | AS40: 375 | AT40: 375 | AU40: 375 | AV40: 375 | AW40: 375 | AX40: 375 | AY40: 375 | AZ40: 375 | BA40: 375 | BB40: 375 | BC40: 375 | BD40: 375 | BE40: 375 | BF40: 375 | BG40: 375 | BH40: 375 | BI40: 375 | BJ40: 375 | BK40: 375
C41: Legal & Professional | M41: 3000 | S41: 1000 | Y41: 3000 | AE41: 1000 | AK41: 3000
C42: Misc | D42: 3000 | E42: 9000 | F42: 4000 | L42: 400 | M42: 400 | N42: 400 | O42: 400 | P42: 400 | Q42: 400 | R42: 400 | S42: 400 | T42: 400 | U42: 400 | V42: 400 | W42: 500 | X42: 500 | Y42: 500 | Z42: 500 | AA42: 500 | AB42: 500 | AC42: 500 | AD42: 500 | AE42: 500 | AF42: 500 | AG42: 500 | AH42: 600 | AI42: 600 | AJ42: 600 | AK42: 600 | AL42: 600 | AM42: 600 | AN42: 600 | AO42: 600 | AP42: 600 | AQ42: 600 | AR42: 600 | AS42: 600 | AT42: 600 | AU42: 600 | AV42: 600 | AW42: 600 | AX42: 600 | AY42: 600 | AZ42: 600 | BA42: 600 | BB42: 600 | BC42: 600 | BD42: 600 | BE42: 600 | BF42: 600 | BG42: 600 | BH42: 600 | BI42: 600 | BJ42: 600 | BK42: 600
B47: Do not remove this line

Sheet Loans
A1: LAM | D1: =CYFY&TEXT(StartYear+COLUMN()-4,"0000") -> CY2015 | E1: CY2016 | F1: CY2017 | G1: CY2018 | H1: CY2019
A2: Net borrowing - Annual | D2: =SUM(OFFSET($D11,0,12*(COLUMN()-4),1,12)) -> 273750 | E2: =SUM(OFFSET($D11,0,12*(COLUMN()-4),1,12)) -> 66250 | F2: 60000 | G2: =SUM(OFFSET($D11,0,12*(COLUMN()-4),1,12)) -> 60000 | H2: 290000
A3: Interest payment - Annual | D3: =SUM(OFFSET($D12,0,12*(COLUMN()-4),1,12)) -> 13125 | E3: =SUM(OFFSET($D12,0,12*(COLUMN()-4),1,12)) -> 12061 | F3: 11468 | G3: =SUM(OFFSET($D12,0,12*(COLUMN()-4),1,12)) -> 12776 | H3: 22518
A4: Loan repayment - Annual | D4: =SUM(OFFSET($D13,0,12*(COLUMN()-4),1,12)) -> 78398 | E4: 83234 | F4: 88368 | G4: =SUM(OFFSET($D13,0,12*(COLUMN()-4),1,12)) -> 0 | H4: 0
A5: Current portion of debt - Annual | D5: =OFFSET($D14,0,12*(COLUMN()-3)-1,1,1) -> 106982 | E5: =OFFSET($D14,0,12*(COLUMN()-3)-1,1,1) -> 178368 | F5: 150000 | G5: =OFFSET($D14,0,12*(COLUMN()-3)-1,1,1) -> 210000 | H5: 500000
A6: Long term debt - Annual | D6: =OFFSET($D15,0,12*(COLUMN()-3)-1,1,1) -> 88370 | E6: =OFFSET($D15,0,12*(COLUMN()-3)-1,1,1) -> 0 | F6: 0 | G6: =OFFSET($D15,0,12*(COLUMN()-3)-1,1,1) -> 0 | H6: 0
A7: Debt converted to equity - Annual | D7: 0 | E7: 0 | F7: 0 | G7: =SUM(OFFSET($D16,0,12*(COLUMN()-4),1,12)) -> 0 | H7: 0
A8: Accrued interest - Annual | D8: 0 | E8: 0 | F8: 0 | G8: =SUM(OFFSET($D17,0,12*(COLUMN()-4),1,12)) -> 0 | H8: 0
D10: =IF(C10="",FirstMonth,DATE(YEAR(C10),MONTH(C10)+1,1)) -> 2015-01-01 | E10: 2015-02-01 | F10: 2015-03-01 | G10: 2015-04-01 | H10: 2015-05-01 | I10: 2015-06-01 | J10: 2015-07-01 | K10: 2015-08-01 | L10: 2015-09-01 | M10: 2015-10-01 | N10: 2015-11-01 | O10: 2015-12-01 | P10: 2016-01-01 | Q10: 2016-02-01 | R10: 2016-03-01 | S10: 2016-04-01 | T10: 2016-05-01 | U10: 2016-06-01 | V10: 2016-07-01 | W10: 2016-08-01 | X10: 2016-09-01 | Y10: 2016-10-01 | Z10: 2016-11-01 | AA10: 2016-12-01 | AB10: 2017-01-01 | AC10: 2017-02-01 | AD10: 2017-03-01 | AE10: 2017-04-01 | AF10: 2017-05-01 | AG10: 2017-06-01 | AH10: 2017-07-01 | AI10: 2017-08-01 | AJ10: =IF(AI10="",FirstMonth,DATE(YEAR(AI10),MONTH(AI10)+1,1)) -> 2017-09-01 | AK10: 2017-10-01 | AL10: 2017-11-01 | AM10: 2017-12-01 | AN10: =IF(AM10="",FirstMonth,DATE(YEAR(AM10),MONTH(AM10)+1,1)) -> 2018-01-01 | AO10: =IF(AN10="",FirstMonth,DATE(YEAR(AN10),MONTH(AN10)+1,1)) -> 2018-02-01 | AP10: =IF(AO10="",FirstMonth,DATE(YEAR(AO10),MONTH(AO10)+1,1)) -> 2018-03-01 | AQ10: =IF(AP10="",FirstMonth,DATE(YEAR(AP10),MONTH(AP10)+1,1)) -> 2018-04-01 | AR10: =IF(AQ10="",FirstMonth,DATE(YEAR(AQ10),MONTH(AQ10)+1,1)) -> 2018-05-01 | AS10: =IF(AR10="",FirstMonth,DATE(YEAR(AR10),MONTH(AR10)+1,1)) -> 2018-06-01 | AT10: =IF(AS10="",FirstMonth,DATE(YEAR(AS10),MONTH(AS10)+1,1)) -> 2018-07-01 | AU10: =IF(AT10="",FirstMonth,DATE(YEAR(AT10),MONTH(AT10)+1,1)) -> 2018-08-01 | AV10: =IF(AU10="",FirstMonth,DATE(YEAR(AU10),MONTH(AU10)+1,1)) -> 2018-09-01 | AW10: =IF(AV10="",FirstMonth,DATE(YEAR(AV10),MONTH(AV10)+1,1)) -> 2018-10-01 | AX10: =IF(AW10="",FirstMonth,DATE(YEAR(AW10),MONTH(AW10)+1,1)) -> 2018-11-01 | AY10: =IF(AX10="",FirstMonth,DATE(YEAR(AX10),MONTH(AX10)+1,1)) -> 2018-12-01 | AZ10: =IF(AY10="",FirstMonth,DATE(YEAR(AY10),MONTH(AY10)+1,1)) -> 2019-01-01 | BA10: =IF(AZ10="",FirstMonth,DATE(YEAR(AZ10),MONTH(AZ10)+1,1)) -> 2019-02-01 | BB10: =IF(BA10="",FirstMonth,DATE(YEAR(BA10),MONTH(BA10)+1,1)) -> 2019-03-01 | BC10: =IF(BB10="",FirstMonth,DATE(YEAR(BB10),MONTH(BB10)+1,1)) -> 2019-04-01 | BD10: =IF(BC10="",FirstMonth,DATE(YEAR(BC10),MONTH(BC10)+1,1)) -> 2019-05-01 | BE10: =IF(BD10="",FirstMonth,DATE(YEAR(BD10),MONTH(BD10)+1,1)) -> 2019-06-01 | BF10: =IF(BE10="",FirstMonth,DATE(YEAR(BE10),MONTH(BE10)+1,1)) -> 2019-07-01 | BG10: =IF(BF10="",FirstMonth,DATE(YEAR(BF10),MONTH(BF10)+1,1)) -> 2019-08-01 | BH10: =IF(BG10="",FirstMonth,DATE(YEAR(BG10),MONTH(BG10)+1,1)) -> 2019-09-01 | BI10: =IF(BH10="",FirstMonth,DATE(YEAR(BH10),MONTH(BH10)+1,1)) -> 2019-10-01 | BJ10: =IF(BI10="",FirstMonth,DATE(YEAR(BI10),MONTH(BI10)+1,1)) -> 2019-11-01 | BK10: =IF(BJ10="",FirstMonth,DATE(YEAR(BJ10),MONTH(BJ10)+1,1)) -> 2019-12-01
A11: Net borrowing - Monthly | D11: =D25+SUMIF($C$36:$C$93,SUBSTITUTE($A11," - Monthly",""),D$36:D$93) -> 250000 | E11: =E25+SUMIF($C$36:$C$93,SUBSTITUTE($A11," - Monthly",""),E$36:E$93) -> 0 | F11: 0 | G11: 0 | H11: 0 | I11: 0 | J11: 0 | K11: 0 | L11: 0 | M11: 0 | N11: 21250 | O11: 2500 | P11: 2500 | Q11: 2500 | R11: 2500 | S11: 2500 | T11: 12500 | U11: 13750 | V11: 5000 | W11: 5000 | X11: 5000 | Y11: 5000 | Z11: 5000 | AA11: 5000 | AB11: 5000 | AC11: 5000 | AD11: 5000 | AE11: 5000 | AF11: 5000 | AG11: 5000 | AH11: 5000 | AI11: 5000 | AJ11: 5000 | AK11: 5000 | AL11: 5000 | AM11: 5000 | AN11: =AN25+SUMIF($C$36:$C$93,SUBSTITUTE($A11," - Monthly",""),AN$36:AN$93) -> 5000 | AO11: 5000 | AP11: 5000 | AQ11: 5000 | AR11: 5000 | AS11: 5000 | AT11: 5000 | AU11: 5000 | AV11: 5000 | AW11: 5000 | AX11: 5000 | AY11: 5000 | AZ11: 5000 | BA11: 5000 | BB11: 5000 | BC11: 5000 | BD11: 5000 | BE11: 5000 | BF11: 5000 | BG11: 5000 | BH11: 250000 | BI11: 0 | BJ11: 0 | BK11: 0
A12: Interest payment - Monthly | D12: =D26+SUMIF($C$36:$C$93,SUBSTITUTE($A12," - Monthly",""),D$36:D$93) -> 1250 | E12: 1218 | F12: 1186 | G12: 1154 | H12: 1121 | I12: 1089 | J12: 1056 | K12: 1024 | L12: 991 | M12: 958 | N12: 1048 | O12: 1030 | P12: 1011 | Q12: 992 | R12: 972 | S12: 953 | T12: 992 | U12: 1037 | V12: 1032 | W12: 1026 | X12: 1021 | Y12: 1015 | Z12: 1008 | AA12: 1002 | AB12: 995 | AC12: 989 | AD12: 983 | AE12: 975 | AF12: 968 | AG12: 960 | AH12: 953 | AI12: 945 | AJ12: 938 | AK12: 929 | AL12: 921 | AM12: 912 | AN12: =AN26+SUMIF($C$36:$C$93,SUBSTITUTE($A12," - Monthly",""),AN$36:AN$93) -> 904 | AO12: 933 | AP12: 963 | AQ12: 992 | AR12: 1021 | AS12: 1050 | AT12: 1079 | AU12: 1108 | AV12: 1138 | AW12: 1167 | AX12: 1196 | AY12: 1225 | AZ12: 1254 | BA12: 1283 | BB12: 1313 | BC12: 1342 | BD12: 1371 | BE12: 1400 | BF12: 1429 | BG12: 1458 | BH12: 2917 | BI12: 2917 | BJ12: 2917 | BK12: 2917
A13: Loan repayment - Monthly | D13: =SUMIF($C$36:$C$93,SUBSTITUTE($A13," - Monthly",""),D$36:D$93) -> 6355 | E13: 6387 | F13: 6419 | G13: 6451 | H13: 6484 | I13: 6516 | J13: 6549 | K13: 6581 | L13: 6614 | M13: 6647 | N13: 6681 | O13: 6714 | P13: 6747 | Q13: 6781 | R13: 6815 | S13: 6849 | T13: 6883 | U13: 6918 | V13: 6952 | W13: 6987 | X13: 7022 | Y13: 7057 | Z13: 7093 | AA13: 7130 | AB13: 7164 | AC13: 7199 | AD13: 7235 | AE13: 7272 | AF13: 7308 | AG13: 7345 | AH13: 7381 | AI13: 7418 | AJ13: 7455 | AK13: 7493 | AL13: 7530 | AM13: 7568 | AN13: 0 | AO13: 0 | AP13: 0 | AQ13: 0 | AR13: 0 | AS13: 0 | AT13: 0 | AU13: 0 | AV13: 0 | AW13: 0 | AX13: 0 | AY13: 0 | AZ13: 0 | BA13: 0 | BB13: 0 | BC13: 0 | BD13: 0 | BE13: 0 | BF13: 0 | BG13: 0 | BH13: 0 | BI13: 0 | BJ13: 0 | BK13: 0
A14: Current portion of debt - Monthly | D14: =D27+SUMIF($C$36:$C$93,SUBSTITUTE($A14," - Monthly",""),D$36:D$93) -> 78790 | E14: =E27+SUMIF($C$36:$C$93,SUBSTITUTE($A14," - Monthly",""),E$36:E$93) -> 79184 | F14: 79580 | G14: 79978 | H14: 80377 | I14: 80779 | J14: 81182 | K14: 81588 | L14: 81996 | M14: 82406 | N14: 104068 | O14: 106982 | P14: 109899 | Q14: 112817 | R14: 115737 | S14: 118660 | T14: 131585 | U14: 145762 | V14: 151191 | W14: 156622 | X14: 162055 | Y14: 167491 | Z14: 172928 | AA14: 178368 | AB14: 176204 | AC14: 174005 | AD14: 171770 | AE14: 169498 | AF14: 167190 | AG14: 164845 | AH14: 162464 | AI14: 160046 | AJ14: 157591 | AK14: 155098 | AL14: 152568 | AM14: 150000 | AN14: =AN27+SUMIF($C$36:$C$93,SUBSTITUTE($A14," - Monthly",""),AN$36:AN$93) -> 155000 | AO14: 160000 | AP14: 165000 | AQ14: 170000 | AR14: 175000 | AS14: 180000 | AT14: 185000 | AU14: 190000 | AV14: 195000 | AW14: 200000 | AX14: 205000 | AY14: 210000 | AZ14: 215000 | BA14: 220000 | BB14: 225000 | BC14: 230000 | BD14: 235000 | BE14: 240000 | BF14: 245000 | BG14: 250000 | BH14: 500000 | BI14: 500000 | BJ14: 500000 | BK14: 500000
A15: Long term debt - Monthly | D15: =SUMIF($C$36:$C$93,SUBSTITUTE($A15," - Monthly",""),D$36:D$93) -> 164855 | E15: 158074 | F15: 151259 | G15: 144410 | H15: 137527 | I15: 130609 | J15: 123657 | K15: 116670 | L15: 109648 | M15: 102591 | N15: =SUMIF($C$36:$C$93,SUBSTITUTE($A15," - Monthly",""),N$36:N$93) -> 95498 | O15: 88370 | P15: 81206 | Q15: 74007 | R15: 66772 | S15: 59500 | T15: 52192 | U15: 44847 | V15: 37466 | W15: 30048 | X15: =SUMIF($C$36:$C$93,SUBSTITUTE($A15," - Monthly",""),X$36:X$93) -> 22593 | Y15: 15100 | Z15: 7570 | AA15: 0 | AB15: 0 | AC15: 0 | AD15: 0 | AE15: 0 | AF15: 0 | AG15: 0 | AH15: =SUMIF($C$36:$C$93,SUBSTITUTE($A15," - Monthly",""),AH$36:AH$93) -> 0 | AI15: 0 | AJ15: 0 | AK15: 0 | AL15: 0 | AM15: 0 | AN15: 0 | AO15: 0 | AP15: 0 | AQ15: 0 | AR15: 0 | AS15: 0 | AT15: 0 | AU15: 0 | AV15: 0 | AW15: 0 | AX15: =SUMIF($C$36:$C$93,SUBSTITUTE($A15," - Monthly",""),AX$36:AX$93) -> 0 | AY15: 0 | AZ15: 0 | BA15: 0 | BB15: 0 | BC15: 0 | BD15: 0 | BE15: 0 | BF15: 0 | BG15: 0 | BH15: 0 | BI15: 0 | BJ15: 0 | BK15: 0
A16: Debt converted to equity - Monthly | D16: 0 | E16: 0 | F16: 0 | G16: 0 | H16: 0 | I16: 0 | J16: 0 | K16: 0 | L16: 0 | M16: 0 | N16: 0 | O16: 0 | P16: 0 | Q16: 0 | R16: 0 | S16: 0 | T16: 0 | U16: 0 | V16: 0 | W16: 0 | X16: 0 | Y16: 0 | Z16: 0 | AA16: 0 | AB16: 0 | AC16: 0 | AD16: 0 | AE16: 0 | AF16: 0 | AG16: 0 | AH16: 0 | AI16: 0 | AJ16: 0 | AK16: 0 | AL16: 0 | AM16: 0 | AN16: 0 | AO16: 0 | AP16: 0 | AQ16: 0 | AR16: 0 | AS16: 0 | AT16: 0 | AU16: 0 | AV16: 0 | AW16: 0 | AX16: 0 | AY16: 0 | AZ16: 0 | BA16: 0 | BB16: 0 | BC16: 0 | BD16: 0 | BE16: 0 | BF16: 0 | BG16: 0 | BH16: 0 | BI16: 0 | BJ16: 0 | BK16: 0
A17: Accrued interest - Monthly | D17: =SUMIFS(D36:D93,$D33:$D90,"Balloon",$C36:$C93,"Interest Payment")+SUMIFS(D36:D93,$D33:$D90,"Convertible",$C36:$C93,"Interest Payment") -> 0 | E17: =SUMIFS(E36:E93,$D33:$D90,"Balloon",$C36:$C93,"Interest Payment")+SUMIFS(E36:E93,$D33:$D90,"Convertible",$C36:$C93,"Interest Payment") -> 0 | F17: 0 | G17: 0 | H17: 0 | I17: 0 | J17: 0 | K17: 0 | L17: 0 | M17: 0 | N17: 0 | O17: 0 | P17: 0 | Q17: 0 | R17: 0 | S17: 0 | T17: 0 | U17: 0 | V17: 0 | W17: 0 | X17: 0 | Y17: 0 | Z17: 0 | AA17: 0 | AB17: 0 | AC17: 0 | AD17: 0 | AE17: 0 | AF17: 0 | AG17: 0 | AH17: 0 | AI17: 0 | AJ17: 0 | AK17: 0 | AL17: 0 | AM17: 0 | AN17: =SUMIFS(AN36:AN93,$D33:$D90,"Balloon",$C36:$C93,"Interest Payment")+SUMIFS(AN36:AN93,$D33:$D90,"Convertible",$C36:$C93,"Interest Payment") -> 0 | AO17: 0 | AP17: 0 | AQ17: 0 | AR17: 0 | AS17: 0 | AT17: 0 | AU17: 0 | AV17: 0 | AW17: 0 | AX17: 0 | AY17: 0 | AZ17: 0 | BA17: 0 | BB17: 0 | BC17: 0 | BD17: 0 | BE17: 0 | BF17: 0 | BG17: 0 | BH17: 0 | BI17: 0 | BJ17: 0 | BK17: 0
C19: Use the macros to update this sheet. If you hand edit a cell (blue text only!) run the macro to update the sheet.
D21: Min LOC | E21: Max LOC | F21: rate | G21: Perc of Rec
A24: LOC | C24: Line of credit | D24: 25000 | E24: 500000 | F24: 0.07 | G24: 0.5
C25: Net borrowing | D25: =IF(COLUMN()=4,0,D27-C27) -> 0 | E25: 0 | F25: 0 | G25: 0 | H25: 0 | I25: 0 | J25: 0 | K25: 0 | L25: 0 | M25: 0 | N25: 21250 | O25: 2500 | P25: 2500 | Q25: 2500 | R25: 2500 | S25: 2500 | T25: 12500 | U25: 13750 | V25: 5000 | W25: 5000 | X25: 5000 | Y25: 5000 | Z25: 5000 | AA25: 5000 | AB25: 5000 | AC25: 5000 | AD25: 5000 | AE25: 5000 | AF25: 5000 | AG25: 5000 | AH25: 5000 | AI25: 5000 | AJ25: =IF(COLUMN()=4,0,AJ27-AI27) -> 5000 | AK25: 5000 | AL25: 5000 | AM25: 5000 | AN25: =IF(COLUMN()=4,0,AN27-AM27) -> 5000 | AO25: =IF(COLUMN()=4,0,AO27-AN27) -> 5000 | AP25: =IF(COLUMN()=4,0,AP27-AO27) -> 5000 | AQ25: =IF(COLUMN()=4,0,AQ27-AP27) -> 5000 | AR25: =IF(COLUMN()=4,0,AR27-AQ27) -> 5000 | AS25: =IF(COLUMN()=4,0,AS27-AR27) -> 5000 | AT25: =IF(COLUMN()=4,0,AT27-AS27) -> 5000 | AU25: =IF(COLUMN()=4,0,AU27-AT27) -> 5000 | AV25: =IF(COLUMN()=4,0,AV27-AU27) -> 5000 | AW25: =IF(COLUMN()=4,0,AW27-AV27) -> 5000 | AX25: =IF(COLUMN()=4,0,AX27-AW27) -> 5000 | AY25: =IF(COLUMN()=4,0,AY27-AX27) -> 5000 | AZ25: =IF(COLUMN()=4,0,AZ27-AY27) -> 5000 | BA25: =IF(COLUMN()=4,0,BA27-AZ27) -> 5000 | BB25: =IF(COLUMN()=4,0,BB27-BA27) -> 5000 | BC25: =IF(COLUMN()=4,0,BC27-BB27) -> 5000 | BD25: =IF(COLUMN()=4,0,BD27-BC27) -> 5000 | BE25: =IF(COLUMN()=4,0,BE27-BD27) -> 5000 | BF25: =IF(COLUMN()=4,0,BF27-BE27) -> 5000 | BG25: =IF(COLUMN()=4,0,BG27-BF27) -> 5000 | BH25: =IF(COLUMN()=4,0,BH27-BG27) -> 250000 | BI25: =IF(COLUMN()=4,0,BI27-BH27) -> 0 | BJ25: =IF(COLUMN()=4,0,BJ27-BI27) -> 0 | BK25: =IF(COLUMN()=4,0,BK27-BJ27) -> 0
C26: Interest payment | D26: =ROUND(D27*$F$24/12,0) -> 0 | E26: =ROUND(E27*$F$24/12,0) -> 0 | F26: 0 | G26: 0 | H26: 0 | I26: 0 | J26: 0 | K26: 0 | L26: 0 | M26: 0 | N26: 124 | O26: 139 | P26: 153 | Q26: 168 | R26: 182 | S26: 197 | T26: 270 | U26: 350 | V26: 379 | W26: 408 | X26: 438 | Y26: 467 | Z26: 496 | AA26: 525 | AB26: 554 | AC26: 583 | AD26: 613 | AE26: 642 | AF26: 671 | AG26: 700 | AH26: 729 | AI26: 758 | AJ26: 788 | AK26: 817 | AL26: 846 | AM26: 875 | AN26: 904 | AO26: 933 | AP26: 963 | AQ26: 992 | AR26: 1021 | AS26: 1050 | AT26: 1079 | AU26: 1108 | AV26: 1138 | AW26: 1167 | AX26: 1196 | AY26: 1225 | AZ26: 1254 | BA26: 1283 | BB26: 1313 | BC26: 1342 | BD26: 1371 | BE26: 1400 | BF26: 1429 | BG26: 1458 | BH26: 2917 | BI26: 2917 | BJ26: 2917 | BK26: 2917
C27: Current portion of debt | D27: =ROUND(IF('Cash Flow'!D31<$D$24,MAX(0,C27),IF('Cash Flow'!D31>$E$24,$E$24,MAX('Cash Flow'!D31*$G$24,C27))),0) -> 0 | E27: =ROUND(IF('Cash Flow'!E31<$D$24,MAX(0,D27),IF('Cash Flow'!E31>$E$24,$E$24,MAX('Cash Flow'!E31*$G$24,D27))),0) -> 0 | F27: =ROUND(IF('Cash Flow'!F31<$D$24,MAX(0,E27),IF('Cash Flow'!F31>$E$24,$E$24,MAX('Cash Flow'!F31*$G$24,E27))),0) -> 0 | G27: =ROUND(IF('Cash Flow'!G31<$D$24,MAX(0,F27),IF('Cash Flow'!G31>$E$24,$E$24,MAX('Cash Flow'!G31*$G$24,F27))),0) -> 0 | H27: =ROUND(IF('Cash Flow'!H31<$D$24,MAX(0,G27),IF('Cash Flow'!H31>$E$24,$E$24,MAX('Cash Flow'!H31*$G$24,G27))),0) -> 0 | I27: =ROUND(IF('Cash Flow'!I31<$D$24,MAX(0,H27),IF('Cash Flow'!I31>$E$24,$E$24,MAX('Cash Flow'!I31*$G$24,H27))),0) -> 0 | J27: =ROUND(IF('Cash Flow'!J31<$D$24,MAX(0,I27),IF('Cash Flow'!J31>$E$24,$E$24,MAX('Cash Flow'!J31*$G$24,I27))),0) -> 0 | K27: =ROUND(IF('Cash Flow'!K31<$D$24,MAX(0,J27),IF('Cash Flow'!K31>$E$24,$E$24,MAX('Cash Flow'!K31*$G$24,J27))),0) -> 0 | L27: =ROUND(IF('Cash Flow'!L31<$D$24,MAX(0,K27),IF('Cash Flow'!L31>$E$24,$E$24,MAX('Cash Flow'!L31*$G$24,K27))),0) -> 0 | M27: =ROUND(IF('Cash Flow'!M31<$D$24,MAX(0,L27),IF('Cash Flow'!M31>$E$24,$E$24,MAX('Cash Flow'!M31*$G$24,L27))),0) -> 0 | N27: =ROUND(IF('Cash Flow'!N31<$D$24,MAX(0,M27),IF('Cash Flow'!N31>$E$24,$E$24,MAX('Cash Flow'!N31*$G$24,M27))),0) -> 21250 | O27: =ROUND(IF('Cash Flow'!O31<$D$24,MAX(0,N27),IF('Cash Flow'!O31>$E$24,$E$24,MAX('Cash Flow'!O31*$G$24,N27))),0) -> 23750 | P27: =ROUND(IF('Cash Flow'!P31<$D$24,MAX(0,O27),IF('Cash Flow'!P31>$E$24,$E$24,MAX('Cash Flow'!P31*$G$24,O27))),0) -> 26250 | Q27: =ROUND(IF('Cash Flow'!Q31<$D$24,MAX(0,P27),IF('Cash Flow'!Q31>$E$24,$E$24,MAX('Cash Flow'!Q31*$G$24,P27))),0) -> 28750 | R27: =ROUND(IF('Cash Flow'!R31<$D$24,MAX(0,Q27),IF('Cash Flow'!R31>$E$24,$E$24,MAX('Cash Flow'!R31*$G$24,Q27))),0) -> 31250 | S27: =ROUND(IF('Cash Flow'!S31<$D$24,MAX(0,R27),IF('Cash Flow'!S31>$E$24,$E$24,MAX('Cash Flow'!S31*$G$24,R27))),0) -> 33750 | T27: =ROUND(IF('Cash Flow'!T31<$D$24,MAX(0,S27),IF('Cash Flow'!T31>$E$24,$E$24,MAX('Cash Flow'!T31*$G$24,S27))),0) -> 46250 | U27: =ROUND(IF('Cash Flow'!U31<$D$24,MAX(0,T27),IF('Cash Flow'!U31>$E$24,$E$24,MAX('Cash Flow'!U31*$G$24,T27))),0) -> 60000 | V27: =ROUND(IF('Cash Flow'!V31<$D$24,MAX(0,U27),IF('Cash Flow'!V31>$E$24,$E$24,MAX('Cash Flow'!V31*$G$24,U27))),0) -> 65000 | W27: =ROUND(IF('Cash Flow'!W31<$D$24,MAX(0,V27),IF('Cash Flow'!W31>$E$24,$E$24,MAX('Cash Flow'!W31*$G$24,V27))),0) -> 70000 | X27: =ROUND(IF('Cash Flow'!X31<$D$24,MAX(0,W27),IF('Cash Flow'!X31>$E$24,$E$24,MAX('Cash Flow'!X31*$G$24,W27))),0) -> 75000 | Y27: =ROUND(IF('Cash Flow'!Y31<$D$24,MAX(0,X27),IF('Cash Flow'!Y31>$E$24,$E$24,MAX('Cash Flow'!Y31*$G$24,X27))),0) -> 80000 | Z27: =ROUND(IF('Cash Flow'!Z31<$D$24,MAX(0,Y27),IF('Cash Flow'!Z31>$E$24,$E$24,MAX('Cash Flow'!Z31*$G$24,Y27))),0) -> 85000 | AA27: =ROUND(IF('Cash Flow'!AA31<$D$24,MAX(0,Z27),IF('Cash Flow'!AA31>$E$24,$E$24,MAX('Cash Flow'!AA31*$G$24,Z27))),0) -> 90000 | AB27: =ROUND(IF('Cash Flow'!AB31<$D$24,MAX(0,AA27),IF('Cash Flow'!AB31>$E$24,$E$24,MAX('Cash Flow'!AB31*$G$24,AA27))),0) -> 95000 | AC27: =ROUND(IF('Cash Flow'!AC31<$D$24,MAX(0,AB27),IF('Cash Flow'!AC31>$E$24,$E$24,MAX('Cash Flow'!AC31*$G$24,AB27))),0) -> 100000 | AD27: =ROUND(IF('Cash Flow'!AD31<$D$24,MAX(0,AC27),IF('Cash Flow'!AD31>$E$24,$E$24,MAX('Cash Flow'!AD31*$G$24,AC27))),0) -> 105000 | AE27: =ROUND(IF('Cash Flow'!AE31<$D$24,MAX(0,AD27),IF('Cash Flow'!AE31>$E$24,$E$24,MAX('Cash Flow'!AE31*$G$24,AD27))),0) -> 110000 | AF27: =ROUND(IF('Cash Flow'!AF31<$D$24,MAX(0,AE27),IF('Cash Flow'!AF31>$E$24,$E$24,MAX('Cash Flow'!AF31*$G$24,AE27))),0) -> 115000 | AG27: =ROUND(IF('Cash Flow'!AG31<$D$24,MAX(0,AF27),IF('Cash Flow'!AG31>$E$24,$E$24,MAX('Cash Flow'!AG31*$G$24,AF27))),0) -> 120000 | AH27: =ROUND(IF('Cash Flow'!AH31<$D$24,MAX(0,AG27),IF('Cash Flow'!AH31>$E$24,$E$24,MAX('Cash Flow'!AH31*$G$24,AG27))),0) -> 125000 | AI27: =ROUND(IF('Cash Flow'!AI31<$D$24,MAX(0,AH27),IF('Cash Flow'!AI31>$E$24,$E$24,MAX('Cash Flow'!AI31*$G$24,AH27))),0) -> 130000 | AJ27: =ROUND(IF('Cash Flow'!AJ31<$D$24,MAX(0,AI27),IF('Cash Flow'!AJ31>$E$24,$E$24,MAX('Cash Flow'!AJ31*$G$24,AI27))),0) -> 135000 | AK27: =ROUND(IF('Cash Flow'!AK31<$D$24,MAX(0,AJ27),IF('Cash Flow'!AK31>$E$24,$E$24,MAX('Cash Flow'!AK31*$G$24,AJ27))),0) -> 140000 | AL27: =ROUND(IF('Cash Flow'!AL31<$D$24,MAX(0,AK27),IF('Cash Flow'!AL31>$E$24,$E$24,MAX('Cash Flow'!AL31*$G$24,AK27))),0) -> 145000 | AM27: =ROUND(IF('Cash Flow'!AM31<$D$24,MAX(0,AL27),IF('Cash Flow'!AM31>$E$24,$E$24,MAX('Cash Flow'!AM31*$G$24,AL27))),0) -> 150000 | AN27: =ROUND(IF('Cash Flow'!AN31<$D$24,MAX(0,AM27),IF('Cash Flow'!AN31>$E$24,$E$24,MAX('Cash Flow'!AN31*$G$24,AM27))),0) -> 155000 | AO27: =ROUND(IF('Cash Flow'!AO31<$D$24,MAX(0,AN27),IF('Cash Flow'!AO31>$E$24,$E$24,MAX('Cash Flow'!AO31*$G$24,AN27))),0) -> 160000 | AP27: =ROUND(IF('Cash Flow'!AP31<$D$24,MAX(0,AO27),IF('Cash Flow'!AP31>$E$24,$E$24,MAX('Cash Flow'!AP31*$G$24,AO27))),0) -> 165000 | AQ27: =ROUND(IF('Cash Flow'!AQ31<$D$24,MAX(0,AP27),IF('Cash Flow'!AQ31>$E$24,$E$24,MAX('Cash Flow'!AQ31*$G$24,AP27))),0) -> 170000 | AR27: =ROUND(IF('Cash Flow'!AR31<$D$24,MAX(0,AQ27),IF('Cash Flow'!AR31>$E$24,$E$24,MAX('Cash Flow'!AR31*$G$24,AQ27))),0) -> 175000 | AS27: =ROUND(IF('Cash Flow'!AS31<$D$24,MAX(0,AR27),IF('Cash Flow'!AS31>$E$24,$E$24,MAX('Cash Flow'!AS31*$G$24,AR27))),0) -> 180000 | AT27: =ROUND(IF('Cash Flow'!AT31<$D$24,MAX(0,AS27),IF('Cash Flow'!AT31>$E$24,$E$24,MAX('Cash Flow'!AT31*$G$24,AS27))),0) -> 185000 | AU27: =ROUND(IF('Cash Flow'!AU31<$D$24,MAX(0,AT27),IF('Cash Flow'!AU31>$E$24,$E$24,MAX('Cash Flow'!AU31*$G$24,AT27))),0) -> 190000 | AV27: =ROUND(IF('Cash Flow'!AV31<$D$24,MAX(0,AU27),IF('Cash Flow'!AV31>$E$24,$E$24,MAX('Cash Flow'!AV31*$G$24,AU27))),0) -> 195000 | AW27: =ROUND(IF('Cash Flow'!AW31<$D$24,MAX(0,AV27),IF('Cash Flow'!AW31>$E$24,$E$24,MAX('Cash Flow'!AW31*$G$24,AV27))),0) -> 200000 | AX27: =ROUND(IF('Cash Flow'!AX31<$D$24,MAX(0,AW27),IF('Cash Flow'!AX31>$E$24,$E$24,MAX('Cash Flow'!AX31*$G$24,AW27))),0) -> 205000 | AY27: =ROUND(IF('Cash Flow'!AY31<$D$24,MAX(0,AX27),IF('Cash Flow'!AY31>$E$24,$E$24,MAX('Cash Flow'!AY31*$G$24,AX27))),0) -> 210000 | AZ27: =ROUND(IF('Cash Flow'!AZ31<$D$24,MAX(0,AY27),IF('Cash Flow'!AZ31>$E$24,$E$24,MAX('Cash Flow'!AZ31*$G$24,AY27))),0) -> 215000 | BA27: =ROUND(IF('Cash Flow'!BA31<$D$24,MAX(0,AZ27),IF('Cash Flow'!BA31>$E$24,$E$24,MAX('Cash Flow'!BA31*$G$24,AZ27))),0) -> 220000 | BB27: =ROUND(IF('Cash Flow'!BB31<$D$24,MAX(0,BA27),IF('Cash Flow'!BB31>$E$24,$E$24,MAX('Cash Flow'!BB31*$G$24,BA27))),0) -> 225000 | BC27: =ROUND(IF('Cash Flow'!BC31<$D$24,MAX(0,BB27),IF('Cash Flow'!BC31>$E$24,$E$24,MAX('Cash Flow'!BC31*$G$24,BB27))),0) -> 230000 | BD27: =ROUND(IF('Cash Flow'!BD31<$D$24,MAX(0,BC27),IF('Cash Flow'!BD31>$E$24,$E$24,MAX('Cash Flow'!BD31*$G$24,BC27))),0) -> 235000 | BE27: =ROUND(IF('Cash Flow'!BE31<$D$24,MAX(0,BD27),IF('Cash Flow'!BE31>$E$24,$E$24,MAX('Cash Flow'!BE31*$G$24,BD27))),0) -> 240000 | BF27: =ROUND(IF('Cash Flow'!BF31<$D$24,MAX(0,BE27),IF('Cash Flow'!BF31>$E$24,$E$24,MAX('Cash Flow'!BF31*$G$24,BE27))),0) -> 245000 | BG27: =ROUND(IF('Cash Flow'!BG31<$D$24,MAX(0,BF27),IF('Cash Flow'!BG31>$E$24,$E$24,MAX('Cash Flow'!BG31*$G$24,BF27))),0) -> 250000 | BH27: =ROUND(IF('Cash Flow'!BH31<$D$24,MAX(0,BG27),IF('Cash Flow'!BH31>$E$24,$E$24,MAX('Cash Flow'!BH31*$G$24,BG27))),0) -> 500000 | BI27: =ROUND(IF('Cash Flow'!BI31<$D$24,MAX(0,BH27),IF('Cash Flow'!BI31>$E$24,$E$24,MAX('Cash Flow'!BI31*$G$24,BH27))),0) -> 500000 | BJ27: =ROUND(IF('Cash Flow'!BJ31<$D$24,MAX(0,BI27),IF('Cash Flow'!BJ31>$E$24,$E$24,MAX('Cash Flow'!BJ31*$G$24,BI27))),0) -> 500000 | BK27: =ROUND(IF('Cash Flow'!BK31<$D$24,MAX(0,BJ27),IF('Cash Flow'!BK31>$E$24,$E$24,MAX('Cash Flow'!BK31*$G$24,BJ27))),0) -> 500000
B31: Do not remove this line
C33: Loan Description | D33: type | E33: amount | F33: start | G33: rate | H33: months | I33: int only mnths | J33: ret earn adj
A36: Loan 1 | C36: Community Bank Loan | D36: Regular | E36: 250000 | F36: 2015-01-01 | G36: 0.06 | H36: 36
C37: Net borrowing | D37: 250000
C38: Outstanding balance | D38: 250000 | E38: 243645 | F38: 237258 | G38: 230839 | H38: 224388 | I38: 217904 | J38: 211388 | K38: 204839 | L38: 198258 | M38: 191644 | N38: 184997 | O38: 178316 | P38: 171602 | Q38: 164855 | R38: 158074 | S38: 151259 | T38: 144410 | U38: 137527 | V38: 130609 | W38: 123657 | X38: 116670 | Y38: 109648 | Z38: 102591 | AA38: 95496 | AB38: 88370 | AC38: 81206 | AD38: 74007 | AE38: 66772 | AF38: 59500 | AG38: 52192 | AH38: 44847 | AI38: 37466 | AJ38: 30048 | AK38: 22593 | AL38: 15100 | AM38: 7568
C39: Interest payment | D39: 1250 | E39: 1218 | F39: 1186 | G39: 1154 | H39: 1121 | I39: 1089 | J39: 1056 | K39: 1024 | L39: 991 | M39: 958 | N39: 924 | O39: 891 | P39: 858 | Q39: 824 | R39: 790 | S39: 756 | T39: 722 | U39: 687 | V39: 653 | W39: 618 | X39: 583 | Y39: 548 | Z39: 512 | AA39: 477 | AB39: 441 | AC39: 406 | AD39: 370 | AE39: 333 | AF39: 297 | AG39: 260 | AH39: 224 | AI39: 187 | AJ39: 150 | AK39: 112 | AL39: 75 | AM39: 37
C40: Loan repayment | D40: 6355 | E40: 6387 | F40: 6419 | G40: 6451 | H40: 6484 | I40: 6516 | J40: 6549 | K40: 6581 | L40: 6614 | M40: 6647 | N40: 6681 | O40: 6714 | P40: 6747 | Q40: 6781 | R40: 6815 | S40: 6849 | T40: 6883 | U40: 6918 | V40: 6952 | W40: 6987 | X40: 7022 | Y40: 7057 | Z40: 7093 | AA40: 7130 | AB40: 7164 | AC40: 7199 | AD40: 7235 | AE40: 7272 | AF40: 7308 | AG40: 7345 | AH40: 7381 | AI40: 7418 | AJ40: 7455 | AK40: 7493 | AL40: 7530 | AM40: 7568
C41: Current portion of debt | D41: 78790 | E41: 79184 | F41: 79580 | G41: 79978 | H41: 80377 | I41: 80779 | J41: 81182 | K41: 81588 | L41: 81996 | M41: 82406 | N41: 82818 | O41: 83232 | P41: 83649 | Q41: 84067 | R41: 84487 | S41: 84910 | T41: 85335 | U41: 85762 | V41: 86191 | W41: 86622 | X41: 87055 | Y41: 87491 | Z41: 87928 | AA41: 88368 | AB41: 81204 | AC41: 74005 | AD41: 66770 | AE41: 59498 | AF41: 52190 | AG41: 44845 | AH41: 37464 | AI41: 30046 | AJ41: 22591 | AK41: 15098 | AL41: 7568 | AM41: 0
C42: Long term debt | D42: 164855 | E42: 158074 | F42: 151259 | G42: 144410 | H42: 137527 | I42: 130609 | J42: 123657 | K42: 116670 | L42: 109648 | M42: 102591 | N42: 95498 | O42: 88370 | P42: 81206 | Q42: 74007 | R42: 66772 | S42: 59500 | T42: 52192 | U42: 44847 | V42: 37466 | W42: 30048 | X42: 22593 | Y42: 15100 | Z42: 7570 | AA42: 0 | AB42: 0 | AC42: 0 | AD42: 0 | AE42: 0 | AF42: 0 | AG42: 0 | AH42: 0 | AI42: 0 | AJ42: 0 | AK42: 0 | AL42: 0 | AM42: 0
C43: Debt converted to equity
A46: Loan 2
C47: Net borrowing
C48: Outstanding balance
C49: Interest payment
C50: Loan repayment
C51: Current portion of debt
C52: Long term debt
C53: Debt converted to equity
A56: Loan 3
C57: Net borrowing
C58: Outstanding balance
C59: Interest payment
C60: Loan repayment
C61: Current portion of debt
C62: Long term debt
C63: Debt converted to equity
A66: Loan 4
C67: Net borrowing
C68: Outstanding balance
C69: Interest payment
C70: Loan repayment
C71: Current portion of debt
C72: Long term debt
C73: Debt converted to equity
A76: Loan 5
C77: Net borrowing
C78: Outstanding balance
C79: Interest payment
C80: Loan repayment
C81: Current portion of debt
C82: Long term debt
C83: Debt converted to equity
A86: Loan 6
C87: Net borrowing
C88: Outstanding balance
C89: Interest payment
C90: Loan repayment
C91: Current portion of debt
C92: Long term debt
C93: Debt converted to equity

Sheet Assets & Dep
A1: LAM | D1: =CYFY&TEXT(StartYear+COLUMN()-4,"0000") -> CY2015 | E1: CY2016 | F1: CY2017 | G1: CY2018 | H1: CY2019
A2: Intangible assets - Annual | C2: =bsIntAss -> 0 | D2: =SUM(OFFSET($D16,0,12*(COLUMN()-4),1,12)) -> 20000 | E2: =SUM(OFFSET($D16,0,12*(COLUMN()-4),1,12)) -> 5000 | F2: 1000 | G2: =SUM(OFFSET($D16,0,12*(COLUMN()-4),1,12)) -> 1000 | H2: 1000
A3: Accumulated intangible assets - Annual | D3: =SUM($C2:D2) -> 20000 | E3: =SUM($C2:E2) -> 25000 | F3: =SUM($C2:F2) -> 26000 | G3: =SUM($C2:G2) -> 27000 | H3: =SUM($C2:H2) -> 28000
A4: Amortization - intangible assets - Annual | D4: =SUM(OFFSET($D18,0,12*(COLUMN()-4),1,12)) -> 830 | E4: =SUM(OFFSET($D18,0,12*(COLUMN()-4),1,12)) -> 1185 | F4: 1284 | G4: =SUM(OFFSET($D18,0,12*(COLUMN()-4),1,12)) -> 1324 | H4: 1372
A5: Accumulated amortization - Annual | D5: =SUM($C4:D4) -> 830 | E5: =SUM($C4:E4) -> 2015 | F5: =SUM($C4:F4) -> 3299 | G5: =SUM($C4:G4) -> 4623 | H5: =SUM($C4:H4) -> 5995
A6: Fixed assets - non-production - Annual | C6: =bsFixProdAss -> 0 | D6: =SUM(OFFSET($D20,0,12*(COLUMN()-4),1,12)) -> 1500 | E6: =SUM(OFFSET($D20,0,12*(COLUMN()-4),1,12)) -> 0 | F6: 0 | G6: =SUM(OFFSET($D20,0,12*(COLUMN()-4),1,12)) -> 0 | H6: 0
A7: Accumulated NP fixed assets - Annual | D7: =SUM($C6:D6) -> 1500 | E7: =SUM($C6:E6) -> 1500 | F7: =SUM($C6:F6) -> 1500 | G7: =SUM($C6:G6) -> 1500 | H7: =SUM($C6:H6) -> 1500
A8: Depreciation - non-production - Annual | D8: =SUM(OFFSET($D22,0,12*(COLUMN()-4),1,12)) -> 230 | E8: =SUM(OFFSET($D22,0,12*(COLUMN()-4),1,12)) -> 276 | F8: 276 | G8: =SUM(OFFSET($D22,0,12*(COLUMN()-4),1,12)) -> 276 | H8: 276
A9: Accumulated NP depreciation - Annual | D9: =SUM($C8:D8) -> 230 | E9: =SUM($C8:E8) -> 506 | F9: =SUM($C8:F8) -> 782 | G9: =SUM($C8:G8) -> 1058 | H9: =SUM($C8:H8) -> 1334
A10: Fixed assets - production - Annual | C10: =bsFixNonProdAss -> 0 | D10: =SUM(OFFSET($D24,0,12*(COLUMN()-4),1,12)) -> 25000 | E10: =SUM(OFFSET($D24,0,12*(COLUMN()-4),1,12)) -> 0 | F10: 10000 | G10: =SUM(OFFSET($D24,0,12*(COLUMN()-4),1,12)) -> 0 | H10: 0
A11: Accumulated P fixed assets - Annual | D11: =SUM($C10:D10) -> 25000 | E11: =SUM($C10:E10) -> 25000 | F11: =SUM($C10:F10) -> 35000 | G11: =SUM($C10:G10) -> 35000 | H11: =SUM($C10:H10) -> 35000
A12: Depreciation - production - Annual | D12: =SUM(OFFSET($D26,0,12*(COLUMN()-4),1,12)) -> 2086 | E12: =SUM(OFFSET($D26,0,12*(COLUMN()-4),1,12)) -> 3576 | F12: 5004 | G12: =SUM(OFFSET($D26,0,12*(COLUMN()-4),1,12)) -> 5004 | H12: 5004
A13: Accumulated P depreciation - Annual | D13: =SUM($C12:D12) -> 2086 | E13: =SUM($C12:E12) -> 5662 | F13: =SUM($C12:F12) -> 10666 | G13: =SUM($C12:G12) -> 15670 | H13: =SUM($C12:H12) -> 20674
D15: =IF(C15="",FirstMonth,DATE(YEAR(C15),MONTH(C15)+1,1)) -> 2015-01-01 | E15: 2015-02-01 | F15: 2015-03-01 | G15: 2015-04-01 | H15: 2015-05-01 | I15: 2015-06-01 | J15: 2015-07-01 | K15: 2015-08-01 | L15: 2015-09-01 | M15: 2015-10-01 | N15: 2015-11-01 | O15: 2015-12-01 | P15: 2016-01-01 | Q15: 2016-02-01 | R15: 2016-03-01 | S15: 2016-04-01 | T15: 2016-05-01 | U15: 2016-06-01 | V15: 2016-07-01 | W15: 2016-08-01 | X15: 2016-09-01 | Y15: 2016-10-01 | Z15: 2016-11-01 | AA15: 2016-12-01 | AB15: 2017-01-01 | AC15: 2017-02-01 | AD15: 2017-03-01 | AE15: 2017-04-01 | AF15: 2017-05-01 | AG15: 2017-06-01 | AH15: 2017-07-01 | AI15: 2017-08-01 | AJ15: =IF(AI15="",FirstMonth,DATE(YEAR(AI15),MONTH(AI15)+1,1)) -> 2017-09-01 | AK15: 2017-10-01 | AL15: 2017-11-01 | AM15: 2017-12-01 | AN15: =IF(AM15="",FirstMonth,DATE(YEAR(AM15),MONTH(AM15)+1,1)) -> 2018-01-01 | AO15: =IF(AN15="",FirstMonth,DATE(YEAR(AN15),MONTH(AN15)+1,1)) -> 2018-02-01 | AP15: =IF(AO15="",FirstMonth,DATE(YEAR(AO15),MONTH(AO15)+1,1)) -> 2018-03-01 | AQ15: =IF(AP15="",FirstMonth,DATE(YEAR(AP15),MONTH(AP15)+1,1)) -> 2018-04-01 | AR15: =IF(AQ15="",FirstMonth,DATE(YEAR(AQ15),MONTH(AQ15)+1,1)) -> 2018-05-01 | AS15: =IF(AR15="",FirstMonth,DATE(YEAR(AR15),MONTH(AR15)+1,1)) -> 2018-06-01 | AT15: =IF(AS15="",FirstMonth,DATE(YEAR(AS15),MONTH(AS15)+1,1)) -> 2018-07-01 | AU15: =IF(AT15="",FirstMonth,DATE(YEAR(AT15),MONTH(AT15)+1,1)) -> 2018-08-01 | AV15: =IF(AU15="",FirstMonth,DATE(YEAR(AU15),MONTH(AU15)+1,1)) -> 2018-09-01 | AW15: =IF(AV15="",FirstMonth,DATE(YEAR(AV15),MONTH(AV15)+1,1)) -> 2018-10-01 | AX15: =IF(AW15="",FirstMonth,DATE(YEAR(AW15),MONTH(AW15)+1,1)) -> 2018-11-01 | AY15: =IF(AX15="",FirstMonth,DATE(YEAR(AX15),MONTH(AX15)+1,1)) -> 2018-12-01 | AZ15: =IF(AY15="",FirstMonth,DATE(YEAR(AY15),MONTH(AY15)+1,1)) -> 2019-01-01 | BA15: =IF(AZ15="",FirstMonth,DATE(YEAR(AZ15),MONTH(AZ15)+1,1)) -> 2019-02-01 | BB15: =IF(BA15="",FirstMonth,DATE(YEAR(BA15),MONTH(BA15)+1,1)) -> 2019-03-01 | BC15: =IF(BB15="",FirstMonth,DATE(YEAR(BB15),MONTH(BB15)+1,1)) -> 2019-04-01 | BD15: =IF(BC15="",FirstMonth,DATE(YEAR(BC15),MONTH(BC15)+1,1)) -> 2019-05-01 | BE15: =IF(BD15="",FirstMonth,DATE(YEAR(BD15),MONTH(BD15)+1,1)) -> 2019-06-01 | BF15: =IF(BE15="",FirstMonth,DATE(YEAR(BE15),MONTH(BE15)+1,1)) -> 2019-07-01 | BG15: =IF(BF15="",FirstMonth,DATE(YEAR(BF15),MONTH(BF15)+1,1)) -> 2019-08-01 | BH15: =IF(BG15="",FirstMonth,DATE(YEAR(BG15),MONTH(BG15)+1,1)) -> 2019-09-01 | BI15: =IF(BH15="",FirstMonth,DATE(YEAR(BH15),MONTH(BH15)+1,1)) -> 2019-10-01 | BJ15: =IF(BI15="",FirstMonth,DATE(YEAR(BI15),MONTH(BI15)+1,1)) -> 2019-11-01 | BK15: =IF(BJ15="",FirstMonth,DATE(YEAR(BJ15),MONTH(BJ15)+1,1)) -> 2019-12-01
A16: Intangible assets - Monthly | C16: =C2 -> 0 | D16: =D37+D32 -> 0 | E16: 0 | F16: 20000 | G16: 0 | H16: 0 | I16: 0 | J16: 0 | K16: 0 | L16: 0 | M16: 0 | N16: 0 | O16: 0 | P16: 0 | Q16: 0 | R16: 0 | S16: 5000 | T16: 0 | U16: 0 | V16: 0 | W16: 0 | X16: 0 | Y16: 0 | Z16: 0 | AA16: 0 | AB16: 0 | AC16: 0 | AD16: 0 | AE16: 1000 | AF16: 0 | AG16: 0 | AH16: 0 | AI16: 0 | AJ16: 0 | AK16: 0 | AL16: 0 | AM16: 0 | AN16: =AN37+AN32 -> 0 | AO16: 0 | AP16: 0 | AQ16: 0 | AR16: 0 | AS16: 1000 | AT16: 0 | AU16: 0 | AV16: 0 | AW16: 0 | AX16: 0 | AY16: 0 | AZ16: 0 | BA16: 0 | BB16: 0 | BC16: 0 | BD16: 0 | BE16: 1000 | BF16: 0 | BG16: 0 | BH16: 0 | BI16: 0 | BJ16: 0 | BK16: 0
A17: Accumulated intangible assets - Monthly | D17: =SUM($C16:D$16) -> 0 | E17: =SUM($C16:E$16) -> 0 | F17: =SUM($C16:F$16) -> 20000 | G17: =SUM($C16:G$16) -> 20000 | H17: =SUM($C16:H$16) -> 20000 | I17: =SUM($C16:I$16) -> 20000 | J17: =SUM($C16:J$16) -> 20000 | K17: =SUM($C16:K$16) -> 20000 | L17: =SUM($C16:L$16) -> 20000 | M17: =SUM($C16:M$16) -> 20000 | N17: =SUM($C16:N$16) -> 20000 | O17: =SUM($C16:O$16) -> 20000 | P17: =SUM($C16:P$16) -> 20000 | Q17: =SUM($C16:Q$16) -> 20000 | R17: =SUM($C16:R$16) -> 20000 | S17: =SUM($C16:S$16) -> 25000 | T17: =SUM($C16:T$16) -> 25000 | U17: =SUM($C16:U$16) -> 25000 | V17: =SUM($C16:V$16) -> 25000 | W17: =SUM($C16:W$16) -> 25000 | X17: =SUM($C16:X$16) -> 25000 | Y17: =SUM($C16:Y$16) -> 25000 | Z17: =SUM($C16:Z$16) -> 25000 | AA17: =SUM($C16:AA$16) -> 25000 | AB17: =SUM($C16:AB$16) -> 25000 | AC17: =SUM($C16:AC$16) -> 25000 | AD17: =SUM($C16:AD$16) -> 25000 | AE17: =SUM($C16:AE$16) -> 26000 | AF17: =SUM($C16:AF$16) -> 26000 | AG17: =SUM($C16:AG$16) -> 26000 | AH17: =SUM($C16:AH$16) -> 26000 | AI17: =SUM($C16:AI$16) -> 26000 | AJ17: =SUM($C16:AJ$16) -> 26000 | AK17: =SUM($C16:AK$16) -> 26000 | AL17: =SUM($C16:AL$16) -> 26000 | AM17: =SUM($C16:AM$16) -> 26000 | AN17: =SUM($C16:AN$16) -> 26000 | AO17: =SUM($C16:AO$16) -> 26000 | AP17: =SUM($C16:AP$16) -> 26000 | AQ17: =SUM($C16:AQ$16) -> 26000 | AR17: =SUM($C16:AR$16) -> 26000 | AS17: =SUM($C16:AS$16) -> 27000 | AT17: =SUM($C16:AT$16) -> 27000 | AU17: =SUM($C16:AU$16) -> 27000 | AV17: =SUM($C16:AV$16) -> 27000 | AW17: =SUM($C16:AW$16) -> 27000 | AX17: =SUM($C16:AX$16) -> 27000 | AY17: =SUM($C16:AY$16) -> 27000 | AZ17: =SUM($C16:AZ$16) -> 27000 | BA17: =SUM($C16:BA$16) -> 27000 | BB17: =SUM($C16:BB$16) -> 27000 | BC17: =SUM($C16:BC$16) -> 27000 | BD17: =SUM($C16:BD$16) -> 27000 | BE17: =SUM($C16:BE$16) -> 28000 | BF17: =SUM($C16:BF$16) -> 28000 | BG17: =SUM($C16:BG$16) -> 28000 | BH17: =SUM($C16:BH$16) -> 28000 | BI17: =SUM($C16:BI$16) -> 28000 | BJ17: =SUM($C16:BJ$16) -> 28000 | BK17: =SUM($C16:BK$16) -> 28000
A18: Amortization - intangible assets - Monthly | D18: =D38 -> 0 | E18: =E38 -> 0 | F18: 83 | G18: 83 | H18: 83 | I18: 83 | J18: 83 | K18: 83 | L18: 83 | M18: 83 | N18: 83 | O18: 83 | P18: 83 | Q18: 83 | R18: 83 | S18: 104 | T18: 104 | U18: 104 | V18: 104 | W18: 104 | X18: 104 | Y18: 104 | Z18: 104 | AA18: 104 | AB18: 104 | AC18: 104 | AD18: 104 | AE18: 108 | AF18: 108 | AG18: 108 | AH18: 108 | AI18: 108 | AJ18: 108 | AK18: 108 | AL18: 108 | AM18: 108 | AN18: 108 | AO18: 108 | AP18: 108 | AQ18: 108 | AR18: 108 | AS18: 112 | AT18: 112 | AU18: 112 | AV18: 112 | AW18: 112 | AX18: 112 | AY18: 112 | AZ18: 112 | BA18: 112 | BB18: 112 | BC18: 112 | BD18: 112 | BE18: 116 | BF18: 116 | BG18: 116 | BH18: 116 | BI18: 116 | BJ18: 116 | BK18: 116
A19: Accumulated amortization - Monthly | D19: =SUM($C$18:D18) -> 0 | E19: =SUM($C$18:E18) -> 0 | F19: =SUM($C$18:F18) -> 83 | G19: =SUM($C$18:G18) -> 166 | H19: =SUM($C$18:H18) -> 249 | I19: =SUM($C$18:I18) -> 332 | J19: =SUM($C$18:J18) -> 415 | K19: =SUM($C$18:K18) -> 498 | L19: =SUM($C$18:L18) -> 581 | M19: =SUM($C$18:M18) -> 664 | N19: =SUM($C$18:N18) -> 747 | O19: =SUM($C$18:O18) -> 830 | P19: =SUM($C$18:P18) -> 913 | Q19: =SUM($C$18:Q18) -> 996 | R19: =SUM($C$18:R18) -> 1079 | S19: =SUM($C$18:S18) -> 1183 | T19: =SUM($C$18:T18) -> 1287 | U19: =SUM($C$18:U18) -> 1391 | V19: =SUM($C$18:V18) -> 1495 | W19: =SUM($C$18:W18) -> 1599 | X19: =SUM($C$18:X18) -> 1703 | Y19: =SUM($C$18:Y18) -> 1807 | Z19: =SUM($C$18:Z18) -> 1911 | AA19: =SUM($C$18:AA18) -> 2015 | AB19: =SUM($C$18:AB18) -> 2119 | AC19: =SUM($C$18:AC18) -> 2223 | AD19: =SUM($C$18:AD18) -> 2327 | AE19: =SUM($C$18:AE18) -> 2435 | AF19: =SUM($C$18:AF18) -> 2543 | AG19: =SUM($C$18:AG18) -> 2651 | AH19: =SUM($C$18:AH18) -> 2759 | AI19: =SUM($C$18:AI18) -> 2867 | AJ19: =SUM($C$18:AJ18) -> 2975 | AK19: =SUM($C$18:AK18) -> 3083 | AL19: =SUM($C$18:AL18) -> 3191 | AM19: =SUM($C$18:AM18) -> 3299 | AN19: =SUM($C$18:AN18) -> 3407 | AO19: =SUM($C$18:AO18) -> 3515 | AP19: =SUM($C$18:AP18) -> 3623 | AQ19: =SUM($C$18:AQ18) -> 3731 | AR19: =SUM($C$18:AR18) -> 3839 | AS19: =SUM($C$18:AS18) -> 3951 | AT19: =SUM($C$18:AT18) -> 4063 | AU19: =SUM($C$18:AU18) -> 4175 | AV19: =SUM($C$18:AV18) -> 4287 | AW19: =SUM($C$18:AW18) -> 4399 | AX19: =SUM($C$18:AX18) -> 4511 | AY19: =SUM($C$18:AY18) -> 4623 | AZ19: =SUM($C$18:AZ18) -> 4735 | BA19: =SUM($C$18:BA18) -> 4847 | BB19: =SUM($C$18:BB18) -> 4959 | BC19: =SUM($C$18:BC18) -> 5071 | BD19: =SUM($C$18:BD18) -> 5183 | BE19: =SUM($C$18:BE18) -> 5299 | BF19: =SUM($C$18:BF18) -> 5415 | BG19: =SUM($C$18:BG18) -> 5531 | BH19: =SUM($C$18:BH18) -> 5647 | BI19: =SUM($C$18:BI18) -> 5763 | BJ19: =SUM($C$18:BJ18) -> 5879 | BK19: =SUM($C$18:BK18) -> 5995
A20: Fixed assets - non-production - Monthly | C20: =C6 -> 0 | D20: =D43 -> 0 | E20: =E43 -> 0 | F20: 1500 | G20: 0 | H20: 0 | I20: 0 | J20: 0 | K20: 0 | L20: 0 | M20: 0 | N20: 0 | O20: 0 | P20: 0 | Q20: 0 | R20: 0 | S20: 0 | T20: 0 | U20: 0 | V20: 0 | W20: 0 | X20: 0 | Y20: 0 | Z20: 0 | AA20: 0 | AB20: 0 | AC20: 0 | AD20: 0 | AE20: 0 | AF20: 0 | AG20: 0 | AH20: 0 | AI20: 0 | AJ20: 0 | AK20: 0 | AL20: 0 | AM20: 0 | AN20: 0 | AO20: 0 | AP20: 0 | AQ20: 0 | AR20: 0 | AS20: 0 | AT20: 0 | AU20: 0 | AV20: 0 | AW20: 0 | AX20: 0 | AY20: 0 | AZ20: 0 | BA20: 0 | BB20: 0 | BC20: 0 | BD20: 0 | BE20: 0 | BF20: 0 | BG20: 0 | BH20: 0 | BI20: 0 | BJ20: 0 | BK20: 0
A21: Accumulated NP fixed assets - Monthly | D21: =SUM($C20:D$20) -> 0 | E21: =SUM($C20:E$20) -> 0 | F21: =SUM($C20:F$20) -> 1500 | G21: =SUM($C20:G$20) -> 1500 | H21: =SUM($C20:H$20) -> 1500 | I21: =SUM($C20:I$20) -> 1500 | J21: =SUM($C20:J$20) -> 1500 | K21: =SUM($C20:K$20) -> 1500 | L21: =SUM($C20:L$20) -> 1500 | M21: =SUM($C20:M$20) -> 1500 | N21: =SUM($C20:N$20) -> 1500 | O21: =SUM($C20:O$20) -> 1500 | P21: =SUM($C20:P$20) -> 1500 | Q21: =SUM($C20:Q$20) -> 1500 | R21: =SUM($C20:R$20) -> 1500 | S21: =SUM($C20:S$20) -> 1500 | T21: =SUM($C20:T$20) -> 1500 | U21: =SUM($C20:U$20) -> 1500 | V21: =SUM($C20:V$20) -> 1500 | W21: =SUM($C20:W$20) -> 1500 | X21: =SUM($C20:X$20) -> 1500 | Y21: =SUM($C20:Y$20) -> 1500 | Z21: =SUM($C20:Z$20) -> 1500 | AA21: =SUM($C20:AA$20) -> 1500 | AB21: =SUM($C20:AB$20) -> 1500 | AC21: =SUM($C20:AC$20) -> 1500 | AD21: =SUM($C20:AD$20) -> 1500 | AE21: =SUM($C20:AE$20) -> 1500 | AF21: =SUM($C20:AF$20) -> 1500 | AG21: =SUM($C20:AG$20) -> 1500 | AH21: =SUM($C20:AH$20) -> 1500 | AI21: =SUM($C20:AI$20) -> 1500 | AJ21: =SUM($C20:AJ$20) -> 1500 | AK21: =SUM($C20:AK$20) -> 1500 | AL21: =SUM($C20:AL$20) -> 1500 | AM21: =SUM($C20:AM$20) -> 1500 | AN21: =SUM($C20:AN$20) -> 1500 | AO21: =SUM($C20:AO$20) -> 1500 | AP21: =SUM($C20:AP$20) -> 1500 | AQ21: =SUM($C20:AQ$20) -> 1500 | AR21: =SUM($C20:AR$20) -> 1500 | AS21: =SUM($C20:AS$20) -> 1500 | AT21: =SUM($C20:AT$20) -> 1500 | AU21: =SUM($C20:AU$20) -> 1500 | AV21: =SUM($C20:AV$20) -> 1500 | AW21: =SUM($C20:AW$20) -> 1500 | AX21: =SUM($C20:AX$20) -> 1500 | AY21: =SUM($C20:AY$20) -> 1500 | AZ21: =SUM($C20:AZ$20) -> 1500 | BA21: =SUM($C20:BA$20) -> 1500 | BB21: =SUM($C20:BB$20) -> 1500 | BC21: =SUM($C20:BC$20) -> 1500 | BD21: =SUM($C20:BD$20) -> 1500 | BE21: =SUM($C20:BE$20) -> 1500 | BF21: =SUM($C20:BF$20) -> 1500 | BG21: =SUM($C20:BG$20) -> 1500 | BH21: =SUM($C20:BH$20) -> 1500 | BI21: =SUM($C20:BI$20) -> 1500 | BJ21: =SUM($C20:BJ$20) -> 1500 | BK21: =SUM($C20:BK$20) -> 1500
A22: Depreciation - non-production - Monthly | D22: =D44 -> 0 | E22: =E44 -> 0 | F22: 23 | G22: 23 | H22: 23 | I22: 23 | J22: 23 | K22: 23 | L22: 23 | M22: 23 | N22: 23 | O22: 23 | P22: 23 | Q22: 23 | R22: 23 | S22: 23 | T22: 23 | U22: 23 | V22: 23 | W22: 23 | X22: 23 | Y22: 23 | Z22: 23 | AA22: 23 | AB22: 23 | AC22: 23 | AD22: 23 | AE22: 23 | AF22: 23 | AG22: 23 | AH22: 23 | AI22: 23 | AJ22: 23 | AK22: 23 | AL22: 23 | AM22: 23 | AN22: 23 | AO22: 23 | AP22: 23 | AQ22: 23 | AR22: 23 | AS22: 23 | AT22: 23 | AU22: 23 | AV22: 23 | AW22: 23 | AX22: 23 | AY22: 23 | AZ22: 23 | BA22: 23 | BB22: 23 | BC22: 23 | BD22: 23 | BE22: 23 | BF22: 23 | BG22: 23 | BH22: 23 | BI22: 23 | BJ22: 23 | BK22: 23
A23: Accumulated NP depreciation - Monthly | D23: =SUM($C22:D$22) -> 0 | E23: =SUM($C22:E$22) -> 0 | F23: =SUM($C22:F$22) -> 23 | G23: =SUM($C22:G$22) -> 46 | H23: =SUM($C22:H$22) -> 69 | I23: =SUM($C22:I$22) -> 92 | J23: =SUM($C22:J$22) -> 115 | K23: =SUM($C22:K$22) -> 138 | L23: =SUM($C22:L$22) -> 161 | M23: =SUM($C22:M$22) -> 184 | N23: =SUM($C22:N$22) -> 207 | O23: =SUM($C22:O$22) -> 230 | P23: =SUM($C22:P$22) -> 253 | Q23: =SUM($C22:Q$22) -> 276 | R23: =SUM($C22:R$22) -> 299 | S23: =SUM($C22:S$22) -> 322 | T23: =SUM($C22:T$22) -> 345 | U23: =SUM($C22:U$22) -> 368 | V23: =SUM($C22:V$22) -> 391 | W23: =SUM($C22:W$22) -> 414 | X23: =SUM($C22:X$22) -> 437 | Y23: =SUM($C22:Y$22) -> 460 | Z23: =SUM($C22:Z$22) -> 483 | AA23: =SUM($C22:AA$22) -> 506 | AB23: =SUM($C22:AB$22) -> 529 | AC23: =SUM($C22:AC$22) -> 552 | AD23: =SUM($C22:AD$22) -> 575 | AE23: =SUM($C22:AE$22) -> 598 | AF23: =SUM($C22:AF$22) -> 621 | AG23: =SUM($C22:AG$22) -> 644 | AH23: =SUM($C22:AH$22) -> 667 | AI23: =SUM($C22:AI$22) -> 690 | AJ23: =SUM($C22:AJ$22) -> 713 | AK23: =SUM($C22:AK$22) -> 736 | AL23: =SUM($C22:AL$22) -> 759 | AM23: =SUM($C22:AM$22) -> 782 | AN23: =SUM($C22:AN$22) -> 805 | AO23: =SUM($C22:AO$22) -> 828 | AP23: =SUM($C22:AP$22) -> 851 | AQ23: =SUM($C22:AQ$22) -> 874 | AR23: =SUM($C22:AR$22) -> 897 | AS23: =SUM($C22:AS$22) -> 920 | AT23: =SUM($C22:AT$22) -> 943 | AU23: =SUM($C22:AU$22) -> 966 | AV23: =SUM($C22:AV$22) -> 989 | AW23: =SUM($C22:AW$22) -> 1012 | AX23: =SUM($C22:AX$22) -> 1035 | AY23: =SUM($C22:AY$22) -> 1058 | AZ23: =SUM($C22:AZ$22) -> 1081 | BA23: =SUM($C22:BA$22) -> 1104 | BB23: =SUM($C22:BB$22) -> 1127 | BC23: =SUM($C22:BC$22) -> 1150 | BD23: =SUM($C22:BD$22) -> 1173 | BE23: =SUM($C22:BE$22) -> 1196 | BF23: =SUM($C22:BF$22) -> 1219 | BG23: =SUM($C22:BG$22) -> 1242 | BH23: =SUM($C22:BH$22) -> 1265 | BI23: =SUM($C22:BI$22) -> 1288 | BJ23: =SUM($C22:BJ$22) -> 1311 | BK23: =SUM($C22:BK$22) -> 1334
A24: Fixed assets - production - Monthly | C24: =C10 -> 0 | D24: =D46 -> 0 | E24: =E46 -> 0 | F24: 0 | G24: 0 | H24: 0 | I24: 25000 | J24: 0 | K24: 0 | L24: 0 | M24: 0 | N24: 0 | O24: 0 | P24: 0 | Q24: 0 | R24: 0 | S24: 0 | T24: 0 | U24: 0 | V24: 0 | W24: 0 | X24: 0 | Y24: 0 | Z24: 0 | AA24: 0 | AB24: 10000 | AC24: 0 | AD24: 0 | AE24: 0 | AF24: 0 | AG24: 0 | AH24: 0 | AI24: 0 | AJ24: 0 | AK24: 0 | AL24: 0 | AM24: 0 | AN24: 0 | AO24: 0 | AP24: 0 | AQ24: 0 | AR24: 0 | AS24: 0 | AT24: 0 | AU24: 0 | AV24: 0 | AW24: 0 | AX24: 0 | AY24: 0 | AZ24: 0 | BA24: 0 | BB24: 0 | BC24: 0 | BD24: 0 | BE24: 0 | BF24: 0 | BG24: 0 | BH24: 0 | BI24: 0 | BJ24: 0 | BK24: 0
A25: Accumulated P fixed assets - Monthly | D25: =SUM($C24:D$24) -> 0 | E25: =SUM($C24:E$24) -> 0 | F25: =SUM($C24:F$24) -> 0 | G25: =SUM($C24:G$24) -> 0 | H25: =SUM($C24:H$24) -> 0 | I25: =SUM($C24:I$24) -> 25000 | J25: =SUM($C24:J$24) -> 25000 | K25: =SUM($C24:K$24) -> 25000 | L25: =SUM($C24:L$24) -> 25000 | M25: =SUM($C24:M$24) -> 25000 | N25: =SUM($C24:N$24) -> 25000 | O25: =SUM($C24:O$24) -> 25000 | P25: =SUM($C24:P$24) -> 25000 | Q25: =SUM($C24:Q$24) -> 25000 | R25: =SUM($C24:R$24) -> 25000 | S25: =SUM($C24:S$24) -> 25000 | T25: =SUM($C24:T$24) -> 25000 | U25: =SUM($C24:U$24) -> 25000 | V25: =SUM($C24:V$24) -> 25000 | W25: =SUM($C24:W$24) -> 25000 | X25: =SUM($C24:X$24) -> 25000 | Y25: =SUM($C24:Y$24) -> 25000 | Z25: =SUM($C24:Z$24) -> 25000 | AA25: =SUM($C24:AA$24) -> 25000 | AB25: =SUM($C24:AB$24) -> 35000 | AC25: =SUM($C24:AC$24) -> 35000 | AD25: =SUM($C24:AD$24) -> 35000 | AE25: =SUM($C24:AE$24) -> 35000 | AF25: =SUM($C24:AF$24) -> 35000 | AG25: =SUM($C24:AG$24) -> 35000 | AH25: =SUM($C24:AH$24) -> 35000 | AI25: =SUM($C24:AI$24) -> 35000 | AJ25: =SUM($C24:AJ$24) -> 35000 | AK25: =SUM($C24:AK$24) -> 35000 | AL25: =SUM($C24:AL$24) -> 35000 | AM25: =SUM($C24:AM$24) -> 35000 | AN25: =SUM($C24:AN$24) -> 35000 | AO25: =SUM($C24:AO$24) -> 35000 | AP25: =SUM($C24:AP$24) -> 35000 | AQ25: =SUM($C24:AQ$24) -> 35000 | AR25: =SUM($C24:AR$24) -> 35000 | AS25: =SUM($C24:AS$24) -> 35000 | AT25: =SUM($C24:AT$24) -> 35000 | AU25: =SUM($C24:AU$24) -> 35000 | AV25: =SUM($C24:AV$24) -> 35000 | AW25: =SUM($C24:AW$24) -> 35000 | AX25: =SUM($C24:AX$24) -> 35000 | AY25: =SUM($C24:AY$24) -> 35000 | AZ25: =SUM($C24:AZ$24) -> 35000 | BA25: =SUM($C24:BA$24) -> 35000 | BB25: =SUM($C24:BB$24) -> 35000 | BC25: =SUM($C24:BC$24) -> 35000 | BD25: =SUM($C24:BD$24) -> 35000 | BE25: =SUM($C24:BE$24) -> 35000 | BF25: =SUM($C24:BF$24) -> 35000 | BG25: =SUM($C24:BG$24) -> 35000 | BH25: =SUM($C24:BH$24) -> 35000 | BI25: =SUM($C24:BI$24) -> 35000 | BJ25: =SUM($C24:BJ$24) -> 35000 | BK25: =SUM($C24:BK$24) -> 35000
A26: Depreciation - production - Monthly | D26: =D47 -> 0 | E26: =E47 -> 0 | F26: 0 | G26: 0 | H26: 0 | I26: 298 | J26: 298 | K26: 298 | L26: 298 | M26: 298 | N26: 298 | O26: 298 | P26: 298 | Q26: 298 | R26: 298 | S26: 298 | T26: 298 | U26: 298 | V26: 298 | W26: 298 | X26: 298 | Y26: 298 | Z26: 298 | AA26: 298 | AB26: 417 | AC26: 417 | AD26: 417 | AE26: 417 | AF26: 417 | AG26: 417 | AH26: 417 | AI26: 417 | AJ26: 417 | AK26: 417 | AL26: 417 | AM26: 417 | AN26: 417 | AO26: 417 | AP26: 417 | AQ26: 417 | AR26: 417 | AS26: 417 | AT26: 417 | AU26: 417 | AV26: 417 | AW26: 417 | AX26: 417 | AY26: 417 | AZ26: 417 | BA26: 417 | BB26: 417 | BC26: 417 | BD26: 417 | BE26: 417 | BF26: 417 | BG26: 417 | BH26: 417 | BI26: 417 | BJ26: 417 | BK26: 417
A27: Accumulated P depreciation - Monthly | D27: =SUM($C$26:D26) -> 0 | E27: =SUM($C$26:E26) -> 0 | F27: =SUM($C$26:F26) -> 0 | G27: =SUM($C$26:G26) -> 0 | H27: =SUM($C$26:H26) -> 0 | I27: =SUM($C$26:I26) -> 298 | J27: =SUM($C$26:J26) -> 596 | K27: =SUM($C$26:K26) -> 894 | L27: =SUM($C$26:L26) -> 1192 | M27: =SUM($C$26:M26) -> 1490 | N27: =SUM($C$26:N26) -> 1788 | O27: =SUM($C$26:O26) -> 2086 | P27: =SUM($C$26:P26) -> 2384 | Q27: =SUM($C$26:Q26) -> 2682 | R27: =SUM($C$26:R26) -> 2980 | S27: =SUM($C$26:S26) -> 3278 | T27: =SUM($C$26:T26) -> 3576 | U27: =SUM($C$26:U26) -> 3874 | V27: =SUM($C$26:V26) -> 4172 | W27: =SUM($C$26:W26) -> 4470 | X27: =SUM($C$26:X26) -> 4768 | Y27: =SUM($C$26:Y26) -> 5066 | Z27: =SUM($C$26:Z26) -> 5364 | AA27: =SUM($C$26:AA26) -> 5662 | AB27: =SUM($C$26:AB26) -> 6079 | AC27: =SUM($C$26:AC26) -> 6496 | AD27: =SUM($C$26:AD26) -> 6913 | AE27: =SUM($C$26:AE26) -> 7330 | AF27: =SUM($C$26:AF26) -> 7747 | AG27: =SUM($C$26:AG26) -> 8164 | AH27: =SUM($C$26:AH26) -> 8581 | AI27: =SUM($C$26:AI26) -> 8998 | AJ27: =SUM($C$26:AJ26) -> 9415 | AK27: =SUM($C$26:AK26) -> 9832 | AL27: =SUM($C$26:AL26) -> 10249 | AM27: =SUM($C$26:AM26) -> 10666 | AN27: =SUM($C$26:AN26) -> 11083 | AO27: =SUM($C$26:AO26) -> 11500 | AP27: =SUM($C$26:AP26) -> 11917 | AQ27: =SUM($C$26:AQ26) -> 12334 | AR27: =SUM($C$26:AR26) -> 12751 | AS27: =SUM($C$26:AS26) -> 13168 | AT27: =SUM($C$26:AT26) -> 13585 | AU27: =SUM($C$26:AU26) -> 14002 | AV27: =SUM($C$26:AV26) -> 14419 | AW27: =SUM($C$26:AW26) -> 14836 | AX27: =SUM($C$26:AX26) -> 15253 | AY27: =SUM($C$26:AY26) -> 15670 | AZ27: =SUM($C$26:AZ26) -> 16087 | BA27: =SUM($C$26:BA26) -> 16504 | BB27: =SUM($C$26:BB26) -> 16921 | BC27: =SUM($C$26:BC26) -> 17338 | BD27: =SUM($C$26:BD26) -> 17755 | BE27: =SUM($C$26:BE26) -> 18172 | BF27: =SUM($C$26:BF26) -> 18589 | BG27: =SUM($C$26:BG26) -> 19006 | BH27: =SUM($C$26:BH26) -> 19423 | BI27: =SUM($C$26:BI26) -> 19840 | BJ27: =SUM($C$26:BJ26) -> 20257 | BK27: =SUM($C$26:BK26) -> 20674
B29: Enter values for the assets in rows 20; 23-24; and 29-31
A31: Non-depreciable intangible assets
B32: Goodwill, etc | D32: 0 | E32: 0 | F32: 0 | G32: 0 | H32: 0 | I32: 0 | J32: 0 | K32: 0 | L32: 0 | M32: 0 | N32: 0 | O32: 0 | P32: 0 | Q32: 0 | R32: 0 | S32: 0 | T32: 0 | U32: 0 | V32: 0 | W32: 0 | X32: 0 | Y32: 0 | Z32: 0 | AA32: 0 | AB32: 0 | AC32: 0 | AD32: 0 | AE32: 0 | AF32: 0 | AG32: 0 | AH32: 0 | AI32: 0 | AJ32: 0 | AK32: 0 | AL32: 0 | AM32: 0 | AN32: 0 | AO32: 0 | AP32: 0 | AQ32: 0 | AR32: 0 | AS32: 0 | AT32: 0 | AU32: 0 | AV32: 0 | AW32: 0 | AX32: 0 | AY32: 0 | AZ32: 0 | BA32: 0 | BB32: 0 | BC32: 0 | BD32: 0 | BE32: 0 | BF32: 0 | BG32: 0 | BH32: 0 | BI32: 0 | BJ32: 0 | BK32: 0
A34: Depreciable intangible assets
B35: New patents | F35: 20000 | S35: 5000
B36: Patent renewals | AE36: 1000 | AS36: 1000 | BE36: 1000
B37: total depreciable intangible assets | D37: =SUM(D35:D36) -> 0 | E37: =SUM(E35:E36) -> 0 | F37: 20000 | G37: 0 | H37: 0 | I37: 0 | J37: 0 | K37: 0 | L37: 0 | M37: 0 | N37: 0 | O37: 0 | P37: 0 | Q37: 0 | R37: =SUM(R35:R36) -> 0 | S37: 5000 | T37: 0 | U37: 0 | V37: 0 | W37: 0 | X37: 0 | Y37: 0 | Z37: 0 | AA37: 0 | AB37: 0 | AC37: 0 | AD37: 0 | AE37: 1000 | AF37: 0 | AG37: 0 | AH37: 0 | AI37: 0 | AJ37: 0 | AK37: 0 | AL37: 0 | AM37: 0 | AN37: =SUM(AN35:AN36) -> 0 | AO37: 0 | AP37: 0 | AQ37: 0 | AR37: 0 | AS37: 1000 | AT37: 0 | AU37: 0 | AV37: 0 | AW37: 0 | AX37: 0 | AY37: 0 | AZ37: 0 | BA37: 0 | BB37: 0 | BC37: 0 | BD37: 0 | BE37: 1000 | BF37: 0 | BG37: 0 | BH37: 0 | BI37: 0 | BJ37: 0 | BK37: 0
B38: Intangible assets amortization | D38: 0 | E38: 0 | F38: 83 | G38: 83 | H38: 83 | I38: 83 | J38: 83 | K38: 83 | L38: 83 | M38: 83 | N38: 83 | O38: 83 | P38: 83 | Q38: 83 | R38: 83 | S38: 104 | T38: 104 | U38: 104 | V38: 104 | W38: 104 | X38: 104 | Y38: 104 | Z38: 104 | AA38: 104 | AB38: 104 | AC38: 104 | AD38: 104 | AE38: 108 | AF38: 108 | AG38: 108 | AH38: 108 | AI38: 108 | AJ38: 108 | AK38: 108 | AL38: 108 | AM38: 108 | AN38: 108 | AO38: 108 | AP38: 108 | AQ38: 108 | AR38: 108 | AS38: 112 | AT38: 112 | AU38: 112 | AV38: 112 | AW38: 112 | AX38: 112 | AY38: 112 | AZ38: 112 | BA38: 112 | BB38: 112 | BC38: 112 | BD38: 112 | BE38: 116 | BF38: 116 | BG38: 116 | BH38: 116 | BI38: 116 | BJ38: 116 | BK38: 116
A40: Fixed assets
B41: Computers, office machinery, etc | D41: 0 | E41: 0 | F41: 1000 | G41: 0 | H41: 0 | I41: 0 | J41: 0 | K41: 0 | L41: 0 | M41: 0 | N41: 0 | O41: 0 | P41: 0 | Q41: 0 | R41: 0 | S41: 0 | T41: 0 | U41: 0 | V41: 0 | W41: 0 | X41: 0 | Y41: 0 | Z41: 0 | AA41: 0 | AB41: 0 | AC41: 0 | AD41: 0 | AE41: 0 | AF41: 0 | AG41: 0 | AH41: 0 | AI41: 0 | AJ41: 0 | AK41: 0 | AL41: 0 | AM41: 0 | AN41: 0 | AO41: 0 | AP41: 0 | AQ41: 0 | AR41: 0 | AS41: 0 | AT41: 0 | AU41: 0 | AV41: 0 | AW41: 0 | AX41: 0 | AY41: 0 | AZ41: 0 | BA41: 0 | BB41: 0 | BC41: 0 | BD41: 0 | BE41: 0 | BF41: 0 | BG41: 0 | BH41: 0 | BI41: 0 | BJ41: 0 | BK41: 0
B42: Office furniture and fixtures | D42: =0.5*D41 -> 0 | E42: =0.5*E41 -> 0 | F42: 500 | G42: 0 | H42: 0 | I42: 0 | J42: 0 | K42: 0 | L42: 0 | M42: 0 | N42: 0 | O42: 0 | P42: 0 | Q42: 0 | R42: 0 | S42: 0 | T42: 0 | U42: 0 | V42: 0 | W42: 0 | X42: 0 | Y42: 0 | Z42: 0 | AA42: 0 | AB42: 0 | AC42: 0 | AD42: 0 | AE42: 0 | AF42: 0 | AG42: 0 | AH42: 0 | AI42: 0 | AJ42: 0 | AK42: 0 | AL42: 0 | AM42: 0 | AN42: 0 | AO42: 0 | AP42: 0 | AQ42: 0 | AR42: 0 | AS42: 0 | AT42: 0 | AU42: 0 | AV42: 0 | AW42: 0 | AX42: 0 | AY42: 0 | AZ42: 0 | BA42: 0 | BB42: 0 | BC42: 0 | BD42: 0 | BE42: 0 | BF42: 0 | BG42: 0 | BH42: 0 | BI42: 0 | BJ42: 0 | BK42: 0
B43: total - non-production fixed assets | D43: =SUM(D41:D42) -> 0 | E43: =SUM(E41:E42) -> 0 | F43: 1500 | G43: 0 | H43: 0 | I43: 0 | J43: 0 | K43: 0 | L43: 0 | M43: 0 | N43: 0 | O43: 0 | P43: 0 | Q43: 0 | R43: 0 | S43: 0 | T43: 0 | U43: 0 | V43: 0 | W43: 0 | X43: 0 | Y43: 0 | Z43: 0 | AA43: 0 | AB43: 0 | AC43: 0 | AD43: 0 | AE43: 0 | AF43: 0 | AG43: 0 | AH43: 0 | AI43: 0 | AJ43: =SUM(AJ41:AJ42) -> 0 | AK43: 0 | AL43: 0 | AM43: 0 | AN43: 0 | AO43: 0 | AP43: 0 | AQ43: 0 | AR43: 0 | AS43: 0 | AT43: 0 | AU43: 0 | AV43: 0 | AW43: 0 | AX43: 0 | AY43: 0 | AZ43: 0 | BA43: 0 | BB43: 0 | BC43: 0 | BD43: 0 | BE43: 0 | BF43: 0 | BG43: 0 | BH43: 0 | BI43: 0 | BJ43: 0 | BK43: 0
B44: Non-production fixed asset depreciation | D44: 0 | E44: 0 | F44: 23 | G44: 23 | H44: 23 | I44: 23 | J44: 23 | K44: 23 | L44: 23 | M44: 23 | N44: 23 | O44: 23 | P44: 23 | Q44: 23 | R44: 23 | S44: 23 | T44: 23 | U44: 23 | V44: 23 | W44: 23 | X44: 23 | Y44: 23 | Z44: 23 | AA44: 23 | AB44: 23 | AC44: 23 | AD44: 23 | AE44: 23 | AF44: 23 | AG44: 23 | AH44: 23 | AI44: 23 | AJ44: 23 | AK44: 23 | AL44: 23 | AM44: 23 | AN44: 23 | AO44: 23 | AP44: 23 | AQ44: 23 | AR44: 23 | AS44: 23 | AT44: 23 | AU44: 23 | AV44: 23 | AW44: 23 | AX44: 23 | AY44: 23 | AZ44: 23 | BA44: 23 | BB44: 23 | BC44: 23 | BD44: 23 | BE44: 23 | BF44: 23 | BG44: 23 | BH44: 23 | BI44: 23 | BJ44: 23 | BK44: 23
B46: Production equipment | D46: 0 | E46: 0 | F46: 0 | G46: 0 | H46: 0 | I46: 25000 | J46: =0.5*J45 -> 0 | K46: 0 | L46: 0 | M46: 0 | N46: 0 | O46: 0 | P46: 0 | Q46: 0 | R46: 0 | S46: 0 | T46: 0 | U46: 0 | V46: 0 | W46: 0 | X46: 0 | Y46: 0 | Z46: 0 | AA46: 0 | AB46: 10000 | AC46: 0 | AD46: 0 | AE46: 0 | AF46: 0 | AG46: 0 | AH46: 0 | AI46: 0 | AJ46: 0 | AK46: 0 | AL46: 0 | AM46: 0 | AN46: 0 | AO46: 0 | AP46: 0 | AQ46: 0 | AR46: 0 | AS46: 0 | AT46: 0 | AU46: 0 | AV46: 0 | AW46: 0 | AX46: 0 | AY46: 0 | AZ46: 0 | BA46: 0 | BB46: 0 | BC46: 0 | BD46: 0 | BE46: 0 | BF46: 0 | BG46: 0 | BH46: 0 | BI46: 0 | BJ46: 0 | BK46: 0
B47: Production fixed asset depreciation | D47: 0 | E47: 0 | F47: 0 | G47: 0 | H47: 0 | I47: 298 | J47: 298 | K47: 298 | L47: 298 | M47: 298 | N47: 298 | O47: 298 | P47: 298 | Q47: 298 | R47: 298 | S47: 298 | T47: 298 | U47: 298 | V47: 298 | W47: 298 | X47: 298 | Y47: 298 | Z47: 298 | AA47: 298 | AB47: 417 | AC47: 417 | AD47: 417 | AE47: 417 | AF47: 417 | AG47: 417 | AH47: 417 | AI47: 417 | AJ47: 417 | AK47: 417 | AL47: 417 | AM47: 417 | AN47: 417 | AO47: 417 | AP47: 417 | AQ47: 417 | AR47: 417 | AS47: 417 | AT47: 417 | AU47: 417 | AV47: 417 | AW47: 417 | AX47: 417 | AY47: 417 | AZ47: 417 | BA47: 417 | BB47: 417 | BC47: 417 | BD47: 417 | BE47: 417 | BF47: 417 | BG47: 417 | BH47: 417 | BI47: 417 | BJ47: 417 | BK47: 417
B49: Do not remove this line | D49: 0 | E49: 0 | F49: 0 | G49: 0 | H49: 0 | I49: 0 | J49: 0 | K49: 0 | L49: 0 | M49: 0 | N49: 0 | O49: 0 | P49: 0 | Q49: 0 | R49: 0 | S49: 0 | T49: 0 | U49: 0 | V49: 0 | W49: 0 | X49: 0 | Y49: 0 | Z49: 0 | AA49: 0 | AB49: 0 | AC49: 0 | AD49: 0 | AE49: 0 | AF49: 0 | AG49: 0 | AH49: 0 | AI49: 0 | AJ49: 0 | AK49: 0 | AL49: 0 | AM49: 0 | AN49: 0 | AO49: 0 | AP49: 0 | AQ49: 0 | AR49: 0 | AS49: 0 | AT49: 0 | AU49: 0 | AV49: 0 | AW49: 0 | AX49: 0 | AY49: 0 | AZ49: 0 | BA49: 0 | BB49: 0 | BC49: 0 | BD49: 0 | BE49: 0 | BF49: 0 | BG49: 0 | BH49: 0 | BI49: 0 | BJ49: 0 | BK49: 0
B51: Notes about fixed assets:
B52: The IRS defines six different categories of fixed assets for depreciatio purposes
B53: For startups, most assets will fall under either the 5 yr or 7 yr category
B54: Examples of 5 yr property are computers and peripherals
B55: Examples of 7 yr property are offcie furniture and productio equipment
B56: In this region, identify all major fixed asset purchases and group them into three groups:
B57: 5 yr property
B58: 7 yr property for non-production purposes
B59: 7 yr property for production purposes

Sheet Cash Flow
A1: LAM | D1: =CYFY&TEXT(StartYear+COLUMN()-4,"0000") -> CY2015 | E1: CY2016 | F1: CY2017 | G1: CY2018 | H1: CY2019
A2: Accounts receivable - Annual | D2: =SUM(OFFSET($D12,0,12*(COLUMN()-4),1,12)) -> 110000 | E2: =SUM(OFFSET($D12,0,12*(COLUMN()-4),1,12)) -> 1382500 | F2: 2940000 | G2: =SUM(OFFSET($D12,0,12*(COLUMN()-4),1,12)) -> 4380000 | H2: 5820000
A3: Inventory - Annual | D3: =SUM(OFFSET($D13,0,12*(COLUMN()-4),1,12)) -> 135000 | E3: 1665000 | F3: 2160000 | G3: =SUM(OFFSET($D13,0,12*(COLUMN()-4),1,12)) -> 2160000 | H3: 2160000
A4: Pre-paid expenses - Annual | D4: 10200 | E4: 34950 | F4: 48000 | G4: =SUM(OFFSET($D14,0,12*(COLUMN()-4),1,12)) -> 48000 | H4: 48000
A5: Accounts payable - Annual | D5: 89400 | E5: 599400 | F5: 734400 | G5: =SUM(OFFSET($D15,0,12*(COLUMN()-4),1,12)) -> 734400 | H5: 734400
A6: Change in working capital - Annual | D6: 92675 | E6: 209625 | F6: 120000 | G6: =SUM(OFFSET($D16,0,12*(COLUMN()-4),1,12)) -> 120000 | H6: 120000
A7: Interest Income - Annual | D7: =SUM(OFFSET($D17,0,12*(COLUMN()-4),1,12)) -> 2325 | E7: 2770 | F7: 1310 | G7: =SUM(OFFSET($D17,0,12*(COLUMN()-4),1,12)) -> 5451 | H7: 13667
A8: Income Taxes Owed - Annual | D8: =SUM(OFFSET($D19,0,12*(COLUMN()-4),1,12)) -> 0 | E8: =SUM(OFFSET($D19,0,12*(COLUMN()-4),1,12)) -> 0 | F8: 0 | G8: =SUM(OFFSET($D19,0,12*(COLUMN()-4),1,12)) -> 435780 | H8: 1097460
A9: Income Taxes Paid - Annual | D9: =SUM(OFFSET($D20,0,12*(COLUMN()-4),1,12)) -> 0 | E9: 0 | F9: 0 | G9: =SUM(OFFSET($D20,0,12*(COLUMN()-4),1,12)) -> 0 | H9: 871560
D11: =IF(C11="",FirstMonth,DATE(YEAR(C11),MONTH(C11)+1,1)) -> 2015-01-01 | E11: 2015-02-01 | F11: 2015-03-01 | G11: 2015-04-01 | H11: 2015-05-01 | I11: 2015-06-01 | J11: 2015-07-01 | K11: 2015-08-01 | L11: 2015-09-01 | M11: 2015-10-01 | N11: 2015-11-01 | O11: 2015-12-01 | P11: 2016-01-01 | Q11: 2016-02-01 | R11: 2016-03-01 | S11: 2016-04-01 | T11: 2016-05-01 | U11: 2016-06-01 | V11: 2016-07-01 | W11: 2016-08-01 | X11: 2016-09-01 | Y11: 2016-10-01 | Z11: 2016-11-01 | AA11: 2016-12-01 | AB11: 2017-01-01 | AC11: 2017-02-01 | AD11: 2017-03-01 | AE11: 2017-04-01 | AF11: 2017-05-01 | AG11: 2017-06-01 | AH11: 2017-07-01 | AI11: 2017-08-01 | AJ11: =IF(AI11="",FirstMonth,DATE(YEAR(AI11),MONTH(AI11)+1,1)) -> 2017-09-01 | AK11: 2017-10-01 | AL11: 2017-11-01 | AM11: 2017-12-01 | AN11: =IF(AM11="",FirstMonth,DATE(YEAR(AM11),MONTH(AM11)+1,1)) -> 2018-01-01 | AO11: =IF(AN11="",FirstMonth,DATE(YEAR(AN11),MONTH(AN11)+1,1)) -> 2018-02-01 | AP11: =IF(AO11="",FirstMonth,DATE(YEAR(AO11),MONTH(AO11)+1,1)) -> 2018-03-01 | AQ11: =IF(AP11="",FirstMonth,DATE(YEAR(AP11),MONTH(AP11)+1,1)) -> 2018-04-01 | AR11: =IF(AQ11="",FirstMonth,DATE(YEAR(AQ11),MONTH(AQ11)+1,1)) -> 2018-05-01 | AS11: =IF(AR11="",FirstMonth,DATE(YEAR(AR11),MONTH(AR11)+1,1)) -> 2018-06-01 | AT11: =IF(AS11="",FirstMonth,DATE(YEAR(AS11),MONTH(AS11)+1,1)) -> 2018-07-01 | AU11: =IF(AT11="",FirstMonth,DATE(YEAR(AT11),MONTH(AT11)+1,1)) -> 2018-08-01 | AV11: =IF(AU11="",FirstMonth,DATE(YEAR(AU11),MONTH(AU11)+1,1)) -> 2018-09-01 | AW11: =IF(AV11="",FirstMonth,DATE(YEAR(AV11),MONTH(AV11)+1,1)) -> 2018-10-01 | AX11: =IF(AW11="",FirstMonth,DATE(YEAR(AW11),MONTH(AW11)+1,1)) -> 2018-11-01 | AY11: =IF(AX11="",FirstMonth,DATE(YEAR(AX11),MONTH(AX11)+1,1)) -> 2018-12-01 | AZ11: =IF(AY11="",FirstMonth,DATE(YEAR(AY11),MONTH(AY11)+1,1)) -> 2019-01-01 | BA11: =IF(AZ11="",FirstMonth,DATE(YEAR(AZ11),MONTH(AZ11)+1,1)) -> 2019-02-01 | BB11: =IF(BA11="",FirstMonth,DATE(YEAR(BA11),MONTH(BA11)+1,1)) -> 2019-03-01 | BC11: =IF(BB11="",FirstMonth,DATE(YEAR(BB11),MONTH(BB11)+1,1)) -> 2019-04-01 | BD11: =IF(BC11="",FirstMonth,DATE(YEAR(BC11),MONTH(BC11)+1,1)) -> 2019-05-01 | BE11: =IF(BD11="",FirstMonth,DATE(YEAR(BD11),MONTH(BD11)+1,1)) -> 2019-06-01 | BF11: =IF(BE11="",FirstMonth,DATE(YEAR(BE11),MONTH(BE11)+1,1)) -> 2019-07-01 | BG11: =IF(BF11="",FirstMonth,DATE(YEAR(BF11),MONTH(BF11)+1,1)) -> 2019-08-01 | BH11: =IF(BG11="",FirstMonth,DATE(YEAR(BG11),MONTH(BG11)+1,1)) -> 2019-09-01 | BI11: =IF(BH11="",FirstMonth,DATE(YEAR(BH11),MONTH(BH11)+1,1)) -> 2019-10-01 | BJ11: =IF(BI11="",FirstMonth,DATE(YEAR(BI11),MONTH(BI11)+1,1)) -> 2019-11-01 | BK11: =IF(BJ11="",FirstMonth,DATE(YEAR(BJ11),MONTH(BJ11)+1,1)) -> 2019-12-01
A12: Accounts receivable - Monthly | D12: =D31 -> 0 | E12: =E31 -> 0 | F12: 0 | G12: 0 | H12: 0 | I12: 0 | J12: 0 | K12: 0 | L12: 0 | M12: 20000 | N12: 42500 | O12: 47500 | P12: 52500 | Q12: 57500 | R12: 62500 | S12: 67500 | T12: 92500 | U12: 120000 | V12: 130000 | W12: 140000 | X12: 150000 | Y12: 160000 | Z12: 170000 | AA12: 180000 | AB12: 190000 | AC12: 200000 | AD12: 210000 | AE12: 220000 | AF12: 230000 | AG12: 240000 | AH12: 250000 | AI12: 260000 | AJ12: 270000 | AK12: 280000 | AL12: 290000 | AM12: 300000 | AN12: =AN31 -> 310000 | AO12: 320000 | AP12: 330000 | AQ12: 340000 | AR12: 350000 | AS12: 360000 | AT12: 370000 | AU12: 380000 | AV12: 390000 | AW12: 400000 | AX12: 410000 | AY12: 420000 | AZ12: 430000 | BA12: 440000 | BB12: 450000 | BC12: 460000 | BD12: 470000 | BE12: 480000 | BF12: 490000 | BG12: 500000 | BH12: 510000 | BI12: 520000 | BJ12: 530000 | BK12: 540000
A13: Inventory - Monthly | D13: =D34 -> 0 | E13: =E34 -> 0 | F13: 0 | G13: 0 | H13: 0 | I13: 0 | J13: 0 | K13: 0 | L13: 0 | M13: 15000 | N13: 45000 | O13: 75000 | P13: 90000 | Q13: 90000 | R13: 90000 | S13: 90000 | T13: 105000 | U13: 135000 | V13: 165000 | W13: 180000 | X13: 180000 | Y13: 180000 | Z13: 180000 | AA13: 180000 | AB13: 180000 | AC13: 180000 | AD13: 180000 | AE13: 180000 | AF13: 180000 | AG13: 180000 | AH13: 180000 | AI13: 180000 | AJ13: 180000 | AK13: 180000 | AL13: 180000 | AM13: 180000 | AN13: =AN34 -> 180000 | AO13: 180000 | AP13: 180000 | AQ13: 180000 | AR13: 180000 | AS13: 180000 | AT13: 180000 | AU13: 180000 | AV13: 180000 | AW13: 180000 | AX13: 180000 | AY13: 180000 | AZ13: 180000 | BA13: 180000 | BB13: 180000 | BC13: 180000 | BD13: 180000 | BE13: 180000 | BF13: 180000 | BG13: 180000 | BH13: 180000 | BI13: 180000 | BJ13: 180000 | BK13: 180000
A14: Pre-paid expenses - Monthly | D14: =D37 -> 375 | E14: =E37 -> 600 | F14: 600 | G14: 600 | H14: 600 | I14: 600 | J14: 600 | K14: 600 | L14: 600 | M14: 1275 | N14: 1875 | O14: 1875 | P14: 1875 | Q14: 1875 | R14: 1875 | S14: 1875 | T14: 1875 | U14: 1875 | V14: 3700 | W14: 4000 | X14: 4000 | Y14: 4000 | Z14: 4000 | AA14: 4000 | AB14: 4000 | AC14: 4000 | AD14: 4000 | AE14: 4000 | AF14: 4000 | AG14: 4000 | AH14: 4000 | AI14: 4000 | AJ14: 4000 | AK14: 4000 | AL14: 4000 | AM14: 4000 | AN14: =AN37 -> 4000 | AO14: 4000 | AP14: 4000 | AQ14: 4000 | AR14: 4000 | AS14: 4000 | AT14: 4000 | AU14: 4000 | AV14: 4000 | AW14: 4000 | AX14: 4000 | AY14: 4000 | AZ14: 4000 | BA14: 4000 | BB14: 4000 | BC14: 4000 | BD14: 4000 | BE14: 4000 | BF14: 4000 | BG14: 4000 | BH14: 4000 | BI14: 4000 | BJ14: 4000 | BK14: 4000
A15: Accounts payable - Monthly | D15: =D40+D41 -> 1200 | E15: 1200 | F15: 1200 | G15: 1200 | H15: 1200 | I15: 1200 | J15: 1200 | K15: 1200 | L15: 1200 | M15: 16200 | N15: 31200 | O15: 31200 | P15: 31200 | Q15: 31200 | R15: 31200 | S15: 31200 | T15: 46200 | U15: 61200 | V15: 61200 | W15: 61200 | X15: 61200 | Y15: 61200 | Z15: 61200 | AA15: 61200 | AB15: 61200 | AC15: 61200 | AD15: 61200 | AE15: 61200 | AF15: 61200 | AG15: 61200 | AH15: 61200 | AI15: 61200 | AJ15: =AJ40+AJ41 -> 61200 | AK15: 61200 | AL15: 61200 | AM15: 61200 | AN15: =AN40+AN41 -> 61200 | AO15: 61200 | AP15: 61200 | AQ15: 61200 | AR15: 61200 | AS15: 61200 | AT15: 61200 | AU15: 61200 | AV15: 61200 | AW15: 61200 | AX15: 61200 | AY15: 61200 | AZ15: 61200 | BA15: 61200 | BB15: 61200 | BC15: 61200 | BD15: 61200 | BE15: 61200 | BF15: 61200 | BG15: 61200 | BH15: 61200 | BI15: 61200 | BJ15: 61200 | BK15: 61200
A16: Change in working capital - Monthly | D16: =D47 -> -1325 | E16: =E47 -> 225 | F16: 0 | G16: 0 | H16: 0 | I16: 0 | J16: 0 | K16: 0 | L16: 0 | M16: 20675 | N16: 38100 | O16: 35000 | P16: 20000 | Q16: 5000 | R16: 5000 | S16: 5000 | T16: 25000 | U16: 42500 | V16: 41825 | W16: 25300 | X16: 10000 | Y16: 10000 | Z16: 10000 | AA16: 10000 | AB16: 10000 | AC16: 10000 | AD16: 10000 | AE16: 10000 | AF16: 10000 | AG16: 10000 | AH16: 10000 | AI16: 10000 | AJ16: 10000 | AK16: 10000 | AL16: 10000 | AM16: 10000 | AN16: =AN47 -> 10000 | AO16: 10000 | AP16: 10000 | AQ16: 10000 | AR16: 10000 | AS16: 10000 | AT16: 10000 | AU16: 10000 | AV16: 10000 | AW16: 10000 | AX16: 10000 | AY16: 10000 | AZ16: 10000 | BA16: 10000 | BB16: 10000 | BC16: 10000 | BD16: 10000 | BE16: 10000 | BF16: 10000 | BG16: 10000 | BH16: 10000 | BI16: 10000 | BJ16: 10000 | BK16: 10000
A17: Interest Income - Monthly | D17: =D50 -> 0 | E17: =E50 -> 95 | F17: 82 | G17: 63 | H17: 55 | I17: 44 | J17: 19 | K17: 3 | L17: 529 | M17: 514 | N17: 477 | O17: 444 | P17: 406 | Q17: 366 | R17: 334 | S17: 302 | T17: 268 | U17: 237 | V17: 202 | W17: 167 | X17: 142 | Y17: 126 | Z17: 114 | AA17: 106 | AB17: 98 | AC17: 86 | AD17: 81 | AE17: 79 | AF17: 81 | AG17: 85 | AH17: 94 | AI17: 106 | AJ17: 120 | AK17: 138 | AL17: 158 | AM17: 184 | AN17: =AN50 -> 212 | AO17: 243 | AP17: 279 | AQ17: 318 | AR17: 361 | AS17: 408 | AT17: 457 | AU17: 512 | AV17: 569 | AW17: 631 | AX17: 696 | AY17: 765 | AZ17: 838 | BA17: 911 | BB17: 987 | BC17: 886 | BD17: 925 | BE17: 1013 | BF17: 1104 | BG17: 1154 | BH17: 1253 | BI17: 1457 | BJ17: 1516 | BK17: 1623
A18: Interest Income - Tracking - Monthly | D18: =D51 -> 0 | E18: =E51 -> 0 | F18: 0 | G18: 0 | H18: 0 | I18: 0 | J18: 0 | K18: 0 | L18: 0 | M18: 0 | N18: 0 | O18: 0 | P18: 0 | Q18: 0 | R18: 0 | S18: 0 | T18: 0 | U18: 0 | V18: 0 | W18: 0 | X18: 0 | Y18: 0 | Z18: 0 | AA18: 0 | AB18: 0 | AC18: 0 | AD18: 0 | AE18: 0 | AF18: 0 | AG18: 0 | AH18: 0 | AI18: 0 | AJ18: 0 | AK18: 0 | AL18: 0 | AM18: 0 | AN18: =AN51 -> 0 | AO18: 0 | AP18: 0 | AQ18: 0 | AR18: 0 | AS18: 0 | AT18: 0 | AU18: 0 | AV18: 0 | AW18: 0 | AX18: 0 | AY18: 0 | AZ18: 0 | BA18: 0 | BB18: 0 | BC18: 0 | BD18: 0 | BE18: 0 | BF18: 0 | BG18: 0 | BH18: 0 | BI18: 0 | BJ18: 0 | BK18: 0
A19: Income Taxes Owed - Monthly | D19: =D44 -> 0 | E19: =E44 -> 0 | F19: 0 | G19: 0 | H19: 0 | I19: 0 | J19: 0 | K19: 0 | L19: 0 | M19: 0 | N19: 0 | O19: 0 | P19: 0 | Q19: 0 | R19: 0 | S19: 0 | T19: 0 | U19: 0 | V19: 0 | W19: 0 | X19: 0 | Y19: 0 | Z19: 0 | AA19: 0 | AB19: 0 | AC19: 0 | AD19: 0 | AE19: 0 | AF19: 0 | AG19: 0 | AH19: 0 | AI19: 0 | AJ19: 0 | AK19: 0 | AL19: 0 | AM19: 0 | AN19: =AN44 -> 36315 | AO19: 36315 | AP19: 36315 | AQ19: 36315 | AR19: 36315 | AS19: 36315 | AT19: 36315 | AU19: 36315 | AV19: 36315 | AW19: 36315 | AX19: 36315 | AY19: 36315 | AZ19: 91455 | BA19: 91455 | BB19: 91455 | BC19: 91455 | BD19: 91455 | BE19: 91455 | BF19: 91455 | BG19: 91455 | BH19: 91455 | BI19: 91455 | BJ19: 91455 | BK19: 91455
A20: Income Taxes Paid - Monthly | D20: =D45 -> 0 | E20: =E45 -> 0 | F20: 0 | G20: 0 | H20: 0 | I20: 0 | J20: 0 | K20: 0 | L20: 0 | M20: 0 | N20: 0 | O20: 0 | P20: 0 | Q20: 0 | R20: 0 | S20: 0 | T20: 0 | U20: 0 | V20: 0 | W20: 0 | X20: 0 | Y20: 0 | Z20: 0 | AA20: 0 | AB20: 0 | AC20: 0 | AD20: 0 | AE20: 0 | AF20: 0 | AG20: 0 | AH20: 0 | AI20: 0 | AJ20: 0 | AK20: 0 | AL20: 0 | AM20: 0 | AN20: =AN45 -> 0 | AO20: 0 | AP20: 0 | AQ20: 0 | AR20: 0 | AS20: 0 | AT20: 0 | AU20: 0 | AV20: 0 | AW20: 0 | AX20: 0 | AY20: 0 | AZ20: 0 | BA20: 0 | BB20: 435780 | BC20: 108945 | BD20: 0 | BE20: 0 | BF20: 108945 | BG20: 0 | BH20: 0 | BI20: 108945 | BJ20: 0 | BK20: 108945
B22: The only user field on this form is exceptional changes
A24: Reference items
B25: Gross Revenue (subject to accounts receivable) | D25: =Revenues!D7 -> 0 | E25: =Revenues!E7 -> 0 | F25: =Revenues!F7 -> 0 | G25: =Revenues!G7 -> 0 | H25: =Revenues!H7 -> 0 | I25: =Revenues!I7 -> 0 | J25: =Revenues!J7 -> 0 | K25: =Revenues!K7 -> 0 | L25: =Revenues!L7 -> 0 | M25: =Revenues!M7 -> 20000 | N25: =Revenues!N7 -> 42500 | O25: =Revenues!O7 -> 47500 | P25: =Revenues!P7 -> 52500 | Q25: =Revenues!Q7 -> 57500 | R25: =Revenues!R7 -> 62500 | S25: =Revenues!S7 -> 67500 | T25: =Revenues!T7 -> 92500 | U25: =Revenues!U7 -> 120000 | V25: =Revenues!V7 -> 130000 | W25: =Revenues!W7 -> 140000 | X25: =Revenues!X7 -> 150000 | Y25: =Revenues!Y7 -> 160000 | Z25: =Revenues!Z7 -> 170000 | AA25: =Revenues!AA7 -> 180000 | AB25: =Revenues!AB7 -> 190000 | AC25: =Revenues!AC7 -> 200000 | AD25: =Revenues!AD7 -> 210000 | AE25: =Revenues!AE7 -> 220000 | AF25: =Revenues!AF7 -> 230000 | AG25: =Revenues!AG7 -> 240000 | AH25: =Revenues!AH7 -> 250000 | AI25: =Revenues!AI7 -> 260000 | AJ25: =Revenues!AJ7 -> 270000 | AK25: =Revenues!AK7 -> 280000 | AL25: =Revenues!AL7 -> 290000 | AM25: =Revenues!AM7 -> 300000 | AN25: =Revenues!AN7 -> 310000 | AO25: =Revenues!AO7 -> 320000 | AP25: =Revenues!AP7 -> 330000 | AQ25: =Revenues!AQ7 -> 340000 | AR25: =Revenues!AR7 -> 350000 | AS25: =Revenues!AS7 -> 360000 | AT25: =Revenues!AT7 -> 370000 | AU25: =Revenues!AU7 -> 380000 | AV25: =Revenues!AV7 -> 390000 | AW25: =Revenues!AW7 -> 400000 | AX25: =Revenues!AX7 -> 410000 | AY25: =Revenues!AY7 -> 420000 | AZ25: =Revenues!AZ7 -> 430000 | BA25: =Revenues!BA7 -> 440000 | BB25: =Revenues!BB7 -> 450000 | BC25: =Revenues!BC7 -> 460000 | BD25: =Revenues!BD7 -> 470000 | BE25: =Revenues!BE7 -> 480000 | BF25: =Revenues!BF7 -> 490000 | BG25: =Revenues!BG7 -> 500000 | BH25: =Revenues!BH7 -> 510000 | BI25: =Revenues!BI7 -> 520000 | BJ25: =Revenues!BJ7 -> 530000 | BK25: =Revenues!BK7 -> 540000
B26: Cost of materials (used for inventory) | D26: =COGS!D6 -> 0 | E26: =COGS!E6 -> 0 | F26: =COGS!F6 -> 0 | G26: =COGS!G6 -> 0 | H26: =COGS!H6 -> 0 | I26: =COGS!I6 -> 0 | J26: =COGS!J6 -> 0 | K26: =COGS!K6 -> 0 | L26: =COGS!L6 -> 0 | M26: =COGS!M6 -> 15000 | N26: =COGS!N6 -> 30000 | O26: =COGS!O6 -> 30000 | P26: =COGS!P6 -> 30000 | Q26: =COGS!Q6 -> 30000 | R26: =COGS!R6 -> 30000 | S26: =COGS!S6 -> 30000 | T26: =COGS!T6 -> 45000 | U26: =COGS!U6 -> 60000 | V26: =COGS!V6 -> 60000 | W26: =COGS!W6 -> 60000 | X26: =COGS!X6 -> 60000 | Y26: =COGS!Y6 -> 60000 | Z26: =COGS!Z6 -> 60000 | AA26: =COGS!AA6 -> 60000 | AB26: =COGS!AB6 -> 60000 | AC26: =COGS!AC6 -> 60000 | AD26: =COGS!AD6 -> 60000 | AE26: =COGS!AE6 -> 60000 | AF26: =COGS!AF6 -> 60000 | AG26: =COGS!AG6 -> 60000 | AH26: =COGS!AH6 -> 60000 | AI26: =COGS!AI6 -> 60000 | AJ26: =COGS!AJ6 -> 60000 | AK26: =COGS!AK6 -> 60000 | AL26: =COGS!AL6 -> 60000 | AM26: =COGS!AM6 -> 60000 | AN26: =COGS!AN6 -> 60000 | AO26: =COGS!AO6 -> 60000 | AP26: =COGS!AP6 -> 60000 | AQ26: =COGS!AQ6 -> 60000 | AR26: =COGS!AR6 -> 60000 | AS26: =COGS!AS6 -> 60000 | AT26: =COGS!AT6 -> 60000 | AU26: =COGS!AU6 -> 60000 | AV26: =COGS!AV6 -> 60000 | AW26: =COGS!AW6 -> 60000 | AX26: =COGS!AX6 -> 60000 | AY26: =COGS!AY6 -> 60000 | AZ26: =COGS!AZ6 -> 60000 | BA26: =COGS!BA6 -> 60000 | BB26: =COGS!BB6 -> 60000 | BC26: =COGS!BC6 -> 60000 | BD26: =COGS!BD6 -> 60000 | BE26: =COGS!BE6 -> 60000 | BF26: =COGS!BF6 -> 60000 | BG26: =COGS!BG6 -> 60000 | BH26: =COGS!BH6 -> 60000 | BI26: =COGS!BI6 -> 60000 | BJ26: =COGS!BJ6 -> 60000 | BK26: =COGS!BK6 -> 60000
B27: Operating expenses (subject to prepay) | D27: ='G&A Costs'!D6 -> 375 | E27: ='G&A Costs'!E6 -> 600 | F27: ='G&A Costs'!F6 -> 600 | G27: ='G&A Costs'!G6 -> 600 | H27: ='G&A Costs'!H6 -> 600 | I27: ='G&A Costs'!I6 -> 600 | J27: ='G&A Costs'!J6 -> 600 | K27: ='G&A Costs'!K6 -> 600 | L27: ='G&A Costs'!L6 -> 600 | M27: ='G&A Costs'!M6 -> 1275 | N27: ='G&A Costs'!N6 -> 1875 | O27: ='G&A Costs'!O6 -> 1875 | P27: ='G&A Costs'!P6 -> 1875 | Q27: ='G&A Costs'!Q6 -> 1875 | R27: ='G&A Costs'!R6 -> 1875 | S27: ='G&A Costs'!S6 -> 1875 | T27: ='G&A Costs'!T6 -> 1875 | U27: ='G&A Costs'!U6 -> 1875 | V27: ='G&A Costs'!V6 -> 3700 | W27: ='G&A Costs'!W6 -> 4000 | X27: ='G&A Costs'!X6 -> 4000 | Y27: ='G&A Costs'!Y6 -> 4000 | Z27: ='G&A Costs'!Z6 -> 4000 | AA27: ='G&A Costs'!AA6 -> 4000 | AB27: ='G&A Costs'!AB6 -> 4000 | AC27: ='G&A Costs'!AC6 -> 4000 | AD27: ='G&A Costs'!AD6 -> 4000 | AE27: ='G&A Costs'!AE6 -> 4000 | AF27: ='G&A Costs'!AF6 -> 4000 | AG27: ='G&A Costs'!AG6 -> 4000 | AH27: ='G&A Costs'!AH6 -> 4000 | AI27: ='G&A Costs'!AI6 -> 4000 | AJ27: ='G&A Costs'!AJ6 -> 4000 | AK27: ='G&A Costs'!AK6 -> 4000 | AL27: ='G&A Costs'!AL6 -> 4000 | AM27: ='G&A Costs'!AM6 -> 4000 | AN27: ='G&A Costs'!AN6 -> 4000 | AO27: ='G&A Costs'!AO6 -> 4000 | AP27: ='G&A Costs'!AP6 -> 4000 | AQ27: ='G&A Costs'!AQ6 -> 4000 | AR27: ='G&A Costs'!AR6 -> 4000 | AS27: ='G&A Costs'!AS6 -> 4000 | AT27: ='G&A Costs'!AT6 -> 4000 | AU27: ='G&A Costs'!AU6 -> 4000 | AV27: ='G&A Costs'!AV6 -> 4000 | AW27: ='G&A Costs'!AW6 -> 4000 | AX27: ='G&A Costs'!AX6 -> 4000 | AY27: ='G&A Costs'!AY6 -> 4000 | AZ27: ='G&A Costs'!AZ6 -> 4000 | BA27: ='G&A Costs'!BA6 -> 4000 | BB27: ='G&A Costs'!BB6 -> 4000 | BC27: ='G&A Costs'!BC6 -> 4000 | BD27: ='G&A Costs'!BD6 -> 4000 | BE27: ='G&A Costs'!BE6 -> 4000 | BF27: ='G&A Costs'!BF6 -> 4000 | BG27: ='G&A Costs'!BG6 -> 4000 | BH27: ='G&A Costs'!BH6 -> 4000 | BI27: ='G&A Costs'!BI6 -> 4000 | BJ27: ='G&A Costs'!BJ6 -> 4000 | BK27: ='G&A Costs'!BK6 -> 4000
B28: COGS (subject to accounts payable) | D28: =COGS!D7 -> 1200 | E28: =COGS!E7 -> 1200 | F28: =COGS!F7 -> 1200 | G28: =COGS!G7 -> 1200 | H28: =COGS!H7 -> 1200 | I28: =COGS!I7 -> 1200 | J28: =COGS!J7 -> 1200 | K28: =COGS!K7 -> 1200 | L28: =COGS!L7 -> 1200 | M28: =COGS!M7 -> 16200 | N28: =COGS!N7 -> 31200 | O28: =COGS!O7 -> 31200 | P28: =COGS!P7 -> 31200 | Q28: =COGS!Q7 -> 31200 | R28: =COGS!R7 -> 31200 | S28: =COGS!S7 -> 31200 | T28: =COGS!T7 -> 46200 | U28: =COGS!U7 -> 61200 | V28: =COGS!V7 -> 61200 | W28: =COGS!W7 -> 61200 | X28: =COGS!X7 -> 61200 | Y28: =COGS!Y7 -> 61200 | Z28: =COGS!Z7 -> 61200 | AA28: =COGS!AA7 -> 61200 | AB28: =COGS!AB7 -> 61200 | AC28: =COGS!AC7 -> 61200 | AD28: =COGS!AD7 -> 61200 | AE28: =COGS!AE7 -> 61200 | AF28: =COGS!AF7 -> 61200 | AG28: =COGS!AG7 -> 61200 | AH28: =COGS!AH7 -> 61200 | AI28: =COGS!AI7 -> 61200 | AJ28: =COGS!AJ7 -> 61200 | AK28: =COGS!AK7 -> 61200 | AL28: =COGS!AL7 -> 61200 | AM28: =COGS!AM7 -> 61200 | AN28: =COGS!AN7 -> 61200 | AO28: =COGS!AO7 -> 61200 | AP28: =COGS!AP7 -> 61200 | AQ28: =COGS!AQ7 -> 61200 | AR28: =COGS!AR7 -> 61200 | AS28: =COGS!AS7 -> 61200 | AT28: =COGS!AT7 -> 61200 | AU28: =COGS!AU7 -> 61200 | AV28: =COGS!AV7 -> 61200 | AW28: =COGS!AW7 -> 61200 | AX28: =COGS!AX7 -> 61200 | AY28: =COGS!AY7 -> 61200 | AZ28: =COGS!AZ7 -> 61200 | BA28: =COGS!BA7 -> 61200 | BB28: =COGS!BB7 -> 61200 | BC28: =COGS!BC7 -> 61200 | BD28: =COGS!BD7 -> 61200 | BE28: =COGS!BE7 -> 61200 | BF28: =COGS!BF7 -> 61200 | BG28: =COGS!BG7 -> 61200 | BH28: =COGS!BH7 -> 61200 | BI28: =COGS!BI7 -> 61200 | BJ28: =COGS!BJ7 -> 61200 | BK28: =COGS!BK7 -> 61200
B31: Accounts receivable | C31: =bsAR -> 0 | D31: =IF(cfRec=0,0,IF(COLUMN()<3+cfRec,0,SUM(OFFSET(D25,0,-(cfRec-1),1,cfRec)))) -> 0 | E31: 0 | F31: 0 | G31: =IF(cfRec=0,0,IF(COLUMN()<3+cfRec,0,SUM(OFFSET(G25,0,-(cfRec-1),1,cfRec)))) -> 0 | H31: 0 | I31: 0 | J31: 0 | K31: 0 | L31: 0 | M31: 20000 | N31: 42500 | O31: 47500 | P31: 52500 | Q31: 57500 | R31: 62500 | S31: 67500 | T31: 92500 | U31: 120000 | V31: 130000 | W31: 140000 | X31: 150000 | Y31: 160000 | Z31: 170000 | AA31: 180000 | AB31: 190000 | AC31: 200000 | AD31: 210000 | AE31: 220000 | AF31: 230000 | AG31: 240000 | AH31: 250000 | AI31: 260000 | AJ31: 270000 | AK31: 280000 | AL31: 290000 | AM31: 300000 | AN31: =IF(cfRec=0,0,IF(COLUMN()<3+cfRec,0,SUM(OFFSET(AN25,0,-(cfRec-1),1,cfRec)))) -> 310000 | AO31: 320000 | AP31: 330000 | AQ31: 340000 | AR31: 350000 | AS31: 360000 | AT31: 370000 | AU31: 380000 | AV31: 390000 | AW31: 400000 | AX31: 410000 | AY31: 420000 | AZ31: 430000 | BA31: 440000 | BB31: 450000 | BC31: 460000 | BD31: 470000 | BE31: 480000 | BF31: 490000 | BG31: 500000 | BH31: 510000 | BI31: 520000 | BJ31: 530000 | BK31: 540000
B32: Changes in accounts receivable | D32: =D31-C31 -> 0 | E32: =E31-D31 -> 0 | F32: =F31-E31 -> 0 | G32: =G31-F31 -> 0 | H32: =H31-G31 -> 0 | I32: =I31-H31 -> 0 | J32: =J31-I31 -> 0 | K32: =K31-J31 -> 0 | L32: =L31-K31 -> 0 | M32: =M31-L31 -> 20000 | N32: =N31-M31 -> 22500 | O32: =O31-N31 -> 5000 | P32: =P31-O31 -> 5000 | Q32: =Q31-P31 -> 5000 | R32: =R31-Q31 -> 5000 | S32: =S31-R31 -> 5000 | T32: =T31-S31 -> 25000 | U32: 27500 | V32: 10000 | W32: 10000 | X32: 10000 | Y32: 10000 | Z32: 10000 | AA32: 10000 | AB32: 10000 | AC32: 10000 | AD32: 10000 | AE32: 10000 | AF32: 10000 | AG32: 10000 | AH32: 10000 | AI32: 10000 | AJ32: 10000 | AK32: 10000 | AL32: 10000 | AM32: 10000 | AN32: =AN31-AM31 -> 10000 | AO32: =AO31-AN31 -> 10000 | AP32: =AP31-AO31 -> 10000 | AQ32: =AQ31-AP31 -> 10000 | AR32: =AR31-AQ31 -> 10000 | AS32: =AS31-AR31 -> 10000 | AT32: =AT31-AS31 -> 10000 | AU32: =AU31-AT31 -> 10000 | AV32: =AV31-AU31 -> 10000 | AW32: =AW31-AV31 -> 10000 | AX32: =AX31-AW31 -> 10000 | AY32: =AY31-AX31 -> 10000 | AZ32: =AZ31-AY31 -> 10000 | BA32: =BA31-AZ31 -> 10000 | BB32: =BB31-BA31 -> 10000 | BC32: =BC31-BB31 -> 10000 | BD32: =BD31-BC31 -> 10000 | BE32: =BE31-BD31 -> 10000 | BF32: =BF31-BE31 -> 10000 | BG32: =BG31-BF31 -> 10000 | BH32: =BH31-BG31 -> 10000 | BI32: =BI31-BH31 -> 10000 | BJ32: =BJ31-BI31 -> 10000 | BK32: =BK31-BJ31 -> 10000
B34: Inventory | C34: =bsInv -> 0 | D34: =SUM(OFFSET(D26,0,-MIN((cfTurns-1),COLUMN()-4),1,MIN(cfTurns,COLUMN()-3))) -> 0 | E34: 0 | F34: =SUM(OFFSET(F26,0,-MIN((cfTurns-1),COLUMN()-4),1,MIN(cfTurns,COLUMN()-3))) -> 0 | G34: 0 | H34: 0 | I34: 0 | J34: 0 | K34: 0 | L34: 0 | M34: 15000 | N34: 45000 | O34: 75000 | P34: 90000 | Q34: 90000 | R34: 90000 | S34: =SUM(OFFSET(S26,0,-MIN((cfTurns-1),COLUMN()-4),1,MIN(cfTurns,COLUMN()-3))) -> 90000 | T34: 105000 | U34: 135000 | V34: 165000 | W34: 180000 | X34: 180000 | Y34: 180000 | Z34: 180000 | AA34: 180000 | AB34: 180000 | AC34: 180000 | AD34: 180000 | AE34: 180000 | AF34: 180000 | AG34: 180000 | AH34: 180000 | AI34: 180000 | AJ34: =SUM(OFFSET(AJ26,0,-MIN((cfTurns-1),COLUMN()-4),1,MIN(cfTurns,COLUMN()-3))) -> 180000 | AK34: 180000 | AL34: 180000 | AM34: 180000 | AN34: =SUM(OFFSET(AN26,0,-MIN((cfTurns-1),COLUMN()-4),1,MIN(cfTurns,COLUMN()-3))) -> 180000 | AO34: 180000 | AP34: 180000 | AQ34: 180000 | AR34: 180000 | AS34: 180000 | AT34: 180000 | AU34: 180000 | AV34: 180000 | AW34: 180000 | AX34: 180000 | AY34: 180000 | AZ34: 180000 | BA34: 180000 | BB34: 180000 | BC34: 180000 | BD34: 180000 | BE34: 180000 | BF34: 180000 | BG34: 180000 | BH34: 180000 | BI34: 180000 | BJ34: 180000 | BK34: 180000
B35: Changes in inventory | D35: =D34-C34 -> 0 | E35: =E34-D34 -> 0 | F35: =F34-E34 -> 0 | G35: =G34-F34 -> 0 | H35: =H34-G34 -> 0 | I35: =I34-H34 -> 0 | J35: =J34-I34 -> 0 | K35: =K34-J34 -> 0 | L35: =L34-K34 -> 0 | M35: =M34-L34 -> 15000 | N35: =N34-M34 -> 30000 | O35: =O34-N34 -> 30000 | P35: =P34-O34 -> 15000 | Q35: =Q34-P34 -> 0 | R35: =R34-Q34 -> 0 | S35: =S34-R34 -> 0 | T35: =T34-S34 -> 15000 | U35: 30000 | V35: 30000 | W35: 15000 | X35: 0 | Y35: 0 | Z35: 0 | AA35: 0 | AB35: 0 | AC35: 0 | AD35: 0 | AE35: 0 | AF35: 0 | AG35: 0 | AH35: 0 | AI35: 0 | AJ35: 0 | AK35: 0 | AL35: 0 | AM35: 0 | AN35: =AN34-AM34 -> 0 | AO35: =AO34-AN34 -> 0 | AP35: =AP34-AO34 -> 0 | AQ35: =AQ34-AP34 -> 0 | AR35: =AR34-AQ34 -> 0 | AS35: =AS34-AR34 -> 0 | AT35: =AT34-AS34 -> 0 | AU35: =AU34-AT34 -> 0 | AV35: =AV34-AU34 -> 0 | AW35: =AW34-AV34 -> 0 | AX35: =AX34-AW34 -> 0 | AY35: =AY34-AX34 -> 0 | AZ35: =AZ34-AY34 -> 0 | BA35: =BA34-AZ34 -> 0 | BB35: =BB34-BA34 -> 0 | BC35: =BC34-BB34 -> 0 | BD35: =BD34-BC34 -> 0 | BE35: =BE34-BD34 -> 0 | BF35: =BF34-BE34 -> 0 | BG35: =BG34-BF34 -> 0 | BH35: =BH34-BG34 -> 0 | BI35: =BI34-BH34 -> 0 | BJ35: =BJ34-BI34 -> 0 | BK35: =BK34-BJ34 -> 0
B37: Pre-paid expenses | C37: =bsPre -> 500 | D37: =SUM(OFFSET(D27,0,-MIN((cfPre-1),COLUMN()-4),1,MIN(cfPre,COLUMN()-3))) -> 375 | E37: 600 | F37: =SUM(OFFSET(F27,0,-MIN((cfPre-1),COLUMN()-4),1,MIN(cfPre,COLUMN()-3))) -> 600 | G37: 600 | H37: 600 | I37: 600 | J37: 600 | K37: 600 | L37: 600 | M37: 1275 | N37: 1875 | O37: 1875 | P37: 1875 | Q37: 1875 | R37: 1875 | S37: =SUM(OFFSET(S27,0,-MIN((cfPre-1),COLUMN()-4),1,MIN(cfPre,COLUMN()-3))) -> 1875 | T37: 1875 | U37: 1875 | V37: 3700 | W37: 4000 | X37: 4000 | Y37: 4000 | Z37: 4000 | AA37: 4000 | AB37: 4000 | AC37: 4000 | AD37: 4000 | AE37: 4000 | AF37: 4000 | AG37: 4000 | AH37: 4000 | AI37: 4000 | AJ37: =SUM(OFFSET(AJ27,0,-MIN((cfPre-1),COLUMN()-4),1,MIN(cfPre,COLUMN()-3))) -> 4000 | AK37: 4000 | AL37: 4000 | AM37: 4000 | AN37: =SUM(OFFSET(AN27,0,-MIN((cfPre-1),COLUMN()-4),1,MIN(cfPre,COLUMN()-3))) -> 4000 | AO37: 4000 | AP37: 4000 | AQ37: 4000 | AR37: 4000 | AS37: 4000 | AT37: 4000 | AU37: 4000 | AV37: 4000 | AW37: 4000 | AX37: 4000 | AY37: 4000 | AZ37: 4000 | BA37: 4000 | BB37: 4000 | BC37: 4000 | BD37: 4000 | BE37: 4000 | BF37: 4000 | BG37: 4000 | BH37: 4000 | BI37: 4000 | BJ37: 4000 | BK37: 4000
B38: Changes in pre-paid expenses | D38: =D37-C37 -> -125 | E38: =E37-D37 -> 225 | F38: =F37-E37 -> 0 | G38: =G37-F37 -> 0 | H38: =H37-G37 -> 0 | I38: =I37-H37 -> 0 | J38: =J37-I37 -> 0 | K38: =K37-J37 -> 0 | L38: =L37-K37 -> 0 | M38: =M37-L37 -> 675 | N38: =N37-M37 -> 600 | O38: =O37-N37 -> 0 | P38: =P37-O37 -> 0 | Q38: =Q37-P37 -> 0 | R38: =R37-Q37 -> 0 | S38: =S37-R37 -> 0 | T38: =T37-S37 -> 0 | U38: 0 | V38: 1825 | W38: 300 | X38: 0 | Y38: 0 | Z38: 0 | AA38: 0 | AB38: 0 | AC38: 0 | AD38: 0 | AE38: 0 | AF38: 0 | AG38: 0 | AH38: 0 | AI38: 0 | AJ38: 0 | AK38: 0 | AL38: 0 | AM38: 0 | AN38: =AN37-AM37 -> 0 | AO38: =AO37-AN37 -> 0 | AP38: =AP37-AO37 -> 0 | AQ38: =AQ37-AP37 -> 0 | AR38: =AR37-AQ37 -> 0 | AS38: =AS37-AR37 -> 0 | AT38: =AT37-AS37 -> 0 | AU38: =AU37-AT37 -> 0 | AV38: =AV37-AU37 -> 0 | AW38: =AW37-AV37 -> 0 | AX38: =AX37-AW37 -> 0 | AY38: =AY37-AX37 -> 0 | AZ38: =AZ37-AY37 -> 0 | BA38: =BA37-AZ37 -> 0 | BB38: =BB37-BA37 -> 0 | BC38: =BC37-BB37 -> 0 | BD38: =BD37-BC37 -> 0 | BE38: =BE37-BD37 -> 0 | BF38: =BF37-BE37 -> 0 | BG38: =BG37-BF37 -> 0 | BH38: =BH37-BG37 -> 0 | BI38: =BI37-BH37 -> 0 | BJ38: =BJ37-BI37 -> 0 | BK38: =BK37-BJ37 -> 0
B40: Accounts payable | C40: =bsAP -> 0 | D40: =SUM(OFFSET(D28,0,-MIN((cfPay-1),COLUMN()-4),1,MIN(cfPay,COLUMN()-3))) -> 1200 | E40: 1200 | F40: 1200 | G40: 1200 | H40: 1200 | I40: 1200 | J40: 1200 | K40: 1200 | L40: 1200 | M40: 16200 | N40: 31200 | O40: 31200 | P40: 31200 | Q40: 31200 | R40: 31200 | S40: =SUM(OFFSET(S28,0,-MIN((cfPay-1),COLUMN()-4),1,MIN(cfPay,COLUMN()-3))) -> 31200 | T40: 46200 | U40: 61200 | V40: 61200 | W40: 61200 | X40: 61200 | Y40: 61200 | Z40: 61200 | AA40: 61200 | AB40: 61200 | AC40: 61200 | AD40: 61200 | AE40: 61200 | AF40: 61200 | AG40: 61200 | AH40: 61200 | AI40: 61200 | AJ40: =SUM(OFFSET(AJ28,0,-MIN((cfPay-1),COLUMN()-4),1,MIN(cfPay,COLUMN()-3))) -> 61200 | AK40: 61200 | AL40: 61200 | AM40: 61200 | AN40: =SUM(OFFSET(AN28,0,-MIN((cfPay-1),COLUMN()-4),1,MIN(cfPay,COLUMN()-3))) -> 61200 | AO40: 61200 | AP40: 61200 | AQ40: 61200 | AR40: 61200 | AS40: 61200 | AT40: 61200 | AU40: 61200 | AV40: 61200 | AW40: 61200 | AX40: 61200 | AY40: 61200 | AZ40: 61200 | BA40: 61200 | BB40: 61200 | BC40: 61200 | BD40: 61200 | BE40: 61200 | BF40: 61200 | BG40: 61200 | BH40: 61200 | BI40: 61200 | BJ40: 61200 | BK40: 61200
B41: Exceptional changes - must be explained below
